Workbook

Sheet Translation (hidden)
A1: 2 | B1: English | C1: French
B2: Titles
A3: CANADA MORTGAGE AND HOUSING CORPORATION | B3: CANADA MORTGAGE AND HOUSING CORPORATION | C3: SOCIÉTÉ CANADIENNE D'HYPOTHÈQUES ET DE LOGEMENT
A4: National Mortgage Loan Insurance Business Supplement | B4: National Mortgage Loan Insurance Business Supplement | C4: Supplément national d’information sur les activités d’assurance prêt hypothécaire
A5: First Quarter | B5: First Quarter | C5: Premier trimestre
A6: Second Quarter | B6: Second Quarter | C6: Deuxième trimestre
A7: Third Quarter | B7: Third Quarter | C7: Troisième trimestre
A8: Fourth Quarter | B8: Fourth Quarter | C8: Quatrième trimestre
A9: March 31, 2019 | B9: March 31, 2019 | C9: 31 mars 2019
A10: June 30, 2019 | B10: June 30, 2019 | C10: 30 juin 2019
A11: September 30, 2019 | B11: September 30, 2019 | C11: 30 septembre 2019
A12: December 31, 2019 | B12: December 31, 2019 | C12: 31 décembre 2019
A13: March 31, 2020 | B13: March 31, 2020 | C13: 31 mars 2020
A14: NATIONAL INSURED VOLUMES | B14: NATIONAL INSURED VOLUMES | C14: VOLUME DE PRÊTS ASSURÉS À L’ÉCHELLE NATIONALE
A15: National Insured Volumes | B15: National Insured Volumes | C15: Volume de prêts assurés à l’échelle nationale
B16: Tab Heading 1
A17: TRANSACTIONAL HOMEOWNER AND PORTFOLIO - LOAN-TO-VALUE RATIO | B17: TRANSACTIONAL HOMEOWNER AND PORTFOLIO - LOAN-TO-VALUE RATIO | C17: PROPRIÉTAIRES-OCCUPANTS (À L’UNITÉ) ET ASSURANCE DE PORTEFEUILLE - RAPPORT PRÊT-VALEUR
A18: TRANSACTIONAL HOMEOWNER AND PORTFOLIO - AMORTIZATION | B18: TRANSACTIONAL HOMEOWNER AND PORTFOLIO - AMORTIZATION | C18: PROPRIÉTAIRES-OCCUPANTS (À L’UNITÉ) ET ASSURANCE DE PORTEFEUILLE - AMORTISSEMENT
A19: TRANSACTIONAL HOMEOWNER AND PORTFOLIO - CREDIT SCORE | B19: TRANSACTIONAL HOMEOWNER AND PORTFOLIO - CREDIT SCORE | C19: PROPRIÉTAIRES-OCCUPANTS (À L’UNITÉ) ET ASSURANCE DE PORTEFEUILLE - POINTAGE DE CRÉDIT
A20: TRANSACTIONAL HOMEOWNER AND PORTFOLIO - PURCHASE PRICE | B20: TRANSACTIONAL HOMEOWNER AND PORTFOLIO - PURCHASE PRICE | C20: PROPRIÉTAIRES-OCCUPANTS (À L’UNITÉ) ET ASSURANCE DE PORTEFEUILLE - PRIX D'ACHAT
A21: TRANSACTIONAL HOMEOWNER AND PORTFOLIO - DWELLING TYPE | B21: TRANSACTIONAL HOMEOWNER AND PORTFOLIO - DWELLING TYPE | C21: PROPRIÉTAIRES-OCCUPANTS (À L’UNITÉ) ET ASSURANCE DE PORTEFEUILLE – TYPE DE LOGEMENT
A22: TRANSACTIONAL HOMEOWNER AND PORTFOLIO - URBAN/RURAL | B22: TRANSACTIONAL HOMEOWNER AND PORTFOLIO - URBAN/RURAL | C22: PROPRIÉTAIRES-OCCUPANTS (À L’UNITÉ) ET ASSURANCE DE PORTEFEUILLE - URBAIN/RURAL
A23: TRANSACTIONAL HOMEOWNER AND PORTFOLIO - NEW/EXISTING | B23: TRANSACTIONAL HOMEOWNER AND PORTFOLIO - NEW/EXISTING | C23: PROPRIÉTAIRES-OCCUPANTS (À L’UNITÉ) ET ASSURANCE DE PORTEFEUILLE - NEUF/EXISTANT
A24: TRANSACTIONAL HOMEOWNER AND PORTFOLIO - GDS/TDS | B24: TRANSACTIONAL HOMEOWNER AND PORTFOLIO - GDS/TDS | C24: PROPRIÉTAIRES-OCCUPANTS (À L’UNITÉ) ET ASSURANCE DE PORTEFEUILLE - ABD/ATD
A25: TRANSACTIONAL HOMEOWNER AND PORTFOLIO - INTEREST RATE TYPE | B25: TRANSACTIONAL HOMEOWNER AND PORTFOLIO - INTEREST RATE TYPE | C25: PROPRIÉTAIRES-OCCUPANTS (À L’UNITÉ) ET ASSURANCE DE PORTEFEUILLE – TYPE DE TAUX D’INTÉRÊT
A26: TRANSACTIONAL HOMEOWNER AND PORTFOLIO - ARREARS | B26: TRANSACTIONAL HOMEOWNER AND PORTFOLIO - ARREARS | C26: PROPRIÉTAIRES-OCCUPANTS (À L’UNITÉ) ET ASSURANCE DE PORTEFEUILLE – PRÊTS EN SOUFFRANCE
A27: TRANSACTIONAL HOMEOWNER AND PORTFOLIO - CLAIMS PAID | B27: TRANSACTIONAL HOMEOWNER AND PORTFOLIO - CLAIMS PAID | C27: PROPRIÉTAIRES-OCCUPANTS (À L’UNITÉ) ET ASSURANCE DE PORTEFEUILLE - RÈGLEMENTS PAYÉS
A28: MULTI-UNIT RESIDENTIAL - LOAN-TO-VALUE | B28: MULTI-UNIT RESIDENTIAL - LOAN-TO-VALUE | C28: IMMEUBLES COLLECTIFS RÉSIDENTIELS - RAPPORT PRÊT-VALEUR
A29: MULTI-UNIT RESIDENTIAL - AMORTIZATION | B29: MULTI-UNIT RESIDENTIAL - AMORTIZATION | C29: IMMEUBLES COLLECTIFS RÉSIDENTIELS - AMORTISSEMENT
A30: MULTI-UNIT RESIDENTIAL - DWELLING TYPE | B30: MULTI-UNIT RESIDENTIAL - DWELLING TYPE | C30: IMMEUBLES COLLECTIFS RÉSIDENTIELS – TYPE DE LOGEMENT
A31: MULTI-UNIT RESIDENTIAL - URBAN/RURAL | B31: MULTI-UNIT RESIDENTIAL - URBAN/RURAL | C31: IMMEUBLES COLLECTIFS RÉSIDENTIELS - URBAIN/RURAL
A32: MULTI-UNIT RESIDENTIAL - NEW/EXISTING | B32: MULTI-UNIT RESIDENTIAL - NEW/EXISTING | C32: IMMEUBLES COLLECTIFS RÉSIDENTIELS - NEUF/EXISTANT
A33: MULTI-UNIT RESIDENTIAL - ARREARS AND CLAIMS PAID | B33: MULTI-UNIT RESIDENTIAL - ARREARS RATE AND CLAIMS PAID | C33: IMMEUBLES COLLECTIFS RÉSIDENTIELS – PRÊTS EN SOUFFRANCE ET RÈGLEMENTS PAYÉS
B34: Tables of Contents
A35: Table of Contents | B35: Table of Contents | C35: Table des matières
A36: Transactional Homeowner and Portfolio | B36: Transactional Homeowner and Portfolio | C36: Propriétaires-occupants (à l’unité) et assurance de portefeuille
A37: Multi-Unit Residential | B37: Multi-Unit Residential | C37: Immeubles collectifs résidentiels
A38: Loan-to-Value | B38: Loan-to-Value | C38: Rapport prêt-valeur
A39: Amortization | B39: Amortization | C39: Période d'amortissement
A40: Credit Score | B40: Credit Score | C40: Pointage de crédit
A41: Purchase Price | B41: Purchase Price | C41: Prix d'achat
A42: Dwelling Type | B42: Dwelling Type | C42: Type de logement
A43: Urban/Rural | B43: Urban/Rural | C43: Urbain/Rural
A44: New/Existing | B44: New/Existing | C44: Neuf/Existant
A45: GDS/TDS | B45: GDS/TDS | C45: Rapport d’amortissement brut de la dette/Rapport d'amortissement total de la dette
A46: Interest Rate Type | B46: Interest Rate Type | C46: Type de taux d’intérêt
A47: Arrears Rate | B47: Arrears Rate | C47: Taux de prêts en souffrance
A48: Claims Paid | B48: Claims Paid | C48: Règlements payés
A49: Arrears Rate and Claims Paid | B49: Arrears Rate and Claims Paid | C49: Taux de prêts en souffrance et règlements payés
B50: Date/ Time
A51: As at | B51: As at | C51: Aux
A52: Q1 2017 | B52: Q1 2017 | C52: T1 2017
A53: Q2 2017 | B53: Q2 2017 | C53: T2 2017
A54: Q3 2017 | B54: Q3 2017 | C54: T3 2017
A55: Q4 2017 | B55: Q4 2017 | C55: T4 2017
A56: Q1 2018 | B56: Q1 2018 | C56: T1 2018
A57: Q2 2018 | B57: Q2 2018 | C57: T2 2018
A58: Q3 2018 | B58: Q3 2018 | C58: T3 2018
A59: Q4 2018 | B59: Q4 2018 | C59: T4 2018
A60: Q1 2019 | B60: Q1 2019 | C60: T1 2019
A61: Q2 2019 | B61: Q2 2019 | C61: T2 2019
A62: Q3 2019 | B62: Q3 2019 | C62: T3 2019
A63: Q4 2019 | B63: Q4 2019 | C63: T4 2019
A64: Q1 2020 | B64: Q1 2020 | C64: T1 2020
A65: YTD 2020 | B65: YTD 2020 | C65: Cumul 2020
A66: YTD 2019 | B66: YTD 2019 | C66: Cumul 2019
A67: YTD 2018 | B67: YTD 2018 | C67: Cumul 2018
A68: YTD 2017 | B68: YTD 2017 | C68: Cumul 2017
A69: YTD | B69: YTD | C69: Cumul
B70: Recurring
A71: Transactional Homeowner | B71: Transactional Homeowner | C71: Propriétaires-occupants, à l’unité
A72: TRANSACTIONAL HOMEOWNER | B72: TRANSACTIONAL HOMEOWNER | C72: PROPRIÉTAIRES-OCCUPANTS, À L’UNITÉ
A73: PORTFOLIO | B73: PORTFOLIO | C73: ASSURANCE DE PORTEFEUILLE
A74: Portfolio | B74: Portfolio | C74: Assurance de portefeuille
A75: MULTI-UNIT RESIDENTIAL | B75: MULTI-UNIT RESIDENTIAL | C75: IMMEUBLES COLLECTIFS RÉSIDENTIELS
A76: Multi-Unit Residential | B76: Multi-Unit Residential | C76: Immeubles collectifs résidentiels
A77: Overall | B77: Overall | C77: Tous les types de prêts
B78: Footnote
A79: Portfolio distributions do not include substitutions volumes for Portfolio insurance. | B79: Portfolio distributions do not include substitutions volumes for Portfolio insurance. | C79: La répartition des prêts hypothécaires pour l'assurance de portefeuille ne comprend pas les prêts de remplacement.
A80: Distribution based on number of units, not number of loans. | B80: Distribution based on number of units, not number of loans. | C80: La répartition est établie d'après le nombre de logements, plutôt que le nombre de prêts assurés.
A81: Distribution based on loan amounts, not number of loans. | B81: Distribution based on loan amounts, not number of loans. | C81: La répartition est établie d'après le montant, plutôt que le nombre de prêts assurés.
A82: Distribution based on number of loans, not loan amounts. | B82: Distribution based on number of loans, not loan amounts. | C82: Distribution basée sur le nombre de prêts et non sur le montant des prêts.
A83: Distribution based on outstanding loan amounts, not number of loans. | B83: Distribution based on outstanding loan amounts, not number of loans. | C83: La répartition est établie d'après le solde, plutôt que le nombre de prêts assurés.
A84: The sum of all breakdown categories may not add up to 100 due to rounding. | B84: The sum of all breakdown categories may not add up to 100 due to rounding. | C84: Les chiffres ayant été arrondis, il se peut que la somme de l'ensemble des catégories n'égale pas 100 %.
A85: ¹ The sum of all breakdown categories may not add up to total due to rounding. | B85: ¹ The sum of all breakdown categories may not add up to total due to rounding. | C85: ¹ Les chiffres ayant été arrondis, il se peut que la somme de l'ensemble des catégories n'égale pas 100 %.
A86: Portfolio-insured Line of Credit loans with zero ($0.00) balance were included in the number of loans in force starting from Q2 2018. | B86: Portfolio-insured Line of Credit loans with zero ($0.00) balance were included in the number of loans in force starting from Q2 2018. | C86: Les prêts liés à une marge de crédit couverts par une assurance de portefeuille ayant un solde nul (0,00 $) sont inclus dans le nombre des prêts en cours depuis le deuxième trimestre de 2018.
A87: Not Available | B87: Not Available | C87: Non disponible
B88: Province
A89: Newfoundland | B89: Newfoundland and Labrador | C89: Terre-Neuve-et-Labrador
A90: Newfoundland and Labrador | B90: Newfoundland and Labrador | C90: Terre-Neuve-et-Labrador
A91: Prince Edward Island | B91: Prince Edward Island | C91: Île-du-Prince-Édouard
A92: Nova Scotia | B92: Nova Scotia | C92: Nouvelle-Écosse
A93: New Brunswick | B93: New Brunswick | C93: Nouveau-Brunswick
A94: Quebec | B94: Quebec | C94: Québec
A95: Ontario | B95: Ontario | C95: Ontario
A96: Manitoba | B96: Manitoba | C96: Manitoba
A97: Saskatchewan | B97: Saskatchewan | C97: Saskatchewan
A98: Alberta | B98: Alberta | C98: Alberta
A99: British Columbia | B99: British Columbia | C99: Colombie-Britannique
A100: Territories | B100: Territories | C100: Territoires
B101: Insured Volumes
A102: Loans insured in period | B102: Loans insured in period | C102: Prêts assurés au cours de la période
A103: Insurance-in-force | B103: Insurance-in-force | C103: Contrats d’assurance en vigueur
A104: Total Insured Volumes (units)¹ | B104: Total Insured Volumes (units)¹ | C104: Volume total d'assurance (nbre de logements)¹
A105: Total Insured Volumes ($M) | B105: Total Insured Volumes ($M) | C105: Volume total d'assurance (M$)
A106: Portfolio (New) | B106: Portfolio (New) | C106: Assurance de portefeuille (nouveaux prêts)
A107: Portfolio (Substitutions) | B107: Portfolio (Substitutions) | C107: Assurance de portefeuille (prêts de substitution)
A108: Affordable | B108: Affordable | C108: Abordable
A109: Market | B109: Market | C109: Marché
A110: Loans insured during period by province (%) | B110: Loans insured during period by province (%) | C110: Prêts hypothécaires assurés au cours de la période selon la province (%)
A111: Insurance-in-force by province (%) | B111: Insurance-in-force by province (%) | C111: Contrats d’assurance en vigueur selon la province (%)
A112: Insurance-in-force (loans) | B112: Insurance-in-force (loans) | C112: Contrats d’assurance en vigueur (nbre de prêts assurés)
A113: Insurance-in-force ($B) | B113: Insurance-in-force ($B) | C113: Contrats d’assurance en vigueur (G$)
A114: The sum of all breakdown categories may not add up to total due to rounding. | B114: The sum of all breakdown categories may not add up to total due to rounding. | C114: Les chiffres ayant été arrondis, il se peut que la somme de l’ensemble des catégories n’égale pas le volume total.
A115: Distributions do not include substitutions volumes for Portfolio insurance. | B115: Distributions do not include substitutions volumes for Portfolio insurance. | C115: La répartition des prêts hypothécaires pour l'assurance de portefeuille ne comprend pas les prêts de remplacement.
B116: LTV (NBW)
A117: Loans insured in period by loan-to-value (LTV) ratio based on original property value (%) | B117: Loans insured in period by loan-to-value (LTV) ratio based on original property value (%) | C117: Prêts hypothécaires assurés au cours de la période selon le rapport prêt-valeur (RPV) établi d’après la valeur initiale de la propriété (%)
A118: Average loan-to-value | B118: Average loan-to-value | C118: Rapport prêt-valeur moyen
A119: Average equity | B119: Average equity | C119: Avoir propre foncier moyen
A120: Average equity by province | B120: Average equity by province | C120: Avoir propre foncier moyen selon la province
B121: LTV (IIF Orig.)
A122: Based on Loan Amounts and Property Values at Origination¹ | B122: Based on Loan Amounts and Property Values at Origination¹ | C122: D'après le montant du prêt et la valeur de la propriété à l'initiation¹
A123: Insurance-in-force by loan-to-value (LTV) ratio based on original property value (%) | B123: Insurance-in-force by loan-to-value (LTV) ratio based on original property value (%) | C123: Contrats d’assurance en vigueur selon le rapport prêt-valeur établi d'après la valeur originale de la propriété (%)
A124: LTV calculated on the basis of loan amounts and property values at insurance origination. | B124: LTV calculated on the basis of loan amounts and property values at insurance origination. | C124: Le RPV est fondé sur le montant du prêt et la valeur de la propriété à l'initiation de l'assurance.
B125: LTV (IIF Updated Price)
A126: Percentage distribution of loans insured in period by loan-to-value (LTV) ratio based on updated property value | B126: Percentage distribution of loans insured in period by loan-to-value (LTV) ratio based on updated property value | C126: Répartition en pourcentage des prêts hypothécaires assurés au cours de la période selon le rapport prêt-valeur basé sur la valeur courante de la propriété
A127: Insurance-in-force by loan-to-value (LTV) ratio based on updated property value (%) | B127: Insurance-in-force by loan-to-value (LTV) ratio based on updated property value (%) | C127: Contrats d’assurance en vigueur selon le rapport prêt-valeur établi d'après la valeur courante de la propriété (%)
A128: Based on Outstanding Loan Amounts and Updated Property Value¹ | B128: Based on Outstanding Loan Amounts and Updated Property Value¹ | C128: D'après le solde du prêt et la valeur courante de la propriété¹
A129: LTV calculated on the basis of outstanding loan amounts and estimated updated property values reflecting changes in local resale prices. | B129: LTV calculated on the basis of outstanding loan amounts and estimated updated property values reflecting changes in local resale prices. | C129: Le RPV est fondé sur le solde du prêt et la valeur courante estimative de la propriété en tenant compte des variations des prix de revente sur le marché local.
A130: Distribution based on outstanding loan amounts, not number of loans. | B130: Distribution based on outstanding loan amounts, not number of loans. | C130: La répartition est établie d'après le solde, plutôt que le nombre de prêts assurés.
B131: Amortization (NBW)
A132: Loans insured during the period by amortization (years) at origination (%) | B132: Loans insured during the period by amortization (years) at origination (%) | C132: Prêts hypothécaires assurés au cours de la période selon la période d’amortissement (en années) à l'initiation (%)
A133: Average amortization period | B133: Average amortization period | C133: Période d’amortissement moyenne
A134: Average amortization period by province | B134: Average amortization period by province | C134: Période d’amortissement moyenne selon la province
B135: Amortization (Orig - IIF)
A136: Insurance-in-force by amortization (years) at origination (%) | B136: Insurance-in-force by amortization (years) at origination (%) | C136: Contrats d’assurance en vigueur selon la période d’amortissement (en années) à l'initiation (%)
A137: Amortization at Origination | B137: Amortization at Origination | C137: Période d'amortissement à l'initiation
A138: Percentage distribution of insurance-in-force by amortization at origination (years) | B138: Percentage distribution of insurance-in-force by amortization at origination (years) | C138: Répartition en pourcentage des contrats d’assurance en vigueur selon la période d’amortissement à l'initiation (en années)
A139: Average amortization period | B139: Average amortization period | C139: Période d’amortissement moyenne
A140: Average amortization period by province | B140: Average amortization period by province | C140: Période d’amortissement moyenne selon la province
B141: Amortization (Remaining - IIF)
A142: Insurance-in-force by remaining amortization (years) (%) | B142: Insurance-in-force by remaining amortization (years) (%) | C142: Contrats d’assurance en vigueur selon la période d’amortissement résiduelle (en années) (%)
A143: Remaining Amortization | B143: Remaining Amortization | C143: Période d'amortissement résiduelle
A144: Average remaining amortization period | B144: Average remaining amortization period | C144: Période d’amortissement résiduelle moyenne
A145: Average remaining amortization period by province | B145: Average remaining amortization period by province | C145: Période d’amortissement résiduelle moyenne selon la province
B146: Credit Score (NBW)
A147: Loans insured during period by credit score at origination (%) | B147: Loans insured during period by credit score at origination (%) | C147: Prêts hypothécaires assurés au cours de la période selon le pointage de crédit à l’initiation (%)
A148: No credit score | B148: No credit score | C148: Aucun pointage de crédit
A149: Average credit score at origination | B149: Average credit score at origination | C149: Pointage de crédit moyen à l'initiation
A150: Average credit score at origination by province | B150: Average credit score at origination by province | C150: Pointage de crédit moyen à l'initiation selon la province
B151: Credit Score (IIF)
A152: Insurance-in-force by credit score at origination (%) | B152: Insurance-in-force by credit score at origination (%) | C152: Contrats d’assurance en vigueur selon le pointage de crédit à l'initiation (%)
A153: No credit score | B153: No credit score | C153: Aucun pointage de crédit
A154: Average credit score at origination | B154: Average credit score at origination | C154: Pointage moyen à l'initiation
A155: Average credit score at origination by province | B155: Average credit score at origination by province | C155: Pointage moyen à l'initiation selon la province
B156: Purchase Price (NBW)
A157: Loans insured in period by purchase price (%) | B157: Loans insured in period by purchase price (%) | C157: Prêts hypothécaires assurés au cours de la période selon le prix d'achat (%)
A158: Over $1,000,000 | B158: Over $1,000,000 | C158: Plus de 1 000 000 $
A159: Over $850,000 to $1,000,000 | B159: Over $850,000 to $1,000,000 | C159: Plus de 850 000 $ à 1 000 000 $
A160: Over $600,000 to $850,000 | B160: Over $600,000 to $850,000 | C160: Plus de 600 000 $ à 850 000 $
A161: Over $500,000 to $600,000 | B161: Over $500,000 to $600,000 | C161: Plus de 500 000 $ à 600 000 $
A162: Over $400,000 to $500,000 | B162: Over $400,000 to $500,000 | C162: Plus de 400 000 $ à 500 000 $
A163: Over $300,000 to $400,000 | B163: Over $300,000 to $400,000 | C163: Plus de 300 000 $ à 400 000 $
A164: Over $200,000 to $300,000 | B164: Over $200,000 to $300,000 | C164: Plus de 200 000 $ à 300 000 $
A165: $200,000 or under | B165: $200,000 or under | C165: 200 000 $ ou moins
A166: Average purchase price amount ($) | B166: Average purchase price amount ($) | C166: Prix d'achat moyen ($)
A167: Average purchase price amount ($) by province | B167: Average purchase price amount ($) by province | C167: Prix d'achat moyen ($) selon la province
B168: DWELLING TYPE (NBW)
A169: Loans insured in period by dwelling type (%) | B169: Loans insured in period by dwelling type (%) | C169: Prêts hypothécaires assurés au cours de la période selon le type de logement (%)
A170: Single by province (%) | B170: Single by province (%) | C170: Logements individuels selon la province (%)
A171: Single | B171: Single | C171: Logement unifamilial
A172: Row | B172: Row | C172: Maison en rangée
A173: Apartment | B173: Apartment | C173: Appartement
A174: Semi-detached | B174: Semi-detached | C174: Jumelé
A175: Plexes | B175: Plexes | C175: Plex
A176: Retirement/Nursing homes | B176: Retirement/Nursing homes | C176: Maison de retraite/de repos
A177: Other | B177: Other | C177: Autre
B178: DWELLING TYPES (IIF)
A179: Insurance-in-force by dwelling type (%) | B179: Insurance-in-force by dwelling type (%) | C179: Contrats d’assurance en vigueur selon le type de logement (%)
B180: URBAN/RURAL (NBW)
A181: Loans insured in period by urban and rural type (%) | B181: Loans insured in period by urban and rural type (%) | C181: Prêts hypothécaires assurés au cours de la période selon le milieu urbain/rural (%)
A182: Urban | B182: Urban | C182: Urbain
A183: Rural | B183: Rural | C183: Rural
A184: Urban properties by province (%) | B184: Urban properties by province (%) | C184: Propriétés urbaines selon la province (%)
B185: URBAN/RURAL (IIF)
A186: Insurance-in-force by urban and rural type (%) | B186: Insurance-in-force by urban and rural type (%) | C186: Contrats d’assurance en vigueur selon le milieu urbain/rural (%)
B187: NEW/EXISTING (NBW)
A188: Loans insured in period by new and existing type (%) | B188: Loans insured in period by new and existing type (%) | C188: Prêts hypothécaires assurés au cours de la période selon le type neuf/existant (%)
A189: New | B189: New | C189: Neuf
A190: Existing | B190: Existing | C190: Existant
A191: Apartments by province (%) | B191: Apartments by province (%) | C191: Appartements selon la province (%)
A192: Existing properties by province (%) | B192: Existing properties by province (%) | C192: Propriétés existantes selon la province (%)
B193: NEW/EXISTING (IIF)
A194: Insurance-in-force by new and existing type (%) | B194: Insurance-in-force by new and existing type (%) | C194: Contrats d’assurance en vigueur selon le type neuf/existant (%)
B195: GDS/TDS (NBW)
A196: Loans insured in period by borrower average gross debt service ratio (GDS) (%) | B196: Loans insured in period by borrower average gross debt service ratio (GDS) (%) | C196: Prêts hypothécaires assurés au cours de la période selon le rapport d’amortissement brut de la dette (ABD) moyen des emprunteurs détenant un prêt assuré par la SCHL (%)
A197: Average Gross Debt Service Ratio (GDS) | B197: Average Gross Debt Service Ratio (GDS) | C197: Rapport d'amortissement brut de la dette (ABD) moyen
A198: Average Gross Debt Service Ratio (GDS) by province | B198: Average Gross Debt Service Ratio (GDS) by province | C198: Rapport d'amortissement brut de la dette (ABD) moyen selon la province
A199: Loans insured in period by borrower average total debt service ratio (TDS) (%) | B199: Loans insured in period by borrower average total debt service ratio (TDS) (%) | C199: Prêts hypothécaires assurés au cours de la période selon le rapport d’amortissement total de la dette (ATD) moyen des emprunteurs détenant un prêt assuré par la SCHL (%)
A200: Average Total Debt Service Ratio (TDS) | B200: Average Total Debt Service Ratio (TDS) | C200: Rapport d'amortissement total de la dette (ATD) moyen
... 79 more rows

Sheet Data (hidden)
A1: TabName | B1: Quarter | C1: Business_Line | D1: Categories | E1: Figure | F1: Metric_Description | G1: figure_formatted | I1: TabName | J1: Quarter | K1: Business_Line | L1: Categories | M1: Figure | N1: Metric_Description | O1: figure_formatted
A2: 10 | B2: T1 2020 | C2: PROPRIÉTAIRES-OCCUPANTS, À L’UNITÉ | D2: <= 5 | E2: 0.00388346009 | F2: Prêts hypothécaires assurés au cours de la période selon la période d’amortissement (en années) à l'initiation (%) | G2: 0.0 | H2: <= 5 | I2: =IFERROR(VLOOKUP(A2,Translation!$A:$C,3,FALSE),A2) -> 10 | J2: =IFERROR(VLOOKUP(B2,Translation!$A:$C,3,FALSE),B2) -> T1 2020 | K2: =IFERROR(VLOOKUP(C2,Translation!$A:$C,3,FALSE),C2) -> PROPRIÉTAIRES-OCCUPANTS, À L’UNITÉ | L2: =IFERROR(VLOOKUP(D2,Translation!$A:$C,3,FALSE),D2) -> <= 5 | M2: =IFERROR(VLOOKUP(E2,Translation!$A:$C,3,FALSE),E2) -> 0.00388346009 | N2: =IFERROR(VLOOKUP(F2,Translation!$A:$C,3,FALSE),F2) -> Prêts hypothécaires assurés au cours de la période selon la période d’amortissement (en années) à l'initiation (%) | O2: =IFERROR(VLOOKUP(G2,Translation!$A:$C,3,FALSE),G2) -> 0.0 | P2: =IFERROR(VLOOKUP(H2,Translation!$A:$C,3,FALSE),H2) -> <= 5
A3: 10 | B3: Cumul 2019 | C3: PROPRIÉTAIRES-OCCUPANTS, À L’UNITÉ | D3: <= 5 | E3: 0.006154782383 | F3: Prêts hypothécaires assurés au cours de la période selon la période d’amortissement (en années) à l'initiation (%) | G3: 0.0 | H3: <= 5 | I3: =IFERROR(VLOOKUP(A3,Translation!$A:$C,3,FALSE),A3) -> 10 | J3: =IFERROR(VLOOKUP(B3,Translation!$A:$C,3,FALSE),B3) -> Cumul 2019 | K3: =IFERROR(VLOOKUP(C3,Translation!$A:$C,3,FALSE),C3) -> PROPRIÉTAIRES-OCCUPANTS, À L’UNITÉ | L3: =IFERROR(VLOOKUP(D3,Translation!$A:$C,3,FALSE),D3) -> <= 5 | M3: =IFERROR(VLOOKUP(E3,Translation!$A:$C,3,FALSE),E3) -> 0.006154782383 | N3: =IFERROR(VLOOKUP(F3,Translation!$A:$C,3,FALSE),F3) -> Prêts hypothécaires assurés au cours de la période selon la période d’amortissement (en années) à l'initiation (%) | O3: =IFERROR(VLOOKUP(G3,Translation!$A:$C,3,FALSE),G3) -> 0.0 | P3: =IFERROR(VLOOKUP(H3,Translation!$A:$C,3,FALSE),H3) -> <= 5
A4: 10 | B4: Cumul 2020 | C4: PROPRIÉTAIRES-OCCUPANTS, À L’UNITÉ | D4: <= 5 | E4: 0.00388346009 | F4: Prêts hypothécaires assurés au cours de la période selon la période d’amortissement (en années) à l'initiation (%) | G4: 0.0 | H4: <= 5 | I4: =IFERROR(VLOOKUP(A4,Translation!$A:$C,3,FALSE),A4) -> 10 | J4: =IFERROR(VLOOKUP(B4,Translation!$A:$C,3,FALSE),B4) -> Cumul 2020 | K4: =IFERROR(VLOOKUP(C4,Translation!$A:$C,3,FALSE),C4) -> PROPRIÉTAIRES-OCCUPANTS, À L’UNITÉ | L4: =IFERROR(VLOOKUP(D4,Translation!$A:$C,3,FALSE),D4) -> <= 5 | M4: =IFERROR(VLOOKUP(E4,Translation!$A:$C,3,FALSE),E4) -> 0.00388346009 | N4: =IFERROR(VLOOKUP(F4,Translation!$A:$C,3,FALSE),F4) -> Prêts hypothécaires assurés au cours de la période selon la période d’amortissement (en années) à l'initiation (%) | O4: =IFERROR(VLOOKUP(G4,Translation!$A:$C,3,FALSE),G4) -> 0.0 | P4: =IFERROR(VLOOKUP(H4,Translation!$A:$C,3,FALSE),H4) -> <= 5
A5: 10 | B5: T1 2020 | C5: PROPRIÉTAIRES-OCCUPANTS, À L’UNITÉ | D5: > 5 <= 10 | E5: 0.04029235223 | F5: Prêts hypothécaires assurés au cours de la période selon la période d’amortissement (en années) à l'initiation (%) | G5: 0.0 | H5: > 5 <= 10 | I5: =IFERROR(VLOOKUP(A5,Translation!$A:$C,3,FALSE),A5) -> 10 | J5: =IFERROR(VLOOKUP(B5,Translation!$A:$C,3,FALSE),B5) -> T1 2020 | K5: =IFERROR(VLOOKUP(C5,Translation!$A:$C,3,FALSE),C5) -> PROPRIÉTAIRES-OCCUPANTS, À L’UNITÉ | L5: =IFERROR(VLOOKUP(D5,Translation!$A:$C,3,FALSE),D5) -> > 5 <= 10 | M5: =IFERROR(VLOOKUP(E5,Translation!$A:$C,3,FALSE),E5) -> 0.04029235223 | N5: =IFERROR(VLOOKUP(F5,Translation!$A:$C,3,FALSE),F5) -> Prêts hypothécaires assurés au cours de la période selon la période d’amortissement (en années) à l'initiation (%) | O5: =IFERROR(VLOOKUP(G5,Translation!$A:$C,3,FALSE),G5) -> 0.0 | P5: =IFERROR(VLOOKUP(H5,Translation!$A:$C,3,FALSE),H5) -> > 5 <= 10
A6: 10 | B6: Cumul 2019 | C6: PROPRIÉTAIRES-OCCUPANTS, À L’UNITÉ | D6: > 5 <= 10 | E6: 0.05041737107 | F6: Prêts hypothécaires assurés au cours de la période selon la période d’amortissement (en années) à l'initiation (%) | G6: 0.1 | H6: > 5 <= 10 | I6: =IFERROR(VLOOKUP(A6,Translation!$A:$C,3,FALSE),A6) -> 10 | J6: =IFERROR(VLOOKUP(B6,Translation!$A:$C,3,FALSE),B6) -> Cumul 2019 | K6: =IFERROR(VLOOKUP(C6,Translation!$A:$C,3,FALSE),C6) -> PROPRIÉTAIRES-OCCUPANTS, À L’UNITÉ | L6: =IFERROR(VLOOKUP(D6,Translation!$A:$C,3,FALSE),D6) -> > 5 <= 10 | M6: =IFERROR(VLOOKUP(E6,Translation!$A:$C,3,FALSE),E6) -> 0.05041737107 | N6: =IFERROR(VLOOKUP(F6,Translation!$A:$C,3,FALSE),F6) -> Prêts hypothécaires assurés au cours de la période selon la période d’amortissement (en années) à l'initiation (%) | O6: =IFERROR(VLOOKUP(G6,Translation!$A:$C,3,FALSE),G6) -> 0.1 | P6: =IFERROR(VLOOKUP(H6,Translation!$A:$C,3,FALSE),H6) -> > 5 <= 10
A7: 10 | B7: Cumul 2020 | C7: PROPRIÉTAIRES-OCCUPANTS, À L’UNITÉ | D7: > 5 <= 10 | E7: 0.04029235223 | F7: Prêts hypothécaires assurés au cours de la période selon la période d’amortissement (en années) à l'initiation (%) | G7: 0.0 | H7: > 5 <= 10 | I7: =IFERROR(VLOOKUP(A7,Translation!$A:$C,3,FALSE),A7) -> 10 | J7: =IFERROR(VLOOKUP(B7,Translation!$A:$C,3,FALSE),B7) -> Cumul 2020 | K7: =IFERROR(VLOOKUP(C7,Translation!$A:$C,3,FALSE),C7) -> PROPRIÉTAIRES-OCCUPANTS, À L’UNITÉ | L7: =IFERROR(VLOOKUP(D7,Translation!$A:$C,3,FALSE),D7) -> > 5 <= 10 | M7: =IFERROR(VLOOKUP(E7,Translation!$A:$C,3,FALSE),E7) -> 0.04029235223 | N7: =IFERROR(VLOOKUP(F7,Translation!$A:$C,3,FALSE),F7) -> Prêts hypothécaires assurés au cours de la période selon la période d’amortissement (en années) à l'initiation (%) | O7: =IFERROR(VLOOKUP(G7,Translation!$A:$C,3,FALSE),G7) -> 0.0 | P7: =IFERROR(VLOOKUP(H7,Translation!$A:$C,3,FALSE),H7) -> > 5 <= 10
A8: 10 | B8: T1 2020 | C8: PROPRIÉTAIRES-OCCUPANTS, À L’UNITÉ | D8: > 10 <= 15 | E8: 0.1393575631 | F8: Prêts hypothécaires assurés au cours de la période selon la période d’amortissement (en années) à l'initiation (%) | G8: 0.1 | H8: > 10 <= 15 | I8: =IFERROR(VLOOKUP(A8,Translation!$A:$C,3,FALSE),A8) -> 10 | J8: =IFERROR(VLOOKUP(B8,Translation!$A:$C,3,FALSE),B8) -> T1 2020 | K8: =IFERROR(VLOOKUP(C8,Translation!$A:$C,3,FALSE),C8) -> PROPRIÉTAIRES-OCCUPANTS, À L’UNITÉ | L8: =IFERROR(VLOOKUP(D8,Translation!$A:$C,3,FALSE),D8) -> > 10 <= 15 | M8: =IFERROR(VLOOKUP(E8,Translation!$A:$C,3,FALSE),E8) -> 0.1393575631 | N8: =IFERROR(VLOOKUP(F8,Translation!$A:$C,3,FALSE),F8) -> Prêts hypothécaires assurés au cours de la période selon la période d’amortissement (en années) à l'initiation (%) | O8: =IFERROR(VLOOKUP(G8,Translation!$A:$C,3,FALSE),G8) -> 0.1 | P8: =IFERROR(VLOOKUP(H8,Translation!$A:$C,3,FALSE),H8) -> > 10 <= 15
A9: 10 | B9: Cumul 2019 | C9: PROPRIÉTAIRES-OCCUPANTS, À L’UNITÉ | D9: > 10 <= 15 | E9: 0.1332743529 | F9: Prêts hypothécaires assurés au cours de la période selon la période d’amortissement (en années) à l'initiation (%) | G9: 0.1 | H9: > 10 <= 15 | I9: =IFERROR(VLOOKUP(A9,Translation!$A:$C,3,FALSE),A9) -> 10 | J9: =IFERROR(VLOOKUP(B9,Translation!$A:$C,3,FALSE),B9) -> Cumul 2019 | K9: =IFERROR(VLOOKUP(C9,Translation!$A:$C,3,FALSE),C9) -> PROPRIÉTAIRES-OCCUPANTS, À L’UNITÉ | L9: =IFERROR(VLOOKUP(D9,Translation!$A:$C,3,FALSE),D9) -> > 10 <= 15 | M9: =IFERROR(VLOOKUP(E9,Translation!$A:$C,3,FALSE),E9) -> 0.1332743529 | N9: =IFERROR(VLOOKUP(F9,Translation!$A:$C,3,FALSE),F9) -> Prêts hypothécaires assurés au cours de la période selon la période d’amortissement (en années) à l'initiation (%) | O9: =IFERROR(VLOOKUP(G9,Translation!$A:$C,3,FALSE),G9) -> 0.1 | P9: =IFERROR(VLOOKUP(H9,Translation!$A:$C,3,FALSE),H9) -> > 10 <= 15
A10: 10 | B10: Cumul 2020 | C10: PROPRIÉTAIRES-OCCUPANTS, À L’UNITÉ | D10: > 10 <= 15 | E10: 0.1393575631 | F10: Prêts hypothécaires assurés au cours de la période selon la période d’amortissement (en années) à l'initiation (%) | G10: 0.1 | H10: > 10 <= 15 | I10: =IFERROR(VLOOKUP(A10,Translation!$A:$C,3,FALSE),A10) -> 10 | J10: =IFERROR(VLOOKUP(B10,Translation!$A:$C,3,FALSE),B10) -> Cumul 2020 | K10: =IFERROR(VLOOKUP(C10,Translation!$A:$C,3,FALSE),C10) -> PROPRIÉTAIRES-OCCUPANTS, À L’UNITÉ | L10: =IFERROR(VLOOKUP(D10,Translation!$A:$C,3,FALSE),D10) -> > 10 <= 15 | M10: =IFERROR(VLOOKUP(E10,Translation!$A:$C,3,FALSE),E10) -> 0.1393575631 | N10: =IFERROR(VLOOKUP(F10,Translation!$A:$C,3,FALSE),F10) -> Prêts hypothécaires assurés au cours de la période selon la période d’amortissement (en années) à l'initiation (%) | O10: =IFERROR(VLOOKUP(G10,Translation!$A:$C,3,FALSE),G10) -> 0.1 | P10: =IFERROR(VLOOKUP(H10,Translation!$A:$C,3,FALSE),H10) -> > 10 <= 15
A11: 10 | B11: T1 2020 | C11: PROPRIÉTAIRES-OCCUPANTS, À L’UNITÉ | D11: > 15 <= 20 | E11: 0.6759660232 | F11: Prêts hypothécaires assurés au cours de la période selon la période d’amortissement (en années) à l'initiation (%) | G11: 0.7 | H11: > 15 <= 20 | I11: =IFERROR(VLOOKUP(A11,Translation!$A:$C,3,FALSE),A11) -> 10 | J11: =IFERROR(VLOOKUP(B11,Translation!$A:$C,3,FALSE),B11) -> T1 2020 | K11: =IFERROR(VLOOKUP(C11,Translation!$A:$C,3,FALSE),C11) -> PROPRIÉTAIRES-OCCUPANTS, À L’UNITÉ | L11: =IFERROR(VLOOKUP(D11,Translation!$A:$C,3,FALSE),D11) -> > 15 <= 20 | M11: =IFERROR(VLOOKUP(E11,Translation!$A:$C,3,FALSE),E11) -> 0.6759660232 | N11: =IFERROR(VLOOKUP(F11,Translation!$A:$C,3,FALSE),F11) -> Prêts hypothécaires assurés au cours de la période selon la période d’amortissement (en années) à l'initiation (%) | O11: =IFERROR(VLOOKUP(G11,Translation!$A:$C,3,FALSE),G11) -> 0.7 | P11: =IFERROR(VLOOKUP(H11,Translation!$A:$C,3,FALSE),H11) -> > 15 <= 20
A12: 10 | B12: Cumul 2019 | C12: PROPRIÉTAIRES-OCCUPANTS, À L’UNITÉ | D12: > 15 <= 20 | E12: 0.6005634482 | F12: Prêts hypothécaires assurés au cours de la période selon la période d’amortissement (en années) à l'initiation (%) | G12: 0.6 | H12: > 15 <= 20 | I12: =IFERROR(VLOOKUP(A12,Translation!$A:$C,3,FALSE),A12) -> 10 | J12: =IFERROR(VLOOKUP(B12,Translation!$A:$C,3,FALSE),B12) -> Cumul 2019 | K12: =IFERROR(VLOOKUP(C12,Translation!$A:$C,3,FALSE),C12) -> PROPRIÉTAIRES-OCCUPANTS, À L’UNITÉ | L12: =IFERROR(VLOOKUP(D12,Translation!$A:$C,3,FALSE),D12) -> > 15 <= 20 | M12: =IFERROR(VLOOKUP(E12,Translation!$A:$C,3,FALSE),E12) -> 0.6005634482 | N12: =IFERROR(VLOOKUP(F12,Translation!$A:$C,3,FALSE),F12) -> Prêts hypothécaires assurés au cours de la période selon la période d’amortissement (en années) à l'initiation (%) | O12: =IFERROR(VLOOKUP(G12,Translation!$A:$C,3,FALSE),G12) -> 0.6 | P12: =IFERROR(VLOOKUP(H12,Translation!$A:$C,3,FALSE),H12) -> > 15 <= 20
A13: 10 | B13: Cumul 2020 | C13: PROPRIÉTAIRES-OCCUPANTS, À L’UNITÉ | D13: > 15 <= 20 | E13: 0.6759660232 | F13: Prêts hypothécaires assurés au cours de la période selon la période d’amortissement (en années) à l'initiation (%) | G13: 0.7 | H13: > 15 <= 20 | I13: =IFERROR(VLOOKUP(A13,Translation!$A:$C,3,FALSE),A13) -> 10 | J13: =IFERROR(VLOOKUP(B13,Translation!$A:$C,3,FALSE),B13) -> Cumul 2020 | K13: =IFERROR(VLOOKUP(C13,Translation!$A:$C,3,FALSE),C13) -> PROPRIÉTAIRES-OCCUPANTS, À L’UNITÉ | L13: =IFERROR(VLOOKUP(D13,Translation!$A:$C,3,FALSE),D13) -> > 15 <= 20 | M13: =IFERROR(VLOOKUP(E13,Translation!$A:$C,3,FALSE),E13) -> 0.6759660232 | N13: =IFERROR(VLOOKUP(F13,Translation!$A:$C,3,FALSE),F13) -> Prêts hypothécaires assurés au cours de la période selon la période d’amortissement (en années) à l'initiation (%) | O13: =IFERROR(VLOOKUP(G13,Translation!$A:$C,3,FALSE),G13) -> 0.7 | P13: =IFERROR(VLOOKUP(H13,Translation!$A:$C,3,FALSE),H13) -> > 15 <= 20
A14: 10 | B14: T1 2020 | C14: PROPRIÉTAIRES-OCCUPANTS, À L’UNITÉ | D14: > 20 <= 25 | E14: 99.13029991 | F14: Prêts hypothécaires assurés au cours de la période selon la période d’amortissement (en années) à l'initiation (%) | G14: 99.1 | H14: > 20 <= 25 | I14: =IFERROR(VLOOKUP(A14,Translation!$A:$C,3,FALSE),A14) -> 10 | J14: =IFERROR(VLOOKUP(B14,Translation!$A:$C,3,FALSE),B14) -> T1 2020 | K14: =IFERROR(VLOOKUP(C14,Translation!$A:$C,3,FALSE),C14) -> PROPRIÉTAIRES-OCCUPANTS, À L’UNITÉ | L14: =IFERROR(VLOOKUP(D14,Translation!$A:$C,3,FALSE),D14) -> > 20 <= 25 | M14: =IFERROR(VLOOKUP(E14,Translation!$A:$C,3,FALSE),E14) -> 99.13029991 | N14: =IFERROR(VLOOKUP(F14,Translation!$A:$C,3,FALSE),F14) -> Prêts hypothécaires assurés au cours de la période selon la période d’amortissement (en années) à l'initiation (%) | O14: =IFERROR(VLOOKUP(G14,Translation!$A:$C,3,FALSE),G14) -> 99.1 | P14: =IFERROR(VLOOKUP(H14,Translation!$A:$C,3,FALSE),H14) -> > 20 <= 25
A15: 10 | B15: Cumul 2019 | C15: PROPRIÉTAIRES-OCCUPANTS, À L’UNITÉ | D15: > 20 <= 25 | E15: 99.20514714 | F15: Prêts hypothécaires assurés au cours de la période selon la période d’amortissement (en années) à l'initiation (%) | G15: 99.2 | H15: > 20 <= 25 | I15: =IFERROR(VLOOKUP(A15,Translation!$A:$C,3,FALSE),A15) -> 10 | J15: =IFERROR(VLOOKUP(B15,Translation!$A:$C,3,FALSE),B15) -> Cumul 2019 | K15: =IFERROR(VLOOKUP(C15,Translation!$A:$C,3,FALSE),C15) -> PROPRIÉTAIRES-OCCUPANTS, À L’UNITÉ | L15: =IFERROR(VLOOKUP(D15,Translation!$A:$C,3,FALSE),D15) -> > 20 <= 25 | M15: =IFERROR(VLOOKUP(E15,Translation!$A:$C,3,FALSE),E15) -> 99.20514714 | N15: =IFERROR(VLOOKUP(F15,Translation!$A:$C,3,FALSE),F15) -> Prêts hypothécaires assurés au cours de la période selon la période d’amortissement (en années) à l'initiation (%) | O15: =IFERROR(VLOOKUP(G15,Translation!$A:$C,3,FALSE),G15) -> 99.2 | P15: =IFERROR(VLOOKUP(H15,Translation!$A:$C,3,FALSE),H15) -> > 20 <= 25
A16: 10 | B16: Cumul 2020 | C16: PROPRIÉTAIRES-OCCUPANTS, À L’UNITÉ | D16: > 20 <= 25 | E16: 99.13029991 | F16: Prêts hypothécaires assurés au cours de la période selon la période d’amortissement (en années) à l'initiation (%) | G16: 99.1 | H16: > 20 <= 25 | I16: =IFERROR(VLOOKUP(A16,Translation!$A:$C,3,FALSE),A16) -> 10 | J16: =IFERROR(VLOOKUP(B16,Translation!$A:$C,3,FALSE),B16) -> Cumul 2020 | K16: =IFERROR(VLOOKUP(C16,Translation!$A:$C,3,FALSE),C16) -> PROPRIÉTAIRES-OCCUPANTS, À L’UNITÉ | L16: =IFERROR(VLOOKUP(D16,Translation!$A:$C,3,FALSE),D16) -> > 20 <= 25 | M16: =IFERROR(VLOOKUP(E16,Translation!$A:$C,3,FALSE),E16) -> 99.13029991 | N16: =IFERROR(VLOOKUP(F16,Translation!$A:$C,3,FALSE),F16) -> Prêts hypothécaires assurés au cours de la période selon la période d’amortissement (en années) à l'initiation (%) | O16: =IFERROR(VLOOKUP(G16,Translation!$A:$C,3,FALSE),G16) -> 99.1 | P16: =IFERROR(VLOOKUP(H16,Translation!$A:$C,3,FALSE),H16) -> > 20 <= 25
A17: 10 | B17: T1 2020 | C17: PROPRIÉTAIRES-OCCUPANTS, À L’UNITÉ | D17: > 25 <= 30 | E17: 0.0102006892 | F17: Prêts hypothécaires assurés au cours de la période selon la période d’amortissement (en années) à l'initiation (%) | G17: 0.0 | H17: > 25 <= 30 | I17: =IFERROR(VLOOKUP(A17,Translation!$A:$C,3,FALSE),A17) -> 10 | J17: =IFERROR(VLOOKUP(B17,Translation!$A:$C,3,FALSE),B17) -> T1 2020 | K17: =IFERROR(VLOOKUP(C17,Translation!$A:$C,3,FALSE),C17) -> PROPRIÉTAIRES-OCCUPANTS, À L’UNITÉ | L17: =IFERROR(VLOOKUP(D17,Translation!$A:$C,3,FALSE),D17) -> > 25 <= 30 | M17: =IFERROR(VLOOKUP(E17,Translation!$A:$C,3,FALSE),E17) -> 0.0102006892 | N17: =IFERROR(VLOOKUP(F17,Translation!$A:$C,3,FALSE),F17) -> Prêts hypothécaires assurés au cours de la période selon la période d’amortissement (en années) à l'initiation (%) | O17: =IFERROR(VLOOKUP(G17,Translation!$A:$C,3,FALSE),G17) -> 0.0 | P17: =IFERROR(VLOOKUP(H17,Translation!$A:$C,3,FALSE),H17) -> > 25 <= 30
A18: 10 | B18: Cumul 2019 | C18: PROPRIÉTAIRES-OCCUPANTS, À L’UNITÉ | D18: > 25 <= 30 | E18: 0.004442907752 | F18: Prêts hypothécaires assurés au cours de la période selon la période d’amortissement (en années) à l'initiation (%) | G18: 0.0 | H18: > 25 <= 30 | I18: =IFERROR(VLOOKUP(A18,Translation!$A:$C,3,FALSE),A18) -> 10 | J18: =IFERROR(VLOOKUP(B18,Translation!$A:$C,3,FALSE),B18) -> Cumul 2019 | K18: =IFERROR(VLOOKUP(C18,Translation!$A:$C,3,FALSE),C18) -> PROPRIÉTAIRES-OCCUPANTS, À L’UNITÉ | L18: =IFERROR(VLOOKUP(D18,Translation!$A:$C,3,FALSE),D18) -> > 25 <= 30 | M18: =IFERROR(VLOOKUP(E18,Translation!$A:$C,3,FALSE),E18) -> 0.004442907752 | N18: =IFERROR(VLOOKUP(F18,Translation!$A:$C,3,FALSE),F18) -> Prêts hypothécaires assurés au cours de la période selon la période d’amortissement (en années) à l'initiation (%) | O18: =IFERROR(VLOOKUP(G18,Translation!$A:$C,3,FALSE),G18) -> 0.0 | P18: =IFERROR(VLOOKUP(H18,Translation!$A:$C,3,FALSE),H18) -> > 25 <= 30
A19: 10 | B19: Cumul 2020 | C19: PROPRIÉTAIRES-OCCUPANTS, À L’UNITÉ | D19: > 25 <= 30 | E19: 0.0102006892 | F19: Prêts hypothécaires assurés au cours de la période selon la période d’amortissement (en années) à l'initiation (%) | G19: 0.0 | H19: > 25 <= 30 | I19: =IFERROR(VLOOKUP(A19,Translation!$A:$C,3,FALSE),A19) -> 10 | J19: =IFERROR(VLOOKUP(B19,Translation!$A:$C,3,FALSE),B19) -> Cumul 2020 | K19: =IFERROR(VLOOKUP(C19,Translation!$A:$C,3,FALSE),C19) -> PROPRIÉTAIRES-OCCUPANTS, À L’UNITÉ | L19: =IFERROR(VLOOKUP(D19,Translation!$A:$C,3,FALSE),D19) -> > 25 <= 30 | M19: =IFERROR(VLOOKUP(E19,Translation!$A:$C,3,FALSE),E19) -> 0.0102006892 | N19: =IFERROR(VLOOKUP(F19,Translation!$A:$C,3,FALSE),F19) -> Prêts hypothécaires assurés au cours de la période selon la période d’amortissement (en années) à l'initiation (%) | O19: =IFERROR(VLOOKUP(G19,Translation!$A:$C,3,FALSE),G19) -> 0.0 | P19: =IFERROR(VLOOKUP(H19,Translation!$A:$C,3,FALSE),H19) -> > 25 <= 30
A20: 10 | B20: T1 2020 | C20: PROPRIÉTAIRES-OCCUPANTS, À L’UNITÉ | D20: Période d’amortissement moyenne | E20: 24.89585312 | F20: Prêts hypothécaires assurés au cours de la période selon la période d’amortissement (en années) à l'initiation (%) | G20: 24.9 | H20: Période d’amortissement moyenne | I20: =IFERROR(VLOOKUP(A20,Translation!$A:$C,3,FALSE),A20) -> 10 | J20: =IFERROR(VLOOKUP(B20,Translation!$A:$C,3,FALSE),B20) -> T1 2020 | K20: =IFERROR(VLOOKUP(C20,Translation!$A:$C,3,FALSE),C20) -> PROPRIÉTAIRES-OCCUPANTS, À L’UNITÉ | L20: =IFERROR(VLOOKUP(D20,Translation!$A:$C,3,FALSE),D20) -> Période d’amortissement moyenne | M20: =IFERROR(VLOOKUP(E20,Translation!$A:$C,3,FALSE),E20) -> 24.89585312 | N20: =IFERROR(VLOOKUP(F20,Translation!$A:$C,3,FALSE),F20) -> Prêts hypothécaires assurés au cours de la période selon la période d’amortissement (en années) à l'initiation (%) | O20: =IFERROR(VLOOKUP(G20,Translation!$A:$C,3,FALSE),G20) -> 24.9 | P20: =IFERROR(VLOOKUP(H20,Translation!$A:$C,3,FALSE),H20) -> Période d’amortissement moyenne
A21: 10 | B21: Cumul 2019 | C21: PROPRIÉTAIRES-OCCUPANTS, À L’UNITÉ | D21: Période d’amortissement moyenne | E21: 24.87123995 | F21: Prêts hypothécaires assurés au cours de la période selon la période d’amortissement (en années) à l'initiation (%) | G21: 24.9 | H21: Période d’amortissement moyenne | I21: =IFERROR(VLOOKUP(A21,Translation!$A:$C,3,FALSE),A21) -> 10 | J21: =IFERROR(VLOOKUP(B21,Translation!$A:$C,3,FALSE),B21) -> Cumul 2019 | K21: =IFERROR(VLOOKUP(C21,Translation!$A:$C,3,FALSE),C21) -> PROPRIÉTAIRES-OCCUPANTS, À L’UNITÉ | L21: =IFERROR(VLOOKUP(D21,Translation!$A:$C,3,FALSE),D21) -> Période d’amortissement moyenne | M21: =IFERROR(VLOOKUP(E21,Translation!$A:$C,3,FALSE),E21) -> 24.87123995 | N21: =IFERROR(VLOOKUP(F21,Translation!$A:$C,3,FALSE),F21) -> Prêts hypothécaires assurés au cours de la période selon la période d’amortissement (en années) à l'initiation (%) | O21: =IFERROR(VLOOKUP(G21,Translation!$A:$C,3,FALSE),G21) -> 24.9 | P21: =IFERROR(VLOOKUP(H21,Translation!$A:$C,3,FALSE),H21) -> Période d’amortissement moyenne
A22: 10 | B22: Cumul 2020 | C22: PROPRIÉTAIRES-OCCUPANTS, À L’UNITÉ | D22: Période d’amortissement moyenne | E22: 24.89585312 | F22: Prêts hypothécaires assurés au cours de la période selon la période d’amortissement (en années) à l'initiation (%) | G22: 24.9 | H22: Période d’amortissement moyenne | I22: =IFERROR(VLOOKUP(A22,Translation!$A:$C,3,FALSE),A22) -> 10 | J22: =IFERROR(VLOOKUP(B22,Translation!$A:$C,3,FALSE),B22) -> Cumul 2020 | K22: =IFERROR(VLOOKUP(C22,Translation!$A:$C,3,FALSE),C22) -> PROPRIÉTAIRES-OCCUPANTS, À L’UNITÉ | L22: =IFERROR(VLOOKUP(D22,Translation!$A:$C,3,FALSE),D22) -> Période d’amortissement moyenne | M22: =IFERROR(VLOOKUP(E22,Translation!$A:$C,3,FALSE),E22) -> 24.89585312 | N22: =IFERROR(VLOOKUP(F22,Translation!$A:$C,3,FALSE),F22) -> Prêts hypothécaires assurés au cours de la période selon la période d’amortissement (en années) à l'initiation (%) | O22: =IFERROR(VLOOKUP(G22,Translation!$A:$C,3,FALSE),G22) -> 24.9 | P22: =IFERROR(VLOOKUP(H22,Translation!$A:$C,3,FALSE),H22) -> Période d’amortissement moyenne
A23: 10 | B23: T1 2020 | C23: PROPRIÉTAIRES-OCCUPANTS, À L’UNITÉ | D23: Terre-Neuve-et-Labrador | E23: 24.7870728 | F23: Période d’amortissement moyenne selon la province | G23: 24.8 | H23: Terre-Neuve-et-Labrador | I23: =IFERROR(VLOOKUP(A23,Translation!$A:$C,3,FALSE),A23) -> 10 | J23: =IFERROR(VLOOKUP(B23,Translation!$A:$C,3,FALSE),B23) -> T1 2020 | K23: =IFERROR(VLOOKUP(C23,Translation!$A:$C,3,FALSE),C23) -> PROPRIÉTAIRES-OCCUPANTS, À L’UNITÉ | L23: =IFERROR(VLOOKUP(D23,Translation!$A:$C,3,FALSE),D23) -> Terre-Neuve-et-Labrador | M23: =IFERROR(VLOOKUP(E23,Translation!$A:$C,3,FALSE),E23) -> 24.7870728 | N23: =IFERROR(VLOOKUP(F23,Translation!$A:$C,3,FALSE),F23) -> Période d’amortissement moyenne selon la province | O23: =IFERROR(VLOOKUP(G23,Translation!$A:$C,3,FALSE),G23) -> 24.8 | P23: =IFERROR(VLOOKUP(H23,Translation!$A:$C,3,FALSE),H23) -> Terre-Neuve-et-Labrador
A24: 10 | B24: T1 2020 | C24: PROPRIÉTAIRES-OCCUPANTS, À L’UNITÉ | D24: Île-du-Prince-Édouard | E24: 24.91299187 | F24: Période d’amortissement moyenne selon la province | G24: 24.9 | H24: Île-du-Prince-Édouard | I24: =IFERROR(VLOOKUP(A24,Translation!$A:$C,3,FALSE),A24) -> 10 | J24: =IFERROR(VLOOKUP(B24,Translation!$A:$C,3,FALSE),B24) -> T1 2020 | K24: =IFERROR(VLOOKUP(C24,Translation!$A:$C,3,FALSE),C24) -> PROPRIÉTAIRES-OCCUPANTS, À L’UNITÉ | L24: =IFERROR(VLOOKUP(D24,Translation!$A:$C,3,FALSE),D24) -> Île-du-Prince-Édouard | M24: =IFERROR(VLOOKUP(E24,Translation!$A:$C,3,FALSE),E24) -> 24.91299187 | N24: =IFERROR(VLOOKUP(F24,Translation!$A:$C,3,FALSE),F24) -> Période d’amortissement moyenne selon la province | O24: =IFERROR(VLOOKUP(G24,Translation!$A:$C,3,FALSE),G24) -> 24.9 | P24: =IFERROR(VLOOKUP(H24,Translation!$A:$C,3,FALSE),H24) -> Île-du-Prince-Édouard
A25: 10 | B25: T1 2020 | C25: PROPRIÉTAIRES-OCCUPANTS, À L’UNITÉ | D25: Nouvelle-Écosse | E25: 24.79498946 | F25: Période d’amortissement moyenne selon la province | G25: 24.8 | H25: Nouvelle-Écosse | I25: =IFERROR(VLOOKUP(A25,Translation!$A:$C,3,FALSE),A25) -> 10 | J25: =IFERROR(VLOOKUP(B25,Translation!$A:$C,3,FALSE),B25) -> T1 2020 | K25: =IFERROR(VLOOKUP(C25,Translation!$A:$C,3,FALSE),C25) -> PROPRIÉTAIRES-OCCUPANTS, À L’UNITÉ | L25: =IFERROR(VLOOKUP(D25,Translation!$A:$C,3,FALSE),D25) -> Nouvelle-Écosse | M25: =IFERROR(VLOOKUP(E25,Translation!$A:$C,3,FALSE),E25) -> 24.79498946 | N25: =IFERROR(VLOOKUP(F25,Translation!$A:$C,3,FALSE),F25) -> Période d’amortissement moyenne selon la province | O25: =IFERROR(VLOOKUP(G25,Translation!$A:$C,3,FALSE),G25) -> 24.8 | P25: =IFERROR(VLOOKUP(H25,Translation!$A:$C,3,FALSE),H25) -> Nouvelle-Écosse
A26: 10 | B26: T1 2020 | C26: PROPRIÉTAIRES-OCCUPANTS, À L’UNITÉ | D26: Nouveau-Brunswick | E26: 24.69570226 | F26: Période d’amortissement moyenne selon la province | G26: 24.7 | H26: Nouveau-Brunswick | I26: =IFERROR(VLOOKUP(A26,Translation!$A:$C,3,FALSE),A26) -> 10 | J26: =IFERROR(VLOOKUP(B26,Translation!$A:$C,3,FALSE),B26) -> T1 2020 | K26: =IFERROR(VLOOKUP(C26,Translation!$A:$C,3,FALSE),C26) -> PROPRIÉTAIRES-OCCUPANTS, À L’UNITÉ | L26: =IFERROR(VLOOKUP(D26,Translation!$A:$C,3,FALSE),D26) -> Nouveau-Brunswick | M26: =IFERROR(VLOOKUP(E26,Translation!$A:$C,3,FALSE),E26) -> 24.69570226 | N26: =IFERROR(VLOOKUP(F26,Translation!$A:$C,3,FALSE),F26) -> Période d’amortissement moyenne selon la province | O26: =IFERROR(VLOOKUP(G26,Translation!$A:$C,3,FALSE),G26) -> 24.7 | P26: =IFERROR(VLOOKUP(H26,Translation!$A:$C,3,FALSE),H26) -> Nouveau-Brunswick
A27: 10 | B27: T1 2020 | C27: PROPRIÉTAIRES-OCCUPANTS, À L’UNITÉ | D27: Québec | E27: 24.90189889 | F27: Période d’amortissement moyenne selon la province | G27: 24.9 | H27: Québec | I27: =IFERROR(VLOOKUP(A27,Translation!$A:$C,3,FALSE),A27) -> 10 | J27: =IFERROR(VLOOKUP(B27,Translation!$A:$C,3,FALSE),B27) -> T1 2020 | K27: =IFERROR(VLOOKUP(C27,Translation!$A:$C,3,FALSE),C27) -> PROPRIÉTAIRES-OCCUPANTS, À L’UNITÉ | L27: =IFERROR(VLOOKUP(D27,Translation!$A:$C,3,FALSE),D27) -> Québec | M27: =IFERROR(VLOOKUP(E27,Translation!$A:$C,3,FALSE),E27) -> 24.90189889 | N27: =IFERROR(VLOOKUP(F27,Translation!$A:$C,3,FALSE),F27) -> Période d’amortissement moyenne selon la province | O27: =IFERROR(VLOOKUP(G27,Translation!$A:$C,3,FALSE),G27) -> 24.9 | P27: =IFERROR(VLOOKUP(H27,Translation!$A:$C,3,FALSE),H27) -> Québec
A28: 10 | B28: T1 2020 | C28: PROPRIÉTAIRES-OCCUPANTS, À L’UNITÉ | D28: Ontario | E28: 24.9588122 | F28: Période d’amortissement moyenne selon la province | G28: 25.0 | H28: Ontario | I28: =IFERROR(VLOOKUP(A28,Translation!$A:$C,3,FALSE),A28) -> 10 | J28: =IFERROR(VLOOKUP(B28,Translation!$A:$C,3,FALSE),B28) -> T1 2020 | K28: =IFERROR(VLOOKUP(C28,Translation!$A:$C,3,FALSE),C28) -> PROPRIÉTAIRES-OCCUPANTS, À L’UNITÉ | L28: =IFERROR(VLOOKUP(D28,Translation!$A:$C,3,FALSE),D28) -> Ontario | M28: =IFERROR(VLOOKUP(E28,Translation!$A:$C,3,FALSE),E28) -> 24.9588122 | N28: =IFERROR(VLOOKUP(F28,Translation!$A:$C,3,FALSE),F28) -> Période d’amortissement moyenne selon la province | O28: =IFERROR(VLOOKUP(G28,Translation!$A:$C,3,FALSE),G28) -> 25.0 | P28: =IFERROR(VLOOKUP(H28,Translation!$A:$C,3,FALSE),H28) -> Ontario
A29: 10 | B29: T1 2020 | C29: PROPRIÉTAIRES-OCCUPANTS, À L’UNITÉ | D29: Manitoba | E29: 24.88420963 | F29: Période d’amortissement moyenne selon la province | G29: 24.9 | H29: Manitoba | I29: =IFERROR(VLOOKUP(A29,Translation!$A:$C,3,FALSE),A29) -> 10 | J29: =IFERROR(VLOOKUP(B29,Translation!$A:$C,3,FALSE),B29) -> T1 2020 | K29: =IFERROR(VLOOKUP(C29,Translation!$A:$C,3,FALSE),C29) -> PROPRIÉTAIRES-OCCUPANTS, À L’UNITÉ | L29: =IFERROR(VLOOKUP(D29,Translation!$A:$C,3,FALSE),D29) -> Manitoba | M29: =IFERROR(VLOOKUP(E29,Translation!$A:$C,3,FALSE),E29) -> 24.88420963 | N29: =IFERROR(VLOOKUP(F29,Translation!$A:$C,3,FALSE),F29) -> Période d’amortissement moyenne selon la province | O29: =IFERROR(VLOOKUP(G29,Translation!$A:$C,3,FALSE),G29) -> 24.9 | P29: =IFERROR(VLOOKUP(H29,Translation!$A:$C,3,FALSE),H29) -> Manitoba
A30: 10 | B30: T1 2020 | C30: PROPRIÉTAIRES-OCCUPANTS, À L’UNITÉ | D30: Saskatchewan | E30: 24.6766725 | F30: Période d’amortissement moyenne selon la province | G30: 24.7 | H30: Saskatchewan | I30: =IFERROR(VLOOKUP(A30,Translation!$A:$C,3,FALSE),A30) -> 10 | J30: =IFERROR(VLOOKUP(B30,Translation!$A:$C,3,FALSE),B30) -> T1 2020 | K30: =IFERROR(VLOOKUP(C30,Translation!$A:$C,3,FALSE),C30) -> PROPRIÉTAIRES-OCCUPANTS, À L’UNITÉ | L30: =IFERROR(VLOOKUP(D30,Translation!$A:$C,3,FALSE),D30) -> Saskatchewan | M30: =IFERROR(VLOOKUP(E30,Translation!$A:$C,3,FALSE),E30) -> 24.6766725 | N30: =IFERROR(VLOOKUP(F30,Translation!$A:$C,3,FALSE),F30) -> Période d’amortissement moyenne selon la province | O30: =IFERROR(VLOOKUP(G30,Translation!$A:$C,3,FALSE),G30) -> 24.7 | P30: =IFERROR(VLOOKUP(H30,Translation!$A:$C,3,FALSE),H30) -> Saskatchewan
A31: 10 | B31: T1 2020 | C31: PROPRIÉTAIRES-OCCUPANTS, À L’UNITÉ | D31: Alberta | E31: 24.8878638 | F31: Période d’amortissement moyenne selon la province | G31: 24.9 | H31: Alberta | I31: =IFERROR(VLOOKUP(A31,Translation!$A:$C,3,FALSE),A31) -> 10 | J31: =IFERROR(VLOOKUP(B31,Translation!$A:$C,3,FALSE),B31) -> T1 2020 | K31: =IFERROR(VLOOKUP(C31,Translation!$A:$C,3,FALSE),C31) -> PROPRIÉTAIRES-OCCUPANTS, À L’UNITÉ | L31: =IFERROR(VLOOKUP(D31,Translation!$A:$C,3,FALSE),D31) -> Alberta | M31: =IFERROR(VLOOKUP(E31,Translation!$A:$C,3,FALSE),E31) -> 24.8878638 | N31: =IFERROR(VLOOKUP(F31,Translation!$A:$C,3,FALSE),F31) -> Période d’amortissement moyenne selon la province | O31: =IFERROR(VLOOKUP(G31,Translation!$A:$C,3,FALSE),G31) -> 24.9 | P31: =IFERROR(VLOOKUP(H31,Translation!$A:$C,3,FALSE),H31) -> Alberta
A32: 10 | B32: T1 2020 | C32: PROPRIÉTAIRES-OCCUPANTS, À L’UNITÉ | D32: Colombie-Britannique | E32: 24.84510509 | F32: Période d’amortissement moyenne selon la province | G32: 24.8 | H32: Colombie-Britannique | I32: =IFERROR(VLOOKUP(A32,Translation!$A:$C,3,FALSE),A32) -> 10 | J32: =IFERROR(VLOOKUP(B32,Translation!$A:$C,3,FALSE),B32) -> T1 2020 | K32: =IFERROR(VLOOKUP(C32,Translation!$A:$C,3,FALSE),C32) -> PROPRIÉTAIRES-OCCUPANTS, À L’UNITÉ | L32: =IFERROR(VLOOKUP(D32,Translation!$A:$C,3,FALSE),D32) -> Colombie-Britannique | M32: =IFERROR(VLOOKUP(E32,Translation!$A:$C,3,FALSE),E32) -> 24.84510509 | N32: =IFERROR(VLOOKUP(F32,Translation!$A:$C,3,FALSE),F32) -> Période d’amortissement moyenne selon la province | O32: =IFERROR(VLOOKUP(G32,Translation!$A:$C,3,FALSE),G32) -> 24.8 | P32: =IFERROR(VLOOKUP(H32,Translation!$A:$C,3,FALSE),H32) -> Colombie-Britannique
A33: 10 | B33: T1 2020 | C33: PROPRIÉTAIRES-OCCUPANTS, À L’UNITÉ | D33: Territoires | E33: 24.74715216 | F33: Période d’amortissement moyenne selon la province | G33: 24.7 | H33: Territoires | I33: =IFERROR(VLOOKUP(A33,Translation!$A:$C,3,FALSE),A33) -> 10 | J33: =IFERROR(VLOOKUP(B33,Translation!$A:$C,3,FALSE),B33) -> T1 2020 | K33: =IFERROR(VLOOKUP(C33,Translation!$A:$C,3,FALSE),C33) -> PROPRIÉTAIRES-OCCUPANTS, À L’UNITÉ | L33: =IFERROR(VLOOKUP(D33,Translation!$A:$C,3,FALSE),D33) -> Territoires | M33: =IFERROR(VLOOKUP(E33,Translation!$A:$C,3,FALSE),E33) -> 24.74715216 | N33: =IFERROR(VLOOKUP(F33,Translation!$A:$C,3,FALSE),F33) -> Période d’amortissement moyenne selon la province | O33: =IFERROR(VLOOKUP(G33,Translation!$A:$C,3,FALSE),G33) -> 24.7 | P33: =IFERROR(VLOOKUP(H33,Translation!$A:$C,3,FALSE),H33) -> Territoires
A34: 10 | B34: Cumul 2019 | C34: PROPRIÉTAIRES-OCCUPANTS, À L’UNITÉ | D34: Terre-Neuve-et-Labrador | E34: 24.88428644 | F34: Période d’amortissement moyenne selon la province | G34: 24.9 | H34: Terre-Neuve-et-Labrador | I34: =IFERROR(VLOOKUP(A34,Translation!$A:$C,3,FALSE),A34) -> 10 | J34: =IFERROR(VLOOKUP(B34,Translation!$A:$C,3,FALSE),B34) -> Cumul 2019 | K34: =IFERROR(VLOOKUP(C34,Translation!$A:$C,3,FALSE),C34) -> PROPRIÉTAIRES-OCCUPANTS, À L’UNITÉ | L34: =IFERROR(VLOOKUP(D34,Translation!$A:$C,3,FALSE),D34) -> Terre-Neuve-et-Labrador | M34: =IFERROR(VLOOKUP(E34,Translation!$A:$C,3,FALSE),E34) -> 24.88428644 | N34: =IFERROR(VLOOKUP(F34,Translation!$A:$C,3,FALSE),F34) -> Période d’amortissement moyenne selon la province | O34: =IFERROR(VLOOKUP(G34,Translation!$A:$C,3,FALSE),G34) -> 24.9 | P34: =IFERROR(VLOOKUP(H34,Translation!$A:$C,3,FALSE),H34) -> Terre-Neuve-et-Labrador
A35: 10 | B35: Cumul 2019 | C35: PROPRIÉTAIRES-OCCUPANTS, À L’UNITÉ | D35: Île-du-Prince-Édouard | E35: 24.87290334 | F35: Période d’amortissement moyenne selon la province | G35: 24.9 | H35: Île-du-Prince-Édouard | I35: =IFERROR(VLOOKUP(A35,Translation!$A:$C,3,FALSE),A35) -> 10 | J35: =IFERROR(VLOOKUP(B35,Translation!$A:$C,3,FALSE),B35) -> Cumul 2019 | K35: =IFERROR(VLOOKUP(C35,Translation!$A:$C,3,FALSE),C35) -> PROPRIÉTAIRES-OCCUPANTS, À L’UNITÉ | L35: =IFERROR(VLOOKUP(D35,Translation!$A:$C,3,FALSE),D35) -> Île-du-Prince-Édouard | M35: =IFERROR(VLOOKUP(E35,Translation!$A:$C,3,FALSE),E35) -> 24.87290334 | N35: =IFERROR(VLOOKUP(F35,Translation!$A:$C,3,FALSE),F35) -> Période d’amortissement moyenne selon la province | O35: =IFERROR(VLOOKUP(G35,Translation!$A:$C,3,FALSE),G35) -> 24.9 | P35: =IFERROR(VLOOKUP(H35,Translation!$A:$C,3,FALSE),H35) -> Île-du-Prince-Édouard
A36: 10 | B36: Cumul 2019 | C36: PROPRIÉTAIRES-OCCUPANTS, À L’UNITÉ | D36: Nouvelle-Écosse | E36: 24.79429603 | F36: Période d’amortissement moyenne selon la province | G36: 24.8 | H36: Nouvelle-Écosse | I36: =IFERROR(VLOOKUP(A36,Translation!$A:$C,3,FALSE),A36) -> 10 | J36: =IFERROR(VLOOKUP(B36,Translation!$A:$C,3,FALSE),B36) -> Cumul 2019 | K36: =IFERROR(VLOOKUP(C36,Translation!$A:$C,3,FALSE),C36) -> PROPRIÉTAIRES-OCCUPANTS, À L’UNITÉ | L36: =IFERROR(VLOOKUP(D36,Translation!$A:$C,3,FALSE),D36) -> Nouvelle-Écosse | M36: =IFERROR(VLOOKUP(E36,Translation!$A:$C,3,FALSE),E36) -> 24.79429603 | N36: =IFERROR(VLOOKUP(F36,Translation!$A:$C,3,FALSE),F36) -> Période d’amortissement moyenne selon la province | O36: =IFERROR(VLOOKUP(G36,Translation!$A:$C,3,FALSE),G36) -> 24.8 | P36: =IFERROR(VLOOKUP(H36,Translation!$A:$C,3,FALSE),H36) -> Nouvelle-Écosse
A37: 10 | B37: Cumul 2019 | C37: PROPRIÉTAIRES-OCCUPANTS, À L’UNITÉ | D37: Nouveau-Brunswick | E37: 24.80497813 | F37: Période d’amortissement moyenne selon la province | G37: 24.8 | H37: Nouveau-Brunswick | I37: =IFERROR(VLOOKUP(A37,Translation!$A:$C,3,FALSE),A37) -> 10 | J37: =IFERROR(VLOOKUP(B37,Translation!$A:$C,3,FALSE),B37) -> Cumul 2019 | K37: =IFERROR(VLOOKUP(C37,Translation!$A:$C,3,FALSE),C37) -> PROPRIÉTAIRES-OCCUPANTS, À L’UNITÉ | L37: =IFERROR(VLOOKUP(D37,Translation!$A:$C,3,FALSE),D37) -> Nouveau-Brunswick | M37: =IFERROR(VLOOKUP(E37,Translation!$A:$C,3,FALSE),E37) -> 24.80497813 | N37: =IFERROR(VLOOKUP(F37,Translation!$A:$C,3,FALSE),F37) -> Période d’amortissement moyenne selon la province | O37: =IFERROR(VLOOKUP(G37,Translation!$A:$C,3,FALSE),G37) -> 24.8 | P37: =IFERROR(VLOOKUP(H37,Translation!$A:$C,3,FALSE),H37) -> Nouveau-Brunswick
A38: 10 | B38: Cumul 2019 | C38: PROPRIÉTAIRES-OCCUPANTS, À L’UNITÉ | D38: Québec | E38: 24.83649914 | F38: Période d’amortissement moyenne selon la province | G38: 24.8 | H38: Québec | I38: =IFERROR(VLOOKUP(A38,Translation!$A:$C,3,FALSE),A38) -> 10 | J38: =IFERROR(VLOOKUP(B38,Translation!$A:$C,3,FALSE),B38) -> Cumul 2019 | K38: =IFERROR(VLOOKUP(C38,Translation!$A:$C,3,FALSE),C38) -> PROPRIÉTAIRES-OCCUPANTS, À L’UNITÉ | L38: =IFERROR(VLOOKUP(D38,Translation!$A:$C,3,FALSE),D38) -> Québec | M38: =IFERROR(VLOOKUP(E38,Translation!$A:$C,3,FALSE),E38) -> 24.83649914 | N38: =IFERROR(VLOOKUP(F38,Translation!$A:$C,3,FALSE),F38) -> Période d’amortissement moyenne selon la province | O38: =IFERROR(VLOOKUP(G38,Translation!$A:$C,3,FALSE),G38) -> 24.8 | P38: =IFERROR(VLOOKUP(H38,Translation!$A:$C,3,FALSE),H38) -> Québec
A39: 10 | B39: Cumul 2019 | C39: PROPRIÉTAIRES-OCCUPANTS, À L’UNITÉ | D39: Ontario | E39: 24.92194932 | F39: Période d’amortissement moyenne selon la province | G39: 24.9 | H39: Ontario | I39: =IFERROR(VLOOKUP(A39,Translation!$A:$C,3,FALSE),A39) -> 10 | J39: =IFERROR(VLOOKUP(B39,Translation!$A:$C,3,FALSE),B39) -> Cumul 2019 | K39: =IFERROR(VLOOKUP(C39,Translation!$A:$C,3,FALSE),C39) -> PROPRIÉTAIRES-OCCUPANTS, À L’UNITÉ | L39: =IFERROR(VLOOKUP(D39,Translation!$A:$C,3,FALSE),D39) -> Ontario | M39: =IFERROR(VLOOKUP(E39,Translation!$A:$C,3,FALSE),E39) -> 24.92194932 | N39: =IFERROR(VLOOKUP(F39,Translation!$A:$C,3,FALSE),F39) -> Période d’amortissement moyenne selon la province | O39: =IFERROR(VLOOKUP(G39,Translation!$A:$C,3,FALSE),G39) -> 24.9 | P39: =IFERROR(VLOOKUP(H39,Translation!$A:$C,3,FALSE),H39) -> Ontario
A40: 10 | B40: Cumul 2019 | C40: PROPRIÉTAIRES-OCCUPANTS, À L’UNITÉ | D40: Manitoba | E40: 24.87976957 | F40: Période d’amortissement moyenne selon la province | G40: 24.9 | H40: Manitoba | I40: =IFERROR(VLOOKUP(A40,Translation!$A:$C,3,FALSE),A40) -> 10 | J40: =IFERROR(VLOOKUP(B40,Translation!$A:$C,3,FALSE),B40) -> Cumul 2019 | K40: =IFERROR(VLOOKUP(C40,Translation!$A:$C,3,FALSE),C40) -> PROPRIÉTAIRES-OCCUPANTS, À L’UNITÉ | L40: =IFERROR(VLOOKUP(D40,Translation!$A:$C,3,FALSE),D40) -> Manitoba | M40: =IFERROR(VLOOKUP(E40,Translation!$A:$C,3,FALSE),E40) -> 24.87976957 | N40: =IFERROR(VLOOKUP(F40,Translation!$A:$C,3,FALSE),F40) -> Période d’amortissement moyenne selon la province | O40: =IFERROR(VLOOKUP(G40,Translation!$A:$C,3,FALSE),G40) -> 24.9 | P40: =IFERROR(VLOOKUP(H40,Translation!$A:$C,3,FALSE),H40) -> Manitoba
A41: 10 | B41: Cumul 2019 | C41: PROPRIÉTAIRES-OCCUPANTS, À L’UNITÉ | D41: Saskatchewan | E41: 24.80215216 | F41: Période d’amortissement moyenne selon la province | G41: 24.8 | H41: Saskatchewan | I41: =IFERROR(VLOOKUP(A41,Translation!$A:$C,3,FALSE),A41) -> 10 | J41: =IFERROR(VLOOKUP(B41,Translation!$A:$C,3,FALSE),B41) -> Cumul 2019 | K41: =IFERROR(VLOOKUP(C41,Translation!$A:$C,3,FALSE),C41) -> PROPRIÉTAIRES-OCCUPANTS, À L’UNITÉ | L41: =IFERROR(VLOOKUP(D41,Translation!$A:$C,3,FALSE),D41) -> Saskatchewan | M41: =IFERROR(VLOOKUP(E41,Translation!$A:$C,3,FALSE),E41) -> 24.80215216 | N41: =IFERROR(VLOOKUP(F41,Translation!$A:$C,3,FALSE),F41) -> Période d’amortissement moyenne selon la province | O41: =IFERROR(VLOOKUP(G41,Translation!$A:$C,3,FALSE),G41) -> 24.8 | P41: =IFERROR(VLOOKUP(H41,Translation!$A:$C,3,FALSE),H41) -> Saskatchewan
A42: 10 | B42: Cumul 2019 | C42: PROPRIÉTAIRES-OCCUPANTS, À L’UNITÉ | D42: Alberta | E42: 24.87479598 | F42: Période d’amortissement moyenne selon la province | G42: 24.9 | H42: Alberta | I42: =IFERROR(VLOOKUP(A42,Translation!$A:$C,3,FALSE),A42) -> 10 | J42: =IFERROR(VLOOKUP(B42,Translation!$A:$C,3,FALSE),B42) -> Cumul 2019 | K42: =IFERROR(VLOOKUP(C42,Translation!$A:$C,3,FALSE),C42) -> PROPRIÉTAIRES-OCCUPANTS, À L’UNITÉ | L42: =IFERROR(VLOOKUP(D42,Translation!$A:$C,3,FALSE),D42) -> Alberta | M42: =IFERROR(VLOOKUP(E42,Translation!$A:$C,3,FALSE),E42) -> 24.87479598 | N42: =IFERROR(VLOOKUP(F42,Translation!$A:$C,3,FALSE),F42) -> Période d’amortissement moyenne selon la province | O42: =IFERROR(VLOOKUP(G42,Translation!$A:$C,3,FALSE),G42) -> 24.9 | P42: =IFERROR(VLOOKUP(H42,Translation!$A:$C,3,FALSE),H42) -> Alberta
A43: 10 | B43: Cumul 2019 | C43: PROPRIÉTAIRES-OCCUPANTS, À L’UNITÉ | D43: Colombie-Britannique | E43: 24.84802096 | F43: Période d’amortissement moyenne selon la province | G43: 24.8 | H43: Colombie-Britannique | I43: =IFERROR(VLOOKUP(A43,Translation!$A:$C,3,FALSE),A43) -> 10 | J43: =IFERROR(VLOOKUP(B43,Translation!$A:$C,3,FALSE),B43) -> Cumul 2019 | K43: =IFERROR(VLOOKUP(C43,Translation!$A:$C,3,FALSE),C43) -> PROPRIÉTAIRES-OCCUPANTS, À L’UNITÉ | L43: =IFERROR(VLOOKUP(D43,Translation!$A:$C,3,FALSE),D43) -> Colombie-Britannique | M43: =IFERROR(VLOOKUP(E43,Translation!$A:$C,3,FALSE),E43) -> 24.84802096 | N43: =IFERROR(VLOOKUP(F43,Translation!$A:$C,3,FALSE),F43) -> Période d’amortissement moyenne selon la province | O43: =IFERROR(VLOOKUP(G43,Translation!$A:$C,3,FALSE),G43) -> 24.8 | P43: =IFERROR(VLOOKUP(H43,Translation!$A:$C,3,FALSE),H43) -> Colombie-Britannique
A44: 10 | B44: Cumul 2019 | C44: PROPRIÉTAIRES-OCCUPANTS, À L’UNITÉ | D44: Territoires | E44: 24.66120929 | F44: Période d’amortissement moyenne selon la province | G44: 24.7 | H44: Territoires | I44: =IFERROR(VLOOKUP(A44,Translation!$A:$C,3,FALSE),A44) -> 10 | J44: =IFERROR(VLOOKUP(B44,Translation!$A:$C,3,FALSE),B44) -> Cumul 2019 | K44: =IFERROR(VLOOKUP(C44,Translation!$A:$C,3,FALSE),C44) -> PROPRIÉTAIRES-OCCUPANTS, À L’UNITÉ | L44: =IFERROR(VLOOKUP(D44,Translation!$A:$C,3,FALSE),D44) -> Territoires | M44: =IFERROR(VLOOKUP(E44,Translation!$A:$C,3,FALSE),E44) -> 24.66120929 | N44: =IFERROR(VLOOKUP(F44,Translation!$A:$C,3,FALSE),F44) -> Période d’amortissement moyenne selon la province | O44: =IFERROR(VLOOKUP(G44,Translation!$A:$C,3,FALSE),G44) -> 24.7 | P44: =IFERROR(VLOOKUP(H44,Translation!$A:$C,3,FALSE),H44) -> Territoires
A45: 10 | B45: Cumul 2020 | C45: PROPRIÉTAIRES-OCCUPANTS, À L’UNITÉ | D45: Terre-Neuve-et-Labrador | E45: 24.7870728 | F45: Période d’amortissement moyenne selon la province | G45: 24.8 | H45: Terre-Neuve-et-Labrador | I45: =IFERROR(VLOOKUP(A45,Translation!$A:$C,3,FALSE),A45) -> 10 | J45: =IFERROR(VLOOKUP(B45,Translation!$A:$C,3,FALSE),B45) -> Cumul 2020 | K45: =IFERROR(VLOOKUP(C45,Translation!$A:$C,3,FALSE),C45) -> PROPRIÉTAIRES-OCCUPANTS, À L’UNITÉ | L45: =IFERROR(VLOOKUP(D45,Translation!$A:$C,3,FALSE),D45) -> Terre-Neuve-et-Labrador | M45: =IFERROR(VLOOKUP(E45,Translation!$A:$C,3,FALSE),E45) -> 24.7870728 | N45: =IFERROR(VLOOKUP(F45,Translation!$A:$C,3,FALSE),F45) -> Période d’amortissement moyenne selon la province | O45: =IFERROR(VLOOKUP(G45,Translation!$A:$C,3,FALSE),G45) -> 24.8 | P45: =IFERROR(VLOOKUP(H45,Translation!$A:$C,3,FALSE),H45) -> Terre-Neuve-et-Labrador
A46: 10 | B46: Cumul 2020 | C46: PROPRIÉTAIRES-OCCUPANTS, À L’UNITÉ | D46: Île-du-Prince-Édouard | E46: 24.91299187 | F46: Période d’amortissement moyenne selon la province | G46: 24.9 | H46: Île-du-Prince-Édouard | I46: =IFERROR(VLOOKUP(A46,Translation!$A:$C,3,FALSE),A46) -> 10 | J46: =IFERROR(VLOOKUP(B46,Translation!$A:$C,3,FALSE),B46) -> Cumul 2020 | K46: =IFERROR(VLOOKUP(C46,Translation!$A:$C,3,FALSE),C46) -> PROPRIÉTAIRES-OCCUPANTS, À L’UNITÉ | L46: =IFERROR(VLOOKUP(D46,Translation!$A:$C,3,FALSE),D46) -> Île-du-Prince-Édouard | M46: =IFERROR(VLOOKUP(E46,Translation!$A:$C,3,FALSE),E46) -> 24.91299187 | N46: =IFERROR(VLOOKUP(F46,Translation!$A:$C,3,FALSE),F46) -> Période d’amortissement moyenne selon la province | O46: =IFERROR(VLOOKUP(G46,Translation!$A:$C,3,FALSE),G46) -> 24.9 | P46: =IFERROR(VLOOKUP(H46,Translation!$A:$C,3,FALSE),H46) -> Île-du-Prince-Édouard
A47: 10 | B47: Cumul 2020 | C47: PROPRIÉTAIRES-OCCUPANTS, À L’UNITÉ | D47: Nouvelle-Écosse | E47: 24.79498946 | F47: Période d’amortissement moyenne selon la province | G47: 24.8 | H47: Nouvelle-Écosse | I47: =IFERROR(VLOOKUP(A47,Translation!$A:$C,3,FALSE),A47) -> 10 | J47: =IFERROR(VLOOKUP(B47,Translation!$A:$C,3,FALSE),B47) -> Cumul 2020 | K47: =IFERROR(VLOOKUP(C47,Translation!$A:$C,3,FALSE),C47) -> PROPRIÉTAIRES-OCCUPANTS, À L’UNITÉ | L47: =IFERROR(VLOOKUP(D47,Translation!$A:$C,3,FALSE),D47) -> Nouvelle-Écosse | M47: =IFERROR(VLOOKUP(E47,Translation!$A:$C,3,FALSE),E47) -> 24.79498946 | N47: =IFERROR(VLOOKUP(F47,Translation!$A:$C,3,FALSE),F47) -> Période d’amortissement moyenne selon la province | O47: =IFERROR(VLOOKUP(G47,Translation!$A:$C,3,FALSE),G47) -> 24.8 | P47: =IFERROR(VLOOKUP(H47,Translation!$A:$C,3,FALSE),H47) -> Nouvelle-Écosse
A48: 10 | B48: Cumul 2020 | C48: PROPRIÉTAIRES-OCCUPANTS, À L’UNITÉ | D48: Nouveau-Brunswick | E48: 24.69570226 | F48: Période d’amortissement moyenne selon la province | G48: 24.7 | H48: Nouveau-Brunswick | I48: =IFERROR(VLOOKUP(A48,Translation!$A:$C,3,FALSE),A48) -> 10 | J48: =IFERROR(VLOOKUP(B48,Translation!$A:$C,3,FALSE),B48) -> Cumul 2020 | K48: =IFERROR(VLOOKUP(C48,Translation!$A:$C,3,FALSE),C48) -> PROPRIÉTAIRES-OCCUPANTS, À L’UNITÉ | L48: =IFERROR(VLOOKUP(D48,Translation!$A:$C,3,FALSE),D48) -> Nouveau-Brunswick | M48: =IFERROR(VLOOKUP(E48,Translation!$A:$C,3,FALSE),E48) -> 24.69570226 | N48: =IFERROR(VLOOKUP(F48,Translation!$A:$C,3,FALSE),F48) -> Période d’amortissement moyenne selon la province | O48: =IFERROR(VLOOKUP(G48,Translation!$A:$C,3,FALSE),G48) -> 24.7 | P48: =IFERROR(VLOOKUP(H48,Translation!$A:$C,3,FALSE),H48) -> Nouveau-Brunswick
A49: 10 | B49: Cumul 2020 | C49: PROPRIÉTAIRES-OCCUPANTS, À L’UNITÉ | D49: Québec | E49: 24.90189889 | F49: Période d’amortissement moyenne selon la province | G49: 24.9 | H49: Québec | I49: =IFERROR(VLOOKUP(A49,Translation!$A:$C,3,FALSE),A49) -> 10 | J49: =IFERROR(VLOOKUP(B49,Translation!$A:$C,3,FALSE),B49) -> Cumul 2020 | K49: =IFERROR(VLOOKUP(C49,Translation!$A:$C,3,FALSE),C49) -> PROPRIÉTAIRES-OCCUPANTS, À L’UNITÉ | L49: =IFERROR(VLOOKUP(D49,Translation!$A:$C,3,FALSE),D49) -> Québec | M49: =IFERROR(VLOOKUP(E49,Translation!$A:$C,3,FALSE),E49) -> 24.90189889 | N49: =IFERROR(VLOOKUP(F49,Translation!$A:$C,3,FALSE),F49) -> Période d’amortissement moyenne selon la province | O49: =IFERROR(VLOOKUP(G49,Translation!$A:$C,3,FALSE),G49) -> 24.9 | P49: =IFERROR(VLOOKUP(H49,Translation!$A:$C,3,FALSE),H49) -> Québec
A50: 10 | B50: Cumul 2020 | C50: PROPRIÉTAIRES-OCCUPANTS, À L’UNITÉ | D50: Ontario | E50: 24.9588122 | F50: Période d’amortissement moyenne selon la province | G50: 25.0 | H50: Ontario | I50: =IFERROR(VLOOKUP(A50,Translation!$A:$C,3,FALSE),A50) -> 10 | J50: =IFERROR(VLOOKUP(B50,Translation!$A:$C,3,FALSE),B50) -> Cumul 2020 | K50: =IFERROR(VLOOKUP(C50,Translation!$A:$C,3,FALSE),C50) -> PROPRIÉTAIRES-OCCUPANTS, À L’UNITÉ | L50: =IFERROR(VLOOKUP(D50,Translation!$A:$C,3,FALSE),D50) -> Ontario | M50: =IFERROR(VLOOKUP(E50,Translation!$A:$C,3,FALSE),E50) -> 24.9588122 | N50: =IFERROR(VLOOKUP(F50,Translation!$A:$C,3,FALSE),F50) -> Période d’amortissement moyenne selon la province | O50: =IFERROR(VLOOKUP(G50,Translation!$A:$C,3,FALSE),G50) -> 25.0 | P50: =IFERROR(VLOOKUP(H50,Translation!$A:$C,3,FALSE),H50) -> Ontario
A51: 10 | B51: Cumul 2020 | C51: PROPRIÉTAIRES-OCCUPANTS, À L’UNITÉ | D51: Manitoba | E51: 24.88420963 | F51: Période d’amortissement moyenne selon la province | G51: 24.9 | H51: Manitoba | I51: =IFERROR(VLOOKUP(A51,Translation!$A:$C,3,FALSE),A51) -> 10 | J51: =IFERROR(VLOOKUP(B51,Translation!$A:$C,3,FALSE),B51) -> Cumul 2020 | K51: =IFERROR(VLOOKUP(C51,Translation!$A:$C,3,FALSE),C51) -> PROPRIÉTAIRES-OCCUPANTS, À L’UNITÉ | L51: =IFERROR(VLOOKUP(D51,Translation!$A:$C,3,FALSE),D51) -> Manitoba | M51: =IFERROR(VLOOKUP(E51,Translation!$A:$C,3,FALSE),E51) -> 24.88420963 | N51: =IFERROR(VLOOKUP(F51,Translation!$A:$C,3,FALSE),F51) -> Période d’amortissement moyenne selon la province | O51: =IFERROR(VLOOKUP(G51,Translation!$A:$C,3,FALSE),G51) -> 24.9 | P51: =IFERROR(VLOOKUP(H51,Translation!$A:$C,3,FALSE),H51) -> Manitoba
A52: 10 | B52: Cumul 2020 | C52: PROPRIÉTAIRES-OCCUPANTS, À L’UNITÉ | D52: Saskatchewan | E52: 24.6766725 | F52: Période d’amortissement moyenne selon la province | G52: 24.7 | H52: Saskatchewan | I52: =IFERROR(VLOOKUP(A52,Translation!$A:$C,3,FALSE),A52) -> 10 | J52: =IFERROR(VLOOKUP(B52,Translation!$A:$C,3,FALSE),B52) -> Cumul 2020 | K52: =IFERROR(VLOOKUP(C52,Translation!$A:$C,3,FALSE),C52) -> PROPRIÉTAIRES-OCCUPANTS, À L’UNITÉ | L52: =IFERROR(VLOOKUP(D52,Translation!$A:$C,3,FALSE),D52) -> Saskatchewan | M52: =IFERROR(VLOOKUP(E52,Translation!$A:$C,3,FALSE),E52) -> 24.6766725 | N52: =IFERROR(VLOOKUP(F52,Translation!$A:$C,3,FALSE),F52) -> Période d’amortissement moyenne selon la province | O52: =IFERROR(VLOOKUP(G52,Translation!$A:$C,3,FALSE),G52) -> 24.7 | P52: =IFERROR(VLOOKUP(H52,Translation!$A:$C,3,FALSE),H52) -> Saskatchewan
A53: 10 | B53: Cumul 2020 | C53: PROPRIÉTAIRES-OCCUPANTS, À L’UNITÉ | D53: Alberta | E53: 24.8878638 | F53: Période d’amortissement moyenne selon la province | G53: 24.9 | H53: Alberta | I53: =IFERROR(VLOOKUP(A53,Translation!$A:$C,3,FALSE),A53) -> 10 | J53: =IFERROR(VLOOKUP(B53,Translation!$A:$C,3,FALSE),B53) -> Cumul 2020 | K53: =IFERROR(VLOOKUP(C53,Translation!$A:$C,3,FALSE),C53) -> PROPRIÉTAIRES-OCCUPANTS, À L’UNITÉ | L53: =IFERROR(VLOOKUP(D53,Translation!$A:$C,3,FALSE),D53) -> Alberta | M53: =IFERROR(VLOOKUP(E53,Translation!$A:$C,3,FALSE),E53) -> 24.8878638 | N53: =IFERROR(VLOOKUP(F53,Translation!$A:$C,3,FALSE),F53) -> Période d’amortissement moyenne selon la province | O53: =IFERROR(VLOOKUP(G53,Translation!$A:$C,3,FALSE),G53) -> 24.9 | P53: =IFERROR(VLOOKUP(H53,Translation!$A:$C,3,FALSE),H53) -> Alberta
A54: 10 | B54: Cumul 2020 | C54: PROPRIÉTAIRES-OCCUPANTS, À L’UNITÉ | D54: Colombie-Britannique | E54: 24.84510509 | F54: Période d’amortissement moyenne selon la province | G54: 24.8 | H54: Colombie-Britannique | I54: =IFERROR(VLOOKUP(A54,Translation!$A:$C,3,FALSE),A54) -> 10 | J54: =IFERROR(VLOOKUP(B54,Translation!$A:$C,3,FALSE),B54) -> Cumul 2020 | K54: =IFERROR(VLOOKUP(C54,Translation!$A:$C,3,FALSE),C54) -> PROPRIÉTAIRES-OCCUPANTS, À L’UNITÉ | L54: =IFERROR(VLOOKUP(D54,Translation!$A:$C,3,FALSE),D54) -> Colombie-Britannique | M54: =IFERROR(VLOOKUP(E54,Translation!$A:$C,3,FALSE),E54) -> 24.84510509 | N54: =IFERROR(VLOOKUP(F54,Translation!$A:$C,3,FALSE),F54) -> Période d’amortissement moyenne selon la province | O54: =IFERROR(VLOOKUP(G54,Translation!$A:$C,3,FALSE),G54) -> 24.8 | P54: =IFERROR(VLOOKUP(H54,Translation!$A:$C,3,FALSE),H54) -> Colombie-Britannique
A55: 10 | B55: Cumul 2020 | C55: PROPRIÉTAIRES-OCCUPANTS, À L’UNITÉ | D55: Territoires | E55: 24.74715216 | F55: Période d’amortissement moyenne selon la province | G55: 24.7 | H55: Territoires | I55: =IFERROR(VLOOKUP(A55,Translation!$A:$C,3,FALSE),A55) -> 10 | J55: =IFERROR(VLOOKUP(B55,Translation!$A:$C,3,FALSE),B55) -> Cumul 2020 | K55: =IFERROR(VLOOKUP(C55,Translation!$A:$C,3,FALSE),C55) -> PROPRIÉTAIRES-OCCUPANTS, À L’UNITÉ | L55: =IFERROR(VLOOKUP(D55,Translation!$A:$C,3,FALSE),D55) -> Territoires | M55: =IFERROR(VLOOKUP(E55,Translation!$A:$C,3,FALSE),E55) -> 24.74715216 | N55: =IFERROR(VLOOKUP(F55,Translation!$A:$C,3,FALSE),F55) -> Période d’amortissement moyenne selon la province | O55: =IFERROR(VLOOKUP(G55,Translation!$A:$C,3,FALSE),G55) -> 24.7 | P55: =IFERROR(VLOOKUP(H55,Translation!$A:$C,3,FALSE),H55) -> Territoires
A56: 10 | B56: T1 2020 | C56: ASSURANCE DE PORTEFEUILLE | D56: <= 5 | E56: 0.1947232277 | F56: Prêts hypothécaires assurés au cours de la période selon la période d’amortissement (en années) à l'initiation (%) | G56: 0.2 | H56: <= 5 | I56: =IFERROR(VLOOKUP(A56,Translation!$A:$C,3,FALSE),A56) -> 10 | J56: =IFERROR(VLOOKUP(B56,Translation!$A:$C,3,FALSE),B56) -> T1 2020 | K56: =IFERROR(VLOOKUP(C56,Translation!$A:$C,3,FALSE),C56) -> ASSURANCE DE PORTEFEUILLE | L56: =IFERROR(VLOOKUP(D56,Translation!$A:$C,3,FALSE),D56) -> <= 5 | M56: =IFERROR(VLOOKUP(E56,Translation!$A:$C,3,FALSE),E56) -> 0.1947232277 | N56: =IFERROR(VLOOKUP(F56,Translation!$A:$C,3,FALSE),F56) -> Prêts hypothécaires assurés au cours de la période selon la période d’amortissement (en années) à l'initiation (%) | O56: =IFERROR(VLOOKUP(G56,Translation!$A:$C,3,FALSE),G56) -> 0.2 | P56: =IFERROR(VLOOKUP(H56,Translation!$A:$C,3,FALSE),H56) -> <= 5
A57: 10 | B57: Cumul 2019 | C57: ASSURANCE DE PORTEFEUILLE | D57: <= 5 | E57: 0.2694156025 | F57: Prêts hypothécaires assurés au cours de la période selon la période d’amortissement (en années) à l'initiation (%) | G57: 0.3 | H57: <= 5 | I57: =IFERROR(VLOOKUP(A57,Translation!$A:$C,3,FALSE),A57) -> 10 | J57: =IFERROR(VLOOKUP(B57,Translation!$A:$C,3,FALSE),B57) -> Cumul 2019 | K57: =IFERROR(VLOOKUP(C57,Translation!$A:$C,3,FALSE),C57) -> ASSURANCE DE PORTEFEUILLE | L57: =IFERROR(VLOOKUP(D57,Translation!$A:$C,3,FALSE),D57) -> <= 5 | M57: =IFERROR(VLOOKUP(E57,Translation!$A:$C,3,FALSE),E57) -> 0.2694156025 | N57: =IFERROR(VLOOKUP(F57,Translation!$A:$C,3,FALSE),F57) -> Prêts hypothécaires assurés au cours de la période selon la période d’amortissement (en années) à l'initiation (%) | O57: =IFERROR(VLOOKUP(G57,Translation!$A:$C,3,FALSE),G57) -> 0.3 | P57: =IFERROR(VLOOKUP(H57,Translation!$A:$C,3,FALSE),H57) -> <= 5
A58: 10 | B58: Cumul 2020 | C58: ASSURANCE DE PORTEFEUILLE | D58: <= 5 | E58: 0.1947232277 | F58: Prêts hypothécaires assurés au cours de la période selon la période d’amortissement (en années) à l'initiation (%) | G58: 0.2 | H58: <= 5 | I58: =IFERROR(VLOOKUP(A58,Translation!$A:$C,3,FALSE),A58) -> 10 | J58: =IFERROR(VLOOKUP(B58,Translation!$A:$C,3,FALSE),B58) -> Cumul 2020 | K58: =IFERROR(VLOOKUP(C58,Translation!$A:$C,3,FALSE),C58) -> ASSURANCE DE PORTEFEUILLE | L58: =IFERROR(VLOOKUP(D58,Translation!$A:$C,3,FALSE),D58) -> <= 5 | M58: =IFERROR(VLOOKUP(E58,Translation!$A:$C,3,FALSE),E58) -> 0.1947232277 | N58: =IFERROR(VLOOKUP(F58,Translation!$A:$C,3,FALSE),F58) -> Prêts hypothécaires assurés au cours de la période selon la période d’amortissement (en années) à l'initiation (%) | O58: =IFERROR(VLOOKUP(G58,Translation!$A:$C,3,FALSE),G58) -> 0.2 | P58: =IFERROR(VLOOKUP(H58,Translation!$A:$C,3,FALSE),H58) -> <= 5
A59: 10 | B59: T1 2020 | C59: ASSURANCE DE PORTEFEUILLE | D59: > 5 <= 10 | E59: 1.668468117 | F59: Prêts hypothécaires assurés au cours de la période selon la période d’amortissement (en années) à l'initiation (%) | G59: 1.7 | H59: > 5 <= 10 | I59: =IFERROR(VLOOKUP(A59,Translation!$A:$C,3,FALSE),A59) -> 10 | J59: =IFERROR(VLOOKUP(B59,Translation!$A:$C,3,FALSE),B59) -> T1 2020 | K59: =IFERROR(VLOOKUP(C59,Translation!$A:$C,3,FALSE),C59) -> ASSURANCE DE PORTEFEUILLE | L59: =IFERROR(VLOOKUP(D59,Translation!$A:$C,3,FALSE),D59) -> > 5 <= 10 | M59: =IFERROR(VLOOKUP(E59,Translation!$A:$C,3,FALSE),E59) -> 1.668468117 | N59: =IFERROR(VLOOKUP(F59,Translation!$A:$C,3,FALSE),F59) -> Prêts hypothécaires assurés au cours de la période selon la période d’amortissement (en années) à l'initiation (%) | O59: =IFERROR(VLOOKUP(G59,Translation!$A:$C,3,FALSE),G59) -> 1.7 | P59: =IFERROR(VLOOKUP(H59,Translation!$A:$C,3,FALSE),H59) -> > 5 <= 10
A60: 10 | B60: Cumul 2019 | C60: ASSURANCE DE PORTEFEUILLE | D60: > 5 <= 10 | E60: 2.243935079 | F60: Prêts hypothécaires assurés au cours de la période selon la période d’amortissement (en années) à l'initiation (%) | G60: 2.2 | H60: > 5 <= 10 | I60: =IFERROR(VLOOKUP(A60,Translation!$A:$C,3,FALSE),A60) -> 10 | J60: =IFERROR(VLOOKUP(B60,Translation!$A:$C,3,FALSE),B60) -> Cumul 2019 | K60: =IFERROR(VLOOKUP(C60,Translation!$A:$C,3,FALSE),C60) -> ASSURANCE DE PORTEFEUILLE | L60: =IFERROR(VLOOKUP(D60,Translation!$A:$C,3,FALSE),D60) -> > 5 <= 10 | M60: =IFERROR(VLOOKUP(E60,Translation!$A:$C,3,FALSE),E60) -> 2.243935079 | N60: =IFERROR(VLOOKUP(F60,Translation!$A:$C,3,FALSE),F60) -> Prêts hypothécaires assurés au cours de la période selon la période d’amortissement (en années) à l'initiation (%) | O60: =IFERROR(VLOOKUP(G60,Translation!$A:$C,3,FALSE),G60) -> 2.2 | P60: =IFERROR(VLOOKUP(H60,Translation!$A:$C,3,FALSE),H60) -> > 5 <= 10
A61: 10 | B61: Cumul 2020 | C61: ASSURANCE DE PORTEFEUILLE | D61: > 5 <= 10 | E61: 1.668468117 | F61: Prêts hypothécaires assurés au cours de la période selon la période d’amortissement (en années) à l'initiation (%) | G61: 1.7 | H61: > 5 <= 10 | I61: =IFERROR(VLOOKUP(A61,Translation!$A:$C,3,FALSE),A61) -> 10 | J61: =IFERROR(VLOOKUP(B61,Translation!$A:$C,3,FALSE),B61) -> Cumul 2020 | K61: =IFERROR(VLOOKUP(C61,Translation!$A:$C,3,FALSE),C61) -> ASSURANCE DE PORTEFEUILLE | L61: =IFERROR(VLOOKUP(D61,Translation!$A:$C,3,FALSE),D61) -> > 5 <= 10 | M61: =IFERROR(VLOOKUP(E61,Translation!$A:$C,3,FALSE),E61) -> 1.668468117 | N61: =IFERROR(VLOOKUP(F61,Translation!$A:$C,3,FALSE),F61) -> Prêts hypothécaires assurés au cours de la période selon la période d’amortissement (en années) à l'initiation (%) | O61: =IFERROR(VLOOKUP(G61,Translation!$A:$C,3,FALSE),G61) -> 1.7 | P61: =IFERROR(VLOOKUP(H61,Translation!$A:$C,3,FALSE),H61) -> > 5 <= 10
A62: 10 | B62: T1 2020 | C62: ASSURANCE DE PORTEFEUILLE | D62: > 10 <= 15 | E62: 3.821114779 | F62: Prêts hypothécaires assurés au cours de la période selon la période d’amortissement (en années) à l'initiation (%) | G62: 3.8 | H62: > 10 <= 15 | I62: =IFERROR(VLOOKUP(A62,Translation!$A:$C,3,FALSE),A62) -> 10 | J62: =IFERROR(VLOOKUP(B62,Translation!$A:$C,3,FALSE),B62) -> T1 2020 | K62: =IFERROR(VLOOKUP(C62,Translation!$A:$C,3,FALSE),C62) -> ASSURANCE DE PORTEFEUILLE | L62: =IFERROR(VLOOKUP(D62,Translation!$A:$C,3,FALSE),D62) -> > 10 <= 15 | M62: =IFERROR(VLOOKUP(E62,Translation!$A:$C,3,FALSE),E62) -> 3.821114779 | N62: =IFERROR(VLOOKUP(F62,Translation!$A:$C,3,FALSE),F62) -> Prêts hypothécaires assurés au cours de la période selon la période d’amortissement (en années) à l'initiation (%) | O62: =IFERROR(VLOOKUP(G62,Translation!$A:$C,3,FALSE),G62) -> 3.8 | P62: =IFERROR(VLOOKUP(H62,Translation!$A:$C,3,FALSE),H62) -> > 10 <= 15
A63: 10 | B63: Cumul 2019 | C63: ASSURANCE DE PORTEFEUILLE | D63: > 10 <= 15 | E63: 6.998854612 | F63: Prêts hypothécaires assurés au cours de la période selon la période d’amortissement (en années) à l'initiation (%) | G63: 7.0 | H63: > 10 <= 15 | I63: =IFERROR(VLOOKUP(A63,Translation!$A:$C,3,FALSE),A63) -> 10 | J63: =IFERROR(VLOOKUP(B63,Translation!$A:$C,3,FALSE),B63) -> Cumul 2019 | K63: =IFERROR(VLOOKUP(C63,Translation!$A:$C,3,FALSE),C63) -> ASSURANCE DE PORTEFEUILLE | L63: =IFERROR(VLOOKUP(D63,Translation!$A:$C,3,FALSE),D63) -> > 10 <= 15 | M63: =IFERROR(VLOOKUP(E63,Translation!$A:$C,3,FALSE),E63) -> 6.998854612 | N63: =IFERROR(VLOOKUP(F63,Translation!$A:$C,3,FALSE),F63) -> Prêts hypothécaires assurés au cours de la période selon la période d’amortissement (en années) à l'initiation (%) | O63: =IFERROR(VLOOKUP(G63,Translation!$A:$C,3,FALSE),G63) -> 7.0 | P63: =IFERROR(VLOOKUP(H63,Translation!$A:$C,3,FALSE),H63) -> > 10 <= 15
A64: 10 | B64: Cumul 2020 | C64: ASSURANCE DE PORTEFEUILLE | D64: > 10 <= 15 | E64: 3.821114779 | F64: Prêts hypothécaires assurés au cours de la période selon la période d’amortissement (en années) à l'initiation (%) | G64: 3.8 | H64: > 10 <= 15 | I64: =IFERROR(VLOOKUP(A64,Translation!$A:$C,3,FALSE),A64) -> 10 | J64: =IFERROR(VLOOKUP(B64,Translation!$A:$C,3,FALSE),B64) -> Cumul 2020 | K64: =IFERROR(VLOOKUP(C64,Translation!$A:$C,3,FALSE),C64) -> ASSURANCE DE PORTEFEUILLE | L64: =IFERROR(VLOOKUP(D64,Translation!$A:$C,3,FALSE),D64) -> > 10 <= 15 | M64: =IFERROR(VLOOKUP(E64,Translation!$A:$C,3,FALSE),E64) -> 3.821114779 | N64: =IFERROR(VLOOKUP(F64,Translation!$A:$C,3,FALSE),F64) -> Prêts hypothécaires assurés au cours de la période selon la période d’amortissement (en années) à l'initiation (%) | O64: =IFERROR(VLOOKUP(G64,Translation!$A:$C,3,FALSE),G64) -> 3.8 | P64: =IFERROR(VLOOKUP(H64,Translation!$A:$C,3,FALSE),H64) -> > 10 <= 15
A65: 10 | B65: T1 2020 | C65: ASSURANCE DE PORTEFEUILLE | D65: > 15 <= 20 | E65: 12.22271776 | F65: Prêts hypothécaires assurés au cours de la période selon la période d’amortissement (en années) à l'initiation (%) | G65: 12.2 | H65: > 15 <= 20 | I65: =IFERROR(VLOOKUP(A65,Translation!$A:$C,3,FALSE),A65) -> 10 | J65: =IFERROR(VLOOKUP(B65,Translation!$A:$C,3,FALSE),B65) -> T1 2020 | K65: =IFERROR(VLOOKUP(C65,Translation!$A:$C,3,FALSE),C65) -> ASSURANCE DE PORTEFEUILLE | L65: =IFERROR(VLOOKUP(D65,Translation!$A:$C,3,FALSE),D65) -> > 15 <= 20 | M65: =IFERROR(VLOOKUP(E65,Translation!$A:$C,3,FALSE),E65) -> 12.22271776 | N65: =IFERROR(VLOOKUP(F65,Translation!$A:$C,3,FALSE),F65) -> Prêts hypothécaires assurés au cours de la période selon la période d’amortissement (en années) à l'initiation (%) | O65: =IFERROR(VLOOKUP(G65,Translation!$A:$C,3,FALSE),G65) -> 12.2 | P65: =IFERROR(VLOOKUP(H65,Translation!$A:$C,3,FALSE),H65) -> > 15 <= 20
A66: 10 | B66: Cumul 2019 | C66: ASSURANCE DE PORTEFEUILLE | D66: > 15 <= 20 | E66: 16.82348191 | F66: Prêts hypothécaires assurés au cours de la période selon la période d’amortissement (en années) à l'initiation (%) | G66: 16.8 | H66: > 15 <= 20 | I66: =IFERROR(VLOOKUP(A66,Translation!$A:$C,3,FALSE),A66) -> 10 | J66: =IFERROR(VLOOKUP(B66,Translation!$A:$C,3,FALSE),B66) -> Cumul 2019 | K66: =IFERROR(VLOOKUP(C66,Translation!$A:$C,3,FALSE),C66) -> ASSURANCE DE PORTEFEUILLE | L66: =IFERROR(VLOOKUP(D66,Translation!$A:$C,3,FALSE),D66) -> > 15 <= 20 | M66: =IFERROR(VLOOKUP(E66,Translation!$A:$C,3,FALSE),E66) -> 16.82348191 | N66: =IFERROR(VLOOKUP(F66,Translation!$A:$C,3,FALSE),F66) -> Prêts hypothécaires assurés au cours de la période selon la période d’amortissement (en années) à l'initiation (%) | O66: =IFERROR(VLOOKUP(G66,Translation!$A:$C,3,FALSE),G66) -> 16.8 | P66: =IFERROR(VLOOKUP(H66,Translation!$A:$C,3,FALSE),H66) -> > 15 <= 20
A67: 10 | B67: Cumul 2020 | C67: ASSURANCE DE PORTEFEUILLE | D67: > 15 <= 20 | E67: 12.22271776 | F67: Prêts hypothécaires assurés au cours de la période selon la période d’amortissement (en années) à l'initiation (%) | G67: 12.2 | H67: > 15 <= 20 | I67: =IFERROR(VLOOKUP(A67,Translation!$A:$C,3,FALSE),A67) -> 10 | J67: =IFERROR(VLOOKUP(B67,Translation!$A:$C,3,FALSE),B67) -> Cumul 2020 | K67: =IFERROR(VLOOKUP(C67,Translation!$A:$C,3,FALSE),C67) -> ASSURANCE DE PORTEFEUILLE | L67: =IFERROR(VLOOKUP(D67,Translation!$A:$C,3,FALSE),D67) -> > 15 <= 20 | M67: =IFERROR(VLOOKUP(E67,Translation!$A:$C,3,FALSE),E67) -> 12.22271776 | N67: =IFERROR(VLOOKUP(F67,Translation!$A:$C,3,FALSE),F67) -> Prêts hypothécaires assurés au cours de la période selon la période d’amortissement (en années) à l'initiation (%) | O67: =IFERROR(VLOOKUP(G67,Translation!$A:$C,3,FALSE),G67) -> 12.2 | P67: =IFERROR(VLOOKUP(H67,Translation!$A:$C,3,FALSE),H67) -> > 15 <= 20
A68: 10 | B68: T1 2020 | C68: ASSURANCE DE PORTEFEUILLE | D68: > 20 <= 25 | E68: 81.04490224 | F68: Prêts hypothécaires assurés au cours de la période selon la période d’amortissement (en années) à l'initiation (%) | G68: 81.0 | H68: > 20 <= 25 | I68: =IFERROR(VLOOKUP(A68,Translation!$A:$C,3,FALSE),A68) -> 10 | J68: =IFERROR(VLOOKUP(B68,Translation!$A:$C,3,FALSE),B68) -> T1 2020 | K68: =IFERROR(VLOOKUP(C68,Translation!$A:$C,3,FALSE),C68) -> ASSURANCE DE PORTEFEUILLE | L68: =IFERROR(VLOOKUP(D68,Translation!$A:$C,3,FALSE),D68) -> > 20 <= 25 | M68: =IFERROR(VLOOKUP(E68,Translation!$A:$C,3,FALSE),E68) -> 81.04490224 | N68: =IFERROR(VLOOKUP(F68,Translation!$A:$C,3,FALSE),F68) -> Prêts hypothécaires assurés au cours de la période selon la période d’amortissement (en années) à l'initiation (%) | O68: =IFERROR(VLOOKUP(G68,Translation!$A:$C,3,FALSE),G68) -> 81.0 | P68: =IFERROR(VLOOKUP(H68,Translation!$A:$C,3,FALSE),H68) -> > 20 <= 25
A69: 10 | B69: Cumul 2019 | C69: ASSURANCE DE PORTEFEUILLE | D69: > 20 <= 25 | E69: 64.66749139 | F69: Prêts hypothécaires assurés au cours de la période selon la période d’amortissement (en années) à l'initiation (%) | G69: 64.7 | H69: > 20 <= 25 | I69: =IFERROR(VLOOKUP(A69,Translation!$A:$C,3,FALSE),A69) -> 10 | J69: =IFERROR(VLOOKUP(B69,Translation!$A:$C,3,FALSE),B69) -> Cumul 2019 | K69: =IFERROR(VLOOKUP(C69,Translation!$A:$C,3,FALSE),C69) -> ASSURANCE DE PORTEFEUILLE | L69: =IFERROR(VLOOKUP(D69,Translation!$A:$C,3,FALSE),D69) -> > 20 <= 25 | M69: =IFERROR(VLOOKUP(E69,Translation!$A:$C,3,FALSE),E69) -> 64.66749139 | N69: =IFERROR(VLOOKUP(F69,Translation!$A:$C,3,FALSE),F69) -> Prêts hypothécaires assurés au cours de la période selon la période d’amortissement (en années) à l'initiation (%) | O69: =IFERROR(VLOOKUP(G69,Translation!$A:$C,3,FALSE),G69) -> 64.7 | P69: =IFERROR(VLOOKUP(H69,Translation!$A:$C,3,FALSE),H69) -> > 20 <= 25
A70: 10 | B70: Cumul 2020 | C70: ASSURANCE DE PORTEFEUILLE | D70: > 20 <= 25 | E70: 81.04490224 | F70: Prêts hypothécaires assurés au cours de la période selon la période d’amortissement (en années) à l'initiation (%) | G70: 81.0 | H70: > 20 <= 25 | I70: =IFERROR(VLOOKUP(A70,Translation!$A:$C,3,FALSE),A70) -> 10 | J70: =IFERROR(VLOOKUP(B70,Translation!$A:$C,3,FALSE),B70) -> Cumul 2020 | K70: =IFERROR(VLOOKUP(C70,Translation!$A:$C,3,FALSE),C70) -> ASSURANCE DE PORTEFEUILLE | L70: =IFERROR(VLOOKUP(D70,Translation!$A:$C,3,FALSE),D70) -> > 20 <= 25 | M70: =IFERROR(VLOOKUP(E70,Translation!$A:$C,3,FALSE),E70) -> 81.04490224 | N70: =IFERROR(VLOOKUP(F70,Translation!$A:$C,3,FALSE),F70) -> Prêts hypothécaires assurés au cours de la période selon la période d’amortissement (en années) à l'initiation (%) | O70: =IFERROR(VLOOKUP(G70,Translation!$A:$C,3,FALSE),G70) -> 81.0 | P70: =IFERROR(VLOOKUP(H70,Translation!$A:$C,3,FALSE),H70) -> > 20 <= 25
A71: 10 | B71: T1 2020 | C71: ASSURANCE DE PORTEFEUILLE | D71: > 25 <= 30 | E71: 1.048073869 | F71: Prêts hypothécaires assurés au cours de la période selon la période d’amortissement (en années) à l'initiation (%) | G71: 1.0 | H71: > 25 <= 30 | I71: =IFERROR(VLOOKUP(A71,Translation!$A:$C,3,FALSE),A71) -> 10 | J71: =IFERROR(VLOOKUP(B71,Translation!$A:$C,3,FALSE),B71) -> T1 2020 | K71: =IFERROR(VLOOKUP(C71,Translation!$A:$C,3,FALSE),C71) -> ASSURANCE DE PORTEFEUILLE | L71: =IFERROR(VLOOKUP(D71,Translation!$A:$C,3,FALSE),D71) -> > 25 <= 30 | M71: =IFERROR(VLOOKUP(E71,Translation!$A:$C,3,FALSE),E71) -> 1.048073869 | N71: =IFERROR(VLOOKUP(F71,Translation!$A:$C,3,FALSE),F71) -> Prêts hypothécaires assurés au cours de la période selon la période d’amortissement (en années) à l'initiation (%) | O71: =IFERROR(VLOOKUP(G71,Translation!$A:$C,3,FALSE),G71) -> 1.0 | P71: =IFERROR(VLOOKUP(H71,Translation!$A:$C,3,FALSE),H71) -> > 25 <= 30
A72: 10 | B72: Cumul 2019 | C72: ASSURANCE DE PORTEFEUILLE | D72: > 25 <= 30 | E72: 8.480607935 | F72: Prêts hypothécaires assurés au cours de la période selon la période d’amortissement (en années) à l'initiation (%) | G72: 8.5 | H72: > 25 <= 30 | I72: =IFERROR(VLOOKUP(A72,Translation!$A:$C,3,FALSE),A72) -> 10 | J72: =IFERROR(VLOOKUP(B72,Translation!$A:$C,3,FALSE),B72) -> Cumul 2019 | K72: =IFERROR(VLOOKUP(C72,Translation!$A:$C,3,FALSE),C72) -> ASSURANCE DE PORTEFEUILLE | L72: =IFERROR(VLOOKUP(D72,Translation!$A:$C,3,FALSE),D72) -> > 25 <= 30 | M72: =IFERROR(VLOOKUP(E72,Translation!$A:$C,3,FALSE),E72) -> 8.480607935 | N72: =IFERROR(VLOOKUP(F72,Translation!$A:$C,3,FALSE),F72) -> Prêts hypothécaires assurés au cours de la période selon la période d’amortissement (en années) à l'initiation (%) | O72: =IFERROR(VLOOKUP(G72,Translation!$A:$C,3,FALSE),G72) -> 8.5 | P72: =IFERROR(VLOOKUP(H72,Translation!$A:$C,3,FALSE),H72) -> > 25 <= 30
A73: 10 | B73: Cumul 2020 | C73: ASSURANCE DE PORTEFEUILLE | D73: > 25 <= 30 | E73: 1.048073869 | F73: Prêts hypothécaires assurés au cours de la période selon la période d’amortissement (en années) à l'initiation (%) | G73: 1.0 | H73: > 25 <= 30 | I73: =IFERROR(VLOOKUP(A73,Translation!$A:$C,3,FALSE),A73) -> 10 | J73: =IFERROR(VLOOKUP(B73,Translation!$A:$C,3,FALSE),B73) -> Cumul 2020 | K73: =IFERROR(VLOOKUP(C73,Translation!$A:$C,3,FALSE),C73) -> ASSURANCE DE PORTEFEUILLE | L73: =IFERROR(VLOOKUP(D73,Translation!$A:$C,3,FALSE),D73) -> > 25 <= 30 | M73: =IFERROR(VLOOKUP(E73,Translation!$A:$C,3,FALSE),E73) -> 1.048073869 | N73: =IFERROR(VLOOKUP(F73,Translation!$A:$C,3,FALSE),F73) -> Prêts hypothécaires assurés au cours de la période selon la période d’amortissement (en années) à l'initiation (%) | O73: =IFERROR(VLOOKUP(G73,Translation!$A:$C,3,FALSE),G73) -> 1.0 | P73: =IFERROR(VLOOKUP(H73,Translation!$A:$C,3,FALSE),H73) -> > 25 <= 30
A74: 10 | B74: Cumul 2019 | C74: ASSURANCE DE PORTEFEUILLE | D74: > 30 <= 35 | E74: 0.05636196738 | F74: Prêts hypothécaires assurés au cours de la période selon la période d’amortissement (en années) à l'initiation (%) | G74: 0.1 | H74: > 30 <= 35 | I74: =IFERROR(VLOOKUP(A74,Translation!$A:$C,3,FALSE),A74) -> 10 | J74: =IFERROR(VLOOKUP(B74,Translation!$A:$C,3,FALSE),B74) -> Cumul 2019 | K74: =IFERROR(VLOOKUP(C74,Translation!$A:$C,3,FALSE),C74) -> ASSURANCE DE PORTEFEUILLE | L74: =IFERROR(VLOOKUP(D74,Translation!$A:$C,3,FALSE),D74) -> > 30 <= 35 | M74: =IFERROR(VLOOKUP(E74,Translation!$A:$C,3,FALSE),E74) -> 0.05636196738 | N74: =IFERROR(VLOOKUP(F74,Translation!$A:$C,3,FALSE),F74) -> Prêts hypothécaires assurés au cours de la période selon la période d’amortissement (en années) à l'initiation (%) | O74: =IFERROR(VLOOKUP(G74,Translation!$A:$C,3,FALSE),G74) -> 0.1 | P74: =IFERROR(VLOOKUP(H74,Translation!$A:$C,3,FALSE),H74) -> > 30 <= 35
A75: 10 | B75: Cumul 2019 | C75: ASSURANCE DE PORTEFEUILLE | D75: > 35 | E75: 0.4598515067 | F75: Prêts hypothécaires assurés au cours de la période selon la période d’amortissement (en années) à l'initiation (%) | G75: 0.5 | H75: > 35 | I75: =IFERROR(VLOOKUP(A75,Translation!$A:$C,3,FALSE),A75) -> 10 | J75: =IFERROR(VLOOKUP(B75,Translation!$A:$C,3,FALSE),B75) -> Cumul 2019 | K75: =IFERROR(VLOOKUP(C75,Translation!$A:$C,3,FALSE),C75) -> ASSURANCE DE PORTEFEUILLE | L75: =IFERROR(VLOOKUP(D75,Translation!$A:$C,3,FALSE),D75) -> > 35 | M75: =IFERROR(VLOOKUP(E75,Translation!$A:$C,3,FALSE),E75) -> 0.4598515067 | N75: =IFERROR(VLOOKUP(F75,Translation!$A:$C,3,FALSE),F75) -> Prêts hypothécaires assurés au cours de la période selon la période d’amortissement (en années) à l'initiation (%) | O75: =IFERROR(VLOOKUP(G75,Translation!$A:$C,3,FALSE),G75) -> 0.5 | P75: =IFERROR(VLOOKUP(H75,Translation!$A:$C,3,FALSE),H75) -> > 35
A76: 10 | B76: T1 2020 | C76: ASSURANCE DE PORTEFEUILLE | D76: Période d’amortissement moyenne | E76: 22.58887932 | F76: Prêts hypothécaires assurés au cours de la période selon la période d’amortissement (en années) à l'initiation (%) | G76: 22.6 | H76: Période d’amortissement moyenne | I76: =IFERROR(VLOOKUP(A76,Translation!$A:$C,3,FALSE),A76) -> 10 | J76: =IFERROR(VLOOKUP(B76,Translation!$A:$C,3,FALSE),B76) -> T1 2020 | K76: =IFERROR(VLOOKUP(C76,Translation!$A:$C,3,FALSE),C76) -> ASSURANCE DE PORTEFEUILLE | L76: =IFERROR(VLOOKUP(D76,Translation!$A:$C,3,FALSE),D76) -> Période d’amortissement moyenne | M76: =IFERROR(VLOOKUP(E76,Translation!$A:$C,3,FALSE),E76) -> 22.58887932 | N76: =IFERROR(VLOOKUP(F76,Translation!$A:$C,3,FALSE),F76) -> Prêts hypothécaires assurés au cours de la période selon la période d’amortissement (en années) à l'initiation (%) | O76: =IFERROR(VLOOKUP(G76,Translation!$A:$C,3,FALSE),G76) -> 22.6 | P76: =IFERROR(VLOOKUP(H76,Translation!$A:$C,3,FALSE),H76) -> Période d’amortissement moyenne
A77: 10 | B77: Cumul 2019 | C77: ASSURANCE DE PORTEFEUILLE | D77: Période d’amortissement moyenne | E77: 22.30348959 | F77: Prêts hypothécaires assurés au cours de la période selon la période d’amortissement (en années) à l'initiation (%) | G77: 22.3 | H77: Période d’amortissement moyenne | I77: =IFERROR(VLOOKUP(A77,Translation!$A:$C,3,FALSE),A77) -> 10 | J77: =IFERROR(VLOOKUP(B77,Translation!$A:$C,3,FALSE),B77) -> Cumul 2019 | K77: =IFERROR(VLOOKUP(C77,Translation!$A:$C,3,FALSE),C77) -> ASSURANCE DE PORTEFEUILLE | L77: =IFERROR(VLOOKUP(D77,Translation!$A:$C,3,FALSE),D77) -> Période d’amortissement moyenne | M77: =IFERROR(VLOOKUP(E77,Translation!$A:$C,3,FALSE),E77) -> 22.30348959 | N77: =IFERROR(VLOOKUP(F77,Translation!$A:$C,3,FALSE),F77) -> Prêts hypothécaires assurés au cours de la période selon la période d’amortissement (en années) à l'initiation (%) | O77: =IFERROR(VLOOKUP(G77,Translation!$A:$C,3,FALSE),G77) -> 22.3 | P77: =IFERROR(VLOOKUP(H77,Translation!$A:$C,3,FALSE),H77) -> Période d’amortissement moyenne
A78: 10 | B78: Cumul 2020 | C78: ASSURANCE DE PORTEFEUILLE | D78: Période d’amortissement moyenne | E78: 22.58887932 | F78: Prêts hypothécaires assurés au cours de la période selon la période d’amortissement (en années) à l'initiation (%) | G78: 22.6 | H78: Période d’amortissement moyenne | I78: =IFERROR(VLOOKUP(A78,Translation!$A:$C,3,FALSE),A78) -> 10 | J78: =IFERROR(VLOOKUP(B78,Translation!$A:$C,3,FALSE),B78) -> Cumul 2020 | K78: =IFERROR(VLOOKUP(C78,Translation!$A:$C,3,FALSE),C78) -> ASSURANCE DE PORTEFEUILLE | L78: =IFERROR(VLOOKUP(D78,Translation!$A:$C,3,FALSE),D78) -> Période d’amortissement moyenne | M78: =IFERROR(VLOOKUP(E78,Translation!$A:$C,3,FALSE),E78) -> 22.58887932 | N78: =IFERROR(VLOOKUP(F78,Translation!$A:$C,3,FALSE),F78) -> Prêts hypothécaires assurés au cours de la période selon la période d’amortissement (en années) à l'initiation (%) | O78: =IFERROR(VLOOKUP(G78,Translation!$A:$C,3,FALSE),G78) -> 22.6 | P78: =IFERROR(VLOOKUP(H78,Translation!$A:$C,3,FALSE),H78) -> Période d’amortissement moyenne
A79: 10 | B79: T1 2020 | C79: ASSURANCE DE PORTEFEUILLE | D79: Terre-Neuve-et-Labrador | E79: 20.43960199 | F79: Période d’amortissement moyenne selon la province | G79: 20.4 | H79: Terre-Neuve-et-Labrador | I79: =IFERROR(VLOOKUP(A79,Translation!$A:$C,3,FALSE),A79) -> 10 | J79: =IFERROR(VLOOKUP(B79,Translation!$A:$C,3,FALSE),B79) -> T1 2020 | K79: =IFERROR(VLOOKUP(C79,Translation!$A:$C,3,FALSE),C79) -> ASSURANCE DE PORTEFEUILLE | L79: =IFERROR(VLOOKUP(D79,Translation!$A:$C,3,FALSE),D79) -> Terre-Neuve-et-Labrador | M79: =IFERROR(VLOOKUP(E79,Translation!$A:$C,3,FALSE),E79) -> 20.43960199 | N79: =IFERROR(VLOOKUP(F79,Translation!$A:$C,3,FALSE),F79) -> Période d’amortissement moyenne selon la province | O79: =IFERROR(VLOOKUP(G79,Translation!$A:$C,3,FALSE),G79) -> 20.4 | P79: =IFERROR(VLOOKUP(H79,Translation!$A:$C,3,FALSE),H79) -> Terre-Neuve-et-Labrador
A80: 10 | B80: T1 2020 | C80: ASSURANCE DE PORTEFEUILLE | D80: Nouvelle-Écosse | E80: 21.6473176 | F80: Période d’amortissement moyenne selon la province | G80: 21.6 | H80: Nouvelle-Écosse | I80: =IFERROR(VLOOKUP(A80,Translation!$A:$C,3,FALSE),A80) -> 10 | J80: =IFERROR(VLOOKUP(B80,Translation!$A:$C,3,FALSE),B80) -> T1 2020 | K80: =IFERROR(VLOOKUP(C80,Translation!$A:$C,3,FALSE),C80) -> ASSURANCE DE PORTEFEUILLE | L80: =IFERROR(VLOOKUP(D80,Translation!$A:$C,3,FALSE),D80) -> Nouvelle-Écosse | M80: =IFERROR(VLOOKUP(E80,Translation!$A:$C,3,FALSE),E80) -> 21.6473176 | N80: =IFERROR(VLOOKUP(F80,Translation!$A:$C,3,FALSE),F80) -> Période d’amortissement moyenne selon la province | O80: =IFERROR(VLOOKUP(G80,Translation!$A:$C,3,FALSE),G80) -> 21.6 | P80: =IFERROR(VLOOKUP(H80,Translation!$A:$C,3,FALSE),H80) -> Nouvelle-Écosse
A81: 10 | B81: T1 2020 | C81: ASSURANCE DE PORTEFEUILLE | D81: Nouveau-Brunswick | E81: 22.71420753 | F81: Période d’amortissement moyenne selon la province | G81: 22.7 | H81: Nouveau-Brunswick | I81: =IFERROR(VLOOKUP(A81,Translation!$A:$C,3,FALSE),A81) -> 10 | J81: =IFERROR(VLOOKUP(B81,Translation!$A:$C,3,FALSE),B81) -> T1 2020 | K81: =IFERROR(VLOOKUP(C81,Translation!$A:$C,3,FALSE),C81) -> ASSURANCE DE PORTEFEUILLE | L81: =IFERROR(VLOOKUP(D81,Translation!$A:$C,3,FALSE),D81) -> Nouveau-Brunswick | M81: =IFERROR(VLOOKUP(E81,Translation!$A:$C,3,FALSE),E81) -> 22.71420753 | N81: =IFERROR(VLOOKUP(F81,Translation!$A:$C,3,FALSE),F81) -> Période d’amortissement moyenne selon la province | O81: =IFERROR(VLOOKUP(G81,Translation!$A:$C,3,FALSE),G81) -> 22.7 | P81: =IFERROR(VLOOKUP(H81,Translation!$A:$C,3,FALSE),H81) -> Nouveau-Brunswick
A82: 10 | B82: T1 2020 | C82: ASSURANCE DE PORTEFEUILLE | D82: Québec | E82: 22.01174263 | F82: Période d’amortissement moyenne selon la province | G82: 22.0 | H82: Québec | I82: =IFERROR(VLOOKUP(A82,Translation!$A:$C,3,FALSE),A82) -> 10 | J82: =IFERROR(VLOOKUP(B82,Translation!$A:$C,3,FALSE),B82) -> T1 2020 | K82: =IFERROR(VLOOKUP(C82,Translation!$A:$C,3,FALSE),C82) -> ASSURANCE DE PORTEFEUILLE | L82: =IFERROR(VLOOKUP(D82,Translation!$A:$C,3,FALSE),D82) -> Québec | M82: =IFERROR(VLOOKUP(E82,Translation!$A:$C,3,FALSE),E82) -> 22.01174263 | N82: =IFERROR(VLOOKUP(F82,Translation!$A:$C,3,FALSE),F82) -> Période d’amortissement moyenne selon la province | O82: =IFERROR(VLOOKUP(G82,Translation!$A:$C,3,FALSE),G82) -> 22.0 | P82: =IFERROR(VLOOKUP(H82,Translation!$A:$C,3,FALSE),H82) -> Québec
A83: 10 | B83: T1 2020 | C83: ASSURANCE DE PORTEFEUILLE | D83: Ontario | E83: 22.88415622 | F83: Période d’amortissement moyenne selon la province | G83: 22.9 | H83: Ontario | I83: =IFERROR(VLOOKUP(A83,Translation!$A:$C,3,FALSE),A83) -> 10 | J83: =IFERROR(VLOOKUP(B83,Translation!$A:$C,3,FALSE),B83) -> T1 2020 | K83: =IFERROR(VLOOKUP(C83,Translation!$A:$C,3,FALSE),C83) -> ASSURANCE DE PORTEFEUILLE | L83: =IFERROR(VLOOKUP(D83,Translation!$A:$C,3,FALSE),D83) -> Ontario | M83: =IFERROR(VLOOKUP(E83,Translation!$A:$C,3,FALSE),E83) -> 22.88415622 | N83: =IFERROR(VLOOKUP(F83,Translation!$A:$C,3,FALSE),F83) -> Période d’amortissement moyenne selon la province | O83: =IFERROR(VLOOKUP(G83,Translation!$A:$C,3,FALSE),G83) -> 22.9 | P83: =IFERROR(VLOOKUP(H83,Translation!$A:$C,3,FALSE),H83) -> Ontario
A84: 10 | B84: T1 2020 | C84: ASSURANCE DE PORTEFEUILLE | D84: Manitoba | E84: 22.32940319 | F84: Période d’amortissement moyenne selon la province | G84: 22.3 | H84: Manitoba | I84: =IFERROR(VLOOKUP(A84,Translation!$A:$C,3,FALSE),A84) -> 10 | J84: =IFERROR(VLOOKUP(B84,Translation!$A:$C,3,FALSE),B84) -> T1 2020 | K84: =IFERROR(VLOOKUP(C84,Translation!$A:$C,3,FALSE),C84) -> ASSURANCE DE PORTEFEUILLE | L84: =IFERROR(VLOOKUP(D84,Translation!$A:$C,3,FALSE),D84) -> Manitoba | M84: =IFERROR(VLOOKUP(E84,Translation!$A:$C,3,FALSE),E84) -> 22.32940319 | N84: =IFERROR(VLOOKUP(F84,Translation!$A:$C,3,FALSE),F84) -> Période d’amortissement moyenne selon la province | O84: =IFERROR(VLOOKUP(G84,Translation!$A:$C,3,FALSE),G84) -> 22.3 | P84: =IFERROR(VLOOKUP(H84,Translation!$A:$C,3,FALSE),H84) -> Manitoba
A85: 10 | B85: T1 2020 | C85: ASSURANCE DE PORTEFEUILLE | D85: Saskatchewan | E85: 20.78638555 | F85: Période d’amortissement moyenne selon la province | G85: 20.8 | H85: Saskatchewan | I85: =IFERROR(VLOOKUP(A85,Translation!$A:$C,3,FALSE),A85) -> 10 | J85: =IFERROR(VLOOKUP(B85,Translation!$A:$C,3,FALSE),B85) -> T1 2020 | K85: =IFERROR(VLOOKUP(C85,Translation!$A:$C,3,FALSE),C85) -> ASSURANCE DE PORTEFEUILLE | L85: =IFERROR(VLOOKUP(D85,Translation!$A:$C,3,FALSE),D85) -> Saskatchewan | M85: =IFERROR(VLOOKUP(E85,Translation!$A:$C,3,FALSE),E85) -> 20.78638555 | N85: =IFERROR(VLOOKUP(F85,Translation!$A:$C,3,FALSE),F85) -> Période d’amortissement moyenne selon la province | O85: =IFERROR(VLOOKUP(G85,Translation!$A:$C,3,FALSE),G85) -> 20.8 | P85: =IFERROR(VLOOKUP(H85,Translation!$A:$C,3,FALSE),H85) -> Saskatchewan
A86: 10 | B86: T1 2020 | C86: ASSURANCE DE PORTEFEUILLE | D86: Alberta | E86: 22.27186459 | F86: Période d’amortissement moyenne selon la province | G86: 22.3 | H86: Alberta | I86: =IFERROR(VLOOKUP(A86,Translation!$A:$C,3,FALSE),A86) -> 10 | J86: =IFERROR(VLOOKUP(B86,Translation!$A:$C,3,FALSE),B86) -> T1 2020 | K86: =IFERROR(VLOOKUP(C86,Translation!$A:$C,3,FALSE),C86) -> ASSURANCE DE PORTEFEUILLE | L86: =IFERROR(VLOOKUP(D86,Translation!$A:$C,3,FALSE),D86) -> Alberta | M86: =IFERROR(VLOOKUP(E86,Translation!$A:$C,3,FALSE),E86) -> 22.27186459 | N86: =IFERROR(VLOOKUP(F86,Translation!$A:$C,3,FALSE),F86) -> Période d’amortissement moyenne selon la province | O86: =IFERROR(VLOOKUP(G86,Translation!$A:$C,3,FALSE),G86) -> 22.3 | P86: =IFERROR(VLOOKUP(H86,Translation!$A:$C,3,FALSE),H86) -> Alberta
A87: 10 | B87: T1 2020 | C87: ASSURANCE DE PORTEFEUILLE | D87: Colombie-Britannique | E87: 22.35633304 | F87: Période d’amortissement moyenne selon la province | G87: 22.4 | H87: Colombie-Britannique | I87: =IFERROR(VLOOKUP(A87,Translation!$A:$C,3,FALSE),A87) -> 10 | J87: =IFERROR(VLOOKUP(B87,Translation!$A:$C,3,FALSE),B87) -> T1 2020 | K87: =IFERROR(VLOOKUP(C87,Translation!$A:$C,3,FALSE),C87) -> ASSURANCE DE PORTEFEUILLE | L87: =IFERROR(VLOOKUP(D87,Translation!$A:$C,3,FALSE),D87) -> Colombie-Britannique | M87: =IFERROR(VLOOKUP(E87,Translation!$A:$C,3,FALSE),E87) -> 22.35633304 | N87: =IFERROR(VLOOKUP(F87,Translation!$A:$C,3,FALSE),F87) -> Période d’amortissement moyenne selon la province | O87: =IFERROR(VLOOKUP(G87,Translation!$A:$C,3,FALSE),G87) -> 22.4 | P87: =IFERROR(VLOOKUP(H87,Translation!$A:$C,3,FALSE),H87) -> Colombie-Britannique
A88: 10 | B88: Cumul 2019 | C88: ASSURANCE DE PORTEFEUILLE | D88: Terre-Neuve-et-Labrador | E88: 20.90508359 | F88: Période d’amortissement moyenne selon la province | G88: 20.9 | H88: Terre-Neuve-et-Labrador | I88: =IFERROR(VLOOKUP(A88,Translation!$A:$C,3,FALSE),A88) -> 10 | J88: =IFERROR(VLOOKUP(B88,Translation!$A:$C,3,FALSE),B88) -> Cumul 2019 | K88: =IFERROR(VLOOKUP(C88,Translation!$A:$C,3,FALSE),C88) -> ASSURANCE DE PORTEFEUILLE | L88: =IFERROR(VLOOKUP(D88,Translation!$A:$C,3,FALSE),D88) -> Terre-Neuve-et-Labrador | M88: =IFERROR(VLOOKUP(E88,Translation!$A:$C,3,FALSE),E88) -> 20.90508359 | N88: =IFERROR(VLOOKUP(F88,Translation!$A:$C,3,FALSE),F88) -> Période d’amortissement moyenne selon la province | O88: =IFERROR(VLOOKUP(G88,Translation!$A:$C,3,FALSE),G88) -> 20.9 | P88: =IFERROR(VLOOKUP(H88,Translation!$A:$C,3,FALSE),H88) -> Terre-Neuve-et-Labrador
A89: 10 | B89: Cumul 2019 | C89: ASSURANCE DE PORTEFEUILLE | D89: Île-du-Prince-Édouard | E89: 24.27001604 | F89: Période d’amortissement moyenne selon la province | G89: 24.3 | H89: Île-du-Prince-Édouard | I89: =IFERROR(VLOOKUP(A89,Translation!$A:$C,3,FALSE),A89) -> 10 | J89: =IFERROR(VLOOKUP(B89,Translation!$A:$C,3,FALSE),B89) -> Cumul 2019 | K89: =IFERROR(VLOOKUP(C89,Translation!$A:$C,3,FALSE),C89) -> ASSURANCE DE PORTEFEUILLE | L89: =IFERROR(VLOOKUP(D89,Translation!$A:$C,3,FALSE),D89) -> Île-du-Prince-Édouard | M89: =IFERROR(VLOOKUP(E89,Translation!$A:$C,3,FALSE),E89) -> 24.27001604 | N89: =IFERROR(VLOOKUP(F89,Translation!$A:$C,3,FALSE),F89) -> Période d’amortissement moyenne selon la province | O89: =IFERROR(VLOOKUP(G89,Translation!$A:$C,3,FALSE),G89) -> 24.3 | P89: =IFERROR(VLOOKUP(H89,Translation!$A:$C,3,FALSE),H89) -> Île-du-Prince-Édouard
A90: 10 | B90: Cumul 2019 | C90: ASSURANCE DE PORTEFEUILLE | D90: Nouvelle-Écosse | E90: 23.1361584 | F90: Période d’amortissement moyenne selon la province | G90: 23.1 | H90: Nouvelle-Écosse | I90: =IFERROR(VLOOKUP(A90,Translation!$A:$C,3,FALSE),A90) -> 10 | J90: =IFERROR(VLOOKUP(B90,Translation!$A:$C,3,FALSE),B90) -> Cumul 2019 | K90: =IFERROR(VLOOKUP(C90,Translation!$A:$C,3,FALSE),C90) -> ASSURANCE DE PORTEFEUILLE | L90: =IFERROR(VLOOKUP(D90,Translation!$A:$C,3,FALSE),D90) -> Nouvelle-Écosse | M90: =IFERROR(VLOOKUP(E90,Translation!$A:$C,3,FALSE),E90) -> 23.1361584 | N90: =IFERROR(VLOOKUP(F90,Translation!$A:$C,3,FALSE),F90) -> Période d’amortissement moyenne selon la province | O90: =IFERROR(VLOOKUP(G90,Translation!$A:$C,3,FALSE),G90) -> 23.1 | P90: =IFERROR(VLOOKUP(H90,Translation!$A:$C,3,FALSE),H90) -> Nouvelle-Écosse
A91: 10 | B91: Cumul 2019 | C91: ASSURANCE DE PORTEFEUILLE | D91: Nouveau-Brunswick | E91: 22.42053792 | F91: Période d’amortissement moyenne selon la province | G91: 22.4 | H91: Nouveau-Brunswick | I91: =IFERROR(VLOOKUP(A91,Translation!$A:$C,3,FALSE),A91) -> 10 | J91: =IFERROR(VLOOKUP(B91,Translation!$A:$C,3,FALSE),B91) -> Cumul 2019 | K91: =IFERROR(VLOOKUP(C91,Translation!$A:$C,3,FALSE),C91) -> ASSURANCE DE PORTEFEUILLE | L91: =IFERROR(VLOOKUP(D91,Translation!$A:$C,3,FALSE),D91) -> Nouveau-Brunswick | M91: =IFERROR(VLOOKUP(E91,Translation!$A:$C,3,FALSE),E91) -> 22.42053792 | N91: =IFERROR(VLOOKUP(F91,Translation!$A:$C,3,FALSE),F91) -> Période d’amortissement moyenne selon la province | O91: =IFERROR(VLOOKUP(G91,Translation!$A:$C,3,FALSE),G91) -> 22.4 | P91: =IFERROR(VLOOKUP(H91,Translation!$A:$C,3,FALSE),H91) -> Nouveau-Brunswick
A92: 10 | B92: Cumul 2019 | C92: ASSURANCE DE PORTEFEUILLE | D92: Québec | E92: 21.45516291 | F92: Période d’amortissement moyenne selon la province | G92: 21.5 | H92: Québec | I92: =IFERROR(VLOOKUP(A92,Translation!$A:$C,3,FALSE),A92) -> 10 | J92: =IFERROR(VLOOKUP(B92,Translation!$A:$C,3,FALSE),B92) -> Cumul 2019 | K92: =IFERROR(VLOOKUP(C92,Translation!$A:$C,3,FALSE),C92) -> ASSURANCE DE PORTEFEUILLE | L92: =IFERROR(VLOOKUP(D92,Translation!$A:$C,3,FALSE),D92) -> Québec | M92: =IFERROR(VLOOKUP(E92,Translation!$A:$C,3,FALSE),E92) -> 21.45516291 | N92: =IFERROR(VLOOKUP(F92,Translation!$A:$C,3,FALSE),F92) -> Période d’amortissement moyenne selon la province | O92: =IFERROR(VLOOKUP(G92,Translation!$A:$C,3,FALSE),G92) -> 21.5 | P92: =IFERROR(VLOOKUP(H92,Translation!$A:$C,3,FALSE),H92) -> Québec
A93: 10 | B93: Cumul 2019 | C93: ASSURANCE DE PORTEFEUILLE | D93: Ontario | E93: 22.6744953 | F93: Période d’amortissement moyenne selon la province | G93: 22.7 | H93: Ontario | I93: =IFERROR(VLOOKUP(A93,Translation!$A:$C,3,FALSE),A93) -> 10 | J93: =IFERROR(VLOOKUP(B93,Translation!$A:$C,3,FALSE),B93) -> Cumul 2019 | K93: =IFERROR(VLOOKUP(C93,Translation!$A:$C,3,FALSE),C93) -> ASSURANCE DE PORTEFEUILLE | L93: =IFERROR(VLOOKUP(D93,Translation!$A:$C,3,FALSE),D93) -> Ontario | M93: =IFERROR(VLOOKUP(E93,Translation!$A:$C,3,FALSE),E93) -> 22.6744953 | N93: =IFERROR(VLOOKUP(F93,Translation!$A:$C,3,FALSE),F93) -> Période d’amortissement moyenne selon la province | O93: =IFERROR(VLOOKUP(G93,Translation!$A:$C,3,FALSE),G93) -> 22.7 | P93: =IFERROR(VLOOKUP(H93,Translation!$A:$C,3,FALSE),H93) -> Ontario
A94: 10 | B94: Cumul 2019 | C94: ASSURANCE DE PORTEFEUILLE | D94: Manitoba | E94: 22.54043139 | F94: Période d’amortissement moyenne selon la province | G94: 22.5 | H94: Manitoba | I94: =IFERROR(VLOOKUP(A94,Translation!$A:$C,3,FALSE),A94) -> 10 | J94: =IFERROR(VLOOKUP(B94,Translation!$A:$C,3,FALSE),B94) -> Cumul 2019 | K94: =IFERROR(VLOOKUP(C94,Translation!$A:$C,3,FALSE),C94) -> ASSURANCE DE PORTEFEUILLE | L94: =IFERROR(VLOOKUP(D94,Translation!$A:$C,3,FALSE),D94) -> Manitoba | M94: =IFERROR(VLOOKUP(E94,Translation!$A:$C,3,FALSE),E94) -> 22.54043139 | N94: =IFERROR(VLOOKUP(F94,Translation!$A:$C,3,FALSE),F94) -> Période d’amortissement moyenne selon la province | O94: =IFERROR(VLOOKUP(G94,Translation!$A:$C,3,FALSE),G94) -> 22.5 | P94: =IFERROR(VLOOKUP(H94,Translation!$A:$C,3,FALSE),H94) -> Manitoba
A95: 10 | B95: Cumul 2019 | C95: ASSURANCE DE PORTEFEUILLE | D95: Saskatchewan | E95: 20.42214957 | F95: Période d’amortissement moyenne selon la province | G95: 20.4 | H95: Saskatchewan | I95: =IFERROR(VLOOKUP(A95,Translation!$A:$C,3,FALSE),A95) -> 10 | J95: =IFERROR(VLOOKUP(B95,Translation!$A:$C,3,FALSE),B95) -> Cumul 2019 | K95: =IFERROR(VLOOKUP(C95,Translation!$A:$C,3,FALSE),C95) -> ASSURANCE DE PORTEFEUILLE | L95: =IFERROR(VLOOKUP(D95,Translation!$A:$C,3,FALSE),D95) -> Saskatchewan | M95: =IFERROR(VLOOKUP(E95,Translation!$A:$C,3,FALSE),E95) -> 20.42214957 | N95: =IFERROR(VLOOKUP(F95,Translation!$A:$C,3,FALSE),F95) -> Période d’amortissement moyenne selon la province | O95: =IFERROR(VLOOKUP(G95,Translation!$A:$C,3,FALSE),G95) -> 20.4 | P95: =IFERROR(VLOOKUP(H95,Translation!$A:$C,3,FALSE),H95) -> Saskatchewan
A96: 10 | B96: Cumul 2019 | C96: ASSURANCE DE PORTEFEUILLE | D96: Alberta | E96: 21.36644203 | F96: Période d’amortissement moyenne selon la province | G96: 21.4 | H96: Alberta | I96: =IFERROR(VLOOKUP(A96,Translation!$A:$C,3,FALSE),A96) -> 10 | J96: =IFERROR(VLOOKUP(B96,Translation!$A:$C,3,FALSE),B96) -> Cumul 2019 | K96: =IFERROR(VLOOKUP(C96,Translation!$A:$C,3,FALSE),C96) -> ASSURANCE DE PORTEFEUILLE | L96: =IFERROR(VLOOKUP(D96,Translation!$A:$C,3,FALSE),D96) -> Alberta | M96: =IFERROR(VLOOKUP(E96,Translation!$A:$C,3,FALSE),E96) -> 21.36644203 | N96: =IFERROR(VLOOKUP(F96,Translation!$A:$C,3,FALSE),F96) -> Période d’amortissement moyenne selon la province | O96: =IFERROR(VLOOKUP(G96,Translation!$A:$C,3,FALSE),G96) -> 21.4 | P96: =IFERROR(VLOOKUP(H96,Translation!$A:$C,3,FALSE),H96) -> Alberta
A97: 10 | B97: Cumul 2019 | C97: ASSURANCE DE PORTEFEUILLE | D97: Colombie-Britannique | E97: 22.81976824 | F97: Période d’amortissement moyenne selon la province | G97: 22.8 | H97: Colombie-Britannique | I97: =IFERROR(VLOOKUP(A97,Translation!$A:$C,3,FALSE),A97) -> 10 | J97: =IFERROR(VLOOKUP(B97,Translation!$A:$C,3,FALSE),B97) -> Cumul 2019 | K97: =IFERROR(VLOOKUP(C97,Translation!$A:$C,3,FALSE),C97) -> ASSURANCE DE PORTEFEUILLE | L97: =IFERROR(VLOOKUP(D97,Translation!$A:$C,3,FALSE),D97) -> Colombie-Britannique | M97: =IFERROR(VLOOKUP(E97,Translation!$A:$C,3,FALSE),E97) -> 22.81976824 | N97: =IFERROR(VLOOKUP(F97,Translation!$A:$C,3,FALSE),F97) -> Période d’amortissement moyenne selon la province | O97: =IFERROR(VLOOKUP(G97,Translation!$A:$C,3,FALSE),G97) -> 22.8 | P97: =IFERROR(VLOOKUP(H97,Translation!$A:$C,3,FALSE),H97) -> Colombie-Britannique
A98: 10 | B98: Cumul 2019 | C98: ASSURANCE DE PORTEFEUILLE | D98: Territoires | E98: 13.16666667 | F98: Période d’amortissement moyenne selon la province | G98: 13.2 | H98: Territoires | I98: =IFERROR(VLOOKUP(A98,Translation!$A:$C,3,FALSE),A98) -> 10 | J98: =IFERROR(VLOOKUP(B98,Translation!$A:$C,3,FALSE),B98) -> Cumul 2019 | K98: =IFERROR(VLOOKUP(C98,Translation!$A:$C,3,FALSE),C98) -> ASSURANCE DE PORTEFEUILLE | L98: =IFERROR(VLOOKUP(D98,Translation!$A:$C,3,FALSE),D98) -> Territoires | M98: =IFERROR(VLOOKUP(E98,Translation!$A:$C,3,FALSE),E98) -> 13.16666667 | N98: =IFERROR(VLOOKUP(F98,Translation!$A:$C,3,FALSE),F98) -> Période d’amortissement moyenne selon la province | O98: =IFERROR(VLOOKUP(G98,Translation!$A:$C,3,FALSE),G98) -> 13.2 | P98: =IFERROR(VLOOKUP(H98,Translation!$A:$C,3,FALSE),H98) -> Territoires
A99: 10 | B99: Cumul 2020 | C99: ASSURANCE DE PORTEFEUILLE | D99: Terre-Neuve-et-Labrador | E99: 20.43960199 | F99: Période d’amortissement moyenne selon la province | G99: 20.4 | H99: Terre-Neuve-et-Labrador | I99: =IFERROR(VLOOKUP(A99,Translation!$A:$C,3,FALSE),A99) -> 10 | J99: =IFERROR(VLOOKUP(B99,Translation!$A:$C,3,FALSE),B99) -> Cumul 2020 | K99: =IFERROR(VLOOKUP(C99,Translation!$A:$C,3,FALSE),C99) -> ASSURANCE DE PORTEFEUILLE | L99: =IFERROR(VLOOKUP(D99,Translation!$A:$C,3,FALSE),D99) -> Terre-Neuve-et-Labrador | M99: =IFERROR(VLOOKUP(E99,Translation!$A:$C,3,FALSE),E99) -> 20.43960199 | N99: =IFERROR(VLOOKUP(F99,Translation!$A:$C,3,FALSE),F99) -> Période d’amortissement moyenne selon la province | O99: =IFERROR(VLOOKUP(G99,Translation!$A:$C,3,FALSE),G99) -> 20.4 | P99: =IFERROR(VLOOKUP(H99,Translation!$A:$C,3,FALSE),H99) -> Terre-Neuve-et-Labrador
A100: 10 | B100: Cumul 2020 | C100: ASSURANCE DE PORTEFEUILLE | D100: Nouvelle-Écosse | E100: 21.6473176 | F100: Période d’amortissement moyenne selon la province | G100: 21.6 | H100: Nouvelle-Écosse | I100: =IFERROR(VLOOKUP(A100,Translation!$A:$C,3,FALSE),A100) -> 10 | J100: =IFERROR(VLOOKUP(B100,Translation!$A:$C,3,FALSE),B100) -> Cumul 2020 | K100: =IFERROR(VLOOKUP(C100,Translation!$A:$C,3,FALSE),C100) -> ASSURANCE DE PORTEFEUILLE | L100: =IFERROR(VLOOKUP(D100,Translation!$A:$C,3,FALSE),D100) -> Nouvelle-Écosse | M100: =IFERROR(VLOOKUP(E100,Translation!$A:$C,3,FALSE),E100) -> 21.6473176 | N100: =IFERROR(VLOOKUP(F100,Translation!$A:$C,3,FALSE),F100) -> Période d’amortissement moyenne selon la province | O100: =IFERROR(VLOOKUP(G100,Translation!$A:$C,3,FALSE),G100) -> 21.6 | P100: =IFERROR(VLOOKUP(H100,Translation!$A:$C,3,FALSE),H100) -> Nouvelle-Écosse
A101: 10 | B101: Cumul 2020 | C101: ASSURANCE DE PORTEFEUILLE | D101: Nouveau-Brunswick | E101: 22.71420753 | F101: Période d’amortissement moyenne selon la province | G101: 22.7 | H101: Nouveau-Brunswick | I101: =IFERROR(VLOOKUP(A101,Translation!$A:$C,3,FALSE),A101) -> 10 | J101: =IFERROR(VLOOKUP(B101,Translation!$A:$C,3,FALSE),B101) -> Cumul 2020 | K101: =IFERROR(VLOOKUP(C101,Translation!$A:$C,3,FALSE),C101) -> ASSURANCE DE PORTEFEUILLE | L101: =IFERROR(VLOOKUP(D101,Translation!$A:$C,3,FALSE),D101) -> Nouveau-Brunswick | M101: =IFERROR(VLOOKUP(E101,Translation!$A:$C,3,FALSE),E101) -> 22.71420753 | N101: =IFERROR(VLOOKUP(F101,Translation!$A:$C,3,FALSE),F101) -> Période d’amortissement moyenne selon la province | O101: =IFERROR(VLOOKUP(G101,Translation!$A:$C,3,FALSE),G101) -> 22.7 | P101: =IFERROR(VLOOKUP(H101,Translation!$A:$C,3,FALSE),H101) -> Nouveau-Brunswick
A102: 10 | B102: Cumul 2020 | C102: ASSURANCE DE PORTEFEUILLE | D102: Québec | E102: 22.01174263 | F102: Période d’amortissement moyenne selon la province | G102: 22.0 | H102: Québec | I102: =IFERROR(VLOOKUP(A102,Translation!$A:$C,3,FALSE),A102) -> 10 | J102: =IFERROR(VLOOKUP(B102,Translation!$A:$C,3,FALSE),B102) -> Cumul 2020 | K102: =IFERROR(VLOOKUP(C102,Translation!$A:$C,3,FALSE),C102) -> ASSURANCE DE PORTEFEUILLE | L102: =IFERROR(VLOOKUP(D102,Translation!$A:$C,3,FALSE),D102) -> Québec | M102: =IFERROR(VLOOKUP(E102,Translation!$A:$C,3,FALSE),E102) -> 22.01174263 | N102: =IFERROR(VLOOKUP(F102,Translation!$A:$C,3,FALSE),F102) -> Période d’amortissement moyenne selon la province | O102: =IFERROR(VLOOKUP(G102,Translation!$A:$C,3,FALSE),G102) -> 22.0 | P102: =IFERROR(VLOOKUP(H102,Translation!$A:$C,3,FALSE),H102) -> Québec
A103: 10 | B103: Cumul 2020 | C103: ASSURANCE DE PORTEFEUILLE | D103: Ontario | E103: 22.88415622 | F103: Période d’amortissement moyenne selon la province | G103: 22.9 | H103: Ontario | I103: =IFERROR(VLOOKUP(A103,Translation!$A:$C,3,FALSE),A103) -> 10 | J103: =IFERROR(VLOOKUP(B103,Translation!$A:$C,3,FALSE),B103) -> Cumul 2020 | K103: =IFERROR(VLOOKUP(C103,Translation!$A:$C,3,FALSE),C103) -> ASSURANCE DE PORTEFEUILLE | L103: =IFERROR(VLOOKUP(D103,Translation!$A:$C,3,FALSE),D103) -> Ontario | M103: =IFERROR(VLOOKUP(E103,Translation!$A:$C,3,FALSE),E103) -> 22.88415622 | N103: =IFERROR(VLOOKUP(F103,Translation!$A:$C,3,FALSE),F103) -> Période d’amortissement moyenne selon la province | O103: =IFERROR(VLOOKUP(G103,Translation!$A:$C,3,FALSE),G103) -> 22.9 | P103: =IFERROR(VLOOKUP(H103,Translation!$A:$C,3,FALSE),H103) -> Ontario
A104: 10 | B104: Cumul 2020 | C104: ASSURANCE DE PORTEFEUILLE | D104: Manitoba | E104: 22.32940319 | F104: Période d’amortissement moyenne selon la province | G104: 22.3 | H104: Manitoba | I104: =IFERROR(VLOOKUP(A104,Translation!$A:$C,3,FALSE),A104) -> 10 | J104: =IFERROR(VLOOKUP(B104,Translation!$A:$C,3,FALSE),B104) -> Cumul 2020 | K104: =IFERROR(VLOOKUP(C104,Translation!$A:$C,3,FALSE),C104) -> ASSURANCE DE PORTEFEUILLE | L104: =IFERROR(VLOOKUP(D104,Translation!$A:$C,3,FALSE),D104) -> Manitoba | M104: =IFERROR(VLOOKUP(E104,Translation!$A:$C,3,FALSE),E104) -> 22.32940319 | N104: =IFERROR(VLOOKUP(F104,Translation!$A:$C,3,FALSE),F104) -> Période d’amortissement moyenne selon la province | O104: =IFERROR(VLOOKUP(G104,Translation!$A:$C,3,FALSE),G104) -> 22.3 | P104: =IFERROR(VLOOKUP(H104,Translation!$A:$C,3,FALSE),H104) -> Manitoba
A105: 10 | B105: Cumul 2020 | C105: ASSURANCE DE PORTEFEUILLE | D105: Saskatchewan | E105: 20.78638555 | F105: Période d’amortissement moyenne selon la province | G105: 20.8 | H105: Saskatchewan | I105: =IFERROR(VLOOKUP(A105,Translation!$A:$C,3,FALSE),A105) -> 10 | J105: =IFERROR(VLOOKUP(B105,Translation!$A:$C,3,FALSE),B105) -> Cumul 2020 | K105: =IFERROR(VLOOKUP(C105,Translation!$A:$C,3,FALSE),C105) -> ASSURANCE DE PORTEFEUILLE | L105: =IFERROR(VLOOKUP(D105,Translation!$A:$C,3,FALSE),D105) -> Saskatchewan | M105: =IFERROR(VLOOKUP(E105,Translation!$A:$C,3,FALSE),E105) -> 20.78638555 | N105: =IFERROR(VLOOKUP(F105,Translation!$A:$C,3,FALSE),F105) -> Période d’amortissement moyenne selon la province | O105: =IFERROR(VLOOKUP(G105,Translation!$A:$C,3,FALSE),G105) -> 20.8 | P105: =IFERROR(VLOOKUP(H105,Translation!$A:$C,3,FALSE),H105) -> Saskatchewan
A106: 10 | B106: Cumul 2020 | C106: ASSURANCE DE PORTEFEUILLE | D106: Alberta | E106: 22.27186459 | F106: Période d’amortissement moyenne selon la province | G106: 22.3 | H106: Alberta | I106: =IFERROR(VLOOKUP(A106,Translation!$A:$C,3,FALSE),A106) -> 10 | J106: =IFERROR(VLOOKUP(B106,Translation!$A:$C,3,FALSE),B106) -> Cumul 2020 | K106: =IFERROR(VLOOKUP(C106,Translation!$A:$C,3,FALSE),C106) -> ASSURANCE DE PORTEFEUILLE | L106: =IFERROR(VLOOKUP(D106,Translation!$A:$C,3,FALSE),D106) -> Alberta | M106: =IFERROR(VLOOKUP(E106,Translation!$A:$C,3,FALSE),E106) -> 22.27186459 | N106: =IFERROR(VLOOKUP(F106,Translation!$A:$C,3,FALSE),F106) -> Période d’amortissement moyenne selon la province | O106: =IFERROR(VLOOKUP(G106,Translation!$A:$C,3,FALSE),G106) -> 22.3 | P106: =IFERROR(VLOOKUP(H106,Translation!$A:$C,3,FALSE),H106) -> Alberta
A107: 10 | B107: Cumul 2020 | C107: ASSURANCE DE PORTEFEUILLE | D107: Colombie-Britannique | E107: 22.35633304 | F107: Période d’amortissement moyenne selon la province | G107: 22.4 | H107: Colombie-Britannique | I107: =IFERROR(VLOOKUP(A107,Translation!$A:$C,3,FALSE),A107) -> 10 | J107: =IFERROR(VLOOKUP(B107,Translation!$A:$C,3,FALSE),B107) -> Cumul 2020 | K107: =IFERROR(VLOOKUP(C107,Translation!$A:$C,3,FALSE),C107) -> ASSURANCE DE PORTEFEUILLE | L107: =IFERROR(VLOOKUP(D107,Translation!$A:$C,3,FALSE),D107) -> Colombie-Britannique | M107: =IFERROR(VLOOKUP(E107,Translation!$A:$C,3,FALSE),E107) -> 22.35633304 | N107: =IFERROR(VLOOKUP(F107,Translation!$A:$C,3,FALSE),F107) -> Période d’amortissement moyenne selon la province | O107: =IFERROR(VLOOKUP(G107,Translation!$A:$C,3,FALSE),G107) -> 22.4 | P107: =IFERROR(VLOOKUP(H107,Translation!$A:$C,3,FALSE),H107) -> Colombie-Britannique
A108: 28 | B108: T1 2020 | C108: IMMEUBLES COLLECTIFS RÉSIDENTIELS | D108: > 5 <= 10 | E108: 0.06304434563 | F108: Prêts hypothécaires assurés au cours de la période selon la période d’amortissement (en années) à l'initiation (%) | G108: 0.1 | H108: > 5 <= 10 | I108: =IFERROR(VLOOKUP(A108,Translation!$A:$C,3,FALSE),A108) -> 28 | J108: =IFERROR(VLOOKUP(B108,Translation!$A:$C,3,FALSE),B108) -> T1 2020 | K108: =IFERROR(VLOOKUP(C108,Translation!$A:$C,3,FALSE),C108) -> IMMEUBLES COLLECTIFS RÉSIDENTIELS | L108: =IFERROR(VLOOKUP(D108,Translation!$A:$C,3,FALSE),D108) -> > 5 <= 10 | M108: =IFERROR(VLOOKUP(E108,Translation!$A:$C,3,FALSE),E108) -> 0.06304434563 | N108: =IFERROR(VLOOKUP(F108,Translation!$A:$C,3,FALSE),F108) -> Prêts hypothécaires assurés au cours de la période selon la période d’amortissement (en années) à l'initiation (%) | O108: =IFERROR(VLOOKUP(G108,Translation!$A:$C,3,FALSE),G108) -> 0.1 | P108: =IFERROR(VLOOKUP(H108,Translation!$A:$C,3,FALSE),H108) -> > 5 <= 10
A109: 28 | B109: Cumul 2020 | C109: IMMEUBLES COLLECTIFS RÉSIDENTIELS | D109: > 5 <= 10 | E109: 0.06304434563 | F109: Prêts hypothécaires assurés au cours de la période selon la période d’amortissement (en années) à l'initiation (%) | G109: 0.1 | H109: > 5 <= 10 | I109: =IFERROR(VLOOKUP(A109,Translation!$A:$C,3,FALSE),A109) -> 28 | J109: =IFERROR(VLOOKUP(B109,Translation!$A:$C,3,FALSE),B109) -> Cumul 2020 | K109: =IFERROR(VLOOKUP(C109,Translation!$A:$C,3,FALSE),C109) -> IMMEUBLES COLLECTIFS RÉSIDENTIELS | L109: =IFERROR(VLOOKUP(D109,Translation!$A:$C,3,FALSE),D109) -> > 5 <= 10 | M109: =IFERROR(VLOOKUP(E109,Translation!$A:$C,3,FALSE),E109) -> 0.06304434563 | N109: =IFERROR(VLOOKUP(F109,Translation!$A:$C,3,FALSE),F109) -> Prêts hypothécaires assurés au cours de la période selon la période d’amortissement (en années) à l'initiation (%) | O109: =IFERROR(VLOOKUP(G109,Translation!$A:$C,3,FALSE),G109) -> 0.1 | P109: =IFERROR(VLOOKUP(H109,Translation!$A:$C,3,FALSE),H109) -> > 5 <= 10
A110: 28 | B110: T1 2020 | C110: IMMEUBLES COLLECTIFS RÉSIDENTIELS | D110: > 10 <= 15 | E110: 0.8107659278 | F110: Prêts hypothécaires assurés au cours de la période selon la période d’amortissement (en années) à l'initiation (%) | G110: 0.8 | H110: > 10 <= 15 | I110: =IFERROR(VLOOKUP(A110,Translation!$A:$C,3,FALSE),A110) -> 28 | J110: =IFERROR(VLOOKUP(B110,Translation!$A:$C,3,FALSE),B110) -> T1 2020 | K110: =IFERROR(VLOOKUP(C110,Translation!$A:$C,3,FALSE),C110) -> IMMEUBLES COLLECTIFS RÉSIDENTIELS | L110: =IFERROR(VLOOKUP(D110,Translation!$A:$C,3,FALSE),D110) -> > 10 <= 15 | M110: =IFERROR(VLOOKUP(E110,Translation!$A:$C,3,FALSE),E110) -> 0.8107659278 | N110: =IFERROR(VLOOKUP(F110,Translation!$A:$C,3,FALSE),F110) -> Prêts hypothécaires assurés au cours de la période selon la période d’amortissement (en années) à l'initiation (%) | O110: =IFERROR(VLOOKUP(G110,Translation!$A:$C,3,FALSE),G110) -> 0.8 | P110: =IFERROR(VLOOKUP(H110,Translation!$A:$C,3,FALSE),H110) -> > 10 <= 15
A111: 28 | B111: Cumul 2019 | C111: IMMEUBLES COLLECTIFS RÉSIDENTIELS | D111: > 10 <= 15 | E111: 0.4985825076 | F111: Prêts hypothécaires assurés au cours de la période selon la période d’amortissement (en années) à l'initiation (%) | G111: 0.5 | H111: > 10 <= 15 | I111: =IFERROR(VLOOKUP(A111,Translation!$A:$C,3,FALSE),A111) -> 28 | J111: =IFERROR(VLOOKUP(B111,Translation!$A:$C,3,FALSE),B111) -> Cumul 2019 | K111: =IFERROR(VLOOKUP(C111,Translation!$A:$C,3,FALSE),C111) -> IMMEUBLES COLLECTIFS RÉSIDENTIELS | L111: =IFERROR(VLOOKUP(D111,Translation!$A:$C,3,FALSE),D111) -> > 10 <= 15 | M111: =IFERROR(VLOOKUP(E111,Translation!$A:$C,3,FALSE),E111) -> 0.4985825076 | N111: =IFERROR(VLOOKUP(F111,Translation!$A:$C,3,FALSE),F111) -> Prêts hypothécaires assurés au cours de la période selon la période d’amortissement (en années) à l'initiation (%) | O111: =IFERROR(VLOOKUP(G111,Translation!$A:$C,3,FALSE),G111) -> 0.5 | P111: =IFERROR(VLOOKUP(H111,Translation!$A:$C,3,FALSE),H111) -> > 10 <= 15
A112: 28 | B112: Cumul 2020 | C112: IMMEUBLES COLLECTIFS RÉSIDENTIELS | D112: > 10 <= 15 | E112: 0.8107659278 | F112: Prêts hypothécaires assurés au cours de la période selon la période d’amortissement (en années) à l'initiation (%) | G112: 0.8 | H112: > 10 <= 15 | I112: =IFERROR(VLOOKUP(A112,Translation!$A:$C,3,FALSE),A112) -> 28 | J112: =IFERROR(VLOOKUP(B112,Translation!$A:$C,3,FALSE),B112) -> Cumul 2020 | K112: =IFERROR(VLOOKUP(C112,Translation!$A:$C,3,FALSE),C112) -> IMMEUBLES COLLECTIFS RÉSIDENTIELS | L112: =IFERROR(VLOOKUP(D112,Translation!$A:$C,3,FALSE),D112) -> > 10 <= 15 | M112: =IFERROR(VLOOKUP(E112,Translation!$A:$C,3,FALSE),E112) -> 0.8107659278 | N112: =IFERROR(VLOOKUP(F112,Translation!$A:$C,3,FALSE),F112) -> Prêts hypothécaires assurés au cours de la période selon la période d’amortissement (en années) à l'initiation (%) | O112: =IFERROR(VLOOKUP(G112,Translation!$A:$C,3,FALSE),G112) -> 0.8 | P112: =IFERROR(VLOOKUP(H112,Translation!$A:$C,3,FALSE),H112) -> > 10 <= 15
A113: 28 | B113: T1 2020 | C113: IMMEUBLES COLLECTIFS RÉSIDENTIELS | D113: > 15 <= 20 | E113: 0.1524525035 | F113: Prêts hypothécaires assurés au cours de la période selon la période d’amortissement (en années) à l'initiation (%) | G113: 0.2 | H113: > 15 <= 20 | I113: =IFERROR(VLOOKUP(A113,Translation!$A:$C,3,FALSE),A113) -> 28 | J113: =IFERROR(VLOOKUP(B113,Translation!$A:$C,3,FALSE),B113) -> T1 2020 | K113: =IFERROR(VLOOKUP(C113,Translation!$A:$C,3,FALSE),C113) -> IMMEUBLES COLLECTIFS RÉSIDENTIELS | L113: =IFERROR(VLOOKUP(D113,Translation!$A:$C,3,FALSE),D113) -> > 15 <= 20 | M113: =IFERROR(VLOOKUP(E113,Translation!$A:$C,3,FALSE),E113) -> 0.1524525035 | N113: =IFERROR(VLOOKUP(F113,Translation!$A:$C,3,FALSE),F113) -> Prêts hypothécaires assurés au cours de la période selon la période d’amortissement (en années) à l'initiation (%) | O113: =IFERROR(VLOOKUP(G113,Translation!$A:$C,3,FALSE),G113) -> 0.2 | P113: =IFERROR(VLOOKUP(H113,Translation!$A:$C,3,FALSE),H113) -> > 15 <= 20
A114: 28 | B114: Cumul 2019 | C114: IMMEUBLES COLLECTIFS RÉSIDENTIELS | D114: > 15 <= 20 | E114: 0.6293049976 | F114: Prêts hypothécaires assurés au cours de la période selon la période d’amortissement (en années) à l'initiation (%) | G114: 0.6 | H114: > 15 <= 20 | I114: =IFERROR(VLOOKUP(A114,Translation!$A:$C,3,FALSE),A114) -> 28 | J114: =IFERROR(VLOOKUP(B114,Translation!$A:$C,3,FALSE),B114) -> Cumul 2019 | K114: =IFERROR(VLOOKUP(C114,Translation!$A:$C,3,FALSE),C114) -> IMMEUBLES COLLECTIFS RÉSIDENTIELS | L114: =IFERROR(VLOOKUP(D114,Translation!$A:$C,3,FALSE),D114) -> > 15 <= 20 | M114: =IFERROR(VLOOKUP(E114,Translation!$A:$C,3,FALSE),E114) -> 0.6293049976 | N114: =IFERROR(VLOOKUP(F114,Translation!$A:$C,3,FALSE),F114) -> Prêts hypothécaires assurés au cours de la période selon la période d’amortissement (en années) à l'initiation (%) | O114: =IFERROR(VLOOKUP(G114,Translation!$A:$C,3,FALSE),G114) -> 0.6 | P114: =IFERROR(VLOOKUP(H114,Translation!$A:$C,3,FALSE),H114) -> > 15 <= 20
A115: 28 | B115: Cumul 2020 | C115: IMMEUBLES COLLECTIFS RÉSIDENTIELS | D115: > 15 <= 20 | E115: 0.1524525035 | F115: Prêts hypothécaires assurés au cours de la période selon la période d’amortissement (en années) à l'initiation (%) | G115: 0.2 | H115: > 15 <= 20 | I115: =IFERROR(VLOOKUP(A115,Translation!$A:$C,3,FALSE),A115) -> 28 | J115: =IFERROR(VLOOKUP(B115,Translation!$A:$C,3,FALSE),B115) -> Cumul 2020 | K115: =IFERROR(VLOOKUP(C115,Translation!$A:$C,3,FALSE),C115) -> IMMEUBLES COLLECTIFS RÉSIDENTIELS | L115: =IFERROR(VLOOKUP(D115,Translation!$A:$C,3,FALSE),D115) -> > 15 <= 20 | M115: =IFERROR(VLOOKUP(E115,Translation!$A:$C,3,FALSE),E115) -> 0.1524525035 | N115: =IFERROR(VLOOKUP(F115,Translation!$A:$C,3,FALSE),F115) -> Prêts hypothécaires assurés au cours de la période selon la période d’amortissement (en années) à l'initiation (%) | O115: =IFERROR(VLOOKUP(G115,Translation!$A:$C,3,FALSE),G115) -> 0.2 | P115: =IFERROR(VLOOKUP(H115,Translation!$A:$C,3,FALSE),H115) -> > 15 <= 20
A116: 28 | B116: T1 2020 | C116: IMMEUBLES COLLECTIFS RÉSIDENTIELS | D116: > 20 <= 25 | E116: 9.856474829 | F116: Prêts hypothécaires assurés au cours de la période selon la période d’amortissement (en années) à l'initiation (%) | G116: 9.9 | H116: > 20 <= 25 | I116: =IFERROR(VLOOKUP(A116,Translation!$A:$C,3,FALSE),A116) -> 28 | J116: =IFERROR(VLOOKUP(B116,Translation!$A:$C,3,FALSE),B116) -> T1 2020 | K116: =IFERROR(VLOOKUP(C116,Translation!$A:$C,3,FALSE),C116) -> IMMEUBLES COLLECTIFS RÉSIDENTIELS | L116: =IFERROR(VLOOKUP(D116,Translation!$A:$C,3,FALSE),D116) -> > 20 <= 25 | M116: =IFERROR(VLOOKUP(E116,Translation!$A:$C,3,FALSE),E116) -> 9.856474829 | N116: =IFERROR(VLOOKUP(F116,Translation!$A:$C,3,FALSE),F116) -> Prêts hypothécaires assurés au cours de la période selon la période d’amortissement (en années) à l'initiation (%) | O116: =IFERROR(VLOOKUP(G116,Translation!$A:$C,3,FALSE),G116) -> 9.9 | P116: =IFERROR(VLOOKUP(H116,Translation!$A:$C,3,FALSE),H116) -> > 20 <= 25
A117: 28 | B117: Cumul 2019 | C117: IMMEUBLES COLLECTIFS RÉSIDENTIELS | D117: > 20 <= 25 | E117: 20.07632646 | F117: Prêts hypothécaires assurés au cours de la période selon la période d’amortissement (en années) à l'initiation (%) | G117: 20.1 | H117: > 20 <= 25 | I117: =IFERROR(VLOOKUP(A117,Translation!$A:$C,3,FALSE),A117) -> 28 | J117: =IFERROR(VLOOKUP(B117,Translation!$A:$C,3,FALSE),B117) -> Cumul 2019 | K117: =IFERROR(VLOOKUP(C117,Translation!$A:$C,3,FALSE),C117) -> IMMEUBLES COLLECTIFS RÉSIDENTIELS | L117: =IFERROR(VLOOKUP(D117,Translation!$A:$C,3,FALSE),D117) -> > 20 <= 25 | M117: =IFERROR(VLOOKUP(E117,Translation!$A:$C,3,FALSE),E117) -> 20.07632646 | N117: =IFERROR(VLOOKUP(F117,Translation!$A:$C,3,FALSE),F117) -> Prêts hypothécaires assurés au cours de la période selon la période d’amortissement (en années) à l'initiation (%) | O117: =IFERROR(VLOOKUP(G117,Translation!$A:$C,3,FALSE),G117) -> 20.1 | P117: =IFERROR(VLOOKUP(H117,Translation!$A:$C,3,FALSE),H117) -> > 20 <= 25
A118: 28 | B118: Cumul 2020 | C118: IMMEUBLES COLLECTIFS RÉSIDENTIELS | D118: > 20 <= 25 | E118: 9.856474829 | F118: Prêts hypothécaires assurés au cours de la période selon la période d’amortissement (en années) à l'initiation (%) | G118: 9.9 | H118: > 20 <= 25 | I118: =IFERROR(VLOOKUP(A118,Translation!$A:$C,3,FALSE),A118) -> 28 | J118: =IFERROR(VLOOKUP(B118,Translation!$A:$C,3,FALSE),B118) -> Cumul 2020 | K118: =IFERROR(VLOOKUP(C118,Translation!$A:$C,3,FALSE),C118) -> IMMEUBLES COLLECTIFS RÉSIDENTIELS | L118: =IFERROR(VLOOKUP(D118,Translation!$A:$C,3,FALSE),D118) -> > 20 <= 25 | M118: =IFERROR(VLOOKUP(E118,Translation!$A:$C,3,FALSE),E118) -> 9.856474829 | N118: =IFERROR(VLOOKUP(F118,Translation!$A:$C,3,FALSE),F118) -> Prêts hypothécaires assurés au cours de la période selon la période d’amortissement (en années) à l'initiation (%) | O118: =IFERROR(VLOOKUP(G118,Translation!$A:$C,3,FALSE),G118) -> 9.9 | P118: =IFERROR(VLOOKUP(H118,Translation!$A:$C,3,FALSE),H118) -> > 20 <= 25
A119: 28 | B119: T1 2020 | C119: IMMEUBLES COLLECTIFS RÉSIDENTIELS | D119: > 25 <= 30 | E119: 23.68889622 | F119: Prêts hypothécaires assurés au cours de la période selon la période d’amortissement (en années) à l'initiation (%) | G119: 23.7 | H119: > 25 <= 30 | I119: =IFERROR(VLOOKUP(A119,Translation!$A:$C,3,FALSE),A119) -> 28 | J119: =IFERROR(VLOOKUP(B119,Translation!$A:$C,3,FALSE),B119) -> T1 2020 | K119: =IFERROR(VLOOKUP(C119,Translation!$A:$C,3,FALSE),C119) -> IMMEUBLES COLLECTIFS RÉSIDENTIELS | L119: =IFERROR(VLOOKUP(D119,Translation!$A:$C,3,FALSE),D119) -> > 25 <= 30 | M119: =IFERROR(VLOOKUP(E119,Translation!$A:$C,3,FALSE),E119) -> 23.68889622 | N119: =IFERROR(VLOOKUP(F119,Translation!$A:$C,3,FALSE),F119) -> Prêts hypothécaires assurés au cours de la période selon la période d’amortissement (en années) à l'initiation (%) | O119: =IFERROR(VLOOKUP(G119,Translation!$A:$C,3,FALSE),G119) -> 23.7 | P119: =IFERROR(VLOOKUP(H119,Translation!$A:$C,3,FALSE),H119) -> > 25 <= 30
A120: 28 | B120: Cumul 2019 | C120: IMMEUBLES COLLECTIFS RÉSIDENTIELS | D120: > 25 <= 30 | E120: 22.56000178 | F120: Prêts hypothécaires assurés au cours de la période selon la période d’amortissement (en années) à l'initiation (%) | G120: 22.6 | H120: > 25 <= 30 | I120: =IFERROR(VLOOKUP(A120,Translation!$A:$C,3,FALSE),A120) -> 28 | J120: =IFERROR(VLOOKUP(B120,Translation!$A:$C,3,FALSE),B120) -> Cumul 2019 | K120: =IFERROR(VLOOKUP(C120,Translation!$A:$C,3,FALSE),C120) -> IMMEUBLES COLLECTIFS RÉSIDENTIELS | L120: =IFERROR(VLOOKUP(D120,Translation!$A:$C,3,FALSE),D120) -> > 25 <= 30 | M120: =IFERROR(VLOOKUP(E120,Translation!$A:$C,3,FALSE),E120) -> 22.56000178 | N120: =IFERROR(VLOOKUP(F120,Translation!$A:$C,3,FALSE),F120) -> Prêts hypothécaires assurés au cours de la période selon la période d’amortissement (en années) à l'initiation (%) | O120: =IFERROR(VLOOKUP(G120,Translation!$A:$C,3,FALSE),G120) -> 22.6 | P120: =IFERROR(VLOOKUP(H120,Translation!$A:$C,3,FALSE),H120) -> > 25 <= 30
A121: 28 | B121: Cumul 2020 | C121: IMMEUBLES COLLECTIFS RÉSIDENTIELS | D121: > 25 <= 30 | E121: 23.68889622 | F121: Prêts hypothécaires assurés au cours de la période selon la période d’amortissement (en années) à l'initiation (%) | G121: 23.7 | H121: > 25 <= 30 | I121: =IFERROR(VLOOKUP(A121,Translation!$A:$C,3,FALSE),A121) -> 28 | J121: =IFERROR(VLOOKUP(B121,Translation!$A:$C,3,FALSE),B121) -> Cumul 2020 | K121: =IFERROR(VLOOKUP(C121,Translation!$A:$C,3,FALSE),C121) -> IMMEUBLES COLLECTIFS RÉSIDENTIELS | L121: =IFERROR(VLOOKUP(D121,Translation!$A:$C,3,FALSE),D121) -> > 25 <= 30 | M121: =IFERROR(VLOOKUP(E121,Translation!$A:$C,3,FALSE),E121) -> 23.68889622 | N121: =IFERROR(VLOOKUP(F121,Translation!$A:$C,3,FALSE),F121) -> Prêts hypothécaires assurés au cours de la période selon la période d’amortissement (en années) à l'initiation (%) | O121: =IFERROR(VLOOKUP(G121,Translation!$A:$C,3,FALSE),G121) -> 23.7 | P121: =IFERROR(VLOOKUP(H121,Translation!$A:$C,3,FALSE),H121) -> > 25 <= 30
A122: 28 | B122: T1 2020 | C122: IMMEUBLES COLLECTIFS RÉSIDENTIELS | D122: > 30 <= 35 | E122: 13.18136761 | F122: Prêts hypothécaires assurés au cours de la période selon la période d’amortissement (en années) à l'initiation (%) | G122: 13.2 | H122: > 30 <= 35 | I122: =IFERROR(VLOOKUP(A122,Translation!$A:$C,3,FALSE),A122) -> 28 | J122: =IFERROR(VLOOKUP(B122,Translation!$A:$C,3,FALSE),B122) -> T1 2020 | K122: =IFERROR(VLOOKUP(C122,Translation!$A:$C,3,FALSE),C122) -> IMMEUBLES COLLECTIFS RÉSIDENTIELS | L122: =IFERROR(VLOOKUP(D122,Translation!$A:$C,3,FALSE),D122) -> > 30 <= 35 | M122: =IFERROR(VLOOKUP(E122,Translation!$A:$C,3,FALSE),E122) -> 13.18136761 | N122: =IFERROR(VLOOKUP(F122,Translation!$A:$C,3,FALSE),F122) -> Prêts hypothécaires assurés au cours de la période selon la période d’amortissement (en années) à l'initiation (%) | O122: =IFERROR(VLOOKUP(G122,Translation!$A:$C,3,FALSE),G122) -> 13.2 | P122: =IFERROR(VLOOKUP(H122,Translation!$A:$C,3,FALSE),H122) -> > 30 <= 35
A123: 28 | B123: Cumul 2019 | C123: IMMEUBLES COLLECTIFS RÉSIDENTIELS | D123: > 30 <= 35 | E123: 22.9902844 | F123: Prêts hypothécaires assurés au cours de la période selon la période d’amortissement (en années) à l'initiation (%) | G123: 23.0 | H123: > 30 <= 35 | I123: =IFERROR(VLOOKUP(A123,Translation!$A:$C,3,FALSE),A123) -> 28 | J123: =IFERROR(VLOOKUP(B123,Translation!$A:$C,3,FALSE),B123) -> Cumul 2019 | K123: =IFERROR(VLOOKUP(C123,Translation!$A:$C,3,FALSE),C123) -> IMMEUBLES COLLECTIFS RÉSIDENTIELS | L123: =IFERROR(VLOOKUP(D123,Translation!$A:$C,3,FALSE),D123) -> > 30 <= 35 | M123: =IFERROR(VLOOKUP(E123,Translation!$A:$C,3,FALSE),E123) -> 22.9902844 | N123: =IFERROR(VLOOKUP(F123,Translation!$A:$C,3,FALSE),F123) -> Prêts hypothécaires assurés au cours de la période selon la période d’amortissement (en années) à l'initiation (%) | O123: =IFERROR(VLOOKUP(G123,Translation!$A:$C,3,FALSE),G123) -> 23.0 | P123: =IFERROR(VLOOKUP(H123,Translation!$A:$C,3,FALSE),H123) -> > 30 <= 35
A124: 28 | B124: Cumul 2020 | C124: IMMEUBLES COLLECTIFS RÉSIDENTIELS | D124: > 30 <= 35 | E124: 13.18136761 | F124: Prêts hypothécaires assurés au cours de la période selon la période d’amortissement (en années) à l'initiation (%) | G124: 13.2 | H124: > 30 <= 35 | I124: =IFERROR(VLOOKUP(A124,Translation!$A:$C,3,FALSE),A124) -> 28 | J124: =IFERROR(VLOOKUP(B124,Translation!$A:$C,3,FALSE),B124) -> Cumul 2020 | K124: =IFERROR(VLOOKUP(C124,Translation!$A:$C,3,FALSE),C124) -> IMMEUBLES COLLECTIFS RÉSIDENTIELS | L124: =IFERROR(VLOOKUP(D124,Translation!$A:$C,3,FALSE),D124) -> > 30 <= 35 | M124: =IFERROR(VLOOKUP(E124,Translation!$A:$C,3,FALSE),E124) -> 13.18136761 | N124: =IFERROR(VLOOKUP(F124,Translation!$A:$C,3,FALSE),F124) -> Prêts hypothécaires assurés au cours de la période selon la période d’amortissement (en années) à l'initiation (%) | O124: =IFERROR(VLOOKUP(G124,Translation!$A:$C,3,FALSE),G124) -> 13.2 | P124: =IFERROR(VLOOKUP(H124,Translation!$A:$C,3,FALSE),H124) -> > 30 <= 35
A125: 28 | B125: T1 2020 | C125: IMMEUBLES COLLECTIFS RÉSIDENTIELS | D125: > 35 | E125: 52.24699856 | F125: Prêts hypothécaires assurés au cours de la période selon la période d’amortissement (en années) à l'initiation (%) | G125: 52.2 | H125: > 35 | I125: =IFERROR(VLOOKUP(A125,Translation!$A:$C,3,FALSE),A125) -> 28 | J125: =IFERROR(VLOOKUP(B125,Translation!$A:$C,3,FALSE),B125) -> T1 2020 | K125: =IFERROR(VLOOKUP(C125,Translation!$A:$C,3,FALSE),C125) -> IMMEUBLES COLLECTIFS RÉSIDENTIELS | L125: =IFERROR(VLOOKUP(D125,Translation!$A:$C,3,FALSE),D125) -> > 35 | M125: =IFERROR(VLOOKUP(E125,Translation!$A:$C,3,FALSE),E125) -> 52.24699856 | N125: =IFERROR(VLOOKUP(F125,Translation!$A:$C,3,FALSE),F125) -> Prêts hypothécaires assurés au cours de la période selon la période d’amortissement (en années) à l'initiation (%) | O125: =IFERROR(VLOOKUP(G125,Translation!$A:$C,3,FALSE),G125) -> 52.2 | P125: =IFERROR(VLOOKUP(H125,Translation!$A:$C,3,FALSE),H125) -> > 35
A126: 28 | B126: Cumul 2019 | C126: IMMEUBLES COLLECTIFS RÉSIDENTIELS | D126: > 35 | E126: 33.24549987 | F126: Prêts hypothécaires assurés au cours de la période selon la période d’amortissement (en années) à l'initiation (%) | G126: 33.2 | H126: > 35 | I126: =IFERROR(VLOOKUP(A126,Translation!$A:$C,3,FALSE),A126) -> 28 | J126: =IFERROR(VLOOKUP(B126,Translation!$A:$C,3,FALSE),B126) -> Cumul 2019 | K126: =IFERROR(VLOOKUP(C126,Translation!$A:$C,3,FALSE),C126) -> IMMEUBLES COLLECTIFS RÉSIDENTIELS | L126: =IFERROR(VLOOKUP(D126,Translation!$A:$C,3,FALSE),D126) -> > 35 | M126: =IFERROR(VLOOKUP(E126,Translation!$A:$C,3,FALSE),E126) -> 33.24549987 | N126: =IFERROR(VLOOKUP(F126,Translation!$A:$C,3,FALSE),F126) -> Prêts hypothécaires assurés au cours de la période selon la période d’amortissement (en années) à l'initiation (%) | O126: =IFERROR(VLOOKUP(G126,Translation!$A:$C,3,FALSE),G126) -> 33.2 | P126: =IFERROR(VLOOKUP(H126,Translation!$A:$C,3,FALSE),H126) -> > 35
A127: 28 | B127: Cumul 2020 | C127: IMMEUBLES COLLECTIFS RÉSIDENTIELS | D127: > 35 | E127: 52.24699856 | F127: Prêts hypothécaires assurés au cours de la période selon la période d’amortissement (en années) à l'initiation (%) | G127: 52.2 | H127: > 35 | I127: =IFERROR(VLOOKUP(A127,Translation!$A:$C,3,FALSE),A127) -> 28 | J127: =IFERROR(VLOOKUP(B127,Translation!$A:$C,3,FALSE),B127) -> Cumul 2020 | K127: =IFERROR(VLOOKUP(C127,Translation!$A:$C,3,FALSE),C127) -> IMMEUBLES COLLECTIFS RÉSIDENTIELS | L127: =IFERROR(VLOOKUP(D127,Translation!$A:$C,3,FALSE),D127) -> > 35 | M127: =IFERROR(VLOOKUP(E127,Translation!$A:$C,3,FALSE),E127) -> 52.24699856 | N127: =IFERROR(VLOOKUP(F127,Translation!$A:$C,3,FALSE),F127) -> Prêts hypothécaires assurés au cours de la période selon la période d’amortissement (en années) à l'initiation (%) | O127: =IFERROR(VLOOKUP(G127,Translation!$A:$C,3,FALSE),G127) -> 52.2 | P127: =IFERROR(VLOOKUP(H127,Translation!$A:$C,3,FALSE),H127) -> > 35
A128: 28 | B128: T1 2020 | C128: IMMEUBLES COLLECTIFS RÉSIDENTIELS | D128: Période d’amortissement moyenne | E128: 35.76488524 | F128: Prêts hypothécaires assurés au cours de la période selon la période d’amortissement (en années) à l'initiation (%) | G128: 35.8 | H128: Période d’amortissement moyenne | I128: =IFERROR(VLOOKUP(A128,Translation!$A:$C,3,FALSE),A128) -> 28 | J128: =IFERROR(VLOOKUP(B128,Translation!$A:$C,3,FALSE),B128) -> T1 2020 | K128: =IFERROR(VLOOKUP(C128,Translation!$A:$C,3,FALSE),C128) -> IMMEUBLES COLLECTIFS RÉSIDENTIELS | L128: =IFERROR(VLOOKUP(D128,Translation!$A:$C,3,FALSE),D128) -> Période d’amortissement moyenne | M128: =IFERROR(VLOOKUP(E128,Translation!$A:$C,3,FALSE),E128) -> 35.76488524 | N128: =IFERROR(VLOOKUP(F128,Translation!$A:$C,3,FALSE),F128) -> Prêts hypothécaires assurés au cours de la période selon la période d’amortissement (en années) à l'initiation (%) | O128: =IFERROR(VLOOKUP(G128,Translation!$A:$C,3,FALSE),G128) -> 35.8 | P128: =IFERROR(VLOOKUP(H128,Translation!$A:$C,3,FALSE),H128) -> Période d’amortissement moyenne
A129: 28 | B129: Cumul 2019 | C129: IMMEUBLES COLLECTIFS RÉSIDENTIELS | D129: Période d’amortissement moyenne | E129: 33.39354235 | F129: Prêts hypothécaires assurés au cours de la période selon la période d’amortissement (en années) à l'initiation (%) | G129: 33.4 | H129: Période d’amortissement moyenne | I129: =IFERROR(VLOOKUP(A129,Translation!$A:$C,3,FALSE),A129) -> 28 | J129: =IFERROR(VLOOKUP(B129,Translation!$A:$C,3,FALSE),B129) -> Cumul 2019 | K129: =IFERROR(VLOOKUP(C129,Translation!$A:$C,3,FALSE),C129) -> IMMEUBLES COLLECTIFS RÉSIDENTIELS | L129: =IFERROR(VLOOKUP(D129,Translation!$A:$C,3,FALSE),D129) -> Période d’amortissement moyenne | M129: =IFERROR(VLOOKUP(E129,Translation!$A:$C,3,FALSE),E129) -> 33.39354235 | N129: =IFERROR(VLOOKUP(F129,Translation!$A:$C,3,FALSE),F129) -> Prêts hypothécaires assurés au cours de la période selon la période d’amortissement (en années) à l'initiation (%) | O129: =IFERROR(VLOOKUP(G129,Translation!$A:$C,3,FALSE),G129) -> 33.4 | P129: =IFERROR(VLOOKUP(H129,Translation!$A:$C,3,FALSE),H129) -> Période d’amortissement moyenne
A130: 28 | B130: Cumul 2020 | C130: IMMEUBLES COLLECTIFS RÉSIDENTIELS | D130: Période d’amortissement moyenne | E130: 35.76488524 | F130: Prêts hypothécaires assurés au cours de la période selon la période d’amortissement (en années) à l'initiation (%) | G130: 35.8 | H130: Période d’amortissement moyenne | I130: =IFERROR(VLOOKUP(A130,Translation!$A:$C,3,FALSE),A130) -> 28 | J130: =IFERROR(VLOOKUP(B130,Translation!$A:$C,3,FALSE),B130) -> Cumul 2020 | K130: =IFERROR(VLOOKUP(C130,Translation!$A:$C,3,FALSE),C130) -> IMMEUBLES COLLECTIFS RÉSIDENTIELS | L130: =IFERROR(VLOOKUP(D130,Translation!$A:$C,3,FALSE),D130) -> Période d’amortissement moyenne | M130: =IFERROR(VLOOKUP(E130,Translation!$A:$C,3,FALSE),E130) -> 35.76488524 | N130: =IFERROR(VLOOKUP(F130,Translation!$A:$C,3,FALSE),F130) -> Prêts hypothécaires assurés au cours de la période selon la période d’amortissement (en années) à l'initiation (%) | O130: =IFERROR(VLOOKUP(G130,Translation!$A:$C,3,FALSE),G130) -> 35.8 | P130: =IFERROR(VLOOKUP(H130,Translation!$A:$C,3,FALSE),H130) -> Période d’amortissement moyenne
A131: 28 | B131: T1 2020 | C131: IMMEUBLES COLLECTIFS RÉSIDENTIELS | D131: Terre-Neuve-et-Labrador | E131: 25 | F131: Période d’amortissement moyenne selon la province | G131: 25.0 | H131: Terre-Neuve-et-Labrador | I131: =IFERROR(VLOOKUP(A131,Translation!$A:$C,3,FALSE),A131) -> 28 | J131: =IFERROR(VLOOKUP(B131,Translation!$A:$C,3,FALSE),B131) -> T1 2020 | K131: =IFERROR(VLOOKUP(C131,Translation!$A:$C,3,FALSE),C131) -> IMMEUBLES COLLECTIFS RÉSIDENTIELS | L131: =IFERROR(VLOOKUP(D131,Translation!$A:$C,3,FALSE),D131) -> Terre-Neuve-et-Labrador | M131: =IFERROR(VLOOKUP(E131,Translation!$A:$C,3,FALSE),E131) -> 25 | N131: =IFERROR(VLOOKUP(F131,Translation!$A:$C,3,FALSE),F131) -> Période d’amortissement moyenne selon la province | O131: =IFERROR(VLOOKUP(G131,Translation!$A:$C,3,FALSE),G131) -> 25.0 | P131: =IFERROR(VLOOKUP(H131,Translation!$A:$C,3,FALSE),H131) -> Terre-Neuve-et-Labrador
A132: 28 | B132: T1 2020 | C132: IMMEUBLES COLLECTIFS RÉSIDENTIELS | D132: Île-du-Prince-Édouard | E132: 25 | F132: Période d’amortissement moyenne selon la province | G132: 25.0 | H132: Île-du-Prince-Édouard | I132: =IFERROR(VLOOKUP(A132,Translation!$A:$C,3,FALSE),A132) -> 28 | J132: =IFERROR(VLOOKUP(B132,Translation!$A:$C,3,FALSE),B132) -> T1 2020 | K132: =IFERROR(VLOOKUP(C132,Translation!$A:$C,3,FALSE),C132) -> IMMEUBLES COLLECTIFS RÉSIDENTIELS | L132: =IFERROR(VLOOKUP(D132,Translation!$A:$C,3,FALSE),D132) -> Île-du-Prince-Édouard | M132: =IFERROR(VLOOKUP(E132,Translation!$A:$C,3,FALSE),E132) -> 25 | N132: =IFERROR(VLOOKUP(F132,Translation!$A:$C,3,FALSE),F132) -> Période d’amortissement moyenne selon la province | O132: =IFERROR(VLOOKUP(G132,Translation!$A:$C,3,FALSE),G132) -> 25.0 | P132: =IFERROR(VLOOKUP(H132,Translation!$A:$C,3,FALSE),H132) -> Île-du-Prince-Édouard
A133: 28 | B133: T1 2020 | C133: IMMEUBLES COLLECTIFS RÉSIDENTIELS | D133: Nouvelle-Écosse | E133: 33.09473479 | F133: Période d’amortissement moyenne selon la province | G133: 33.1 | H133: Nouvelle-Écosse | I133: =IFERROR(VLOOKUP(A133,Translation!$A:$C,3,FALSE),A133) -> 28 | J133: =IFERROR(VLOOKUP(B133,Translation!$A:$C,3,FALSE),B133) -> T1 2020 | K133: =IFERROR(VLOOKUP(C133,Translation!$A:$C,3,FALSE),C133) -> IMMEUBLES COLLECTIFS RÉSIDENTIELS | L133: =IFERROR(VLOOKUP(D133,Translation!$A:$C,3,FALSE),D133) -> Nouvelle-Écosse | M133: =IFERROR(VLOOKUP(E133,Translation!$A:$C,3,FALSE),E133) -> 33.09473479 | N133: =IFERROR(VLOOKUP(F133,Translation!$A:$C,3,FALSE),F133) -> Période d’amortissement moyenne selon la province | O133: =IFERROR(VLOOKUP(G133,Translation!$A:$C,3,FALSE),G133) -> 33.1 | P133: =IFERROR(VLOOKUP(H133,Translation!$A:$C,3,FALSE),H133) -> Nouvelle-Écosse
A134: 28 | B134: T1 2020 | C134: IMMEUBLES COLLECTIFS RÉSIDENTIELS | D134: Nouveau-Brunswick | E134: 33.24428999 | F134: Période d’amortissement moyenne selon la province | G134: 33.2 | H134: Nouveau-Brunswick | I134: =IFERROR(VLOOKUP(A134,Translation!$A:$C,3,FALSE),A134) -> 28 | J134: =IFERROR(VLOOKUP(B134,Translation!$A:$C,3,FALSE),B134) -> T1 2020 | K134: =IFERROR(VLOOKUP(C134,Translation!$A:$C,3,FALSE),C134) -> IMMEUBLES COLLECTIFS RÉSIDENTIELS | L134: =IFERROR(VLOOKUP(D134,Translation!$A:$C,3,FALSE),D134) -> Nouveau-Brunswick | M134: =IFERROR(VLOOKUP(E134,Translation!$A:$C,3,FALSE),E134) -> 33.24428999 | N134: =IFERROR(VLOOKUP(F134,Translation!$A:$C,3,FALSE),F134) -> Période d’amortissement moyenne selon la province | O134: =IFERROR(VLOOKUP(G134,Translation!$A:$C,3,FALSE),G134) -> 33.2 | P134: =IFERROR(VLOOKUP(H134,Translation!$A:$C,3,FALSE),H134) -> Nouveau-Brunswick
A135: 28 | B135: T1 2020 | C135: IMMEUBLES COLLECTIFS RÉSIDENTIELS | D135: Québec | E135: 33.54315321 | F135: Période d’amortissement moyenne selon la province | G135: 33.5 | H135: Québec | I135: =IFERROR(VLOOKUP(A135,Translation!$A:$C,3,FALSE),A135) -> 28 | J135: =IFERROR(VLOOKUP(B135,Translation!$A:$C,3,FALSE),B135) -> T1 2020 | K135: =IFERROR(VLOOKUP(C135,Translation!$A:$C,3,FALSE),C135) -> IMMEUBLES COLLECTIFS RÉSIDENTIELS | L135: =IFERROR(VLOOKUP(D135,Translation!$A:$C,3,FALSE),D135) -> Québec | M135: =IFERROR(VLOOKUP(E135,Translation!$A:$C,3,FALSE),E135) -> 33.54315321 | N135: =IFERROR(VLOOKUP(F135,Translation!$A:$C,3,FALSE),F135) -> Période d’amortissement moyenne selon la province | O135: =IFERROR(VLOOKUP(G135,Translation!$A:$C,3,FALSE),G135) -> 33.5 | P135: =IFERROR(VLOOKUP(H135,Translation!$A:$C,3,FALSE),H135) -> Québec
A136: 28 | B136: T1 2020 | C136: IMMEUBLES COLLECTIFS RÉSIDENTIELS | D136: Ontario | E136: 37.61140139 | F136: Période d’amortissement moyenne selon la province | G136: 37.6 | H136: Ontario | I136: =IFERROR(VLOOKUP(A136,Translation!$A:$C,3,FALSE),A136) -> 28 | J136: =IFERROR(VLOOKUP(B136,Translation!$A:$C,3,FALSE),B136) -> T1 2020 | K136: =IFERROR(VLOOKUP(C136,Translation!$A:$C,3,FALSE),C136) -> IMMEUBLES COLLECTIFS RÉSIDENTIELS | L136: =IFERROR(VLOOKUP(D136,Translation!$A:$C,3,FALSE),D136) -> Ontario | M136: =IFERROR(VLOOKUP(E136,Translation!$A:$C,3,FALSE),E136) -> 37.61140139 | N136: =IFERROR(VLOOKUP(F136,Translation!$A:$C,3,FALSE),F136) -> Période d’amortissement moyenne selon la province | O136: =IFERROR(VLOOKUP(G136,Translation!$A:$C,3,FALSE),G136) -> 37.6 | P136: =IFERROR(VLOOKUP(H136,Translation!$A:$C,3,FALSE),H136) -> Ontario
A137: 28 | B137: T1 2020 | C137: IMMEUBLES COLLECTIFS RÉSIDENTIELS | D137: Manitoba | E137: 32.85192467 | F137: Période d’amortissement moyenne selon la province | G137: 32.9 | H137: Manitoba | I137: =IFERROR(VLOOKUP(A137,Translation!$A:$C,3,FALSE),A137) -> 28 | J137: =IFERROR(VLOOKUP(B137,Translation!$A:$C,3,FALSE),B137) -> T1 2020 | K137: =IFERROR(VLOOKUP(C137,Translation!$A:$C,3,FALSE),C137) -> IMMEUBLES COLLECTIFS RÉSIDENTIELS | L137: =IFERROR(VLOOKUP(D137,Translation!$A:$C,3,FALSE),D137) -> Manitoba | M137: =IFERROR(VLOOKUP(E137,Translation!$A:$C,3,FALSE),E137) -> 32.85192467 | N137: =IFERROR(VLOOKUP(F137,Translation!$A:$C,3,FALSE),F137) -> Période d’amortissement moyenne selon la province | O137: =IFERROR(VLOOKUP(G137,Translation!$A:$C,3,FALSE),G137) -> 32.9 | P137: =IFERROR(VLOOKUP(H137,Translation!$A:$C,3,FALSE),H137) -> Manitoba
A138: 28 | B138: T1 2020 | C138: IMMEUBLES COLLECTIFS RÉSIDENTIELS | D138: Saskatchewan | E138: 36.02562049 | F138: Période d’amortissement moyenne selon la province | G138: 36.0 | H138: Saskatchewan | I138: =IFERROR(VLOOKUP(A138,Translation!$A:$C,3,FALSE),A138) -> 28 | J138: =IFERROR(VLOOKUP(B138,Translation!$A:$C,3,FALSE),B138) -> T1 2020 | K138: =IFERROR(VLOOKUP(C138,Translation!$A:$C,3,FALSE),C138) -> IMMEUBLES COLLECTIFS RÉSIDENTIELS | L138: =IFERROR(VLOOKUP(D138,Translation!$A:$C,3,FALSE),D138) -> Saskatchewan | M138: =IFERROR(VLOOKUP(E138,Translation!$A:$C,3,FALSE),E138) -> 36.02562049 | N138: =IFERROR(VLOOKUP(F138,Translation!$A:$C,3,FALSE),F138) -> Période d’amortissement moyenne selon la province | O138: =IFERROR(VLOOKUP(G138,Translation!$A:$C,3,FALSE),G138) -> 36.0 | P138: =IFERROR(VLOOKUP(H138,Translation!$A:$C,3,FALSE),H138) -> Saskatchewan
A139: 28 | B139: T1 2020 | C139: IMMEUBLES COLLECTIFS RÉSIDENTIELS | D139: Alberta | E139: 35.57313414 | F139: Période d’amortissement moyenne selon la province | G139: 35.6 | H139: Alberta | I139: =IFERROR(VLOOKUP(A139,Translation!$A:$C,3,FALSE),A139) -> 28 | J139: =IFERROR(VLOOKUP(B139,Translation!$A:$C,3,FALSE),B139) -> T1 2020 | K139: =IFERROR(VLOOKUP(C139,Translation!$A:$C,3,FALSE),C139) -> IMMEUBLES COLLECTIFS RÉSIDENTIELS | L139: =IFERROR(VLOOKUP(D139,Translation!$A:$C,3,FALSE),D139) -> Alberta | M139: =IFERROR(VLOOKUP(E139,Translation!$A:$C,3,FALSE),E139) -> 35.57313414 | N139: =IFERROR(VLOOKUP(F139,Translation!$A:$C,3,FALSE),F139) -> Période d’amortissement moyenne selon la province | O139: =IFERROR(VLOOKUP(G139,Translation!$A:$C,3,FALSE),G139) -> 35.6 | P139: =IFERROR(VLOOKUP(H139,Translation!$A:$C,3,FALSE),H139) -> Alberta
A140: 28 | B140: T1 2020 | C140: IMMEUBLES COLLECTIFS RÉSIDENTIELS | D140: Colombie-Britannique | E140: 35.65810855 | F140: Période d’amortissement moyenne selon la province | G140: 35.7 | H140: Colombie-Britannique | I140: =IFERROR(VLOOKUP(A140,Translation!$A:$C,3,FALSE),A140) -> 28 | J140: =IFERROR(VLOOKUP(B140,Translation!$A:$C,3,FALSE),B140) -> T1 2020 | K140: =IFERROR(VLOOKUP(C140,Translation!$A:$C,3,FALSE),C140) -> IMMEUBLES COLLECTIFS RÉSIDENTIELS | L140: =IFERROR(VLOOKUP(D140,Translation!$A:$C,3,FALSE),D140) -> Colombie-Britannique | M140: =IFERROR(VLOOKUP(E140,Translation!$A:$C,3,FALSE),E140) -> 35.65810855 | N140: =IFERROR(VLOOKUP(F140,Translation!$A:$C,3,FALSE),F140) -> Période d’amortissement moyenne selon la province | O140: =IFERROR(VLOOKUP(G140,Translation!$A:$C,3,FALSE),G140) -> 35.7 | P140: =IFERROR(VLOOKUP(H140,Translation!$A:$C,3,FALSE),H140) -> Colombie-Britannique
A141: 28 | B141: Cumul 2019 | C141: IMMEUBLES COLLECTIFS RÉSIDENTIELS | D141: Île-du-Prince-Édouard | E141: 24.15572113 | F141: Période d’amortissement moyenne selon la province | G141: 24.2 | H141: Île-du-Prince-Édouard | I141: =IFERROR(VLOOKUP(A141,Translation!$A:$C,3,FALSE),A141) -> 28 | J141: =IFERROR(VLOOKUP(B141,Translation!$A:$C,3,FALSE),B141) -> Cumul 2019 | K141: =IFERROR(VLOOKUP(C141,Translation!$A:$C,3,FALSE),C141) -> IMMEUBLES COLLECTIFS RÉSIDENTIELS | L141: =IFERROR(VLOOKUP(D141,Translation!$A:$C,3,FALSE),D141) -> Île-du-Prince-Édouard | M141: =IFERROR(VLOOKUP(E141,Translation!$A:$C,3,FALSE),E141) -> 24.15572113 | N141: =IFERROR(VLOOKUP(F141,Translation!$A:$C,3,FALSE),F141) -> Période d’amortissement moyenne selon la province | O141: =IFERROR(VLOOKUP(G141,Translation!$A:$C,3,FALSE),G141) -> 24.2 | P141: =IFERROR(VLOOKUP(H141,Translation!$A:$C,3,FALSE),H141) -> Île-du-Prince-Édouard
A142: 28 | B142: Cumul 2019 | C142: IMMEUBLES COLLECTIFS RÉSIDENTIELS | D142: Nouvelle-Écosse | E142: 34.30594347 | F142: Période d’amortissement moyenne selon la province | G142: 34.3 | H142: Nouvelle-Écosse | I142: =IFERROR(VLOOKUP(A142,Translation!$A:$C,3,FALSE),A142) -> 28 | J142: =IFERROR(VLOOKUP(B142,Translation!$A:$C,3,FALSE),B142) -> Cumul 2019 | K142: =IFERROR(VLOOKUP(C142,Translation!$A:$C,3,FALSE),C142) -> IMMEUBLES COLLECTIFS RÉSIDENTIELS | L142: =IFERROR(VLOOKUP(D142,Translation!$A:$C,3,FALSE),D142) -> Nouvelle-Écosse | M142: =IFERROR(VLOOKUP(E142,Translation!$A:$C,3,FALSE),E142) -> 34.30594347 | N142: =IFERROR(VLOOKUP(F142,Translation!$A:$C,3,FALSE),F142) -> Période d’amortissement moyenne selon la province | O142: =IFERROR(VLOOKUP(G142,Translation!$A:$C,3,FALSE),G142) -> 34.3 | P142: =IFERROR(VLOOKUP(H142,Translation!$A:$C,3,FALSE),H142) -> Nouvelle-Écosse
A143: 28 | B143: Cumul 2019 | C143: IMMEUBLES COLLECTIFS RÉSIDENTIELS | D143: Nouveau-Brunswick | E143: 28.97740845 | F143: Période d’amortissement moyenne selon la province | G143: 29.0 | H143: Nouveau-Brunswick | I143: =IFERROR(VLOOKUP(A143,Translation!$A:$C,3,FALSE),A143) -> 28 | J143: =IFERROR(VLOOKUP(B143,Translation!$A:$C,3,FALSE),B143) -> Cumul 2019 | K143: =IFERROR(VLOOKUP(C143,Translation!$A:$C,3,FALSE),C143) -> IMMEUBLES COLLECTIFS RÉSIDENTIELS | L143: =IFERROR(VLOOKUP(D143,Translation!$A:$C,3,FALSE),D143) -> Nouveau-Brunswick | M143: =IFERROR(VLOOKUP(E143,Translation!$A:$C,3,FALSE),E143) -> 28.97740845 | N143: =IFERROR(VLOOKUP(F143,Translation!$A:$C,3,FALSE),F143) -> Période d’amortissement moyenne selon la province | O143: =IFERROR(VLOOKUP(G143,Translation!$A:$C,3,FALSE),G143) -> 29.0 | P143: =IFERROR(VLOOKUP(H143,Translation!$A:$C,3,FALSE),H143) -> Nouveau-Brunswick
A144: 28 | B144: Cumul 2019 | C144: IMMEUBLES COLLECTIFS RÉSIDENTIELS | D144: Québec | E144: 35.13090644 | F144: Période d’amortissement moyenne selon la province | G144: 35.1 | H144: Québec | I144: =IFERROR(VLOOKUP(A144,Translation!$A:$C,3,FALSE),A144) -> 28 | J144: =IFERROR(VLOOKUP(B144,Translation!$A:$C,3,FALSE),B144) -> Cumul 2019 | K144: =IFERROR(VLOOKUP(C144,Translation!$A:$C,3,FALSE),C144) -> IMMEUBLES COLLECTIFS RÉSIDENTIELS | L144: =IFERROR(VLOOKUP(D144,Translation!$A:$C,3,FALSE),D144) -> Québec | M144: =IFERROR(VLOOKUP(E144,Translation!$A:$C,3,FALSE),E144) -> 35.13090644 | N144: =IFERROR(VLOOKUP(F144,Translation!$A:$C,3,FALSE),F144) -> Période d’amortissement moyenne selon la province | O144: =IFERROR(VLOOKUP(G144,Translation!$A:$C,3,FALSE),G144) -> 35.1 | P144: =IFERROR(VLOOKUP(H144,Translation!$A:$C,3,FALSE),H144) -> Québec
A145: 28 | B145: Cumul 2019 | C145: IMMEUBLES COLLECTIFS RÉSIDENTIELS | D145: Ontario | E145: 32.78977807 | F145: Période d’amortissement moyenne selon la province | G145: 32.8 | H145: Ontario | I145: =IFERROR(VLOOKUP(A145,Translation!$A:$C,3,FALSE),A145) -> 28 | J145: =IFERROR(VLOOKUP(B145,Translation!$A:$C,3,FALSE),B145) -> Cumul 2019 | K145: =IFERROR(VLOOKUP(C145,Translation!$A:$C,3,FALSE),C145) -> IMMEUBLES COLLECTIFS RÉSIDENTIELS | L145: =IFERROR(VLOOKUP(D145,Translation!$A:$C,3,FALSE),D145) -> Ontario | M145: =IFERROR(VLOOKUP(E145,Translation!$A:$C,3,FALSE),E145) -> 32.78977807 | N145: =IFERROR(VLOOKUP(F145,Translation!$A:$C,3,FALSE),F145) -> Période d’amortissement moyenne selon la province | O145: =IFERROR(VLOOKUP(G145,Translation!$A:$C,3,FALSE),G145) -> 32.8 | P145: =IFERROR(VLOOKUP(H145,Translation!$A:$C,3,FALSE),H145) -> Ontario
A146: 28 | B146: Cumul 2019 | C146: IMMEUBLES COLLECTIFS RÉSIDENTIELS | D146: Manitoba | E146: 32.24143142 | F146: Période d’amortissement moyenne selon la province | G146: 32.2 | H146: Manitoba | I146: =IFERROR(VLOOKUP(A146,Translation!$A:$C,3,FALSE),A146) -> 28 | J146: =IFERROR(VLOOKUP(B146,Translation!$A:$C,3,FALSE),B146) -> Cumul 2019 | K146: =IFERROR(VLOOKUP(C146,Translation!$A:$C,3,FALSE),C146) -> IMMEUBLES COLLECTIFS RÉSIDENTIELS | L146: =IFERROR(VLOOKUP(D146,Translation!$A:$C,3,FALSE),D146) -> Manitoba | M146: =IFERROR(VLOOKUP(E146,Translation!$A:$C,3,FALSE),E146) -> 32.24143142 | N146: =IFERROR(VLOOKUP(F146,Translation!$A:$C,3,FALSE),F146) -> Période d’amortissement moyenne selon la province | O146: =IFERROR(VLOOKUP(G146,Translation!$A:$C,3,FALSE),G146) -> 32.2 | P146: =IFERROR(VLOOKUP(H146,Translation!$A:$C,3,FALSE),H146) -> Manitoba
A147: 28 | B147: Cumul 2019 | C147: IMMEUBLES COLLECTIFS RÉSIDENTIELS | D147: Saskatchewan | E147: 33.49947351 | F147: Période d’amortissement moyenne selon la province | G147: 33.5 | H147: Saskatchewan | I147: =IFERROR(VLOOKUP(A147,Translation!$A:$C,3,FALSE),A147) -> 28 | J147: =IFERROR(VLOOKUP(B147,Translation!$A:$C,3,FALSE),B147) -> Cumul 2019 | K147: =IFERROR(VLOOKUP(C147,Translation!$A:$C,3,FALSE),C147) -> IMMEUBLES COLLECTIFS RÉSIDENTIELS | L147: =IFERROR(VLOOKUP(D147,Translation!$A:$C,3,FALSE),D147) -> Saskatchewan | M147: =IFERROR(VLOOKUP(E147,Translation!$A:$C,3,FALSE),E147) -> 33.49947351 | N147: =IFERROR(VLOOKUP(F147,Translation!$A:$C,3,FALSE),F147) -> Période d’amortissement moyenne selon la province | O147: =IFERROR(VLOOKUP(G147,Translation!$A:$C,3,FALSE),G147) -> 33.5 | P147: =IFERROR(VLOOKUP(H147,Translation!$A:$C,3,FALSE),H147) -> Saskatchewan
A148: 28 | B148: Cumul 2019 | C148: IMMEUBLES COLLECTIFS RÉSIDENTIELS | D148: Alberta | E148: 31.70874549 | F148: Période d’amortissement moyenne selon la province | G148: 31.7 | H148: Alberta | I148: =IFERROR(VLOOKUP(A148,Translation!$A:$C,3,FALSE),A148) -> 28 | J148: =IFERROR(VLOOKUP(B148,Translation!$A:$C,3,FALSE),B148) -> Cumul 2019 | K148: =IFERROR(VLOOKUP(C148,Translation!$A:$C,3,FALSE),C148) -> IMMEUBLES COLLECTIFS RÉSIDENTIELS | L148: =IFERROR(VLOOKUP(D148,Translation!$A:$C,3,FALSE),D148) -> Alberta | M148: =IFERROR(VLOOKUP(E148,Translation!$A:$C,3,FALSE),E148) -> 31.70874549 | N148: =IFERROR(VLOOKUP(F148,Translation!$A:$C,3,FALSE),F148) -> Période d’amortissement moyenne selon la province | O148: =IFERROR(VLOOKUP(G148,Translation!$A:$C,3,FALSE),G148) -> 31.7 | P148: =IFERROR(VLOOKUP(H148,Translation!$A:$C,3,FALSE),H148) -> Alberta
A149: 28 | B149: Cumul 2019 | C149: IMMEUBLES COLLECTIFS RÉSIDENTIELS | D149: Colombie-Britannique | E149: 33.7651822 | F149: Période d’amortissement moyenne selon la province | G149: 33.8 | H149: Colombie-Britannique | I149: =IFERROR(VLOOKUP(A149,Translation!$A:$C,3,FALSE),A149) -> 28 | J149: =IFERROR(VLOOKUP(B149,Translation!$A:$C,3,FALSE),B149) -> Cumul 2019 | K149: =IFERROR(VLOOKUP(C149,Translation!$A:$C,3,FALSE),C149) -> IMMEUBLES COLLECTIFS RÉSIDENTIELS | L149: =IFERROR(VLOOKUP(D149,Translation!$A:$C,3,FALSE),D149) -> Colombie-Britannique | M149: =IFERROR(VLOOKUP(E149,Translation!$A:$C,3,FALSE),E149) -> 33.7651822 | N149: =IFERROR(VLOOKUP(F149,Translation!$A:$C,3,FALSE),F149) -> Période d’amortissement moyenne selon la province | O149: =IFERROR(VLOOKUP(G149,Translation!$A:$C,3,FALSE),G149) -> 33.8 | P149: =IFERROR(VLOOKUP(H149,Translation!$A:$C,3,FALSE),H149) -> Colombie-Britannique
A150: 28 | B150: Cumul 2019 | C150: IMMEUBLES COLLECTIFS RÉSIDENTIELS | D150: Territoires | E150: 30 | F150: Période d’amortissement moyenne selon la province | G150: 30.0 | H150: Territoires | I150: =IFERROR(VLOOKUP(A150,Translation!$A:$C,3,FALSE),A150) -> 28 | J150: =IFERROR(VLOOKUP(B150,Translation!$A:$C,3,FALSE),B150) -> Cumul 2019 | K150: =IFERROR(VLOOKUP(C150,Translation!$A:$C,3,FALSE),C150) -> IMMEUBLES COLLECTIFS RÉSIDENTIELS | L150: =IFERROR(VLOOKUP(D150,Translation!$A:$C,3,FALSE),D150) -> Territoires | M150: =IFERROR(VLOOKUP(E150,Translation!$A:$C,3,FALSE),E150) -> 30 | N150: =IFERROR(VLOOKUP(F150,Translation!$A:$C,3,FALSE),F150) -> Période d’amortissement moyenne selon la province | O150: =IFERROR(VLOOKUP(G150,Translation!$A:$C,3,FALSE),G150) -> 30.0 | P150: =IFERROR(VLOOKUP(H150,Translation!$A:$C,3,FALSE),H150) -> Territoires
A151: 28 | B151: Cumul 2020 | C151: IMMEUBLES COLLECTIFS RÉSIDENTIELS | D151: Terre-Neuve-et-Labrador | E151: 25 | F151: Période d’amortissement moyenne selon la province | G151: 25.0 | H151: Terre-Neuve-et-Labrador | I151: =IFERROR(VLOOKUP(A151,Translation!$A:$C,3,FALSE),A151) -> 28 | J151: =IFERROR(VLOOKUP(B151,Translation!$A:$C,3,FALSE),B151) -> Cumul 2020 | K151: =IFERROR(VLOOKUP(C151,Translation!$A:$C,3,FALSE),C151) -> IMMEUBLES COLLECTIFS RÉSIDENTIELS | L151: =IFERROR(VLOOKUP(D151,Translation!$A:$C,3,FALSE),D151) -> Terre-Neuve-et-Labrador | M151: =IFERROR(VLOOKUP(E151,Translation!$A:$C,3,FALSE),E151) -> 25 | N151: =IFERROR(VLOOKUP(F151,Translation!$A:$C,3,FALSE),F151) -> Période d’amortissement moyenne selon la province | O151: =IFERROR(VLOOKUP(G151,Translation!$A:$C,3,FALSE),G151) -> 25.0 | P151: =IFERROR(VLOOKUP(H151,Translation!$A:$C,3,FALSE),H151) -> Terre-Neuve-et-Labrador
A152: 28 | B152: Cumul 2020 | C152: IMMEUBLES COLLECTIFS RÉSIDENTIELS | D152: Île-du-Prince-Édouard | E152: 25 | F152: Période d’amortissement moyenne selon la province | G152: 25.0 | H152: Île-du-Prince-Édouard | I152: =IFERROR(VLOOKUP(A152,Translation!$A:$C,3,FALSE),A152) -> 28 | J152: =IFERROR(VLOOKUP(B152,Translation!$A:$C,3,FALSE),B152) -> Cumul 2020 | K152: =IFERROR(VLOOKUP(C152,Translation!$A:$C,3,FALSE),C152) -> IMMEUBLES COLLECTIFS RÉSIDENTIELS | L152: =IFERROR(VLOOKUP(D152,Translation!$A:$C,3,FALSE),D152) -> Île-du-Prince-Édouard | M152: =IFERROR(VLOOKUP(E152,Translation!$A:$C,3,FALSE),E152) -> 25 | N152: =IFERROR(VLOOKUP(F152,Translation!$A:$C,3,FALSE),F152) -> Période d’amortissement moyenne selon la province | O152: =IFERROR(VLOOKUP(G152,Translation!$A:$C,3,FALSE),G152) -> 25.0 | P152: =IFERROR(VLOOKUP(H152,Translation!$A:$C,3,FALSE),H152) -> Île-du-Prince-Édouard
A153: 28 | B153: Cumul 2020 | C153: IMMEUBLES COLLECTIFS RÉSIDENTIELS | D153: Nouvelle-Écosse | E153: 33.09473479 | F153: Période d’amortissement moyenne selon la province | G153: 33.1 | H153: Nouvelle-Écosse | I153: =IFERROR(VLOOKUP(A153,Translation!$A:$C,3,FALSE),A153) -> 28 | J153: =IFERROR(VLOOKUP(B153,Translation!$A:$C,3,FALSE),B153) -> Cumul 2020 | K153: =IFERROR(VLOOKUP(C153,Translation!$A:$C,3,FALSE),C153) -> IMMEUBLES COLLECTIFS RÉSIDENTIELS | L153: =IFERROR(VLOOKUP(D153,Translation!$A:$C,3,FALSE),D153) -> Nouvelle-Écosse | M153: =IFERROR(VLOOKUP(E153,Translation!$A:$C,3,FALSE),E153) -> 33.09473479 | N153: =IFERROR(VLOOKUP(F153,Translation!$A:$C,3,FALSE),F153) -> Période d’amortissement moyenne selon la province | O153: =IFERROR(VLOOKUP(G153,Translation!$A:$C,3,FALSE),G153) -> 33.1 | P153: =IFERROR(VLOOKUP(H153,Translation!$A:$C,3,FALSE),H153) -> Nouvelle-Écosse
A154: 28 | B154: Cumul 2020 | C154: IMMEUBLES COLLECTIFS RÉSIDENTIELS | D154: Nouveau-Brunswick | E154: 33.24428999 | F154: Période d’amortissement moyenne selon la province | G154: 33.2 | H154: Nouveau-Brunswick | I154: =IFERROR(VLOOKUP(A154,Translation!$A:$C,3,FALSE),A154) -> 28 | J154: =IFERROR(VLOOKUP(B154,Translation!$A:$C,3,FALSE),B154) -> Cumul 2020 | K154: =IFERROR(VLOOKUP(C154,Translation!$A:$C,3,FALSE),C154) -> IMMEUBLES COLLECTIFS RÉSIDENTIELS | L154: =IFERROR(VLOOKUP(D154,Translation!$A:$C,3,FALSE),D154) -> Nouveau-Brunswick | M154: =IFERROR(VLOOKUP(E154,Translation!$A:$C,3,FALSE),E154) -> 33.24428999 | N154: =IFERROR(VLOOKUP(F154,Translation!$A:$C,3,FALSE),F154) -> Période d’amortissement moyenne selon la province | O154: =IFERROR(VLOOKUP(G154,Translation!$A:$C,3,FALSE),G154) -> 33.2 | P154: =IFERROR(VLOOKUP(H154,Translation!$A:$C,3,FALSE),H154) -> Nouveau-Brunswick
A155: 28 | B155: Cumul 2020 | C155: IMMEUBLES COLLECTIFS RÉSIDENTIELS | D155: Québec | E155: 33.54315321 | F155: Période d’amortissement moyenne selon la province | G155: 33.5 | H155: Québec | I155: =IFERROR(VLOOKUP(A155,Translation!$A:$C,3,FALSE),A155) -> 28 | J155: =IFERROR(VLOOKUP(B155,Translation!$A:$C,3,FALSE),B155) -> Cumul 2020 | K155: =IFERROR(VLOOKUP(C155,Translation!$A:$C,3,FALSE),C155) -> IMMEUBLES COLLECTIFS RÉSIDENTIELS | L155: =IFERROR(VLOOKUP(D155,Translation!$A:$C,3,FALSE),D155) -> Québec | M155: =IFERROR(VLOOKUP(E155,Translation!$A:$C,3,FALSE),E155) -> 33.54315321 | N155: =IFERROR(VLOOKUP(F155,Translation!$A:$C,3,FALSE),F155) -> Période d’amortissement moyenne selon la province | O155: =IFERROR(VLOOKUP(G155,Translation!$A:$C,3,FALSE),G155) -> 33.5 | P155: =IFERROR(VLOOKUP(H155,Translation!$A:$C,3,FALSE),H155) -> Québec
A156: 28 | B156: Cumul 2020 | C156: IMMEUBLES COLLECTIFS RÉSIDENTIELS | D156: Ontario | E156: 37.61140139 | F156: Période d’amortissement moyenne selon la province | G156: 37.6 | H156: Ontario | I156: =IFERROR(VLOOKUP(A156,Translation!$A:$C,3,FALSE),A156) -> 28 | J156: =IFERROR(VLOOKUP(B156,Translation!$A:$C,3,FALSE),B156) -> Cumul 2020 | K156: =IFERROR(VLOOKUP(C156,Translation!$A:$C,3,FALSE),C156) -> IMMEUBLES COLLECTIFS RÉSIDENTIELS | L156: =IFERROR(VLOOKUP(D156,Translation!$A:$C,3,FALSE),D156) -> Ontario | M156: =IFERROR(VLOOKUP(E156,Translation!$A:$C,3,FALSE),E156) -> 37.61140139 | N156: =IFERROR(VLOOKUP(F156,Translation!$A:$C,3,FALSE),F156) -> Période d’amortissement moyenne selon la province | O156: =IFERROR(VLOOKUP(G156,Translation!$A:$C,3,FALSE),G156) -> 37.6 | P156: =IFERROR(VLOOKUP(H156,Translation!$A:$C,3,FALSE),H156) -> Ontario
A157: 28 | B157: Cumul 2020 | C157: IMMEUBLES COLLECTIFS RÉSIDENTIELS | D157: Manitoba | E157: 32.85192467 | F157: Période d’amortissement moyenne selon la province | G157: 32.9 | H157: Manitoba | I157: =IFERROR(VLOOKUP(A157,Translation!$A:$C,3,FALSE),A157) -> 28 | J157: =IFERROR(VLOOKUP(B157,Translation!$A:$C,3,FALSE),B157) -> Cumul 2020 | K157: =IFERROR(VLOOKUP(C157,Translation!$A:$C,3,FALSE),C157) -> IMMEUBLES COLLECTIFS RÉSIDENTIELS | L157: =IFERROR(VLOOKUP(D157,Translation!$A:$C,3,FALSE),D157) -> Manitoba | M157: =IFERROR(VLOOKUP(E157,Translation!$A:$C,3,FALSE),E157) -> 32.85192467 | N157: =IFERROR(VLOOKUP(F157,Translation!$A:$C,3,FALSE),F157) -> Période d’amortissement moyenne selon la province | O157: =IFERROR(VLOOKUP(G157,Translation!$A:$C,3,FALSE),G157) -> 32.9 | P157: =IFERROR(VLOOKUP(H157,Translation!$A:$C,3,FALSE),H157) -> Manitoba
A158: 28 | B158: Cumul 2020 | C158: IMMEUBLES COLLECTIFS RÉSIDENTIELS | D158: Saskatchewan | E158: 36.02562049 | F158: Période d’amortissement moyenne selon la province | G158: 36.0 | H158: Saskatchewan | I158: =IFERROR(VLOOKUP(A158,Translation!$A:$C,3,FALSE),A158) -> 28 | J158: =IFERROR(VLOOKUP(B158,Translation!$A:$C,3,FALSE),B158) -> Cumul 2020 | K158: =IFERROR(VLOOKUP(C158,Translation!$A:$C,3,FALSE),C158) -> IMMEUBLES COLLECTIFS RÉSIDENTIELS | L158: =IFERROR(VLOOKUP(D158,Translation!$A:$C,3,FALSE),D158) -> Saskatchewan | M158: =IFERROR(VLOOKUP(E158,Translation!$A:$C,3,FALSE),E158) -> 36.02562049 | N158: =IFERROR(VLOOKUP(F158,Translation!$A:$C,3,FALSE),F158) -> Période d’amortissement moyenne selon la province | O158: =IFERROR(VLOOKUP(G158,Translation!$A:$C,3,FALSE),G158) -> 36.0 | P158: =IFERROR(VLOOKUP(H158,Translation!$A:$C,3,FALSE),H158) -> Saskatchewan
A159: 28 | B159: Cumul 2020 | C159: IMMEUBLES COLLECTIFS RÉSIDENTIELS | D159: Alberta | E159: 35.57313414 | F159: Période d’amortissement moyenne selon la province | G159: 35.6 | H159: Alberta | I159: =IFERROR(VLOOKUP(A159,Translation!$A:$C,3,FALSE),A159) -> 28 | J159: =IFERROR(VLOOKUP(B159,Translation!$A:$C,3,FALSE),B159) -> Cumul 2020 | K159: =IFERROR(VLOOKUP(C159,Translation!$A:$C,3,FALSE),C159) -> IMMEUBLES COLLECTIFS RÉSIDENTIELS | L159: =IFERROR(VLOOKUP(D159,Translation!$A:$C,3,FALSE),D159) -> Alberta | M159: =IFERROR(VLOOKUP(E159,Translation!$A:$C,3,FALSE),E159) -> 35.57313414 | N159: =IFERROR(VLOOKUP(F159,Translation!$A:$C,3,FALSE),F159) -> Période d’amortissement moyenne selon la province | O159: =IFERROR(VLOOKUP(G159,Translation!$A:$C,3,FALSE),G159) -> 35.6 | P159: =IFERROR(VLOOKUP(H159,Translation!$A:$C,3,FALSE),H159) -> Alberta
A160: 28 | B160: Cumul 2020 | C160: IMMEUBLES COLLECTIFS RÉSIDENTIELS | D160: Colombie-Britannique | E160: 35.65810855 | F160: Période d’amortissement moyenne selon la province | G160: 35.7 | H160: Colombie-Britannique | I160: =IFERROR(VLOOKUP(A160,Translation!$A:$C,3,FALSE),A160) -> 28 | J160: =IFERROR(VLOOKUP(B160,Translation!$A:$C,3,FALSE),B160) -> Cumul 2020 | K160: =IFERROR(VLOOKUP(C160,Translation!$A:$C,3,FALSE),C160) -> IMMEUBLES COLLECTIFS RÉSIDENTIELS | L160: =IFERROR(VLOOKUP(D160,Translation!$A:$C,3,FALSE),D160) -> Colombie-Britannique | M160: =IFERROR(VLOOKUP(E160,Translation!$A:$C,3,FALSE),E160) -> 35.65810855 | N160: =IFERROR(VLOOKUP(F160,Translation!$A:$C,3,FALSE),F160) -> Période d’amortissement moyenne selon la province | O160: =IFERROR(VLOOKUP(G160,Translation!$A:$C,3,FALSE),G160) -> 35.7 | P160: =IFERROR(VLOOKUP(H160,Translation!$A:$C,3,FALSE),H160) -> Colombie-Britannique
A161: 10 | B161: T4 2019 | C161: PROPRIÉTAIRES-OCCUPANTS, À L’UNITÉ | D161: <= 5 | E161: 0.003764151007 | F161: Prêts hypothécaires assurés au cours de la période selon la période d’amortissement (en années) à l'initiation (%) | G161: 0.0 | H161: <= 5 | I161: =IFERROR(VLOOKUP(A161,Translation!$A:$C,3,FALSE),A161) -> 10 | J161: =IFERROR(VLOOKUP(B161,Translation!$A:$C,3,FALSE),B161) -> T4 2019 | K161: =IFERROR(VLOOKUP(C161,Translation!$A:$C,3,FALSE),C161) -> PROPRIÉTAIRES-OCCUPANTS, À L’UNITÉ | L161: =IFERROR(VLOOKUP(D161,Translation!$A:$C,3,FALSE),D161) -> <= 5 | M161: =IFERROR(VLOOKUP(E161,Translation!$A:$C,3,FALSE),E161) -> 0.003764151007 | N161: =IFERROR(VLOOKUP(F161,Translation!$A:$C,3,FALSE),F161) -> Prêts hypothécaires assurés au cours de la période selon la période d’amortissement (en années) à l'initiation (%) | O161: =IFERROR(VLOOKUP(G161,Translation!$A:$C,3,FALSE),G161) -> 0.0 | P161: =IFERROR(VLOOKUP(H161,Translation!$A:$C,3,FALSE),H161) -> <= 5
A162: 10 | B162: Cumul 2018 | C162: PROPRIÉTAIRES-OCCUPANTS, À L’UNITÉ | D162: <= 5 | E162: 0.01073475839 | F162: Prêts hypothécaires assurés au cours de la période selon la période d’amortissement (en années) à l'initiation (%) | G162: 0.0 | H162: <= 5 | I162: =IFERROR(VLOOKUP(A162,Translation!$A:$C,3,FALSE),A162) -> 10 | J162: =IFERROR(VLOOKUP(B162,Translation!$A:$C,3,FALSE),B162) -> Cumul 2018 | K162: =IFERROR(VLOOKUP(C162,Translation!$A:$C,3,FALSE),C162) -> PROPRIÉTAIRES-OCCUPANTS, À L’UNITÉ | L162: =IFERROR(VLOOKUP(D162,Translation!$A:$C,3,FALSE),D162) -> <= 5 | M162: =IFERROR(VLOOKUP(E162,Translation!$A:$C,3,FALSE),E162) -> 0.01073475839 | N162: =IFERROR(VLOOKUP(F162,Translation!$A:$C,3,FALSE),F162) -> Prêts hypothécaires assurés au cours de la période selon la période d’amortissement (en années) à l'initiation (%) | O162: =IFERROR(VLOOKUP(G162,Translation!$A:$C,3,FALSE),G162) -> 0.0 | P162: =IFERROR(VLOOKUP(H162,Translation!$A:$C,3,FALSE),H162) -> <= 5
A163: 10 | B163: T4 2019 | C163: PROPRIÉTAIRES-OCCUPANTS, À L’UNITÉ | D163: > 5 <= 10 | E163: 0.05242363085 | F163: Prêts hypothécaires assurés au cours de la période selon la période d’amortissement (en années) à l'initiation (%) | G163: 0.1 | H163: > 5 <= 10 | I163: =IFERROR(VLOOKUP(A163,Translation!$A:$C,3,FALSE),A163) -> 10 | J163: =IFERROR(VLOOKUP(B163,Translation!$A:$C,3,FALSE),B163) -> T4 2019 | K163: =IFERROR(VLOOKUP(C163,Translation!$A:$C,3,FALSE),C163) -> PROPRIÉTAIRES-OCCUPANTS, À L’UNITÉ | L163: =IFERROR(VLOOKUP(D163,Translation!$A:$C,3,FALSE),D163) -> > 5 <= 10 | M163: =IFERROR(VLOOKUP(E163,Translation!$A:$C,3,FALSE),E163) -> 0.05242363085 | N163: =IFERROR(VLOOKUP(F163,Translation!$A:$C,3,FALSE),F163) -> Prêts hypothécaires assurés au cours de la période selon la période d’amortissement (en années) à l'initiation (%) | O163: =IFERROR(VLOOKUP(G163,Translation!$A:$C,3,FALSE),G163) -> 0.1 | P163: =IFERROR(VLOOKUP(H163,Translation!$A:$C,3,FALSE),H163) -> > 5 <= 10
A164: 10 | B164: Cumul 2018 | C164: PROPRIÉTAIRES-OCCUPANTS, À L’UNITÉ | D164: > 5 <= 10 | E164: 0.05228817575 | F164: Prêts hypothécaires assurés au cours de la période selon la période d’amortissement (en années) à l'initiation (%) | G164: 0.1 | H164: > 5 <= 10 | I164: =IFERROR(VLOOKUP(A164,Translation!$A:$C,3,FALSE),A164) -> 10 | J164: =IFERROR(VLOOKUP(B164,Translation!$A:$C,3,FALSE),B164) -> Cumul 2018 | K164: =IFERROR(VLOOKUP(C164,Translation!$A:$C,3,FALSE),C164) -> PROPRIÉTAIRES-OCCUPANTS, À L’UNITÉ | L164: =IFERROR(VLOOKUP(D164,Translation!$A:$C,3,FALSE),D164) -> > 5 <= 10 | M164: =IFERROR(VLOOKUP(E164,Translation!$A:$C,3,FALSE),E164) -> 0.05228817575 | N164: =IFERROR(VLOOKUP(F164,Translation!$A:$C,3,FALSE),F164) -> Prêts hypothécaires assurés au cours de la période selon la période d’amortissement (en années) à l'initiation (%) | O164: =IFERROR(VLOOKUP(G164,Translation!$A:$C,3,FALSE),G164) -> 0.1 | P164: =IFERROR(VLOOKUP(H164,Translation!$A:$C,3,FALSE),H164) -> > 5 <= 10
A165: 10 | B165: T4 2019 | C165: PROPRIÉTAIRES-OCCUPANTS, À L’UNITÉ | D165: > 10 <= 15 | E165: 0.1315531441 | F165: Prêts hypothécaires assurés au cours de la période selon la période d’amortissement (en années) à l'initiation (%) | G165: 0.1 | H165: > 10 <= 15 | I165: =IFERROR(VLOOKUP(A165,Translation!$A:$C,3,FALSE),A165) -> 10 | J165: =IFERROR(VLOOKUP(B165,Translation!$A:$C,3,FALSE),B165) -> T4 2019 | K165: =IFERROR(VLOOKUP(C165,Translation!$A:$C,3,FALSE),C165) -> PROPRIÉTAIRES-OCCUPANTS, À L’UNITÉ | L165: =IFERROR(VLOOKUP(D165,Translation!$A:$C,3,FALSE),D165) -> > 10 <= 15 | M165: =IFERROR(VLOOKUP(E165,Translation!$A:$C,3,FALSE),E165) -> 0.1315531441 | N165: =IFERROR(VLOOKUP(F165,Translation!$A:$C,3,FALSE),F165) -> Prêts hypothécaires assurés au cours de la période selon la période d’amortissement (en années) à l'initiation (%) | O165: =IFERROR(VLOOKUP(G165,Translation!$A:$C,3,FALSE),G165) -> 0.1 | P165: =IFERROR(VLOOKUP(H165,Translation!$A:$C,3,FALSE),H165) -> > 10 <= 15
A166: 10 | B166: Cumul 2018 | C166: PROPRIÉTAIRES-OCCUPANTS, À L’UNITÉ | D166: > 10 <= 15 | E166: 0.1920962657 | F166: Prêts hypothécaires assurés au cours de la période selon la période d’amortissement (en années) à l'initiation (%) | G166: 0.2 | H166: > 10 <= 15 | I166: =IFERROR(VLOOKUP(A166,Translation!$A:$C,3,FALSE),A166) -> 10 | J166: =IFERROR(VLOOKUP(B166,Translation!$A:$C,3,FALSE),B166) -> Cumul 2018 | K166: =IFERROR(VLOOKUP(C166,Translation!$A:$C,3,FALSE),C166) -> PROPRIÉTAIRES-OCCUPANTS, À L’UNITÉ | L166: =IFERROR(VLOOKUP(D166,Translation!$A:$C,3,FALSE),D166) -> > 10 <= 15 | M166: =IFERROR(VLOOKUP(E166,Translation!$A:$C,3,FALSE),E166) -> 0.1920962657 | N166: =IFERROR(VLOOKUP(F166,Translation!$A:$C,3,FALSE),F166) -> Prêts hypothécaires assurés au cours de la période selon la période d’amortissement (en années) à l'initiation (%) | O166: =IFERROR(VLOOKUP(G166,Translation!$A:$C,3,FALSE),G166) -> 0.2 | P166: =IFERROR(VLOOKUP(H166,Translation!$A:$C,3,FALSE),H166) -> > 10 <= 15
A167: 10 | B167: T4 2019 | C167: PROPRIÉTAIRES-OCCUPANTS, À L’UNITÉ | D167: > 15 <= 20 | E167: 0.7036069022 | F167: Prêts hypothécaires assurés au cours de la période selon la période d’amortissement (en années) à l'initiation (%) | G167: 0.7 | H167: > 15 <= 20 | I167: =IFERROR(VLOOKUP(A167,Translation!$A:$C,3,FALSE),A167) -> 10 | J167: =IFERROR(VLOOKUP(B167,Translation!$A:$C,3,FALSE),B167) -> T4 2019 | K167: =IFERROR(VLOOKUP(C167,Translation!$A:$C,3,FALSE),C167) -> PROPRIÉTAIRES-OCCUPANTS, À L’UNITÉ | L167: =IFERROR(VLOOKUP(D167,Translation!$A:$C,3,FALSE),D167) -> > 15 <= 20 | M167: =IFERROR(VLOOKUP(E167,Translation!$A:$C,3,FALSE),E167) -> 0.7036069022 | N167: =IFERROR(VLOOKUP(F167,Translation!$A:$C,3,FALSE),F167) -> Prêts hypothécaires assurés au cours de la période selon la période d’amortissement (en années) à l'initiation (%) | O167: =IFERROR(VLOOKUP(G167,Translation!$A:$C,3,FALSE),G167) -> 0.7 | P167: =IFERROR(VLOOKUP(H167,Translation!$A:$C,3,FALSE),H167) -> > 15 <= 20
A168: 10 | B168: Cumul 2018 | C168: PROPRIÉTAIRES-OCCUPANTS, À L’UNITÉ | D168: > 15 <= 20 | E168: 0.7306016655 | F168: Prêts hypothécaires assurés au cours de la période selon la période d’amortissement (en années) à l'initiation (%) | G168: 0.7 | H168: > 15 <= 20 | I168: =IFERROR(VLOOKUP(A168,Translation!$A:$C,3,FALSE),A168) -> 10 | J168: =IFERROR(VLOOKUP(B168,Translation!$A:$C,3,FALSE),B168) -> Cumul 2018 | K168: =IFERROR(VLOOKUP(C168,Translation!$A:$C,3,FALSE),C168) -> PROPRIÉTAIRES-OCCUPANTS, À L’UNITÉ | L168: =IFERROR(VLOOKUP(D168,Translation!$A:$C,3,FALSE),D168) -> > 15 <= 20 | M168: =IFERROR(VLOOKUP(E168,Translation!$A:$C,3,FALSE),E168) -> 0.7306016655 | N168: =IFERROR(VLOOKUP(F168,Translation!$A:$C,3,FALSE),F168) -> Prêts hypothécaires assurés au cours de la période selon la période d’amortissement (en années) à l'initiation (%) | O168: =IFERROR(VLOOKUP(G168,Translation!$A:$C,3,FALSE),G168) -> 0.7 | P168: =IFERROR(VLOOKUP(H168,Translation!$A:$C,3,FALSE),H168) -> > 15 <= 20
A169: 10 | B169: T4 2019 | C169: PROPRIÉTAIRES-OCCUPANTS, À L’UNITÉ | D169: > 20 <= 25 | E169: 99.10865217 | F169: Prêts hypothécaires assurés au cours de la période selon la période d’amortissement (en années) à l'initiation (%) | G169: 99.1 | H169: > 20 <= 25 | I169: =IFERROR(VLOOKUP(A169,Translation!$A:$C,3,FALSE),A169) -> 10 | J169: =IFERROR(VLOOKUP(B169,Translation!$A:$C,3,FALSE),B169) -> T4 2019 | K169: =IFERROR(VLOOKUP(C169,Translation!$A:$C,3,FALSE),C169) -> PROPRIÉTAIRES-OCCUPANTS, À L’UNITÉ | L169: =IFERROR(VLOOKUP(D169,Translation!$A:$C,3,FALSE),D169) -> > 20 <= 25 | M169: =IFERROR(VLOOKUP(E169,Translation!$A:$C,3,FALSE),E169) -> 99.10865217 | N169: =IFERROR(VLOOKUP(F169,Translation!$A:$C,3,FALSE),F169) -> Prêts hypothécaires assurés au cours de la période selon la période d’amortissement (en années) à l'initiation (%) | O169: =IFERROR(VLOOKUP(G169,Translation!$A:$C,3,FALSE),G169) -> 99.1 | P169: =IFERROR(VLOOKUP(H169,Translation!$A:$C,3,FALSE),H169) -> > 20 <= 25
A170: 10 | B170: Cumul 2018 | C170: PROPRIÉTAIRES-OCCUPANTS, À L’UNITÉ | D170: > 20 <= 25 | E170: 98.94073259 | F170: Prêts hypothécaires assurés au cours de la période selon la période d’amortissement (en années) à l'initiation (%) | G170: 98.9 | H170: > 20 <= 25 | I170: =IFERROR(VLOOKUP(A170,Translation!$A:$C,3,FALSE),A170) -> 10 | J170: =IFERROR(VLOOKUP(B170,Translation!$A:$C,3,FALSE),B170) -> Cumul 2018 | K170: =IFERROR(VLOOKUP(C170,Translation!$A:$C,3,FALSE),C170) -> PROPRIÉTAIRES-OCCUPANTS, À L’UNITÉ | L170: =IFERROR(VLOOKUP(D170,Translation!$A:$C,3,FALSE),D170) -> > 20 <= 25 | M170: =IFERROR(VLOOKUP(E170,Translation!$A:$C,3,FALSE),E170) -> 98.94073259 | N170: =IFERROR(VLOOKUP(F170,Translation!$A:$C,3,FALSE),F170) -> Prêts hypothécaires assurés au cours de la période selon la période d’amortissement (en années) à l'initiation (%) | O170: =IFERROR(VLOOKUP(G170,Translation!$A:$C,3,FALSE),G170) -> 98.9 | P170: =IFERROR(VLOOKUP(H170,Translation!$A:$C,3,FALSE),H170) -> > 20 <= 25
A171: 10 | B171: Cumul 2018 | C171: PROPRIÉTAIRES-OCCUPANTS, À L’UNITÉ | D171: > 25 <= 30 | E171: 0.07354654107 | F171: Prêts hypothécaires assurés au cours de la période selon la période d’amortissement (en années) à l'initiation (%) | G171: 0.1 | H171: > 25 <= 30 | I171: =IFERROR(VLOOKUP(A171,Translation!$A:$C,3,FALSE),A171) -> 10 | J171: =IFERROR(VLOOKUP(B171,Translation!$A:$C,3,FALSE),B171) -> Cumul 2018 | K171: =IFERROR(VLOOKUP(C171,Translation!$A:$C,3,FALSE),C171) -> PROPRIÉTAIRES-OCCUPANTS, À L’UNITÉ | L171: =IFERROR(VLOOKUP(D171,Translation!$A:$C,3,FALSE),D171) -> > 25 <= 30 | M171: =IFERROR(VLOOKUP(E171,Translation!$A:$C,3,FALSE),E171) -> 0.07354654107 | N171: =IFERROR(VLOOKUP(F171,Translation!$A:$C,3,FALSE),F171) -> Prêts hypothécaires assurés au cours de la période selon la période d’amortissement (en années) à l'initiation (%) | O171: =IFERROR(VLOOKUP(G171,Translation!$A:$C,3,FALSE),G171) -> 0.1 | P171: =IFERROR(VLOOKUP(H171,Translation!$A:$C,3,FALSE),H171) -> > 25 <= 30
A172: 10 | B172: T4 2019 | C172: PROPRIÉTAIRES-OCCUPANTS, À L’UNITÉ | D172: Période d’amortissement moyenne | E172: 24.88588505 | F172: Prêts hypothécaires assurés au cours de la période selon la période d’amortissement (en années) à l'initiation (%) | G172: 24.9 | H172: Période d’amortissement moyenne | I172: =IFERROR(VLOOKUP(A172,Translation!$A:$C,3,FALSE),A172) -> 10 | J172: =IFERROR(VLOOKUP(B172,Translation!$A:$C,3,FALSE),B172) -> T4 2019 | K172: =IFERROR(VLOOKUP(C172,Translation!$A:$C,3,FALSE),C172) -> PROPRIÉTAIRES-OCCUPANTS, À L’UNITÉ | L172: =IFERROR(VLOOKUP(D172,Translation!$A:$C,3,FALSE),D172) -> Période d’amortissement moyenne | M172: =IFERROR(VLOOKUP(E172,Translation!$A:$C,3,FALSE),E172) -> 24.88588505 | N172: =IFERROR(VLOOKUP(F172,Translation!$A:$C,3,FALSE),F172) -> Prêts hypothécaires assurés au cours de la période selon la période d’amortissement (en années) à l'initiation (%) | O172: =IFERROR(VLOOKUP(G172,Translation!$A:$C,3,FALSE),G172) -> 24.9 | P172: =IFERROR(VLOOKUP(H172,Translation!$A:$C,3,FALSE),H172) -> Période d’amortissement moyenne
A173: 10 | B173: Cumul 2018 | C173: PROPRIÉTAIRES-OCCUPANTS, À L’UNITÉ | D173: Période d’amortissement moyenne | E173: 24.86275111 | F173: Prêts hypothécaires assurés au cours de la période selon la période d’amortissement (en années) à l'initiation (%) | G173: 24.9 | H173: Période d’amortissement moyenne | I173: =IFERROR(VLOOKUP(A173,Translation!$A:$C,3,FALSE),A173) -> 10 | J173: =IFERROR(VLOOKUP(B173,Translation!$A:$C,3,FALSE),B173) -> Cumul 2018 | K173: =IFERROR(VLOOKUP(C173,Translation!$A:$C,3,FALSE),C173) -> PROPRIÉTAIRES-OCCUPANTS, À L’UNITÉ | L173: =IFERROR(VLOOKUP(D173,Translation!$A:$C,3,FALSE),D173) -> Période d’amortissement moyenne | M173: =IFERROR(VLOOKUP(E173,Translation!$A:$C,3,FALSE),E173) -> 24.86275111 | N173: =IFERROR(VLOOKUP(F173,Translation!$A:$C,3,FALSE),F173) -> Prêts hypothécaires assurés au cours de la période selon la période d’amortissement (en années) à l'initiation (%) | O173: =IFERROR(VLOOKUP(G173,Translation!$A:$C,3,FALSE),G173) -> 24.9 | P173: =IFERROR(VLOOKUP(H173,Translation!$A:$C,3,FALSE),H173) -> Période d’amortissement moyenne
A174: 10 | B174: T4 2019 | C174: PROPRIÉTAIRES-OCCUPANTS, À L’UNITÉ | D174: Terre-Neuve-et-Labrador | E174: 24.73632755 | F174: Période d’amortissement moyenne selon la province | G174: 24.7 | H174: Terre-Neuve-et-Labrador | I174: =IFERROR(VLOOKUP(A174,Translation!$A:$C,3,FALSE),A174) -> 10 | J174: =IFERROR(VLOOKUP(B174,Translation!$A:$C,3,FALSE),B174) -> T4 2019 | K174: =IFERROR(VLOOKUP(C174,Translation!$A:$C,3,FALSE),C174) -> PROPRIÉTAIRES-OCCUPANTS, À L’UNITÉ | L174: =IFERROR(VLOOKUP(D174,Translation!$A:$C,3,FALSE),D174) -> Terre-Neuve-et-Labrador | M174: =IFERROR(VLOOKUP(E174,Translation!$A:$C,3,FALSE),E174) -> 24.73632755 | N174: =IFERROR(VLOOKUP(F174,Translation!$A:$C,3,FALSE),F174) -> Période d’amortissement moyenne selon la province | O174: =IFERROR(VLOOKUP(G174,Translation!$A:$C,3,FALSE),G174) -> 24.7 | P174: =IFERROR(VLOOKUP(H174,Translation!$A:$C,3,FALSE),H174) -> Terre-Neuve-et-Labrador
A175: 10 | B175: T4 2019 | C175: PROPRIÉTAIRES-OCCUPANTS, À L’UNITÉ | D175: Île-du-Prince-Édouard | E175: 24.84013844 | F175: Période d’amortissement moyenne selon la province | G175: 24.8 | H175: Île-du-Prince-Édouard | I175: =IFERROR(VLOOKUP(A175,Translation!$A:$C,3,FALSE),A175) -> 10 | J175: =IFERROR(VLOOKUP(B175,Translation!$A:$C,3,FALSE),B175) -> T4 2019 | K175: =IFERROR(VLOOKUP(C175,Translation!$A:$C,3,FALSE),C175) -> PROPRIÉTAIRES-OCCUPANTS, À L’UNITÉ | L175: =IFERROR(VLOOKUP(D175,Translation!$A:$C,3,FALSE),D175) -> Île-du-Prince-Édouard | M175: =IFERROR(VLOOKUP(E175,Translation!$A:$C,3,FALSE),E175) -> 24.84013844 | N175: =IFERROR(VLOOKUP(F175,Translation!$A:$C,3,FALSE),F175) -> Période d’amortissement moyenne selon la province | O175: =IFERROR(VLOOKUP(G175,Translation!$A:$C,3,FALSE),G175) -> 24.8 | P175: =IFERROR(VLOOKUP(H175,Translation!$A:$C,3,FALSE),H175) -> Île-du-Prince-Édouard
A176: 10 | B176: T4 2019 | C176: PROPRIÉTAIRES-OCCUPANTS, À L’UNITÉ | D176: Nouvelle-Écosse | E176: 24.8157053 | F176: Période d’amortissement moyenne selon la province | G176: 24.8 | H176: Nouvelle-Écosse | I176: =IFERROR(VLOOKUP(A176,Translation!$A:$C,3,FALSE),A176) -> 10 | J176: =IFERROR(VLOOKUP(B176,Translation!$A:$C,3,FALSE),B176) -> T4 2019 | K176: =IFERROR(VLOOKUP(C176,Translation!$A:$C,3,FALSE),C176) -> PROPRIÉTAIRES-OCCUPANTS, À L’UNITÉ | L176: =IFERROR(VLOOKUP(D176,Translation!$A:$C,3,FALSE),D176) -> Nouvelle-Écosse | M176: =IFERROR(VLOOKUP(E176,Translation!$A:$C,3,FALSE),E176) -> 24.8157053 | N176: =IFERROR(VLOOKUP(F176,Translation!$A:$C,3,FALSE),F176) -> Période d’amortissement moyenne selon la province | O176: =IFERROR(VLOOKUP(G176,Translation!$A:$C,3,FALSE),G176) -> 24.8 | P176: =IFERROR(VLOOKUP(H176,Translation!$A:$C,3,FALSE),H176) -> Nouvelle-Écosse
A177: 10 | B177: T4 2019 | C177: PROPRIÉTAIRES-OCCUPANTS, À L’UNITÉ | D177: Nouveau-Brunswick | E177: 24.83543662 | F177: Période d’amortissement moyenne selon la province | G177: 24.8 | H177: Nouveau-Brunswick | I177: =IFERROR(VLOOKUP(A177,Translation!$A:$C,3,FALSE),A177) -> 10 | J177: =IFERROR(VLOOKUP(B177,Translation!$A:$C,3,FALSE),B177) -> T4 2019 | K177: =IFERROR(VLOOKUP(C177,Translation!$A:$C,3,FALSE),C177) -> PROPRIÉTAIRES-OCCUPANTS, À L’UNITÉ | L177: =IFERROR(VLOOKUP(D177,Translation!$A:$C,3,FALSE),D177) -> Nouveau-Brunswick | M177: =IFERROR(VLOOKUP(E177,Translation!$A:$C,3,FALSE),E177) -> 24.83543662 | N177: =IFERROR(VLOOKUP(F177,Translation!$A:$C,3,FALSE),F177) -> Période d’amortissement moyenne selon la province | O177: =IFERROR(VLOOKUP(G177,Translation!$A:$C,3,FALSE),G177) -> 24.8 | P177: =IFERROR(VLOOKUP(H177,Translation!$A:$C,3,FALSE),H177) -> Nouveau-Brunswick
A178: 10 | B178: T4 2019 | C178: PROPRIÉTAIRES-OCCUPANTS, À L’UNITÉ | D178: Québec | E178: 24.89041719 | F178: Période d’amortissement moyenne selon la province | G178: 24.9 | H178: Québec | I178: =IFERROR(VLOOKUP(A178,Translation!$A:$C,3,FALSE),A178) -> 10 | J178: =IFERROR(VLOOKUP(B178,Translation!$A:$C,3,FALSE),B178) -> T4 2019 | K178: =IFERROR(VLOOKUP(C178,Translation!$A:$C,3,FALSE),C178) -> PROPRIÉTAIRES-OCCUPANTS, À L’UNITÉ | L178: =IFERROR(VLOOKUP(D178,Translation!$A:$C,3,FALSE),D178) -> Québec | M178: =IFERROR(VLOOKUP(E178,Translation!$A:$C,3,FALSE),E178) -> 24.89041719 | N178: =IFERROR(VLOOKUP(F178,Translation!$A:$C,3,FALSE),F178) -> Période d’amortissement moyenne selon la province | O178: =IFERROR(VLOOKUP(G178,Translation!$A:$C,3,FALSE),G178) -> 24.9 | P178: =IFERROR(VLOOKUP(H178,Translation!$A:$C,3,FALSE),H178) -> Québec
A179: 10 | B179: T4 2019 | C179: PROPRIÉTAIRES-OCCUPANTS, À L’UNITÉ | D179: Ontario | E179: 24.9461575 | F179: Période d’amortissement moyenne selon la province | G179: 24.9 | H179: Ontario | I179: =IFERROR(VLOOKUP(A179,Translation!$A:$C,3,FALSE),A179) -> 10 | J179: =IFERROR(VLOOKUP(B179,Translation!$A:$C,3,FALSE),B179) -> T4 2019 | K179: =IFERROR(VLOOKUP(C179,Translation!$A:$C,3,FALSE),C179) -> PROPRIÉTAIRES-OCCUPANTS, À L’UNITÉ | L179: =IFERROR(VLOOKUP(D179,Translation!$A:$C,3,FALSE),D179) -> Ontario | M179: =IFERROR(VLOOKUP(E179,Translation!$A:$C,3,FALSE),E179) -> 24.9461575 | N179: =IFERROR(VLOOKUP(F179,Translation!$A:$C,3,FALSE),F179) -> Période d’amortissement moyenne selon la province | O179: =IFERROR(VLOOKUP(G179,Translation!$A:$C,3,FALSE),G179) -> 24.9 | P179: =IFERROR(VLOOKUP(H179,Translation!$A:$C,3,FALSE),H179) -> Ontario
A180: 10 | B180: T4 2019 | C180: PROPRIÉTAIRES-OCCUPANTS, À L’UNITÉ | D180: Manitoba | E180: 24.84502226 | F180: Période d’amortissement moyenne selon la province | G180: 24.8 | H180: Manitoba | I180: =IFERROR(VLOOKUP(A180,Translation!$A:$C,3,FALSE),A180) -> 10 | J180: =IFERROR(VLOOKUP(B180,Translation!$A:$C,3,FALSE),B180) -> T4 2019 | K180: =IFERROR(VLOOKUP(C180,Translation!$A:$C,3,FALSE),C180) -> PROPRIÉTAIRES-OCCUPANTS, À L’UNITÉ | L180: =IFERROR(VLOOKUP(D180,Translation!$A:$C,3,FALSE),D180) -> Manitoba | M180: =IFERROR(VLOOKUP(E180,Translation!$A:$C,3,FALSE),E180) -> 24.84502226 | N180: =IFERROR(VLOOKUP(F180,Translation!$A:$C,3,FALSE),F180) -> Période d’amortissement moyenne selon la province | O180: =IFERROR(VLOOKUP(G180,Translation!$A:$C,3,FALSE),G180) -> 24.8 | P180: =IFERROR(VLOOKUP(H180,Translation!$A:$C,3,FALSE),H180) -> Manitoba
A181: 10 | B181: T4 2019 | C181: PROPRIÉTAIRES-OCCUPANTS, À L’UNITÉ | D181: Saskatchewan | E181: 24.75530283 | F181: Période d’amortissement moyenne selon la province | G181: 24.8 | H181: Saskatchewan | I181: =IFERROR(VLOOKUP(A181,Translation!$A:$C,3,FALSE),A181) -> 10 | J181: =IFERROR(VLOOKUP(B181,Translation!$A:$C,3,FALSE),B181) -> T4 2019 | K181: =IFERROR(VLOOKUP(C181,Translation!$A:$C,3,FALSE),C181) -> PROPRIÉTAIRES-OCCUPANTS, À L’UNITÉ | L181: =IFERROR(VLOOKUP(D181,Translation!$A:$C,3,FALSE),D181) -> Saskatchewan | M181: =IFERROR(VLOOKUP(E181,Translation!$A:$C,3,FALSE),E181) -> 24.75530283 | N181: =IFERROR(VLOOKUP(F181,Translation!$A:$C,3,FALSE),F181) -> Période d’amortissement moyenne selon la province | O181: =IFERROR(VLOOKUP(G181,Translation!$A:$C,3,FALSE),G181) -> 24.8 | P181: =IFERROR(VLOOKUP(H181,Translation!$A:$C,3,FALSE),H181) -> Saskatchewan
A182: 10 | B182: T4 2019 | C182: PROPRIÉTAIRES-OCCUPANTS, À L’UNITÉ | D182: Alberta | E182: 24.82515407 | F182: Période d’amortissement moyenne selon la province | G182: 24.8 | H182: Alberta | I182: =IFERROR(VLOOKUP(A182,Translation!$A:$C,3,FALSE),A182) -> 10 | J182: =IFERROR(VLOOKUP(B182,Translation!$A:$C,3,FALSE),B182) -> T4 2019 | K182: =IFERROR(VLOOKUP(C182,Translation!$A:$C,3,FALSE),C182) -> PROPRIÉTAIRES-OCCUPANTS, À L’UNITÉ | L182: =IFERROR(VLOOKUP(D182,Translation!$A:$C,3,FALSE),D182) -> Alberta | M182: =IFERROR(VLOOKUP(E182,Translation!$A:$C,3,FALSE),E182) -> 24.82515407 | N182: =IFERROR(VLOOKUP(F182,Translation!$A:$C,3,FALSE),F182) -> Période d’amortissement moyenne selon la province | O182: =IFERROR(VLOOKUP(G182,Translation!$A:$C,3,FALSE),G182) -> 24.8 | P182: =IFERROR(VLOOKUP(H182,Translation!$A:$C,3,FALSE),H182) -> Alberta
A183: 10 | B183: T4 2019 | C183: PROPRIÉTAIRES-OCCUPANTS, À L’UNITÉ | D183: Colombie-Britannique | E183: 24.86732546 | F183: Période d’amortissement moyenne selon la province | G183: 24.9 | H183: Colombie-Britannique | I183: =IFERROR(VLOOKUP(A183,Translation!$A:$C,3,FALSE),A183) -> 10 | J183: =IFERROR(VLOOKUP(B183,Translation!$A:$C,3,FALSE),B183) -> T4 2019 | K183: =IFERROR(VLOOKUP(C183,Translation!$A:$C,3,FALSE),C183) -> PROPRIÉTAIRES-OCCUPANTS, À L’UNITÉ | L183: =IFERROR(VLOOKUP(D183,Translation!$A:$C,3,FALSE),D183) -> Colombie-Britannique | M183: =IFERROR(VLOOKUP(E183,Translation!$A:$C,3,FALSE),E183) -> 24.86732546 | N183: =IFERROR(VLOOKUP(F183,Translation!$A:$C,3,FALSE),F183) -> Période d’amortissement moyenne selon la province | O183: =IFERROR(VLOOKUP(G183,Translation!$A:$C,3,FALSE),G183) -> 24.9 | P183: =IFERROR(VLOOKUP(H183,Translation!$A:$C,3,FALSE),H183) -> Colombie-Britannique
A184: 10 | B184: T4 2019 | C184: PROPRIÉTAIRES-OCCUPANTS, À L’UNITÉ | D184: Territoires | E184: 24.72775323 | F184: Période d’amortissement moyenne selon la province | G184: 24.7 | H184: Territoires | I184: =IFERROR(VLOOKUP(A184,Translation!$A:$C,3,FALSE),A184) -> 10 | J184: =IFERROR(VLOOKUP(B184,Translation!$A:$C,3,FALSE),B184) -> T4 2019 | K184: =IFERROR(VLOOKUP(C184,Translation!$A:$C,3,FALSE),C184) -> PROPRIÉTAIRES-OCCUPANTS, À L’UNITÉ | L184: =IFERROR(VLOOKUP(D184,Translation!$A:$C,3,FALSE),D184) -> Territoires | M184: =IFERROR(VLOOKUP(E184,Translation!$A:$C,3,FALSE),E184) -> 24.72775323 | N184: =IFERROR(VLOOKUP(F184,Translation!$A:$C,3,FALSE),F184) -> Période d’amortissement moyenne selon la province | O184: =IFERROR(VLOOKUP(G184,Translation!$A:$C,3,FALSE),G184) -> 24.7 | P184: =IFERROR(VLOOKUP(H184,Translation!$A:$C,3,FALSE),H184) -> Territoires
A185: 10 | B185: Cumul 2018 | C185: PROPRIÉTAIRES-OCCUPANTS, À L’UNITÉ | D185: Terre-Neuve-et-Labrador | E185: 24.8488474 | F185: Période d’amortissement moyenne selon la province | G185: 24.8 | H185: Terre-Neuve-et-Labrador | I185: =IFERROR(VLOOKUP(A185,Translation!$A:$C,3,FALSE),A185) -> 10 | J185: =IFERROR(VLOOKUP(B185,Translation!$A:$C,3,FALSE),B185) -> Cumul 2018 | K185: =IFERROR(VLOOKUP(C185,Translation!$A:$C,3,FALSE),C185) -> PROPRIÉTAIRES-OCCUPANTS, À L’UNITÉ | L185: =IFERROR(VLOOKUP(D185,Translation!$A:$C,3,FALSE),D185) -> Terre-Neuve-et-Labrador | M185: =IFERROR(VLOOKUP(E185,Translation!$A:$C,3,FALSE),E185) -> 24.8488474 | N185: =IFERROR(VLOOKUP(F185,Translation!$A:$C,3,FALSE),F185) -> Période d’amortissement moyenne selon la province | O185: =IFERROR(VLOOKUP(G185,Translation!$A:$C,3,FALSE),G185) -> 24.8 | P185: =IFERROR(VLOOKUP(H185,Translation!$A:$C,3,FALSE),H185) -> Terre-Neuve-et-Labrador
A186: 10 | B186: Cumul 2018 | C186: PROPRIÉTAIRES-OCCUPANTS, À L’UNITÉ | D186: Île-du-Prince-Édouard | E186: 24.75125598 | F186: Période d’amortissement moyenne selon la province | G186: 24.8 | H186: Île-du-Prince-Édouard | I186: =IFERROR(VLOOKUP(A186,Translation!$A:$C,3,FALSE),A186) -> 10 | J186: =IFERROR(VLOOKUP(B186,Translation!$A:$C,3,FALSE),B186) -> Cumul 2018 | K186: =IFERROR(VLOOKUP(C186,Translation!$A:$C,3,FALSE),C186) -> PROPRIÉTAIRES-OCCUPANTS, À L’UNITÉ | L186: =IFERROR(VLOOKUP(D186,Translation!$A:$C,3,FALSE),D186) -> Île-du-Prince-Édouard | M186: =IFERROR(VLOOKUP(E186,Translation!$A:$C,3,FALSE),E186) -> 24.75125598 | N186: =IFERROR(VLOOKUP(F186,Translation!$A:$C,3,FALSE),F186) -> Période d’amortissement moyenne selon la province | O186: =IFERROR(VLOOKUP(G186,Translation!$A:$C,3,FALSE),G186) -> 24.8 | P186: =IFERROR(VLOOKUP(H186,Translation!$A:$C,3,FALSE),H186) -> Île-du-Prince-Édouard
A187: 10 | B187: Cumul 2018 | C187: PROPRIÉTAIRES-OCCUPANTS, À L’UNITÉ | D187: Nouvelle-Écosse | E187: 24.75531916 | F187: Période d’amortissement moyenne selon la province | G187: 24.8 | H187: Nouvelle-Écosse | I187: =IFERROR(VLOOKUP(A187,Translation!$A:$C,3,FALSE),A187) -> 10 | J187: =IFERROR(VLOOKUP(B187,Translation!$A:$C,3,FALSE),B187) -> Cumul 2018 | K187: =IFERROR(VLOOKUP(C187,Translation!$A:$C,3,FALSE),C187) -> PROPRIÉTAIRES-OCCUPANTS, À L’UNITÉ | L187: =IFERROR(VLOOKUP(D187,Translation!$A:$C,3,FALSE),D187) -> Nouvelle-Écosse | M187: =IFERROR(VLOOKUP(E187,Translation!$A:$C,3,FALSE),E187) -> 24.75531916 | N187: =IFERROR(VLOOKUP(F187,Translation!$A:$C,3,FALSE),F187) -> Période d’amortissement moyenne selon la province | O187: =IFERROR(VLOOKUP(G187,Translation!$A:$C,3,FALSE),G187) -> 24.8 | P187: =IFERROR(VLOOKUP(H187,Translation!$A:$C,3,FALSE),H187) -> Nouvelle-Écosse
A188: 10 | B188: Cumul 2018 | C188: PROPRIÉTAIRES-OCCUPANTS, À L’UNITÉ | D188: Nouveau-Brunswick | E188: 24.75714897 | F188: Période d’amortissement moyenne selon la province | G188: 24.8 | H188: Nouveau-Brunswick | I188: =IFERROR(VLOOKUP(A188,Translation!$A:$C,3,FALSE),A188) -> 10 | J188: =IFERROR(VLOOKUP(B188,Translation!$A:$C,3,FALSE),B188) -> Cumul 2018 | K188: =IFERROR(VLOOKUP(C188,Translation!$A:$C,3,FALSE),C188) -> PROPRIÉTAIRES-OCCUPANTS, À L’UNITÉ | L188: =IFERROR(VLOOKUP(D188,Translation!$A:$C,3,FALSE),D188) -> Nouveau-Brunswick | M188: =IFERROR(VLOOKUP(E188,Translation!$A:$C,3,FALSE),E188) -> 24.75714897 | N188: =IFERROR(VLOOKUP(F188,Translation!$A:$C,3,FALSE),F188) -> Période d’amortissement moyenne selon la province | O188: =IFERROR(VLOOKUP(G188,Translation!$A:$C,3,FALSE),G188) -> 24.8 | P188: =IFERROR(VLOOKUP(H188,Translation!$A:$C,3,FALSE),H188) -> Nouveau-Brunswick
A189: 10 | B189: Cumul 2018 | C189: PROPRIÉTAIRES-OCCUPANTS, À L’UNITÉ | D189: Québec | E189: 24.8795069 | F189: Période d’amortissement moyenne selon la province | G189: 24.9 | H189: Québec | I189: =IFERROR(VLOOKUP(A189,Translation!$A:$C,3,FALSE),A189) -> 10 | J189: =IFERROR(VLOOKUP(B189,Translation!$A:$C,3,FALSE),B189) -> Cumul 2018 | K189: =IFERROR(VLOOKUP(C189,Translation!$A:$C,3,FALSE),C189) -> PROPRIÉTAIRES-OCCUPANTS, À L’UNITÉ | L189: =IFERROR(VLOOKUP(D189,Translation!$A:$C,3,FALSE),D189) -> Québec | M189: =IFERROR(VLOOKUP(E189,Translation!$A:$C,3,FALSE),E189) -> 24.8795069 | N189: =IFERROR(VLOOKUP(F189,Translation!$A:$C,3,FALSE),F189) -> Période d’amortissement moyenne selon la province | O189: =IFERROR(VLOOKUP(G189,Translation!$A:$C,3,FALSE),G189) -> 24.9 | P189: =IFERROR(VLOOKUP(H189,Translation!$A:$C,3,FALSE),H189) -> Québec
A190: 10 | B190: Cumul 2018 | C190: PROPRIÉTAIRES-OCCUPANTS, À L’UNITÉ | D190: Ontario | E190: 24.90642016 | F190: Période d’amortissement moyenne selon la province | G190: 24.9 | H190: Ontario | I190: =IFERROR(VLOOKUP(A190,Translation!$A:$C,3,FALSE),A190) -> 10 | J190: =IFERROR(VLOOKUP(B190,Translation!$A:$C,3,FALSE),B190) -> Cumul 2018 | K190: =IFERROR(VLOOKUP(C190,Translation!$A:$C,3,FALSE),C190) -> PROPRIÉTAIRES-OCCUPANTS, À L’UNITÉ | L190: =IFERROR(VLOOKUP(D190,Translation!$A:$C,3,FALSE),D190) -> Ontario | M190: =IFERROR(VLOOKUP(E190,Translation!$A:$C,3,FALSE),E190) -> 24.90642016 | N190: =IFERROR(VLOOKUP(F190,Translation!$A:$C,3,FALSE),F190) -> Période d’amortissement moyenne selon la province | O190: =IFERROR(VLOOKUP(G190,Translation!$A:$C,3,FALSE),G190) -> 24.9 | P190: =IFERROR(VLOOKUP(H190,Translation!$A:$C,3,FALSE),H190) -> Ontario
A191: 10 | B191: Cumul 2018 | C191: PROPRIÉTAIRES-OCCUPANTS, À L’UNITÉ | D191: Manitoba | E191: 24.83407256 | F191: Période d’amortissement moyenne selon la province | G191: 24.8 | H191: Manitoba | I191: =IFERROR(VLOOKUP(A191,Translation!$A:$C,3,FALSE),A191) -> 10 | J191: =IFERROR(VLOOKUP(B191,Translation!$A:$C,3,FALSE),B191) -> Cumul 2018 | K191: =IFERROR(VLOOKUP(C191,Translation!$A:$C,3,FALSE),C191) -> PROPRIÉTAIRES-OCCUPANTS, À L’UNITÉ | L191: =IFERROR(VLOOKUP(D191,Translation!$A:$C,3,FALSE),D191) -> Manitoba | M191: =IFERROR(VLOOKUP(E191,Translation!$A:$C,3,FALSE),E191) -> 24.83407256 | N191: =IFERROR(VLOOKUP(F191,Translation!$A:$C,3,FALSE),F191) -> Période d’amortissement moyenne selon la province | O191: =IFERROR(VLOOKUP(G191,Translation!$A:$C,3,FALSE),G191) -> 24.8 | P191: =IFERROR(VLOOKUP(H191,Translation!$A:$C,3,FALSE),H191) -> Manitoba
A192: 10 | B192: Cumul 2018 | C192: PROPRIÉTAIRES-OCCUPANTS, À L’UNITÉ | D192: Saskatchewan | E192: 24.7426566 | F192: Période d’amortissement moyenne selon la province | G192: 24.7 | H192: Saskatchewan | I192: =IFERROR(VLOOKUP(A192,Translation!$A:$C,3,FALSE),A192) -> 10 | J192: =IFERROR(VLOOKUP(B192,Translation!$A:$C,3,FALSE),B192) -> Cumul 2018 | K192: =IFERROR(VLOOKUP(C192,Translation!$A:$C,3,FALSE),C192) -> PROPRIÉTAIRES-OCCUPANTS, À L’UNITÉ | L192: =IFERROR(VLOOKUP(D192,Translation!$A:$C,3,FALSE),D192) -> Saskatchewan | M192: =IFERROR(VLOOKUP(E192,Translation!$A:$C,3,FALSE),E192) -> 24.7426566 | N192: =IFERROR(VLOOKUP(F192,Translation!$A:$C,3,FALSE),F192) -> Période d’amortissement moyenne selon la province | O192: =IFERROR(VLOOKUP(G192,Translation!$A:$C,3,FALSE),G192) -> 24.7 | P192: =IFERROR(VLOOKUP(H192,Translation!$A:$C,3,FALSE),H192) -> Saskatchewan
A193: 10 | B193: Cumul 2018 | C193: PROPRIÉTAIRES-OCCUPANTS, À L’UNITÉ | D193: Alberta | E193: 24.8337146 | F193: Période d’amortissement moyenne selon la province | G193: 24.8 | H193: Alberta | I193: =IFERROR(VLOOKUP(A193,Translation!$A:$C,3,FALSE),A193) -> 10 | J193: =IFERROR(VLOOKUP(B193,Translation!$A:$C,3,FALSE),B193) -> Cumul 2018 | K193: =IFERROR(VLOOKUP(C193,Translation!$A:$C,3,FALSE),C193) -> PROPRIÉTAIRES-OCCUPANTS, À L’UNITÉ | L193: =IFERROR(VLOOKUP(D193,Translation!$A:$C,3,FALSE),D193) -> Alberta | M193: =IFERROR(VLOOKUP(E193,Translation!$A:$C,3,FALSE),E193) -> 24.8337146 | N193: =IFERROR(VLOOKUP(F193,Translation!$A:$C,3,FALSE),F193) -> Période d’amortissement moyenne selon la province | O193: =IFERROR(VLOOKUP(G193,Translation!$A:$C,3,FALSE),G193) -> 24.8 | P193: =IFERROR(VLOOKUP(H193,Translation!$A:$C,3,FALSE),H193) -> Alberta
A194: 10 | B194: Cumul 2018 | C194: PROPRIÉTAIRES-OCCUPANTS, À L’UNITÉ | D194: Colombie-Britannique | E194: 24.83323351 | F194: Période d’amortissement moyenne selon la province | G194: 24.8 | H194: Colombie-Britannique | I194: =IFERROR(VLOOKUP(A194,Translation!$A:$C,3,FALSE),A194) -> 10 | J194: =IFERROR(VLOOKUP(B194,Translation!$A:$C,3,FALSE),B194) -> Cumul 2018 | K194: =IFERROR(VLOOKUP(C194,Translation!$A:$C,3,FALSE),C194) -> PROPRIÉTAIRES-OCCUPANTS, À L’UNITÉ | L194: =IFERROR(VLOOKUP(D194,Translation!$A:$C,3,FALSE),D194) -> Colombie-Britannique | M194: =IFERROR(VLOOKUP(E194,Translation!$A:$C,3,FALSE),E194) -> 24.83323351 | N194: =IFERROR(VLOOKUP(F194,Translation!$A:$C,3,FALSE),F194) -> Période d’amortissement moyenne selon la province | O194: =IFERROR(VLOOKUP(G194,Translation!$A:$C,3,FALSE),G194) -> 24.8 | P194: =IFERROR(VLOOKUP(H194,Translation!$A:$C,3,FALSE),H194) -> Colombie-Britannique
A195: 10 | B195: Cumul 2018 | C195: PROPRIÉTAIRES-OCCUPANTS, À L’UNITÉ | D195: Territoires | E195: 24.74558731 | F195: Période d’amortissement moyenne selon la province | G195: 24.7 | H195: Territoires | I195: =IFERROR(VLOOKUP(A195,Translation!$A:$C,3,FALSE),A195) -> 10 | J195: =IFERROR(VLOOKUP(B195,Translation!$A:$C,3,FALSE),B195) -> Cumul 2018 | K195: =IFERROR(VLOOKUP(C195,Translation!$A:$C,3,FALSE),C195) -> PROPRIÉTAIRES-OCCUPANTS, À L’UNITÉ | L195: =IFERROR(VLOOKUP(D195,Translation!$A:$C,3,FALSE),D195) -> Territoires | M195: =IFERROR(VLOOKUP(E195,Translation!$A:$C,3,FALSE),E195) -> 24.74558731 | N195: =IFERROR(VLOOKUP(F195,Translation!$A:$C,3,FALSE),F195) -> Période d’amortissement moyenne selon la province | O195: =IFERROR(VLOOKUP(G195,Translation!$A:$C,3,FALSE),G195) -> 24.7 | P195: =IFERROR(VLOOKUP(H195,Translation!$A:$C,3,FALSE),H195) -> Territoires
A196: 10 | B196: T4 2019 | C196: ASSURANCE DE PORTEFEUILLE | D196: <= 5 | E196: 0.1492639644 | F196: Prêts hypothécaires assurés au cours de la période selon la période d’amortissement (en années) à l'initiation (%) | G196: 0.1 | H196: <= 5 | I196: =IFERROR(VLOOKUP(A196,Translation!$A:$C,3,FALSE),A196) -> 10 | J196: =IFERROR(VLOOKUP(B196,Translation!$A:$C,3,FALSE),B196) -> T4 2019 | K196: =IFERROR(VLOOKUP(C196,Translation!$A:$C,3,FALSE),C196) -> ASSURANCE DE PORTEFEUILLE | L196: =IFERROR(VLOOKUP(D196,Translation!$A:$C,3,FALSE),D196) -> <= 5 | M196: =IFERROR(VLOOKUP(E196,Translation!$A:$C,3,FALSE),E196) -> 0.1492639644 | N196: =IFERROR(VLOOKUP(F196,Translation!$A:$C,3,FALSE),F196) -> Prêts hypothécaires assurés au cours de la période selon la période d’amortissement (en années) à l'initiation (%) | O196: =IFERROR(VLOOKUP(G196,Translation!$A:$C,3,FALSE),G196) -> 0.1 | P196: =IFERROR(VLOOKUP(H196,Translation!$A:$C,3,FALSE),H196) -> <= 5
A197: 10 | B197: Cumul 2018 | C197: ASSURANCE DE PORTEFEUILLE | D197: <= 5 | E197: 0.2930994409 | F197: Prêts hypothécaires assurés au cours de la période selon la période d’amortissement (en années) à l'initiation (%) | G197: 0.3 | H197: <= 5 | I197: =IFERROR(VLOOKUP(A197,Translation!$A:$C,3,FALSE),A197) -> 10 | J197: =IFERROR(VLOOKUP(B197,Translation!$A:$C,3,FALSE),B197) -> Cumul 2018 | K197: =IFERROR(VLOOKUP(C197,Translation!$A:$C,3,FALSE),C197) -> ASSURANCE DE PORTEFEUILLE | L197: =IFERROR(VLOOKUP(D197,Translation!$A:$C,3,FALSE),D197) -> <= 5 | M197: =IFERROR(VLOOKUP(E197,Translation!$A:$C,3,FALSE),E197) -> 0.2930994409 | N197: =IFERROR(VLOOKUP(F197,Translation!$A:$C,3,FALSE),F197) -> Prêts hypothécaires assurés au cours de la période selon la période d’amortissement (en années) à l'initiation (%) | O197: =IFERROR(VLOOKUP(G197,Translation!$A:$C,3,FALSE),G197) -> 0.3 | P197: =IFERROR(VLOOKUP(H197,Translation!$A:$C,3,FALSE),H197) -> <= 5
A198: 10 | B198: T4 2019 | C198: ASSURANCE DE PORTEFEUILLE | D198: > 5 <= 10 | E198: 1.271595615 | F198: Prêts hypothécaires assurés au cours de la période selon la période d’amortissement (en années) à l'initiation (%) | G198: 1.3 | H198: > 5 <= 10 | I198: =IFERROR(VLOOKUP(A198,Translation!$A:$C,3,FALSE),A198) -> 10 | J198: =IFERROR(VLOOKUP(B198,Translation!$A:$C,3,FALSE),B198) -> T4 2019 | K198: =IFERROR(VLOOKUP(C198,Translation!$A:$C,3,FALSE),C198) -> ASSURANCE DE PORTEFEUILLE | L198: =IFERROR(VLOOKUP(D198,Translation!$A:$C,3,FALSE),D198) -> > 5 <= 10 | M198: =IFERROR(VLOOKUP(E198,Translation!$A:$C,3,FALSE),E198) -> 1.271595615 | N198: =IFERROR(VLOOKUP(F198,Translation!$A:$C,3,FALSE),F198) -> Prêts hypothécaires assurés au cours de la période selon la période d’amortissement (en années) à l'initiation (%) | O198: =IFERROR(VLOOKUP(G198,Translation!$A:$C,3,FALSE),G198) -> 1.3 | P198: =IFERROR(VLOOKUP(H198,Translation!$A:$C,3,FALSE),H198) -> > 5 <= 10
A199: 10 | B199: Cumul 2018 | C199: ASSURANCE DE PORTEFEUILLE | D199: > 5 <= 10 | E199: 3.073307816 | F199: Prêts hypothécaires assurés au cours de la période selon la période d’amortissement (en années) à l'initiation (%) | G199: 3.1 | H199: > 5 <= 10 | I199: =IFERROR(VLOOKUP(A199,Translation!$A:$C,3,FALSE),A199) -> 10 | J199: =IFERROR(VLOOKUP(B199,Translation!$A:$C,3,FALSE),B199) -> Cumul 2018 | K199: =IFERROR(VLOOKUP(C199,Translation!$A:$C,3,FALSE),C199) -> ASSURANCE DE PORTEFEUILLE | L199: =IFERROR(VLOOKUP(D199,Translation!$A:$C,3,FALSE),D199) -> > 5 <= 10 | M199: =IFERROR(VLOOKUP(E199,Translation!$A:$C,3,FALSE),E199) -> 3.073307816 | N199: =IFERROR(VLOOKUP(F199,Translation!$A:$C,3,FALSE),F199) -> Prêts hypothécaires assurés au cours de la période selon la période d’amortissement (en années) à l'initiation (%) | O199: =IFERROR(VLOOKUP(G199,Translation!$A:$C,3,FALSE),G199) -> 3.1 | P199: =IFERROR(VLOOKUP(H199,Translation!$A:$C,3,FALSE),H199) -> > 5 <= 10
A200: 10 | B200: T4 2019 | C200: ASSURANCE DE PORTEFEUILLE | D200: > 10 <= 15 | E200: 3.367013099 | F200: Prêts hypothécaires assurés au cours de la période selon la période d’amortissement (en années) à l'initiation (%) | G200: 3.4 | H200: > 10 <= 15 | I200: =IFERROR(VLOOKUP(A200,Translation!$A:$C,3,FALSE),A200) -> 10 | J200: =IFERROR(VLOOKUP(B200,Translation!$A:$C,3,FALSE),B200) -> T4 2019 | K200: =IFERROR(VLOOKUP(C200,Translation!$A:$C,3,FALSE),C200) -> ASSURANCE DE PORTEFEUILLE | L200: =IFERROR(VLOOKUP(D200,Translation!$A:$C,3,FALSE),D200) -> > 10 <= 15 | M200: =IFERROR(VLOOKUP(E200,Translation!$A:$C,3,FALSE),E200) -> 3.367013099 | N200: =IFERROR(VLOOKUP(F200,Translation!$A:$C,3,FALSE),F200) -> Prêts hypothécaires assurés au cours de la période selon la période d’amortissement (en années) à l'initiation (%) | O200: =IFERROR(VLOOKUP(G200,Translation!$A:$C,3,FALSE),G200) -> 3.4 | P200: =IFERROR(VLOOKUP(H200,Translation!$A:$C,3,FALSE),H200) -> > 10 <= 15
... 4300 more rows

Sheet 1.Cover Page
B1: =VLOOKUP("CANADA MORTGAGE AND HOUSING CORPORATION",Translation!$A$1:$C$328, Translation!A1+1, 0) -> SOCIÉTÉ CANADIENNE D'HYPOTHÈQUES ET DE LOGEMENT
B5: =VLOOKUP("National Mortgage Loan Insurance Business Supplement",Translation!$A$1:$C$328, Translation!A1+1, 0) -> Supplément national d’information sur les activités d’assurance prêt hypothécaire
F12: =VLOOKUP("First Quarter",Translation!$A$1:$C$328, Translation!A1+1, 0) -> Premier trimestre
F13: =VLOOKUP("March 31, 2020",Translation!$A$1:$C$328, Translation!A1+1, 0) -> 31 mars 2020
B28: =IF(Translation!A1=1,"To supplement CMHC’s unaudited quarterly consolidated financial statements, which are prepared in accordance with IFRS, CMHC uses non-IFRS measures to analyse its performance."&"The following Mortgage Loan Insurance Business Supplement is prepared for the " & LOWER(F12) &" ending " &F13&" and is intended to help readers better understand CMHC’s insurance activities."&"CMHC believes that these performance measures provide meaningful information that enables greater transparency and clarity with respect to CMHC’s residential mortgage insurance underwriting practices.","Afin de compléter ses états financiers consolidés trimestriels non audités, qui sont préparés conformément aux IFRS, la SCHL a recours à des mesures non définies par les IFRS pour analyser son rendement."&"Le présent supplément d’information sur les activités d’assurance prêt hypothécaire vise le " & LOWER(F12) &" clos " &F13&" et a pour but d’aider le lecteur à mieux comprendre les activités d’assurance de la SCHL."&" La Société est d’avis que ces mesures de rendement fournissent des informations utiles qui se traduisent par une plus grande transparence et davantage de clarté quant "&"aux pratiques de souscription d’assurance prêt hypothécaire à l’habitation qu’elle applique.") -> Afin de compléter ses états financiers consolidés trimestriels non audités, qui sont préparés conformément aux IFRS, la SCHL a recours à des mesures non définies par les IFRS pour analyser son rendement.Le présent supplément d’information sur les activités d’assurance prêt hypothécaire vise le premier trimestre clos 31 mars 2020 et a pour but d’aider le lecteur à mieux comprendre les activités d’assurance de la SCHL. La Société est d’avis que ces mesures de rendement fournissent des informations utiles qui se traduisent par une plus grande transparence et davantage de clarté quant aux pratiques de souscription d’assurance prêt hypothécaire à l’habitation qu’elle applique.

Sheet 2. ToC
B1: =VLOOKUP("Table of Contents",Translation!$A$1:$C$328, Translation!A1+1, 0) -> Table des matières
B10: =VLOOKUP("NATIONAL INSURED VOLUMES",Translation!$A$1:$C$328, Translation!A1+1, 0) -> VOLUME DE PRÊTS ASSURÉS À L’ÉCHELLE NATIONALE | F10: 3-6
B11: =VLOOKUP("Transactional Homeowner and Portfolio",Translation!$A$1:$C$328, Translation!A1+1, 0) -> Propriétaires-occupants (à l’unité) et assurance de portefeuille | F11: 7-26
C12: =VLOOKUP("Loan-to-Value",Translation!$A$1:$C$328, Translation!A1+1, 0) -> Rapport prêt-valeur | F12: 7-9
C13: =VLOOKUP("Amortization",Translation!$A$1:$C$328, Translation!A1+1, 0) -> Période d'amortissement | F13: 10-12
C14: =VLOOKUP("Credit Score",Translation!$A$1:$C$328, Translation!A1+1, 0) -> Pointage de crédit | F14: 13-14
C15: =VLOOKUP("Purchase Price",Translation!$A$1:$C$328, Translation!A1+1, 0) -> Prix d'achat | F15: 15
C16: =VLOOKUP("Dwelling Type",Translation!$A$1:$C$328, Translation!A1+1, 0) -> Type de logement | F16: 16-17
C17: =VLOOKUP("Urban/Rural ",Translation!$A$1:$C$328, Translation!A1+1, 0) -> Urbain/Rural | F17: 18-19
C18: =VLOOKUP("New/Existing ",Translation!$A$1:$C$328, Translation!A1+1, 0) -> Neuf/Existant | F18: 20-21
C19: =VLOOKUP("GDS/TDS",Translation!$A$1:$C$328, Translation!A1+1, 0) -> Rapport d’amortissement brut de la dette/Rapport d'amortissement total de la dette | F19: 22-23
C20: =VLOOKUP("Interest Rate Type",Translation!$A$1:$C$328, Translation!A1+1, 0) -> Type de taux d’intérêt | F20: 24
C21: =VLOOKUP("Arrears",Translation!$A$1:$C$328, Translation!A1+1, 0) -> Prêts en souffrance | F21: 25
C22: =VLOOKUP("Claims Paid ",Translation!$A$1:$C$328, Translation!A1+1, 0) -> Règlements payés | F22: 26
B23: =VLOOKUP("Multi-Unit Residential ",Translation!$A$1:$C$328, Translation!A1+1, 0) -> Immeubles collectifs résidentiels | F23: 27-32
C24: =VLOOKUP("Loan-to-Value",Translation!$A$1:$C$328, Translation!A1+1, 0) -> Rapport prêt-valeur | F24: 27
C25: =VLOOKUP("Amortization",Translation!$A$1:$C$328, Translation!A1+1, 0) -> Période d'amortissement | F25: 28
C26: =VLOOKUP("Dwelling Type",Translation!$A$1:$C$328, Translation!A1+1, 0) -> Type de logement | F26: 29
C27: =VLOOKUP("Urban/Rural ",Translation!$A$1:$C$328, Translation!A1+1, 0) -> Urbain/Rural | F27: 30
C28: =VLOOKUP("New/Existing ",Translation!$A$1:$C$328, Translation!A1+1, 0) -> Neuf/Existant | F28: 31
C29: =VLOOKUP("Arrears and claims paid",Translation!$A$1:$C$328, Translation!A1+1, 0) -> Arrérages et Règlements payés | F29: 32
B30: =VLOOKUP("Glossary",Translation!$A$1:$C$328, Translation!A1+1, 0) -> Glossaire | F30: 33

Sheet 3
A1: =VLOOKUP("NATIONAL INSURED VOLUMES",Translation!$A$1:$C$354, Translation!A1+1, 0) -> VOLUME DE PRÊTS ASSURÉS À L’ÉCHELLE NATIONALE | F1: =VLOOKUP("Back to Table of Contents",Translation!$A$1:$C$354, Translation!A1+1, 0) -> Retour à la table des matières
A2: =VLOOKUP("Loans insured in period",Translation!$A$1:$C$354, Translation!A1+1, 0) -> Prêts assurés au cours de la période
B3: =VLOOKUP("Q1 2020",Translation!$A$1:$C$354, Translation!$A$1+1, 0) -> T1 2020 | C3: =VLOOKUP("Q4 2019",Translation!$A$1:$C$354, Translation!$A$1+1, 0) -> T4 2019 | D3: =VLOOKUP("Q3 2019",Translation!$A$1:$C$354, Translation!$A$1+1, 0) -> T3 2019 | E3: =VLOOKUP("Q2 2019",Translation!$A$1:$C$354, Translation!$A$1+1, 0) -> T2 2019 | F3: =VLOOKUP("Q1 2019",Translation!$A$1:$C$354, Translation!$A$1+1, 0) -> T1 2019 | G3: =VLOOKUP("Q4 2018",Translation!$A$1:$C$354, Translation!$A$1+1, 0) -> T4 2018 | H3: =VLOOKUP("Q3 2018",Translation!$A$1:$C$354, Translation!$A$1+1, 0) -> T3 2018 | I3: =VLOOKUP("Q2 2018",Translation!$A$1:$C$354, Translation!$A$1+1, 0) -> T2 2018 | J3: =VLOOKUP("YTD 2020",Translation!$A$1:$C$354, Translation!$A$1+1, 0) -> Cumul 2020 | K3: =VLOOKUP("YTD 2019",Translation!$A$1:$C$354, Translation!$A$1+1, 0) -> Cumul 2019
A4: =VLOOKUP("Total Insured Volumes (units)¹",Translation!$A$1:$C$354, Translation!A1+1, 0) -> Volume total d'assurance (nbre de logements)¹ | B4: =SUMIFS(Data!$E:$E,Data!$B:$B,'3'!B$3,Data!$C:$C,"ALL",Data!$D:$D,"Total Insured Volumes (units)",Data!$F:$F,"UNIT") -> 56002 | C4: =SUMIFS(Data!$E:$E,Data!$B:$B,'3'!C$3,Data!$C:$C,"ALL",Data!$D:$D,"Total Insured Volumes (units)",Data!$F:$F,"UNIT") -> 70457 | D4: =SUMIFS(Data!$E:$E,Data!$B:$B,'3'!D$3,Data!$C:$C,"ALL",Data!$D:$D,"Total Insured Volumes (units)",Data!$F:$F,"UNIT") -> 72682 | E4: =SUMIFS(Data!$E:$E,Data!$B:$B,'3'!E$3,Data!$C:$C,"ALL",Data!$D:$D,"Total Insured Volumes (units)",Data!$F:$F,"UNIT") -> 73116 | F4: =SUMIFS(Data!$E:$E,Data!$B:$B,'3'!F$3,Data!$C:$C,"ALL",Data!$D:$D,"Total Insured Volumes (units)",Data!$F:$F,"UNIT") -> 43447 | G4: =SUMIFS(Data!$E:$E,Data!$B:$B,'3'!G$3,Data!$C:$C,"ALL",Data!$D:$D,"Total Insured Volumes (units)",Data!$F:$F,"UNIT") -> 66960 | H4: =SUMIFS(Data!$E:$E,Data!$B:$B,'3'!H$3,Data!$C:$C,"ALL",Data!$D:$D,"Total Insured Volumes (units)",Data!$F:$F,"UNIT") -> 65679 | I4: =SUMIFS(Data!$E:$E,Data!$B:$B,'3'!I$3,Data!$C:$C,"ALL",Data!$D:$D,"Total Insured Volumes (units)",Data!$F:$F,"UNIT") -> 72716 | J4: =SUMIFS(Data!$E:$E,Data!$B:$B,'3'!J$3,Data!$C:$C,"ALL",Data!$D:$D,"Total Insured Volumes (units)",Data!$F:$F,"UNIT") -> 56002 | K4: =SUM(C4:F4) -> 259702
A5: =VLOOKUP("TRANSACTIONAL HOMEOWNER",Translation!$A$1:$C$354, Translation!A1+1, 0) -> PROPRIÉTAIRES-OCCUPANTS, À L’UNITÉ | B5: =SUMIFS(Data!$E:$E,Data!$B:$B,'3'!B$3,Data!$C:$C,"ALL",Data!$D:$D,A5,Data!$F:$F,"UNIT") -> 15023 | C5: =SUMIFS(Data!$E:$E,Data!$B:$B,'3'!C$3,Data!$C:$C,"ALL",Data!$D:$D,A5,Data!$F:$F,"UNIT") -> 25158 | D5: =SUMIFS(Data!$E:$E,Data!$B:$B,'3'!D$3,Data!$C:$C,"ALL",Data!$D:$D,A5,Data!$F:$F,"UNIT") -> 29477 | E5: =SUMIFS(Data!$E:$E,Data!$B:$B,'3'!E$3,Data!$C:$C,"ALL",Data!$D:$D,$A5,Data!$F:$F,"UNIT") -> 31327 | F5: =SUMIFS(Data!$E:$E,Data!$B:$B,'3'!F$3,Data!$C:$C,"ALL",Data!$D:$D,$A5,Data!$F:$F,"UNIT") -> 13893 | G5: =SUMIFS(Data!$E:$E,Data!$B:$B,'3'!G$3,Data!$C:$C,"ALL",Data!$D:$D,A5,Data!$F:$F,"UNIT") -> 23961 | H5: =SUMIFS(Data!$E:$E,Data!$B:$B,'3'!H$3,Data!$C:$C,"ALL",Data!$D:$D,$A5,Data!$F:$F,"UNIT") -> 30481 | I5: =SUMIFS(Data!$E:$E,Data!$B:$B,'3'!I$3,Data!$C:$C,"ALL",Data!$D:$D,$A5,Data!$F:$F,"UNIT") -> 34086 | J5: =SUMIFS(Data!$E:$E,Data!$B:$B,'3'!J$3,Data!$C:$C,"ALL",Data!$D:$D,$A5,Data!$F:$F,"UNIT") -> 15023 | K5: =SUM(C5:F5) -> 99855
A6: =VLOOKUP("Portfolio (New)",Translation!$A$1:$C$354, Translation!A1+1, 0) -> Assurance de portefeuille (nouveaux prêts) | B6: =SUMIFS(Data!$E:$E,Data!$B:$B,'3'!B$3,Data!$C:$C,"ALL",Data!$D:$D,A6,Data!$F:$F,"UNIT") -> 4222 | C6: =SUMIFS(Data!$E:$E,Data!$B:$B,'3'!C$3,Data!$C:$C,"ALL",Data!$D:$D,A6,Data!$F:$F,"UNIT") -> 6889 | D6: =SUMIFS(Data!$E:$E,Data!$B:$B,'3'!D$3,Data!$C:$C,"ALL",Data!$D:$D,A6,Data!$F:$F,"UNIT") -> 1949 | E6: =SUMIFS(Data!$E:$E,Data!$B:$B,'3'!E$3,Data!$C:$C,"ALL",Data!$D:$D,$A6,Data!$F:$F,"UNIT") -> 10440 | F6: =SUMIFS(Data!$E:$E,Data!$B:$B,'3'!F$3,Data!$C:$C,"ALL",Data!$D:$D,$A6,Data!$F:$F,"UNIT") -> 3303 | G6: =SUMIFS(Data!$E:$E,Data!$B:$B,'3'!G$3,Data!$C:$C,"ALL",Data!$D:$D,A6,Data!$F:$F,"UNIT") -> 5201 | H6: =SUMIFS(Data!$E:$E,Data!$B:$B,'3'!H$3,Data!$C:$C,"ALL",Data!$D:$D,$A6,Data!$F:$F,"UNIT") -> 5808 | I6: =SUMIFS(Data!$E:$E,Data!$B:$B,'3'!I$3,Data!$C:$C,"ALL",Data!$D:$D,$A6,Data!$F:$F,"UNIT") -> 5393 | J6: =SUMIFS(Data!$E:$E,Data!$B:$B,'3'!J$3,Data!$C:$C,"ALL",Data!$D:$D,$A6,Data!$F:$F,"UNIT") -> 4222 | K6: =SUM(C6:F6) -> 22581
A7: =VLOOKUP("Portfolio (Substitutions)",Translation!$A$1:$C$354, Translation!A1+1, 0) -> Assurance de portefeuille (prêts de substitution) | B7: =SUMIFS(Data!$E:$E,Data!$B:$B,'3'!B$3,Data!$C:$C,"ALL",Data!$D:$D,A7,Data!$F:$F,"UNIT") -> 0 | C7: =SUMIFS(Data!$E:$E,Data!$B:$B,'3'!C$3,Data!$C:$C,"ALL",Data!$D:$D,A7,Data!$F:$F,"UNIT") -> 1901 | D7: =SUMIFS(Data!$E:$E,Data!$B:$B,'3'!D$3,Data!$C:$C,"ALL",Data!$D:$D,A7,Data!$F:$F,"UNIT") -> 3048 | E7: =SUMIFS(Data!$E:$E,Data!$B:$B,'3'!E$3,Data!$C:$C,"ALL",Data!$D:$D,$A7,Data!$F:$F,"UNIT") -> 1402 | F7: =SUMIFS(Data!$E:$E,Data!$B:$B,'3'!F$3,Data!$C:$C,"ALL",Data!$D:$D,$A7,Data!$F:$F,"UNIT") -> 3766 | G7: =SUMIFS(Data!$E:$E,Data!$B:$B,'3'!G$3,Data!$C:$C,"ALL",Data!$D:$D,A7,Data!$F:$F,"UNIT") -> 1603 | H7: =SUMIFS(Data!$E:$E,Data!$B:$B,'3'!H$3,Data!$C:$C,"ALL",Data!$D:$D,$A7,Data!$F:$F,"UNIT") -> 1172 | I7: =SUMIFS(Data!$E:$E,Data!$B:$B,'3'!I$3,Data!$C:$C,"ALL",Data!$D:$D,$A7,Data!$F:$F,"UNIT") -> 9086 | J7: =SUMIFS(Data!$E:$E,Data!$B:$B,'3'!J$3,Data!$C:$C,"ALL",Data!$D:$D,$A7,Data!$F:$F,"UNIT") -> 0 | K7: 10117
A8: =PROPER(VLOOKUP("Multi-Unit Residential",Translation!$A$1:$C$354, Translation!A1+1, 0)) -> Immeubles Collectifs Résidentiels | B8: =SUMIFS(Data!$E:$E,Data!$B:$B,'3'!B$3,Data!$C:$C,"ALL",Data!$D:$D,A8,Data!$F:$F,"UNIT") -> 36757 | C8: =SUMIFS(Data!$E:$E,Data!$B:$B,'3'!C$3,Data!$C:$C,"ALL",Data!$D:$D,A8,Data!$F:$F,"UNIT") -> 36509 | D8: =SUMIFS(Data!$E:$E,Data!$B:$B,'3'!D$3,Data!$C:$C,"ALL",Data!$D:$D,A8,Data!$F:$F,"UNIT") -> 38208 | E8: =SUMIFS(Data!$E:$E,Data!$B:$B,'3'!E$3,Data!$C:$C,"ALL",Data!$D:$D,$A8,Data!$F:$F,"UNIT") -> 29947 | F8: =SUMIFS(Data!$E:$E,Data!$B:$B,'3'!F$3,Data!$C:$C,"ALL",Data!$D:$D,$A8,Data!$F:$F,"UNIT") -> 22485 | G8: =SUMIFS(Data!$E:$E,Data!$B:$B,'3'!G$3,Data!$C:$C,"ALL",Data!$D:$D,A8,Data!$F:$F,"UNIT") -> 36195 | H8: =SUMIFS(Data!$E:$E,Data!$B:$B,'3'!H$3,Data!$C:$C,"ALL",Data!$D:$D,$A8,Data!$F:$F,"UNIT") -> 28218 | I8: =SUMIFS(Data!$E:$E,Data!$B:$B,'3'!I$3,Data!$C:$C,"ALL",Data!$D:$D,$A8,Data!$F:$F,"UNIT") -> 24151 | J8: =SUMIFS(Data!$E:$E,Data!$B:$B,'3'!J$3,Data!$C:$C,"ALL",Data!$D:$D,$A8,Data!$F:$F,"UNIT") -> 36757 | K8: 127149
A9: =VLOOKUP("Total Insured Volumes ($M)",Translation!$A$1:$C$354, Translation!A1+1, 0) -> Volume total d'assurance (M$) | B9: =SUM(B10:B13) -> 10794.00755 | C9: =SUM(C10:C13) -> 14319.64127 | D9: =SUM(D10:D13) -> 14062.51966 | E9: =SUM(E10:E13) -> 14190.32895 | F9: 7892.195735 | G9: =SUM(G10:G13) -> 12157.70049 | H9: =SUM(H10:H13) -> 13306.54712 | I9: =SUM(I10:I13) -> 14003.19562 | J9: 10794.00755 | K9: =SUM(C9:F9) -> 50464.68562
A10: =VLOOKUP("TRANSACTIONAL HOMEOWNER",Translation!$A$1:$C$354, Translation!A1+1, 0) -> PROPRIÉTAIRES-OCCUPANTS, À L’UNITÉ | B10: =SUMIFS(Data!$E:$E,Data!$B:$B,'3'!B$3,Data!$C:$C,"ALL",Data!$D:$D,A10,Data!$F:$F,"AMT")/1000000 -> 4202.589862 | C10: =SUMIFS(Data!$E:$E,Data!$B:$B,'3'!C$3,Data!$C:$C,"ALL",Data!$D:$D,A10,Data!$F:$F,"AMT")/1000000 -> 7000.884368 | D10: =SUMIFS(Data!$E:$E,Data!$B:$B,'3'!D$3,Data!$C:$C,"ALL",Data!$D:$D,$A10,Data!$F:$F,"AMT")/1000000 -> 8302.357944 | E10: =SUMIFS(Data!$E:$E,Data!$B:$B,'3'!E$3,Data!$C:$C,"ALL",Data!$D:$D,$A10,Data!$F:$F,"AMT")/1000000 -> 8001.59346 | F10: =SUMIFS(Data!$E:$E,Data!$B:$B,'3'!F$3,Data!$C:$C,"ALL",Data!$D:$D,$A10,Data!$F:$F,"AMT")/1000000 -> 3764.162331 | G10: =SUMIFS(Data!$E:$E,Data!$B:$B,'3'!G$3,Data!$C:$C,"ALL",Data!$D:$D,A10,Data!$F:$F,"AMT")/1000000 -> 6425.929804 | H10: =SUMIFS(Data!$E:$E,Data!$B:$B,'3'!H$3,Data!$C:$C,"ALL",Data!$D:$D,$A10,Data!$F:$F,"AMT")/1000000 -> 8244.086284 | I10: =SUMIFS(Data!$E:$E,Data!$B:$B,'3'!I$3,Data!$C:$C,"ALL",Data!$D:$D,$A10,Data!$F:$F,"AMT")/1000000 -> 8654.336321 | J10: =SUMIFS(Data!$E:$E,Data!$B:$B,'3'!J$3,Data!$C:$C,"ALL",Data!$D:$D,$A10,Data!$F:$F,"AMT")/1000000 -> 4202.589862 | K10: =SUM(C10:F10) -> 27068.9981
A11: =VLOOKUP("Portfolio (New)",Translation!$A$1:$C$354, Translation!A1+1, 0) -> Assurance de portefeuille (nouveaux prêts) | B11: =SUMIFS(Data!$E:$E,Data!$B:$B,'3'!B$3,Data!$C:$C,"ALL",Data!$D:$D,A11,Data!$F:$F,"AMT")/1000000 -> 1326.860771 | C11: =SUMIFS(Data!$E:$E,Data!$B:$B,'3'!C$3,Data!$C:$C,"ALL",Data!$D:$D,A11,Data!$F:$F,"AMT")/1000000 -> 1896.223909 | D11: =SUMIFS(Data!$E:$E,Data!$B:$B,'3'!D$3,Data!$C:$C,"ALL",Data!$D:$D,$A11,Data!$F:$F,"AMT")/1000000 -> 511.8962571 | E11: =SUMIFS(Data!$E:$E,Data!$B:$B,'3'!E$3,Data!$C:$C,"ALL",Data!$D:$D,$A11,Data!$F:$F,"AMT")/1000000 -> 2666.345498 | F11: =SUMIFS(Data!$E:$E,Data!$B:$B,'3'!F$3,Data!$C:$C,"ALL",Data!$D:$D,$A11,Data!$F:$F,"AMT")/1000000 -> 835.417715 | G11: =SUMIFS(Data!$E:$E,Data!$B:$B,'3'!G$3,Data!$C:$C,"ALL",Data!$D:$D,A11,Data!$F:$F,"AMT")/1000000 -> 1203.724335 | H11: =SUMIFS(Data!$E:$E,Data!$B:$B,'3'!H$3,Data!$C:$C,"ALL",Data!$D:$D,$A11,Data!$F:$F,"AMT")/1000000 -> 1512.789799 | I11: =SUMIFS(Data!$E:$E,Data!$B:$B,'3'!I$3,Data!$C:$C,"ALL",Data!$D:$D,$A11,Data!$F:$F,"AMT")/1000000 -> 1341.741016 | J11: =SUMIFS(Data!$E:$E,Data!$B:$B,'3'!J$3,Data!$C:$C,"ALL",Data!$D:$D,$A11,Data!$F:$F,"AMT")/1000000 -> 1326.860771 | K11: =SUM(C11:F11) -> 5909.883379
A12: =VLOOKUP("Portfolio (Substitutions)",Translation!$A$1:$C$354, Translation!A1+1, 0) -> Assurance de portefeuille (prêts de substitution) | B12: =SUMIFS(Data!$E:$E,Data!$B:$B,'3'!B$3,Data!$C:$C,"ALL",Data!$D:$D,A12,Data!$F:$F,"AMT")/1000000 -> 0 | C12: =SUMIFS(Data!$E:$E,Data!$B:$B,'3'!C$3,Data!$C:$C,"ALL",Data!$D:$D,A12,Data!$F:$F,"AMT")/1000000 -> 366.4688597 | D12: =SUMIFS(Data!$E:$E,Data!$B:$B,'3'!D$3,Data!$C:$C,"ALL",Data!$D:$D,$A12,Data!$F:$F,"AMT")/1000000 -> 431.4981849 | E12: =SUMIFS(Data!$E:$E,Data!$B:$B,'3'!E$3,Data!$C:$C,"ALL",Data!$D:$D,$A12,Data!$F:$F,"AMT")/1000000 -> 107.792288 | F12: =SUMIFS(Data!$E:$E,Data!$B:$B,'3'!F$3,Data!$C:$C,"ALL",Data!$D:$D,$A12,Data!$F:$F,"AMT")/1000000 -> 529.4212312 | G12: =SUMIFS(Data!$E:$E,Data!$B:$B,'3'!G$3,Data!$C:$C,"ALL",Data!$D:$D,A12,Data!$F:$F,"AMT")/1000000 -> 318.6282465 | H12: =SUMIFS(Data!$E:$E,Data!$B:$B,'3'!H$3,Data!$C:$C,"ALL",Data!$D:$D,$A12,Data!$F:$F,"AMT")/1000000 -> 161.9351782 | I12: =SUMIFS(Data!$E:$E,Data!$B:$B,'3'!I$3,Data!$C:$C,"ALL",Data!$D:$D,$A12,Data!$F:$F,"AMT")/1000000 -> 1268.551678 | J12: =SUMIFS(Data!$E:$E,Data!$B:$B,'3'!J$3,Data!$C:$C,"ALL",Data!$D:$D,$A12,Data!$F:$F,"AMT")/1000000 -> 0 | K12: 1435.180564
A13: =PROPER(VLOOKUP("Multi-Unit Residential",Translation!$A$1:$C$354, Translation!A1+1, 0)) -> Immeubles Collectifs Résidentiels | B13: =SUMIFS(Data!$E:$E,Data!$B:$B,'3'!B$3,Data!$C:$C,"ALL",Data!$D:$D,A13,Data!$F:$F,"AMT")/1000000 -> 5264.556919 | C13: =SUMIFS(Data!$E:$E,Data!$B:$B,'3'!C$3,Data!$C:$C,"ALL",Data!$D:$D,A13,Data!$F:$F,"AMT")/1000000 -> 5056.064136 | D13: =SUMIFS(Data!$E:$E,Data!$B:$B,'3'!D$3,Data!$C:$C,"ALL",Data!$D:$D,$A13,Data!$F:$F,"AMT")/1000000 -> 4816.76727 | E13: =SUMIFS(Data!$E:$E,Data!$B:$B,'3'!E$3,Data!$C:$C,"ALL",Data!$D:$D,$A13,Data!$F:$F,"AMT")/1000000 -> 3414.59771 | F13: =SUMIFS(Data!$E:$E,Data!$B:$B,'3'!F$3,Data!$C:$C,"ALL",Data!$D:$D,$A13,Data!$F:$F,"AMT")/1000000 -> 2763.194458 | G13: =SUMIFS(Data!$E:$E,Data!$B:$B,'3'!G$3,Data!$C:$C,"ALL",Data!$D:$D,A13,Data!$F:$F,"AMT")/1000000 -> 4209.418103 | H13: =SUMIFS(Data!$E:$E,Data!$B:$B,'3'!H$3,Data!$C:$C,"ALL",Data!$D:$D,$A13,Data!$F:$F,"AMT")/1000000 -> 3387.735855 | I13: =SUMIFS(Data!$E:$E,Data!$B:$B,'3'!I$3,Data!$C:$C,"ALL",Data!$D:$D,$A13,Data!$F:$F,"AMT")/1000000 -> 2738.566604 | J13: =SUMIFS(Data!$E:$E,Data!$B:$B,'3'!J$3,Data!$C:$C,"ALL",Data!$D:$D,$A13,Data!$F:$F,"AMT")/1000000 -> 5264.556919 | K13: 16050.62357
A14: =VLOOKUP("¹ The sum of all breakdown categories may not add up to total due to rounding.",Translation!$A$1:$C$354, Translation!A1+1, 0) -> ¹ Les chiffres ayant été arrondis, il se peut que la somme de l'ensemble des catégories n'égale pas 100 %.
A16: =VLOOKUP("Loans insured during period by province (%)",Translation!$A$1:$C$354, Translation!A1+1, 0) -> Prêts hypothécaires assurés au cours de la période selon la province (%)
B17: =VLOOKUP("Q1 2020",Translation!$A$1:$C$354, Translation!$A$1+1, 0) -> T1 2020 | C17: =VLOOKUP("Q4 2019",Translation!$A$1:$C$354, Translation!$A$1+1, 0) -> T4 2019 | D17: =VLOOKUP("Q3 2019",Translation!$A$1:$C$354, Translation!$A$1+1, 0) -> T3 2019 | E17: =VLOOKUP("Q2 2019",Translation!$A$1:$C$354, Translation!$A$1+1, 0) -> T2 2019 | F17: =VLOOKUP("Q1 2019",Translation!$A$1:$C$354, Translation!$A$1+1, 0) -> T1 2019 | G17: =VLOOKUP("Q4 2018",Translation!$A$1:$C$354, Translation!$A$1+1, 0) -> T4 2018 | H17: =VLOOKUP("Q3 2018",Translation!$A$1:$C$354, Translation!$A$1+1, 0) -> T3 2018 | I17: =VLOOKUP("Q2 2018",Translation!$A$1:$C$354, Translation!$A$1+1, 0) -> T2 2018 | J17: =VLOOKUP("YTD 2020",Translation!$A$1:$C$354, Translation!$A$1+1, 0) -> Cumul 2020 | K17: =VLOOKUP("YTD 2019",Translation!$A$1:$C$354, Translation!$A$1+1, 0) -> Cumul 2019
A18: =VLOOKUP("Newfoundland and Labrador",Translation!$A$1:$C$354, Translation!A1+1, 0) -> Terre-Neuve-et-Labrador | B18: =SUMIFS(Data!$E:$E,Data!$B:$B,'3'!B$17,Data!$C:$C,"ALL",Data!$D:$D,'3'!$A18,Data!$F:$F,'3'!$A$16) -> 0.4797152666 | C18: =SUMIFS(Data!$E:$E,Data!$B:$B,'3'!C$17,Data!$C:$C,"ALL",Data!$D:$D,'3'!$A18,Data!$F:$F,'3'!$A$16) -> 0.7006076435 | D18: =SUMIFS(Data!$E:$E,Data!$B:$B,'3'!D$17,Data!$C:$C,"ALL",Data!$D:$D,'3'!$A18,Data!$F:$F,'3'!$A$16) -> 0.6464649162 | E18: =SUMIFS(Data!$E:$E,Data!$B:$B,'3'!E$17,Data!$C:$C,"ALL",Data!$D:$D,'3'!$A18,Data!$F:$F,'3'!$A$16) -> 0.6416605055 | F18: =SUMIFS(Data!$E:$E,Data!$B:$B,'3'!F$17,Data!$C:$C,"ALL",Data!$D:$D,'3'!$A18,Data!$F:$F,'3'!$A$16) -> 0.6570043429 | G18: =SUMIFS(Data!$E:$E,Data!$B:$B,'3'!G$17,Data!$C:$C,"ALL",Data!$D:$D,'3'!$A18,Data!$F:$F,'3'!$A$16) -> 0.7016942983 | H18: =SUMIFS(Data!$E:$E,Data!$B:$B,'3'!H$17,Data!$C:$C,"ALL",Data!$D:$D,'3'!$A18,Data!$F:$F,'3'!$A$16) -> 1.018892064 | I18: =SUMIFS(Data!$E:$E,Data!$B:$B,'3'!I$17,Data!$C:$C,"ALL",Data!$D:$D,'3'!$A18,Data!$F:$F,'3'!$A$16) -> 0.6786572632 | J18: =SUMIFS(Data!$E:$E,Data!$B:$B,'3'!J$17,Data!$C:$C,"ALL",Data!$D:$D,'3'!$A18,Data!$F:$F,'3'!$A$16) -> 0.4797152666 | K18: =SUMIFS(Data!$E:$E,Data!$B:$B,'3'!K$17,Data!$C:$C,"ALL",Data!$D:$D,'3'!$A18,Data!$F:$F,'3'!$A$16) -> 0.6570043429
A19: =VLOOKUP("Prince Edward Island",Translation!$A$1:$C$354, Translation!A1+1, 0) -> Île-du-Prince-Édouard | B19: =SUMIFS(Data!$E:$E,Data!$B:$B,'3'!B$17,Data!$C:$C,"ALL",Data!$D:$D,'3'!$A19,Data!$F:$F,'3'!$A$16) -> 0.1778775178 | C19: =SUMIFS(Data!$E:$E,Data!$B:$B,'3'!C$17,Data!$C:$C,"ALL",Data!$D:$D,'3'!$A19,Data!$F:$F,'3'!$A$16) -> 0.4844418093 | D19: =SUMIFS(Data!$E:$E,Data!$B:$B,'3'!D$17,Data!$C:$C,"ALL",Data!$D:$D,'3'!$A19,Data!$F:$F,'3'!$A$16) -> 0.2808060946 | E19: =SUMIFS(Data!$E:$E,Data!$B:$B,'3'!E$17,Data!$C:$C,"ALL",Data!$D:$D,'3'!$A19,Data!$F:$F,'3'!$A$16) -> 0.2375161055 | F19: =SUMIFS(Data!$E:$E,Data!$B:$B,'3'!F$17,Data!$C:$C,"ALL",Data!$D:$D,'3'!$A19,Data!$F:$F,'3'!$A$16) -> 0.2339944559 | G19: =SUMIFS(Data!E:E,Data!B:B,'3'!G$17,Data!C:C,"ALL",Data!D:D,'3'!A19,Data!F:F,'3'!$A$16) -> 0.2764369487 | H19: =SUMIFS(Data!$E:$E,Data!$B:$B,'3'!H$17,Data!$C:$C,"ALL",Data!$D:$D,'3'!$A19,Data!$F:$F,'3'!$A$16) -> 0.3541358561 | I19: =SUMIFS(Data!$E:$E,Data!$B:$B,'3'!I$17,Data!$C:$C,"ALL",Data!$D:$D,'3'!$A19,Data!$F:$F,'3'!$A$16) -> 0.2245615028 | J19: =SUMIFS(Data!$E:$E,Data!$B:$B,'3'!J$17,Data!$C:$C,"ALL",Data!$D:$D,'3'!$A19,Data!$F:$F,'3'!$A$16) -> 0.1778775178 | K19: =SUMIFS(Data!$E:$E,Data!$B:$B,'3'!K$17,Data!$C:$C,"ALL",Data!$D:$D,'3'!$A19,Data!$F:$F,'3'!$A$16) -> 0.2339944559
A20: =VLOOKUP("Nova Scotia",Translation!$A$1:$C$354, Translation!A1+1, 0) -> Nouvelle-Écosse | B20: =SUMIFS(Data!$E:$E,Data!$B:$B,'3'!B$17,Data!$C:$C,"ALL",Data!$D:$D,'3'!$A20,Data!$F:$F,'3'!$A$16) -> 2.211109521 | C20: =SUMIFS(Data!$E:$E,Data!$B:$B,'3'!C$17,Data!$C:$C,"ALL",Data!$D:$D,'3'!$A20,Data!$F:$F,'3'!$A$16) -> 3.021967274 | D20: =SUMIFS(Data!$E:$E,Data!$B:$B,'3'!D$17,Data!$C:$C,"ALL",Data!$D:$D,'3'!$A20,Data!$F:$F,'3'!$A$16) -> 3.114723168 | E20: =SUMIFS(Data!$E:$E,Data!$B:$B,'3'!E$17,Data!$C:$C,"ALL",Data!$D:$D,'3'!$A20,Data!$F:$F,'3'!$A$16) -> 2.849121566 | F20: =SUMIFS(Data!$E:$E,Data!$B:$B,'3'!F$17,Data!$C:$C,"ALL",Data!$D:$D,'3'!$A20,Data!$F:$F,'3'!$A$16) -> 2.410400647 | G20: =SUMIFS(Data!E:E,Data!B:B,'3'!G$17,Data!C:C,"ALL",Data!D:D,'3'!A20,Data!F:F,'3'!$A$16) -> 3.384265663 | H20: =SUMIFS(Data!$E:$E,Data!$B:$B,'3'!H$17,Data!$C:$C,"ALL",Data!$D:$D,'3'!$A20,Data!$F:$F,'3'!$A$16) -> 3.506162854 | I20: =SUMIFS(Data!$E:$E,Data!$B:$B,'3'!I$17,Data!$C:$C,"ALL",Data!$D:$D,'3'!$A20,Data!$F:$F,'3'!$A$16) -> 3.786738799 | J20: =SUMIFS(Data!$E:$E,Data!$B:$B,'3'!J$17,Data!$C:$C,"ALL",Data!$D:$D,'3'!$A20,Data!$F:$F,'3'!$A$16) -> 2.211109521 | K20: =SUMIFS(Data!$E:$E,Data!$B:$B,'3'!K$17,Data!$C:$C,"ALL",Data!$D:$D,'3'!$A20,Data!$F:$F,'3'!$A$16) -> 2.410400647
A21: =VLOOKUP("New Brunswick",Translation!$A$1:$C$354, Translation!A1+1, 0) -> Nouveau-Brunswick | B21: =SUMIFS(Data!$E:$E,Data!$B:$B,'3'!B$17,Data!$C:$C,"ALL",Data!$D:$D,'3'!$A21,Data!$F:$F,'3'!$A$16) -> 1.471084828 | C21: =SUMIFS(Data!$E:$E,Data!$B:$B,'3'!C$17,Data!$C:$C,"ALL",Data!$D:$D,'3'!$A21,Data!$F:$F,'3'!$A$16) -> 1.432741804 | D21: =SUMIFS(Data!$E:$E,Data!$B:$B,'3'!D$17,Data!$C:$C,"ALL",Data!$D:$D,'3'!$A21,Data!$F:$F,'3'!$A$16) -> 1.832324125 | E21: =SUMIFS(Data!$E:$E,Data!$B:$B,'3'!E$17,Data!$C:$C,"ALL",Data!$D:$D,'3'!$A21,Data!$F:$F,'3'!$A$16) -> 1.592623614 | F21: =SUMIFS(Data!$E:$E,Data!$B:$B,'3'!F$17,Data!$C:$C,"ALL",Data!$D:$D,'3'!$A21,Data!$F:$F,'3'!$A$16) -> 1.277567298 | G21: =SUMIFS(Data!E:E,Data!B:B,'3'!G$17,Data!C:C,"ALL",Data!D:D,'3'!A21,Data!F:F,'3'!$A$16) -> 1.501661873 | H21: =SUMIFS(Data!$E:$E,Data!$B:$B,'3'!H$17,Data!$C:$C,"ALL",Data!$D:$D,'3'!$A21,Data!$F:$F,'3'!$A$16) -> 1.578205655 | I21: =SUMIFS(Data!$E:$E,Data!$B:$B,'3'!I$17,Data!$C:$C,"ALL",Data!$D:$D,'3'!$A21,Data!$F:$F,'3'!$A$16) -> 1.299840268 | J21: =SUMIFS(Data!$E:$E,Data!$B:$B,'3'!J$17,Data!$C:$C,"ALL",Data!$D:$D,'3'!$A21,Data!$F:$F,'3'!$A$16) -> 1.471084828 | K21: =SUMIFS(Data!$E:$E,Data!$B:$B,'3'!K$17,Data!$C:$C,"ALL",Data!$D:$D,'3'!$A21,Data!$F:$F,'3'!$A$16) -> 1.277567298
A22: =VLOOKUP("Quebec",Translation!$A$1:$C$354, Translation!A1+1, 0) -> Québec | B22: =SUMIFS(Data!$E:$E,Data!$B:$B,'3'!B$17,Data!$C:$C,"ALL",Data!$D:$D,'3'!$A22,Data!$F:$F,'3'!$A$16) -> 23.99456128 | C22: =SUMIFS(Data!$E:$E,Data!$B:$B,'3'!C$17,Data!$C:$C,"ALL",Data!$D:$D,'3'!$A22,Data!$F:$F,'3'!$A$16) -> 23.91300316 | D22: =SUMIFS(Data!$E:$E,Data!$B:$B,'3'!D$17,Data!$C:$C,"ALL",Data!$D:$D,'3'!$A22,Data!$F:$F,'3'!$A$16) -> 23.81243357 | E22: =SUMIFS(Data!$E:$E,Data!$B:$B,'3'!E$17,Data!$C:$C,"ALL",Data!$D:$D,'3'!$A22,Data!$F:$F,'3'!$A$16) -> 34.04682459 | F22: =SUMIFS(Data!$E:$E,Data!$B:$B,'3'!F$17,Data!$C:$C,"ALL",Data!$D:$D,'3'!$A22,Data!$F:$F,'3'!$A$16) -> 23.25361493 | G22: =SUMIFS(Data!E:E,Data!B:B,'3'!G$17,Data!C:C,"ALL",Data!D:D,'3'!A22,Data!F:F,'3'!$A$16) -> 24.28408184 | H22: =SUMIFS(Data!$E:$E,Data!$B:$B,'3'!H$17,Data!$C:$C,"ALL",Data!$D:$D,'3'!$A22,Data!$F:$F,'3'!$A$16) -> 21.96447886 | I22: =SUMIFS(Data!$E:$E,Data!$B:$B,'3'!I$17,Data!$C:$C,"ALL",Data!$D:$D,'3'!$A22,Data!$F:$F,'3'!$A$16) -> 32.07556328 | J22: =SUMIFS(Data!$E:$E,Data!$B:$B,'3'!J$17,Data!$C:$C,"ALL",Data!$D:$D,'3'!$A22,Data!$F:$F,'3'!$A$16) -> 23.99456128 | K22: =SUMIFS(Data!$E:$E,Data!$B:$B,'3'!K$17,Data!$C:$C,"ALL",Data!$D:$D,'3'!$A22,Data!$F:$F,'3'!$A$16) -> 23.25361493
A23: =VLOOKUP("Ontario",Translation!$A$1:$C$354, Translation!A1+1, 0) -> Ontario | B23: =SUMIFS(Data!$E:$E,Data!$B:$B,'3'!B$17,Data!$C:$C,"ALL",Data!$D:$D,'3'!$A23,Data!$F:$F,'3'!$A$16) -> 40.29440699 | C23: =SUMIFS(Data!$E:$E,Data!$B:$B,'3'!C$17,Data!$C:$C,"ALL",Data!$D:$D,'3'!$A23,Data!$F:$F,'3'!$A$16) -> 39.99847842 | D23: =SUMIFS(Data!$E:$E,Data!$B:$B,'3'!D$17,Data!$C:$C,"ALL",Data!$D:$D,'3'!$A23,Data!$F:$F,'3'!$A$16) -> 36.70249227 | E23: =SUMIFS(Data!$E:$E,Data!$B:$B,'3'!E$17,Data!$C:$C,"ALL",Data!$D:$D,'3'!$A23,Data!$F:$F,'3'!$A$16) -> 30.47815992 | F23: =SUMIFS(Data!$E:$E,Data!$B:$B,'3'!F$17,Data!$C:$C,"ALL",Data!$D:$D,'3'!$A23,Data!$F:$F,'3'!$A$16) -> 40.35150438 | G23: =SUMIFS(Data!E:E,Data!B:B,'3'!G$17,Data!C:C,"ALL",Data!D:D,'3'!A23,Data!F:F,'3'!$A$16) -> 35.6052578 | H23: =SUMIFS(Data!$E:$E,Data!$B:$B,'3'!H$17,Data!$C:$C,"ALL",Data!$D:$D,'3'!$A23,Data!$F:$F,'3'!$A$16) -> 37.63366152 | I23: =SUMIFS(Data!$E:$E,Data!$B:$B,'3'!I$17,Data!$C:$C,"ALL",Data!$D:$D,'3'!$A23,Data!$F:$F,'3'!$A$16) -> 32.62004871 | J23: =SUMIFS(Data!$E:$E,Data!$B:$B,'3'!J$17,Data!$C:$C,"ALL",Data!$D:$D,'3'!$A23,Data!$F:$F,'3'!$A$16) -> 40.29440699 | K23: =SUMIFS(Data!$E:$E,Data!$B:$B,'3'!K$17,Data!$C:$C,"ALL",Data!$D:$D,'3'!$A23,Data!$F:$F,'3'!$A$16) -> 40.35150438
A24: =VLOOKUP("Manitoba",Translation!$A$1:$C$354, Translation!A1+1, 0) -> Manitoba | B24: =SUMIFS(Data!$E:$E,Data!$B:$B,'3'!B$17,Data!$C:$C,"ALL",Data!$D:$D,'3'!$A24,Data!$F:$F,'3'!$A$16) -> 3.889439285 | C24: =SUMIFS(Data!$E:$E,Data!$B:$B,'3'!C$17,Data!$C:$C,"ALL",Data!$D:$D,'3'!$A24,Data!$F:$F,'3'!$A$16) -> 3.784064826 | D24: =SUMIFS(Data!$E:$E,Data!$B:$B,'3'!D$17,Data!$C:$C,"ALL",Data!$D:$D,'3'!$A24,Data!$F:$F,'3'!$A$16) -> 4.819203987 | E24: =SUMIFS(Data!$E:$E,Data!$B:$B,'3'!E$17,Data!$C:$C,"ALL",Data!$D:$D,'3'!$A24,Data!$F:$F,'3'!$A$16) -> 2.972437364 | F24: =SUMIFS(Data!$E:$E,Data!$B:$B,'3'!F$17,Data!$C:$C,"ALL",Data!$D:$D,'3'!$A24,Data!$F:$F,'3'!$A$16) -> 2.83293906 | G24: =SUMIFS(Data!E:E,Data!B:B,'3'!G$17,Data!C:C,"ALL",Data!D:D,'3'!A24,Data!F:F,'3'!$A$16) -> 3.684035902 | H24: =SUMIFS(Data!$E:$E,Data!$B:$B,'3'!H$17,Data!$C:$C,"ALL",Data!$D:$D,'3'!$A24,Data!$F:$F,'3'!$A$16) -> 4.176054204 | I24: =SUMIFS(Data!$E:$E,Data!$B:$B,'3'!I$17,Data!$C:$C,"ALL",Data!$D:$D,'3'!$A24,Data!$F:$F,'3'!$A$16) -> 2.810307538 | J24: =SUMIFS(Data!$E:$E,Data!$B:$B,'3'!J$17,Data!$C:$C,"ALL",Data!$D:$D,'3'!$A24,Data!$F:$F,'3'!$A$16) -> 3.889439285 | K24: =SUMIFS(Data!$E:$E,Data!$B:$B,'3'!K$17,Data!$C:$C,"ALL",Data!$D:$D,'3'!$A24,Data!$F:$F,'3'!$A$16) -> 2.83293906
A25: =VLOOKUP("Saskatchewan",Translation!$A$1:$C$354, Translation!A1+1, 0) -> Saskatchewan | B25: =SUMIFS(Data!$E:$E,Data!$B:$B,'3'!B$17,Data!$C:$C,"ALL",Data!$D:$D,'3'!$A25,Data!$F:$F,'3'!$A$16) -> 2.22984259 | C25: =SUMIFS(Data!$E:$E,Data!$B:$B,'3'!C$17,Data!$C:$C,"ALL",Data!$D:$D,'3'!$A25,Data!$F:$F,'3'!$A$16) -> 2.751036458 | D25: =SUMIFS(Data!$E:$E,Data!$B:$B,'3'!D$17,Data!$C:$C,"ALL",Data!$D:$D,'3'!$A25,Data!$F:$F,'3'!$A$16) -> 1.817958436 | E25: =SUMIFS(Data!$E:$E,Data!$B:$B,'3'!E$17,Data!$C:$C,"ALL",Data!$D:$D,'3'!$A25,Data!$F:$F,'3'!$A$16) -> 2.224546686 | F25: =SUMIFS(Data!$E:$E,Data!$B:$B,'3'!F$17,Data!$C:$C,"ALL",Data!$D:$D,'3'!$A25,Data!$F:$F,'3'!$A$16) -> 2.284576579 | G25: =SUMIFS(Data!E:E,Data!B:B,'3'!G$17,Data!C:C,"ALL",Data!D:D,'3'!A25,Data!F:F,'3'!$A$16) -> 2.304151598 | H25: =SUMIFS(Data!$E:$E,Data!$B:$B,'3'!H$17,Data!$C:$C,"ALL",Data!$D:$D,'3'!$A25,Data!$F:$F,'3'!$A$16) -> 2.181385325 | I25: =SUMIFS(Data!$E:$E,Data!$B:$B,'3'!I$17,Data!$C:$C,"ALL",Data!$D:$D,'3'!$A25,Data!$F:$F,'3'!$A$16) -> 2.471983181 | J25: =SUMIFS(Data!$E:$E,Data!$B:$B,'3'!J$17,Data!$C:$C,"ALL",Data!$D:$D,'3'!$A25,Data!$F:$F,'3'!$A$16) -> 2.22984259 | K25: =SUMIFS(Data!$E:$E,Data!$B:$B,'3'!K$17,Data!$C:$C,"ALL",Data!$D:$D,'3'!$A25,Data!$F:$F,'3'!$A$16) -> 2.284576579
A26: =VLOOKUP("Alberta",Translation!$A$1:$C$354, Translation!A1+1, 0) -> Alberta | B26: =SUMIFS(Data!$E:$E,Data!$B:$B,'3'!B$17,Data!$C:$C,"ALL",Data!$D:$D,'3'!$A26,Data!$F:$F,'3'!$A$16) -> 11.96076534 | C26: =SUMIFS(Data!$E:$E,Data!$B:$B,'3'!C$17,Data!$C:$C,"ALL",Data!$D:$D,'3'!$A26,Data!$F:$F,'3'!$A$16) -> 12.24332917 | D26: =SUMIFS(Data!$E:$E,Data!$B:$B,'3'!D$17,Data!$C:$C,"ALL",Data!$D:$D,'3'!$A26,Data!$F:$F,'3'!$A$16) -> 11.60985141 | E26: =SUMIFS(Data!$E:$E,Data!$B:$B,'3'!E$17,Data!$C:$C,"ALL",Data!$D:$D,'3'!$A26,Data!$F:$F,'3'!$A$16) -> 11.62408325 | F26: =SUMIFS(Data!$E:$E,Data!$B:$B,'3'!F$17,Data!$C:$C,"ALL",Data!$D:$D,'3'!$A26,Data!$F:$F,'3'!$A$16) -> 13.07068131 | G26: =SUMIFS(Data!E:E,Data!B:B,'3'!G$17,Data!C:C,"ALL",Data!D:D,'3'!A26,Data!F:F,'3'!$A$16) -> 13.6366249 | H26: =SUMIFS(Data!$E:$E,Data!$B:$B,'3'!H$17,Data!$C:$C,"ALL",Data!$D:$D,'3'!$A26,Data!$F:$F,'3'!$A$16) -> 13.77764988 | I26: =SUMIFS(Data!$E:$E,Data!$B:$B,'3'!I$17,Data!$C:$C,"ALL",Data!$D:$D,'3'!$A26,Data!$F:$F,'3'!$A$16) -> 12.24410407 | J26: =SUMIFS(Data!$E:$E,Data!$B:$B,'3'!J$17,Data!$C:$C,"ALL",Data!$D:$D,'3'!$A26,Data!$F:$F,'3'!$A$16) -> 11.96076534 | K26: =SUMIFS(Data!$E:$E,Data!$B:$B,'3'!K$17,Data!$C:$C,"ALL",Data!$D:$D,'3'!$A26,Data!$F:$F,'3'!$A$16) -> 13.07068131
A27: =VLOOKUP("British Columbia",Translation!$A$1:$C$354, Translation!A1+1, 0) -> Colombie-Britannique | B27: =SUMIFS(Data!$E:$E,Data!$B:$B,'3'!B$17,Data!$C:$C,"ALL",Data!$D:$D,'3'!$A27,Data!$F:$F,'3'!$A$16) -> 13.09546451 | C27: =SUMIFS(Data!$E:$E,Data!$B:$B,'3'!C$17,Data!$C:$C,"ALL",Data!$D:$D,'3'!$A27,Data!$F:$F,'3'!$A$16) -> 11.18779975 | D27: =SUMIFS(Data!$E:$E,Data!$B:$B,'3'!D$17,Data!$C:$C,"ALL",Data!$D:$D,'3'!$A27,Data!$F:$F,'3'!$A$16) -> 14.70184696 | E27: =SUMIFS(Data!$E:$E,Data!$B:$B,'3'!E$17,Data!$C:$C,"ALL",Data!$D:$D,'3'!$A27,Data!$F:$F,'3'!$A$16) -> 12.93266323 | F27: =SUMIFS(Data!$E:$E,Data!$B:$B,'3'!F$17,Data!$C:$C,"ALL",Data!$D:$D,'3'!$A27,Data!$F:$F,'3'!$A$16) -> 13.18511974 | G27: =SUMIFS(Data!E:E,Data!B:B,'3'!G$17,Data!C:C,"ALL",Data!D:D,'3'!A27,Data!F:F,'3'!$A$16) -> 14.17910404 | H27: =SUMIFS(Data!$E:$E,Data!$B:$B,'3'!H$17,Data!$C:$C,"ALL",Data!$D:$D,'3'!$A27,Data!$F:$F,'3'!$A$16) -> 13.28249952 | I27: =SUMIFS(Data!$E:$E,Data!$B:$B,'3'!I$17,Data!$C:$C,"ALL",Data!$D:$D,'3'!$A27,Data!$F:$F,'3'!$A$16) -> 11.45911997 | J27: =SUMIFS(Data!$E:$E,Data!$B:$B,'3'!J$17,Data!$C:$C,"ALL",Data!$D:$D,'3'!$A27,Data!$F:$F,'3'!$A$16) -> 13.09546451 | K27: =SUMIFS(Data!$E:$E,Data!$B:$B,'3'!K$17,Data!$C:$C,"ALL",Data!$D:$D,'3'!$A27,Data!$F:$F,'3'!$A$16) -> 13.18511974
A28: =VLOOKUP("Territories",Translation!$A$1:$C$354, Translation!A1+1, 0) -> Territoires | B28: =SUMIFS(Data!$E:$E,Data!$B:$B,'3'!B$17,Data!$C:$C,"ALL",Data!$D:$D,'3'!$A28,Data!$F:$F,'3'!$A$16) -> 0.1957328763 | C28: =SUMIFS(Data!$E:$E,Data!$B:$B,'3'!C$17,Data!$C:$C,"ALL",Data!$D:$D,'3'!$A28,Data!$F:$F,'3'!$A$16) -> 0.4825296948 | D28: =SUMIFS(Data!$E:$E,Data!$B:$B,'3'!D$17,Data!$C:$C,"ALL",Data!$D:$D,'3'!$A28,Data!$F:$F,'3'!$A$16) -> 0.6618950667 | E28: =SUMIFS(Data!$E:$E,Data!$B:$B,'3'!E$17,Data!$C:$C,"ALL",Data!$D:$D,'3'!$A28,Data!$F:$F,'3'!$A$16) -> 0.400363176 | F28: =SUMIFS(Data!$E:$E,Data!$B:$B,'3'!F$17,Data!$C:$C,"ALL",Data!$D:$D,'3'!$A28,Data!$F:$F,'3'!$A$16) -> 0.442597261 | G28: =SUMIFS(Data!E:E,Data!B:B,'3'!G$17,Data!C:C,"ALL",Data!D:D,'3'!A28,Data!F:F,'3'!$A$16) -> 0.4426851394 | H28: =SUMIFS(Data!$E:$E,Data!$B:$B,'3'!H$17,Data!$C:$C,"ALL",Data!$D:$D,'3'!$A28,Data!$F:$F,'3'!$A$16) -> 0.5268742548 | I28: =SUMIFS(Data!$E:$E,Data!$B:$B,'3'!I$17,Data!$C:$C,"ALL",Data!$D:$D,'3'!$A28,Data!$F:$F,'3'!$A$16) -> 0.3290754065 | J28: =SUMIFS(Data!$E:$E,Data!$B:$B,'3'!J$17,Data!$C:$C,"ALL",Data!$D:$D,'3'!$A28,Data!$F:$F,'3'!$A$16) -> 0.1957328763 | K28: =SUMIFS(Data!$E:$E,Data!$B:$B,'3'!K$17,Data!$C:$C,"ALL",Data!$D:$D,'3'!$A28,Data!$F:$F,'3'!$A$16) -> 0.442597261
A29: =VLOOKUP("Distributions do not include substitutions volumes for Portfolio insurance.",Translation!$A$1:$C$354, Translation!A1+1, 0) -> La répartition des prêts hypothécaires pour l'assurance de portefeuille ne comprend pas les prêts de remplacement.
A30: =VLOOKUP("Distribution based on loan amounts, not number of loans.",Translation!$A$1:$C$354, Translation!A1+1, 0) -> La répartition est établie d'après le montant, plutôt que le nombre de prêts assurés.
A31: =VLOOKUP("The sum of all breakdown categories may not add up to 100 due to rounding.",Translation!$A$1:$C$354, Translation!A1+1, 0) -> Les chiffres ayant été arrondis, il se peut que la somme de l'ensemble des catégories n'égale pas 100 %.

Sheet 4
A1: =VLOOKUP("NATIONAL INSURED VOLUMES",Translation!$A$1:$C$354, Translation!A1+1, 0) -> VOLUME DE PRÊTS ASSURÉS À L’ÉCHELLE NATIONALE | H1: =VLOOKUP("Back to Table of Contents",Translation!$A$1:$C$354, Translation!A1+1, 0) -> Retour à la table des matières
A2: =VLOOKUP("Insurance-in-force",Translation!$A$1:$C$354, Translation!A1+1, 0) -> Contrats d’assurance en vigueur
B3: =VLOOKUP("As at",Translation!$A$1:$C$354,Translation!A1+1,0) -> Aux
B4: Q1 2020 | C4: Q4 2019 | D4: Q3 2019 | E4: Q2 2019 | F4: =VLOOKUP("Q1 2019",Translation!$A$1:$C$354, Translation!$A$1+1, 0) -> T1 2019 | G4: =VLOOKUP("Q4 2018",Translation!$A$1:$C$354, Translation!$A$1+1, 0) -> T4 2018 | H4: =VLOOKUP("Q3 2018",Translation!$A$1:$C$354, Translation!$A$1+1, 0) -> T3 2018 | I4: =VLOOKUP("Q2 2018",Translation!$A$1:$C$354, Translation!$A$1+1, 0) -> T2 2018 | J4: =VLOOKUP("Q1 2018",Translation!$A$1:$C$354, Translation!$A$1+1, 0) -> T1 2018 | K4: =VLOOKUP("Q4 2017",Translation!$A$1:$C$354, Translation!$A$1+1, 0) -> T4 2017 | L4: =VLOOKUP("Q3 2017",Translation!$A$1:$C$354, Translation!$A$1+1, 0) -> T3 2017
A5: =VLOOKUP("Insurance-in-force (loans)",Translation!$A$1:$C$354, Translation!A1+1, 0) -> Contrats d’assurance en vigueur (nbre de prêts assurés) | B5: 1967973 | C5: 2006248 | D5: 2048381 | E5: 2103278 | F5: 2145089 | G5: 2181243 | H5: 2225339 | I5: 2287241 | J5: 2302564 | K5: 2348404 | L5: 2381499
A6: =VLOOKUP("Transactional Homeowner ",Translation!$A$1:$C$354, Translation!A1+1, 0) -> Propriétaires-occupants, à l’unité | B6: 1118848.687 | C6: 1131863.888 | D6: 1146990.873 | E6: 1164077.478 | F6: 1179095.402 | G6: 1193186.089 | H6: 1209439.6 | I6: 1226488.744 | J6: 1242575.736 | K6: 1262211.189 | L6: 1278288.698
A7: =VLOOKUP("Portfolio ",Translation!$A$1:$C$354, Translation!A1+1, 0) -> Assurance de portefeuille | B7: 824421 | C7: 849965 | D7: 877105 | E7: 915101 | F7: 942176 | G7: 964331 | H7: 992417 | I7: 1037343 | J7: 1036519 | K7: 1064056 | L7: 1080263
A8: =PROPER(VLOOKUP("Multi-Unit Residential",Translation!$A$1:$C$354, Translation!A1+1, 0)) -> Immeubles Collectifs Résidentiels | B8: 24703.31317 | C8: 24419.11229 | D8: 24285.12663 | E8: 24099.52213 | F8: 23817.59786 | G8: 23725.91064 | H8: 23482.40017 | I8: 23409.25618 | J8: 23469.26395 | K8: 22136.81074 | L8: 22947.30208
A9: =VLOOKUP("Insurance-in-force ($B)",Translation!$A$1:$C$354, Translation!A1+1, 0) -> Contrats d’assurance en vigueur (G$) | B9: 425 | C9: 428.5607712 | D9: 432.8116301 | E9: 439 | F9: 442 | G9: 448 | H9: 452.5749993 | I9: 463 | J9: 472.4156219 | K9: 480.4271324 | L9: 484.3682878
A10: =VLOOKUP("Transactional Homeowner ",Translation!$A$1:$C$354, Translation!A1+1, 0) -> Propriétaires-occupants, à l’unité | B10: 225 | C10: 227.2126158 | D10: 229.2475746 | E10: 231 | F10: 234 | G10: 236 | H10: 239.6753526 | I10: 242 | J10: 244.7390797 | K10: 249 | L10: 252.108334
A11: =VLOOKUP("Portfolio ",Translation!$A$1:$C$354, Translation!A1+1, 0) -> Assurance de portefeuille | B11: 112 | C11: 117 | D11: 120.9829255 | E11: 128 | F11: 132 | G11: 136 | H11: 140.8463397 | I11: 149 | J11: 156.0190278 | K11: 161.639185 | L11: 165.0859127
A12: =PROPER(VLOOKUP("Multi-Unit Residential",Translation!$A$1:$C$354, Translation!A1+1, 0)) -> Immeubles Collectifs Résidentiels | B12: 88 | C12: 84.86354852 | D12: 82.58113002 | E12: 80 | F12: 76 | G12: 76 | H12: 72.05330692 | I12: 72 | J12: 71.65751439 | K12: 69.08137304 | L12: 67.17404117
A13: =VLOOKUP("Insurance In-force product level dollar amounts have been rounded to add up to the total insurance in-force.",Translation!$A$1:$C$354, Translation!A1+1, 0) -> Les montants des produits d’assurance en vigueur ont été arrondis de manière à correspondre au total des contrats d’assurance en vigueur.
A14: =VLOOKUP("Insurance-in-force by province (%)",Translation!$A$1:$C$354, Translation!A1+1, 0) -> Contrats d’assurance en vigueur selon la province (%)
B15: =VLOOKUP("As at",Translation!$A$1:$C$354,Translation!A1+1,0) -> Aux
B16: Q1 2020 | C16: =C4 -> Q4 2019 | D16: =D4 -> Q3 2019 | E16: =E4 -> Q2 2019 | F16: =VLOOKUP("Q1 2019",Translation!$A$1:$C$354, Translation!A1+1, 0) -> T1 2019 | G16: =VLOOKUP("Q4 2018",Translation!$A$1:$C$354, Translation!A1+1, 0) -> T4 2018 | H16: =VLOOKUP("Q3 2018",Translation!$A$1:$C$354, Translation!A1+1, 0) -> T3 2018 | I16: =VLOOKUP("Q2 2018",Translation!$A$1:$C$354, Translation!A1+1, 0) -> T2 2018 | J16: =VLOOKUP("Q1 2018",Translation!$A$1:$C$354, Translation!A1+1, 0) -> T1 2018 | K16: =VLOOKUP("Q4 2017",Translation!$A$1:$C$354, Translation!A1+1, 0) -> T4 2017 | L16: =VLOOKUP("Q3 2017",Translation!$A$1:$C$354, Translation!A1+1, 0) -> T3 2017
A17: =VLOOKUP("Newfoundland and Labrador",Translation!$A$1:$C$354, Translation!A1+1, 0) -> Terre-Neuve-et-Labrador | B17: 1.182298662 | C17: 1.191361495 | D17: 1.192493558 | E17: 1.203049298 | F17: 1.211291692 | G17: 1.21993436 | H17: 1.227282882 | I17: 1.223678285 | J17: 1.223956292 | K17: 1.226326077 | L17: 1.230682327
A18: =VLOOKUP("Prince Edward Island",Translation!$A$1:$C$354, Translation!A1+1, 0) -> Île-du-Prince-Édouard | B18: 0.2585823682 | C18: 0.2595487104 | D18: 0.2590908735 | E18: 0.2600906957 | F18: 0.2623709167 | G18: 0.2640134983 | H18: 0.2654177677 | I18: 0.2624093864 | J18: 0.2655871269 | K18: 0.2629916467 | L18: 0.2668169442
A19: =VLOOKUP("Nova Scotia",Translation!$A$1:$C$354, Translation!A1+1, 0) -> Nouvelle-Écosse | B19: 2.739064225 | C19: 2.738975439 | D19: 2.693882579 | E19: 2.672316691 | F19: 2.655245891 | G19: 2.639154103 | H19: 2.625784016 | I19: 2.588623888 | J19: 2.524566138 | K19: 2.465710904 | L19: 2.462023602
A20: =VLOOKUP("New Brunswick",Translation!$A$1:$C$354, Translation!A1+1, 0) -> Nouveau-Brunswick | B20: 1.559415336 | C20: 1.563221877 | D20: 1.566098611 | E20: 1.562976608 | F20: 1.561628593 | G20: 1.558754057 | H20: 1.565319261 | I20: 1.551013331 | J20: 1.547222932 | K20: 1.541967807 | L20: 1.553288376
A21: =VLOOKUP("Quebec",Translation!$A$1:$C$354, Translation!A1+1, 0) -> Québec | B21: 21.72910588 | C21: 21.55106852 | D21: 21.36092413 | E21: 21.21868193 | F21: 20.78077842 | G21: 20.77831675 | H21: 20.53720555 | I21: 20.47471861 | J21: 20.18419492 | K21: 20.01792231 | L21: 19.87351445
A22: =VLOOKUP("Ontario",Translation!$A$1:$C$354, Translation!A1+1, 0) -> Ontario | B22: 34.6724491 | C22: 34.82141182 | D22: 35.10690842 | E22: 35.38099271 | F22: 35.707703 | G22: 35.71059303 | H22: 35.93220981 | I22: 36.21125443 | J22: 36.5649451 | K22: 36.89120619 | L22: 36.84548683
A23: =VLOOKUP("Manitoba",Translation!$A$1:$C$354, Translation!A1+1, 0) -> Manitoba | B23: 3.194151874 | C23: 3.152076543 | D23: 3.139337362 | E23: 3.066687229 | F23: 3.031640497 | G23: 3.008785958 | H23: 3.024465089 | I23: 2.982291825 | J23: 2.941719648 | K23: 2.879301509 | L23: 2.882785461
A24: =VLOOKUP("Saskatchewan",Translation!$A$1:$C$354, Translation!A1+1, 0) -> Saskatchewan | B24: 2.878888244 | C24: 2.87609899 | D24: 2.854406247 | E24: 2.85221631 | F24: 2.854573162 | G24: 2.845082834 | H24: 2.845372067 | I24: 2.809919134 | J24: 2.793063727 | K24: 2.781473675 | L24: 2.767126648
A25: =VLOOKUP("Alberta",Translation!$A$1:$C$354, Translation!A1+1, 0) -> Alberta | B25: 18.26345561 | C25: 18.22218937 | D25: 18.174415 | E25: 18.09088829 | F25: 18.2337076 | G25: 18.18583856 | H25: 18.13243553 | I25: 17.99976159 | J25: 17.89549132 | K25: 17.78431158 | L25: 17.79392399
A26: =VLOOKUP("British Columbia",Translation!$A$1:$C$354, Translation!A1+1, 0) -> Colombie-Britannique | B26: 13.0924419 | C26: 13.19080528 | D26: 13.22335621 | E26: 13.26880375 | F26: 13.27663953 | G26: 13.36637606 | H26: 13.42209279 | I26: 13.47833236 | J26: 13.64295498 | K26: 13.73252785 | L26: 13.91015874
A27: =VLOOKUP("Territories",Translation!$A$1:$C$354, Translation!A1+1, 0) -> Territoires | B27: 0.4301467938 | C27: 0.4332419429 | D27: 0.4290870134 | E27: 0.4232964888 | F27: 0.4244207075 | G27: 0.4231507889 | H27: 0.4224152419 | I27: 0.4179971601 | J27: 0.4162978203 | K27: 0.4162604473 | L27: 0.4141926371
A28: =VLOOKUP("Distribution based on outstanding loan amounts, not number of loans.",Translation!$A$1:$C$354, Translation!A1+1, 0) -> La répartition est établie d'après le solde, plutôt que le nombre de prêts assurés.
A29: =VLOOKUP("The sum of all breakdown categories may not add up to 100 due to rounding.",Translation!$A$1:$C$354, Translation!A1+1, 0) -> Les chiffres ayant été arrondis, il se peut que la somme de l'ensemble des catégories n'égale pas 100 %.
A30: =VLOOKUP("Portfolio-insured Line of Credit loans with zero ($0.00) balance were included in the number of loans in force starting from Q2 2018.",Translation!$A$1:$C$354, Translation!A1+1, 0) -> Les prêts liés à une marge de crédit couverts par une assurance de portefeuille ayant un solde nul (0,00 $) sont inclus dans le nombre des prêts en cours depuis le deuxième trimestre de 2018.

Sheet 5
A1: =VLOOKUP("NATIONAL INSURED VOLUMES",Translation!$A$1:$C$354, Translation!A1+1, 0) -> VOLUME DE PRÊTS ASSURÉS À L’ÉCHELLE NATIONALE | G1: =VLOOKUP("Back to Table of Contents",Translation!$A$1:$C$354, Translation!A1+1, 0) -> Retour à la table des matières
A2: =VLOOKUP("Loans insured during period by province (%)",Translation!$A$1:$C$354, Translation!A1+1, 0) -> Prêts hypothécaires assurés au cours de la période selon la province (%)
A3: =VLOOKUP("TRANSACTIONAL HOMEOWNER",Translation!$A$1:$C$354, Translation!A1+1, 0) -> PROPRIÉTAIRES-OCCUPANTS, À L’UNITÉ | B3: =VLOOKUP("Q1 2020",Translation!$A$1:$C$354, Translation!$A$1+1, 0) -> T1 2020 | C3: =VLOOKUP("Q4 2019",Translation!$A$1:$C$354, Translation!$A$1+1, 0) -> T4 2019 | D3: =VLOOKUP("Q3 2019",Translation!$A$1:$C$354, Translation!$A$1+1, 0) -> T3 2019 | E3: =VLOOKUP("Q2 2019",Translation!$A$1:$C$354, Translation!$A$1+1, 0) -> T2 2019 | F3: =VLOOKUP("Q1 2019",Translation!$A$1:$C$354, Translation!$A$1+1, 0) -> T1 2019 | G3: =VLOOKUP("Q4 2018",Translation!$A$1:$C$354, Translation!$A$1+1, 0) -> T4 2018 | H3: =VLOOKUP("Q3 2018",Translation!$A$1:$C$354, Translation!$A$1+1, 0) -> T3 2018 | I3: =VLOOKUP("Q2 2018",Translation!$A$1:$C$354, Translation!$A$1+1, 0) -> T2 2018 | J3: =VLOOKUP("YTD 2020",Translation!$A$1:$C$354, Translation!$A$1+1, 0) -> Cumul 2020 | K3: =VLOOKUP("YTD 2019",Translation!$A$1:$C$354, Translation!$A$1+1, 0) -> Cumul 2019
A4: =VLOOKUP("Newfoundland and Labrador",Translation!$A$1:$C$354, Translation!A1+1, 0) -> Terre-Neuve-et-Labrador | B4: =SUMIFS(Data!E:E,Data!B:B,'5'!$B$3,Data!C:C,'5'!$A$3,Data!D:D,'5'!A4,Data!F:F,'5'!$A$2) -> 0.8949121423 | C4: =SUMIFS(Data!E:E,Data!B:B,'5'!$C$3,Data!C:C,'5'!$A$3,Data!D:D,'5'!A4,Data!F:F,'5'!$A$2) -> 1.174995975 | D4: =SUMIFS(Data!E:E,Data!B:B,'5'!$D$3,Data!C:C,'5'!$A$3,Data!D:D,'5'!A4,Data!F:F,'5'!$A$2) -> 1.05247767 | E4: =SUMIFS(Data!E:E,Data!B:B,'5'!$E$3,Data!C:C,'5'!$A$3,Data!D:D,'5'!A4,Data!F:F,'5'!$A$2) -> 0.8371474258 | F4: =SUMIFS(Data!E:E,Data!B:B,'5'!$F$3,Data!C:C,'5'!$A$3,Data!D:D,'5'!A4,Data!F:F,'5'!$A$2) -> 1.149168718 | G4: =SUMIFS(Data!E:E,Data!B:B,'5'!$G$3,Data!C:C,'5'!$A$3,Data!D:D,'5'!A4,Data!F:F,'5'!$A$2) -> 1.179509145 | H4: =SUMIFS(Data!E:E,Data!B:B,'5'!$H$3,Data!C:C,'5'!$A$3,Data!D:D,'5'!A4,Data!F:F,'5'!$A$2) -> 1.165937524 | I4: =SUMIFS(Data!E:E,Data!B:B,'5'!$I$3,Data!C:C,'5'!$A$3,Data!D:D,'5'!A4,Data!F:F,'5'!$A$2) -> 0.973171429 | J4: =SUMIFS(Data!E:E,Data!B:B,'5'!$J$3,Data!C:C,'5'!$A$3,Data!D:D,'5'!A4,Data!F:F,'5'!$A$2) -> 0.8949121423 | K4: =SUMIFS(Data!E:E,Data!B:B,'5'!$K$3,Data!C:C,'5'!$A$3,Data!D:D,'5'!A4,Data!F:F,'5'!$A$2) -> 1.149168718
A5: =VLOOKUP("Prince Edward Island",Translation!$A$1:$C$354, Translation!A1+1, 0) -> Île-du-Prince-Édouard | B5: =SUMIFS(Data!E:E,Data!B:B,'5'!$B$3,Data!C:C,'5'!$A$3,Data!D:D,'5'!A5,Data!F:F,'5'!$A$2) -> 0.4090740916 | C5: =SUMIFS(Data!E:E,Data!B:B,'5'!$C$3,Data!C:C,'5'!$A$3,Data!D:D,'5'!A5,Data!F:F,'5'!$A$2) -> 0.4464617908 | D5: =SUMIFS(Data!E:E,Data!B:B,'5'!$D$3,Data!C:C,'5'!$A$3,Data!D:D,'5'!A5,Data!F:F,'5'!$A$2) -> 0.4253675308 | E5: =SUMIFS(Data!E:E,Data!B:B,'5'!$E$3,Data!C:C,'5'!$A$3,Data!D:D,'5'!A5,Data!F:F,'5'!$A$2) -> 0.3248869219 | F5: =SUMIFS(Data!E:E,Data!B:B,'5'!$F$3,Data!C:C,'5'!$A$3,Data!D:D,'5'!A5,Data!F:F,'5'!$A$2) -> 0.292181988 | G5: =SUMIFS(Data!E:E,Data!B:B,'5'!$G$3,Data!C:C,'5'!$A$3,Data!D:D,'5'!A5,Data!F:F,'5'!$A$2) -> 0.4512834027 | H5: =SUMIFS(Data!E:E,Data!B:B,'5'!$H$3,Data!C:C,'5'!$A$3,Data!D:D,'5'!A5,Data!F:F,'5'!$A$2) -> 0.4259080039 | I5: =SUMIFS(Data!E:E,Data!B:B,'5'!$I$3,Data!C:C,'5'!$A$3,Data!D:D,'5'!A5,Data!F:F,'5'!$A$2) -> 0.2607340977 | J5: =SUMIFS(Data!E:E,Data!B:B,'5'!$J$3,Data!C:C,'5'!$A$3,Data!D:D,'5'!A5,Data!F:F,'5'!$A$2) -> 0.4090740916 | K5: =SUMIFS(Data!E:E,Data!B:B,'5'!$K$3,Data!C:C,'5'!$A$3,Data!D:D,'5'!A5,Data!F:F,'5'!$A$2) -> 0.292181988
A6: =VLOOKUP("Nova Scotia",Translation!$A$1:$C$354, Translation!A1+1, 0) -> Nouvelle-Écosse | B6: =SUMIFS(Data!E:E,Data!B:B,'5'!$B$3,Data!C:C,'5'!$A$3,Data!D:D,'5'!A6,Data!F:F,'5'!$A$2) -> 2.35887172 | C6: =SUMIFS(Data!E:E,Data!B:B,'5'!$C$3,Data!C:C,'5'!$A$3,Data!D:D,'5'!A6,Data!F:F,'5'!$A$2) -> 2.374778649 | D6: =SUMIFS(Data!E:E,Data!B:B,'5'!$D$3,Data!C:C,'5'!$A$3,Data!D:D,'5'!A6,Data!F:F,'5'!$A$2) -> 2.954939509 | E6: =SUMIFS(Data!E:E,Data!B:B,'5'!$E$3,Data!C:C,'5'!$A$3,Data!D:D,'5'!A6,Data!F:F,'5'!$A$2) -> 1.990398438 | F6: =SUMIFS(Data!E:E,Data!B:B,'5'!$F$3,Data!C:C,'5'!$A$3,Data!D:D,'5'!A6,Data!F:F,'5'!$A$2) -> 2.331896426 | G6: =SUMIFS(Data!E:E,Data!B:B,'5'!$G$3,Data!C:C,'5'!$A$3,Data!D:D,'5'!A6,Data!F:F,'5'!$A$2) -> 2.387604142 | H6: =SUMIFS(Data!E:E,Data!B:B,'5'!$H$3,Data!C:C,'5'!$A$3,Data!D:D,'5'!A6,Data!F:F,'5'!$A$2) -> 2.912868545 | I6: =SUMIFS(Data!E:E,Data!B:B,'5'!$I$3,Data!C:C,'5'!$A$3,Data!D:D,'5'!A6,Data!F:F,'5'!$A$2) -> 2.024286877 | J6: =SUMIFS(Data!E:E,Data!B:B,'5'!$J$3,Data!C:C,'5'!$A$3,Data!D:D,'5'!A6,Data!F:F,'5'!$A$2) -> 2.35887172 | K6: =SUMIFS(Data!E:E,Data!B:B,'5'!$K$3,Data!C:C,'5'!$A$3,Data!D:D,'5'!A6,Data!F:F,'5'!$A$2) -> 2.331896426
A7: =VLOOKUP("New Brunswick",Translation!$A$1:$C$354, Translation!A1+1, 0) -> Nouveau-Brunswick | B7: =SUMIFS(Data!E:E,Data!B:B,'5'!$B$3,Data!C:C,'5'!$A$3,Data!D:D,'5'!A7,Data!F:F,'5'!$A$2) -> 1.926181531 | C7: =SUMIFS(Data!E:E,Data!B:B,'5'!$C$3,Data!C:C,'5'!$A$3,Data!D:D,'5'!A7,Data!F:F,'5'!$A$2) -> 2.169994259 | D7: =SUMIFS(Data!E:E,Data!B:B,'5'!$D$3,Data!C:C,'5'!$A$3,Data!D:D,'5'!A7,Data!F:F,'5'!$A$2) -> 2.507262938 | E7: =SUMIFS(Data!E:E,Data!B:B,'5'!$E$3,Data!C:C,'5'!$A$3,Data!D:D,'5'!A7,Data!F:F,'5'!$A$2) -> 1.834464993 | F7: =SUMIFS(Data!E:E,Data!B:B,'5'!$F$3,Data!C:C,'5'!$A$3,Data!D:D,'5'!A7,Data!F:F,'5'!$A$2) -> 2.036718975 | G7: =SUMIFS(Data!E:E,Data!B:B,'5'!$G$3,Data!C:C,'5'!$A$3,Data!D:D,'5'!A7,Data!F:F,'5'!$A$2) -> 2.361415998 | H7: =SUMIFS(Data!E:E,Data!B:B,'5'!$H$3,Data!C:C,'5'!$A$3,Data!D:D,'5'!A7,Data!F:F,'5'!$A$2) -> 2.208525827 | I7: =SUMIFS(Data!E:E,Data!B:B,'5'!$I$3,Data!C:C,'5'!$A$3,Data!D:D,'5'!A7,Data!F:F,'5'!$A$2) -> 1.734400421 | J7: =SUMIFS(Data!E:E,Data!B:B,'5'!$J$3,Data!C:C,'5'!$A$3,Data!D:D,'5'!A7,Data!F:F,'5'!$A$2) -> 1.926181531 | K7: =SUMIFS(Data!E:E,Data!B:B,'5'!$K$3,Data!C:C,'5'!$A$3,Data!D:D,'5'!A7,Data!F:F,'5'!$A$2) -> 2.036718975
A8: =VLOOKUP("Quebec",Translation!$A$1:$C$354, Translation!A1+1, 0) -> Québec | B8: =SUMIFS(Data!E:E,Data!B:B,'5'!$B$3,Data!C:C,'5'!$A$3,Data!D:D,'5'!A8,Data!F:F,'5'!$A$2) -> 29.49630368 | C8: =SUMIFS(Data!E:E,Data!B:B,'5'!$C$3,Data!C:C,'5'!$A$3,Data!D:D,'5'!A8,Data!F:F,'5'!$A$2) -> 26.61831924 | D8: =SUMIFS(Data!E:E,Data!B:B,'5'!$D$3,Data!C:C,'5'!$A$3,Data!D:D,'5'!A8,Data!F:F,'5'!$A$2) -> 24.299777 | E8: =SUMIFS(Data!E:E,Data!B:B,'5'!$E$3,Data!C:C,'5'!$A$3,Data!D:D,'5'!A8,Data!F:F,'5'!$A$2) -> 43.12814067 | F8: =SUMIFS(Data!E:E,Data!B:B,'5'!$F$3,Data!C:C,'5'!$A$3,Data!D:D,'5'!A8,Data!F:F,'5'!$A$2) -> 26.15532452 | G8: =SUMIFS(Data!E:E,Data!B:B,'5'!$G$3,Data!C:C,'5'!$A$3,Data!D:D,'5'!A8,Data!F:F,'5'!$A$2) -> 24.27866959 | H8: =SUMIFS(Data!E:E,Data!B:B,'5'!$H$3,Data!C:C,'5'!$A$3,Data!D:D,'5'!A8,Data!F:F,'5'!$A$2) -> 23.53800035 | I8: =SUMIFS(Data!E:E,Data!B:B,'5'!$I$3,Data!C:C,'5'!$A$3,Data!D:D,'5'!A8,Data!F:F,'5'!$A$2) -> 39.60406001 | J8: =SUMIFS(Data!E:E,Data!B:B,'5'!$J$3,Data!C:C,'5'!$A$3,Data!D:D,'5'!A8,Data!F:F,'5'!$A$2) -> 29.49630368 | K8: =SUMIFS(Data!E:E,Data!B:B,'5'!$K$3,Data!C:C,'5'!$A$3,Data!D:D,'5'!A8,Data!F:F,'5'!$A$2) -> 26.15532452
A9: =VLOOKUP("Ontario",Translation!$A$1:$C$354, Translation!A1+1, 0) -> Ontario | B9: =SUMIFS(Data!E:E,Data!B:B,'5'!$B$3,Data!C:C,'5'!$A$3,Data!D:D,'5'!A9,Data!F:F,'5'!$A$2) -> 30.10959695 | C9: =SUMIFS(Data!E:E,Data!B:B,'5'!$C$3,Data!C:C,'5'!$A$3,Data!D:D,'5'!A9,Data!F:F,'5'!$A$2) -> 34.3857928 | D9: =SUMIFS(Data!E:E,Data!B:B,'5'!$D$3,Data!C:C,'5'!$A$3,Data!D:D,'5'!A9,Data!F:F,'5'!$A$2) -> 34.71667869 | E9: =SUMIFS(Data!E:E,Data!B:B,'5'!$E$3,Data!C:C,'5'!$A$3,Data!D:D,'5'!A9,Data!F:F,'5'!$A$2) -> 24.0635269 | F9: =SUMIFS(Data!E:E,Data!B:B,'5'!$F$3,Data!C:C,'5'!$A$3,Data!D:D,'5'!A9,Data!F:F,'5'!$A$2) -> 33.05015792 | G9: =SUMIFS(Data!E:E,Data!B:B,'5'!$G$3,Data!C:C,'5'!$A$3,Data!D:D,'5'!A9,Data!F:F,'5'!$A$2) -> 33.72838866 | H9: =SUMIFS(Data!E:E,Data!B:B,'5'!$H$3,Data!C:C,'5'!$A$3,Data!D:D,'5'!A9,Data!F:F,'5'!$A$2) -> 32.94699807 | I9: =SUMIFS(Data!E:E,Data!B:B,'5'!$I$3,Data!C:C,'5'!$A$3,Data!D:D,'5'!A9,Data!F:F,'5'!$A$2) -> 25.77246779 | J9: =SUMIFS(Data!E:E,Data!B:B,'5'!$J$3,Data!C:C,'5'!$A$3,Data!D:D,'5'!A9,Data!F:F,'5'!$A$2) -> 30.10959695 | K9: =SUMIFS(Data!E:E,Data!B:B,'5'!$K$3,Data!C:C,'5'!$A$3,Data!D:D,'5'!A9,Data!F:F,'5'!$A$2) -> 33.05015792
A10: =VLOOKUP("Manitoba",Translation!$A$1:$C$354, Translation!A1+1, 0) -> Manitoba | B10: =SUMIFS(Data!E:E,Data!B:B,'5'!$B$3,Data!C:C,'5'!$A$3,Data!D:D,'5'!A10,Data!F:F,'5'!$A$2) -> 4.196196566 | C10: =SUMIFS(Data!E:E,Data!B:B,'5'!$C$3,Data!C:C,'5'!$A$3,Data!D:D,'5'!A10,Data!F:F,'5'!$A$2) -> 4.418327632 | D10: =SUMIFS(Data!E:E,Data!B:B,'5'!$D$3,Data!C:C,'5'!$A$3,Data!D:D,'5'!A10,Data!F:F,'5'!$A$2) -> 4.989881032 | E10: =SUMIFS(Data!E:E,Data!B:B,'5'!$E$3,Data!C:C,'5'!$A$3,Data!D:D,'5'!A10,Data!F:F,'5'!$A$2) -> 3.296643697 | F10: =SUMIFS(Data!E:E,Data!B:B,'5'!$F$3,Data!C:C,'5'!$A$3,Data!D:D,'5'!A10,Data!F:F,'5'!$A$2) -> 3.686610384 | G10: =SUMIFS(Data!E:E,Data!B:B,'5'!$G$3,Data!C:C,'5'!$A$3,Data!D:D,'5'!A10,Data!F:F,'5'!$A$2) -> 4.490887609 | H10: =SUMIFS(Data!E:E,Data!B:B,'5'!$H$3,Data!C:C,'5'!$A$3,Data!D:D,'5'!A10,Data!F:F,'5'!$A$2) -> 4.896991345 | I10: =SUMIFS(Data!E:E,Data!B:B,'5'!$I$3,Data!C:C,'5'!$A$3,Data!D:D,'5'!A10,Data!F:F,'5'!$A$2) -> 3.086603875 | J10: =SUMIFS(Data!E:E,Data!B:B,'5'!$J$3,Data!C:C,'5'!$A$3,Data!D:D,'5'!A10,Data!F:F,'5'!$A$2) -> 4.196196566 | K10: =SUMIFS(Data!E:E,Data!B:B,'5'!$K$3,Data!C:C,'5'!$A$3,Data!D:D,'5'!A10,Data!F:F,'5'!$A$2) -> 3.686610384
A11: =VLOOKUP("Saskatchewan",Translation!$A$1:$C$354, Translation!A1+1, 0) -> Saskatchewan | B11: =SUMIFS(Data!E:E,Data!B:B,'5'!$B$3,Data!C:C,'5'!$A$3,Data!D:D,'5'!A11,Data!F:F,'5'!$A$2) -> 2.399967456 | C11: =SUMIFS(Data!E:E,Data!B:B,'5'!$C$3,Data!C:C,'5'!$A$3,Data!D:D,'5'!A11,Data!F:F,'5'!$A$2) -> 2.730312482 | D11: =SUMIFS(Data!E:E,Data!B:B,'5'!$D$3,Data!C:C,'5'!$A$3,Data!D:D,'5'!A11,Data!F:F,'5'!$A$2) -> 2.65906082 | E11: =SUMIFS(Data!E:E,Data!B:B,'5'!$E$3,Data!C:C,'5'!$A$3,Data!D:D,'5'!A11,Data!F:F,'5'!$A$2) -> 2.592166671 | F11: =SUMIFS(Data!E:E,Data!B:B,'5'!$F$3,Data!C:C,'5'!$A$3,Data!D:D,'5'!A11,Data!F:F,'5'!$A$2) -> 2.725023803 | G11: =SUMIFS(Data!E:E,Data!B:B,'5'!$G$3,Data!C:C,'5'!$A$3,Data!D:D,'5'!A11,Data!F:F,'5'!$A$2) -> 2.694089001 | H11: =SUMIFS(Data!E:E,Data!B:B,'5'!$H$3,Data!C:C,'5'!$A$3,Data!D:D,'5'!A11,Data!F:F,'5'!$A$2) -> 2.90153917 | I11: =SUMIFS(Data!E:E,Data!B:B,'5'!$I$3,Data!C:C,'5'!$A$3,Data!D:D,'5'!A11,Data!F:F,'5'!$A$2) -> 2.373632711 | J11: =SUMIFS(Data!E:E,Data!B:B,'5'!$J$3,Data!C:C,'5'!$A$3,Data!D:D,'5'!A11,Data!F:F,'5'!$A$2) -> 2.399967456 | K11: =SUMIFS(Data!E:E,Data!B:B,'5'!$K$3,Data!C:C,'5'!$A$3,Data!D:D,'5'!A11,Data!F:F,'5'!$A$2) -> 2.725023803
A12: =VLOOKUP("Alberta",Translation!$A$1:$C$354, Translation!A1+1, 0) -> Alberta | B12: =SUMIFS(Data!E:E,Data!B:B,'5'!$B$3,Data!C:C,'5'!$A$3,Data!D:D,'5'!A12,Data!F:F,'5'!$A$2) -> 16.26480767 | C12: =SUMIFS(Data!E:E,Data!B:B,'5'!$C$3,Data!C:C,'5'!$A$3,Data!D:D,'5'!A12,Data!F:F,'5'!$A$2) -> 14.67674162 | D12: =SUMIFS(Data!E:E,Data!B:B,'5'!$D$3,Data!C:C,'5'!$A$3,Data!D:D,'5'!A12,Data!F:F,'5'!$A$2) -> 15.57771034 | E12: =SUMIFS(Data!E:E,Data!B:B,'5'!$E$3,Data!C:C,'5'!$A$3,Data!D:D,'5'!A12,Data!F:F,'5'!$A$2) -> 13.41757817 | F12: =SUMIFS(Data!E:E,Data!B:B,'5'!$F$3,Data!C:C,'5'!$A$3,Data!D:D,'5'!A12,Data!F:F,'5'!$A$2) -> 17.27330901 | G12: =SUMIFS(Data!E:E,Data!B:B,'5'!$G$3,Data!C:C,'5'!$A$3,Data!D:D,'5'!A12,Data!F:F,'5'!$A$2) -> 17.28814577 | H12: =SUMIFS(Data!E:E,Data!B:B,'5'!$H$3,Data!C:C,'5'!$A$3,Data!D:D,'5'!A12,Data!F:F,'5'!$A$2) -> 18.00826811 | I12: =SUMIFS(Data!E:E,Data!B:B,'5'!$I$3,Data!C:C,'5'!$A$3,Data!D:D,'5'!A12,Data!F:F,'5'!$A$2) -> 15.13277187 | J12: =SUMIFS(Data!E:E,Data!B:B,'5'!$J$3,Data!C:C,'5'!$A$3,Data!D:D,'5'!A12,Data!F:F,'5'!$A$2) -> 16.26480767 | K12: =SUMIFS(Data!E:E,Data!B:B,'5'!$K$3,Data!C:C,'5'!$A$3,Data!D:D,'5'!A12,Data!F:F,'5'!$A$2) -> 17.27330901
A13: =VLOOKUP("British Columbia",Translation!$A$1:$C$354, Translation!A1+1, 0) -> Colombie-Britannique | B13: =SUMIFS(Data!E:E,Data!B:B,'5'!$B$3,Data!C:C,'5'!$A$3,Data!D:D,'5'!A13,Data!F:F,'5'!$A$2) -> 11.44136435 | C13: =SUMIFS(Data!E:E,Data!B:B,'5'!$C$3,Data!C:C,'5'!$A$3,Data!D:D,'5'!A13,Data!F:F,'5'!$A$2) -> 10.37218018 | D13: =SUMIFS(Data!E:E,Data!B:B,'5'!$D$3,Data!C:C,'5'!$A$3,Data!D:D,'5'!A13,Data!F:F,'5'!$A$2) -> 10.0885069 | E13: =SUMIFS(Data!E:E,Data!B:B,'5'!$E$3,Data!C:C,'5'!$A$3,Data!D:D,'5'!A13,Data!F:F,'5'!$A$2) -> 7.957921041 | F13: =SUMIFS(Data!E:E,Data!B:B,'5'!$F$3,Data!C:C,'5'!$A$3,Data!D:D,'5'!A13,Data!F:F,'5'!$A$2) -> 10.70740239 | G13: =SUMIFS(Data!E:E,Data!B:B,'5'!$G$3,Data!C:C,'5'!$A$3,Data!D:D,'5'!A13,Data!F:F,'5'!$A$2) -> 10.52044083 | H13: =SUMIFS(Data!E:E,Data!B:B,'5'!$H$3,Data!C:C,'5'!$A$3,Data!D:D,'5'!A13,Data!F:F,'5'!$A$2) -> 10.24849289 | I13: =SUMIFS(Data!E:E,Data!B:B,'5'!$I$3,Data!C:C,'5'!$A$3,Data!D:D,'5'!A13,Data!F:F,'5'!$A$2) -> 8.554011987 | J13: =SUMIFS(Data!E:E,Data!B:B,'5'!$J$3,Data!C:C,'5'!$A$3,Data!D:D,'5'!A13,Data!F:F,'5'!$A$2) -> 11.44136435 | K13: =SUMIFS(Data!E:E,Data!B:B,'5'!$K$3,Data!C:C,'5'!$A$3,Data!D:D,'5'!A13,Data!F:F,'5'!$A$2) -> 10.70740239
A14: =VLOOKUP("Territories",Translation!$A$1:$C$354, Translation!A1+1, 0) -> Territoires | B14: =SUMIFS(Data!E:E,Data!B:B,'5'!$B$3,Data!C:C,'5'!$A$3,Data!D:D,'5'!A14,Data!F:F,'5'!$A$2) -> 0.5027238476 | C14: =SUMIFS(Data!E:E,Data!B:B,'5'!$C$3,Data!C:C,'5'!$A$3,Data!D:D,'5'!A14,Data!F:F,'5'!$A$2) -> 0.6320953702 | D14: =SUMIFS(Data!E:E,Data!B:B,'5'!$D$3,Data!C:C,'5'!$A$3,Data!D:D,'5'!A14,Data!F:F,'5'!$A$2) -> 0.7283375665 | E14: =SUMIFS(Data!E:E,Data!B:B,'5'!$E$3,Data!C:C,'5'!$A$3,Data!D:D,'5'!A14,Data!F:F,'5'!$A$2) -> 0.5571250697 | F14: =SUMIFS(Data!E:E,Data!B:B,'5'!$F$3,Data!C:C,'5'!$A$3,Data!D:D,'5'!A14,Data!F:F,'5'!$A$2) -> 0.5922058745 | G14: =SUMIFS(Data!E:E,Data!B:B,'5'!$G$3,Data!C:C,'5'!$A$3,Data!D:D,'5'!A14,Data!F:F,'5'!$A$2) -> 0.6195658415 | H14: =SUMIFS(Data!E:E,Data!B:B,'5'!$H$3,Data!C:C,'5'!$A$3,Data!D:D,'5'!A14,Data!F:F,'5'!$A$2) -> 0.7464701638 | I14: =SUMIFS(Data!E:E,Data!B:B,'5'!$I$3,Data!C:C,'5'!$A$3,Data!D:D,'5'!A14,Data!F:F,'5'!$A$2) -> 0.4838589286 | J14: =SUMIFS(Data!E:E,Data!B:B,'5'!$J$3,Data!C:C,'5'!$A$3,Data!D:D,'5'!A14,Data!F:F,'5'!$A$2) -> 0.5027238476 | K14: =SUMIFS(Data!E:E,Data!B:B,'5'!$K$3,Data!C:C,'5'!$A$3,Data!D:D,'5'!A14,Data!F:F,'5'!$A$2) -> 0.5922058745
A15: =VLOOKUP("Distribution based on loan amounts, not number of loans.",Translation!$A$1:$C$354, Translation!A1+1, 0) -> La répartition est établie d'après le montant, plutôt que le nombre de prêts assurés.
A16: =VLOOKUP("The sum of all breakdown categories may not add up to 100 due to rounding.",Translation!$A$1:$C$354, Translation!A1+1, 0) -> Les chiffres ayant été arrondis, il se peut que la somme de l'ensemble des catégories n'égale pas 100 %.
A18: =VLOOKUP("Loans insured during period by province (%)",Translation!$A$1:$C$354, Translation!A1+1, 0) -> Prêts hypothécaires assurés au cours de la période selon la province (%)
A19: =VLOOKUP("PORTFOLIO",Translation!$A$1:$C$354, Translation!A1+1, 0) -> ASSURANCE DE PORTEFEUILLE | B19: =VLOOKUP("Q1 2020",Translation!$A$1:$C$354, Translation!$A$1+1, 0) -> T1 2020 | C19: =VLOOKUP("Q4 2019",Translation!$A$1:$C$354, Translation!$A$1+1, 0) -> T4 2019 | D19: =VLOOKUP("Q3 2019",Translation!$A$1:$C$354, Translation!$A$1+1, 0) -> T3 2019 | E19: =VLOOKUP("Q2 2019",Translation!$A$1:$C$354, Translation!$A$1+1, 0) -> T2 2019 | F19: =VLOOKUP("Q1 2019",Translation!$A$1:$C$354, Translation!$A$1+1, 0) -> T1 2019 | G19: =VLOOKUP("Q4 2018",Translation!$A$1:$C$354, Translation!$A$1+1, 0) -> T4 2018 | H19: =VLOOKUP("Q3 2018",Translation!$A$1:$C$354, Translation!$A$1+1, 0) -> T3 2018 | I19: =VLOOKUP("Q2 2018",Translation!$A$1:$C$354, Translation!$A$1+1, 0) -> T2 2018 | J19: =VLOOKUP("YTD 2020",Translation!$A$1:$C$354, Translation!$A$1+1, 0) -> Cumul 2020 | K19: =VLOOKUP("YTD 2019",Translation!$A$1:$C$354, Translation!$A$1+1, 0) -> Cumul 2019
A20: =VLOOKUP("Newfoundland and Labrador",Translation!$A$1:$C$354, Translation!A1+1, 0) -> Terre-Neuve-et-Labrador | B20: =SUMIFS(Data!E:E,Data!B:B,'5'!B$19,Data!C:C,'5'!$A$19,Data!D:D,'5'!A20,Data!F:F,'5'!$A$18) -> 0.1355943615 | C20: =SUMIFS(Data!E:E,Data!B:B,'5'!C$19,Data!C:C,'5'!$A$19,Data!D:D,'5'!A20,Data!F:F,'5'!$A$18) -> 0.6960447356 | D20: =SUMIFS(Data!E:E,Data!B:B,'5'!D$19,Data!C:C,'5'!$A$19,Data!D:D,'5'!A20,Data!F:F,'5'!$A$18) -> 0 | E20: =SUMIFS(Data!E:E,Data!B:B,'5'!E$19,Data!C:C,'5'!$A$19,Data!D:D,'5'!A20,Data!F:F,'5'!$A$18) -> 0.6679971776 | F20: =SUMIFS(Data!E:E,Data!B:B,'5'!F$19,Data!C:C,'5'!$A$19,Data!D:D,'5'!A20,Data!F:F,'5'!$A$18) -> 0.6125285756 | G20: =SUMIFS(Data!E:E,Data!B:B,'5'!G$19,Data!C:C,'5'!$A$19,Data!D:D,'5'!A20,Data!F:F,'5'!$A$18) -> 0.3920022919 | H20: =SUMIFS(Data!E:E,Data!B:B,'5'!H$19,Data!C:C,'5'!$A$19,Data!D:D,'5'!A20,Data!F:F,'5'!$A$18) -> 0.3148515513 | I20: =SUMIFS(Data!E:E,Data!B:B,'5'!I$19,Data!C:C,'5'!$A$19,Data!D:D,'5'!A20,Data!F:F,'5'!$A$18) -> 0.1594967512 | J20: =SUMIFS(Data!E:E,Data!B:B,'5'!J$19,Data!C:C,'5'!$A$19,Data!D:D,'5'!A20,Data!F:F,'5'!$A$18) -> 0.1355943615 | K20: =SUMIFS(Data!E:E,Data!B:B,'5'!K$19,Data!C:C,'5'!$A$19,Data!D:D,'5'!A20,Data!F:F,'5'!$A$18) -> 0.6125285756
A21: =VLOOKUP("Prince Edward Island",Translation!$A$1:$C$354, Translation!A1+1, 0) -> Île-du-Prince-Édouard | B21: =SUMIFS(Data!E:E,Data!B:B,'5'!B$19,Data!C:C,'5'!$A$19,Data!D:D,'5'!A21,Data!F:F,'5'!$A$18) -> 0 | C21: =SUMIFS(Data!E:E,Data!B:B,'5'!C$19,Data!C:C,'5'!$A$19,Data!D:D,'5'!A21,Data!F:F,'5'!$A$18) -> 0.1627526795 | D21: =SUMIFS(Data!E:E,Data!B:B,'5'!D$19,Data!C:C,'5'!$A$19,Data!D:D,'5'!A21,Data!F:F,'5'!$A$18) -> 0 | E21: =SUMIFS(Data!E:E,Data!B:B,'5'!E$19,Data!C:C,'5'!$A$19,Data!D:D,'5'!A21,Data!F:F,'5'!$A$18) -> 0.1993429525 | F21: =SUMIFS(Data!E:E,Data!B:B,'5'!F$19,Data!C:C,'5'!$A$19,Data!D:D,'5'!A21,Data!F:F,'5'!$A$18) -> 0.04462589831 | G21: =SUMIFS(Data!E:E,Data!B:B,'5'!G$19,Data!C:C,'5'!$A$19,Data!D:D,'5'!A21,Data!F:F,'5'!$A$18) -> 0.06684714488 | H21: =SUMIFS(Data!E:E,Data!B:B,'5'!H$19,Data!C:C,'5'!$A$19,Data!D:D,'5'!A21,Data!F:F,'5'!$A$18) -> 0 | I21: =SUMIFS(Data!E:E,Data!B:B,'5'!I$19,Data!C:C,'5'!$A$19,Data!D:D,'5'!A21,Data!F:F,'5'!$A$18) -> 0.1632392693 | J21: =SUMIFS(Data!E:E,Data!B:B,'5'!J$19,Data!C:C,'5'!$A$19,Data!D:D,'5'!A21,Data!F:F,'5'!$A$18) -> 0 | K21: =SUMIFS(Data!E:E,Data!B:B,'5'!K$19,Data!C:C,'5'!$A$19,Data!D:D,'5'!A21,Data!F:F,'5'!$A$18) -> 0.04462589831
A22: =VLOOKUP("Nova Scotia",Translation!$A$1:$C$354, Translation!A1+1, 0) -> Nouvelle-Écosse | B22: =SUMIFS(Data!E:E,Data!B:B,'5'!B$19,Data!C:C,'5'!$A$19,Data!D:D,'5'!A22,Data!F:F,'5'!$A$18) -> 0.5241465956 | C22: =SUMIFS(Data!E:E,Data!B:B,'5'!C$19,Data!C:C,'5'!$A$19,Data!D:D,'5'!A22,Data!F:F,'5'!$A$18) -> 1.752048125 | D22: =SUMIFS(Data!E:E,Data!B:B,'5'!D$19,Data!C:C,'5'!$A$19,Data!D:D,'5'!A22,Data!F:F,'5'!$A$18) -> 0.6059143268 | E22: =SUMIFS(Data!E:E,Data!B:B,'5'!E$19,Data!C:C,'5'!$A$19,Data!D:D,'5'!A22,Data!F:F,'5'!$A$18) -> 1.46864395 | F22: =SUMIFS(Data!E:E,Data!B:B,'5'!F$19,Data!C:C,'5'!$A$19,Data!D:D,'5'!A22,Data!F:F,'5'!$A$18) -> 0.9164973225 | G22: =SUMIFS(Data!E:E,Data!B:B,'5'!G$19,Data!C:C,'5'!$A$19,Data!D:D,'5'!A22,Data!F:F,'5'!$A$18) -> 0.5166595707 | H22: =SUMIFS(Data!E:E,Data!B:B,'5'!H$19,Data!C:C,'5'!$A$19,Data!D:D,'5'!A22,Data!F:F,'5'!$A$18) -> 0.6404583548 | I22: =SUMIFS(Data!E:E,Data!B:B,'5'!I$19,Data!C:C,'5'!$A$19,Data!D:D,'5'!A22,Data!F:F,'5'!$A$18) -> 0.4173392834 | J22: =SUMIFS(Data!E:E,Data!B:B,'5'!J$19,Data!C:C,'5'!$A$19,Data!D:D,'5'!A22,Data!F:F,'5'!$A$18) -> 0.5241465956 | K22: =SUMIFS(Data!E:E,Data!B:B,'5'!K$19,Data!C:C,'5'!$A$19,Data!D:D,'5'!A22,Data!F:F,'5'!$A$18) -> 0.9164973225
A23: =VLOOKUP("New Brunswick",Translation!$A$1:$C$354, Translation!A1+1, 0) -> Nouveau-Brunswick | B23: =SUMIFS(Data!E:E,Data!B:B,'5'!B$19,Data!C:C,'5'!$A$19,Data!D:D,'5'!A23,Data!F:F,'5'!$A$18) -> 0.2665777923 | C23: =SUMIFS(Data!E:E,Data!B:B,'5'!C$19,Data!C:C,'5'!$A$19,Data!D:D,'5'!A23,Data!F:F,'5'!$A$18) -> 0.9741494006 | D23: =SUMIFS(Data!E:E,Data!B:B,'5'!D$19,Data!C:C,'5'!$A$19,Data!D:D,'5'!A23,Data!F:F,'5'!$A$18) -> 0.1087754799 | E23: =SUMIFS(Data!E:E,Data!B:B,'5'!E$19,Data!C:C,'5'!$A$19,Data!D:D,'5'!A23,Data!F:F,'5'!$A$18) -> 0.9597273692 | F23: =SUMIFS(Data!E:E,Data!B:B,'5'!F$19,Data!C:C,'5'!$A$19,Data!D:D,'5'!A23,Data!F:F,'5'!$A$18) -> 0.2874571663 | G23: =SUMIFS(Data!E:E,Data!B:B,'5'!G$19,Data!C:C,'5'!$A$19,Data!D:D,'5'!A23,Data!F:F,'5'!$A$18) -> 0.2823474912 | H23: =SUMIFS(Data!E:E,Data!B:B,'5'!H$19,Data!C:C,'5'!$A$19,Data!D:D,'5'!A23,Data!F:F,'5'!$A$18) -> 0.291454926 | I23: =SUMIFS(Data!E:E,Data!B:B,'5'!I$19,Data!C:C,'5'!$A$19,Data!D:D,'5'!A23,Data!F:F,'5'!$A$18) -> 0.1083876548 | J23: =SUMIFS(Data!E:E,Data!B:B,'5'!J$19,Data!C:C,'5'!$A$19,Data!D:D,'5'!A23,Data!F:F,'5'!$A$18) -> 0.2665777923 | K23: =SUMIFS(Data!E:E,Data!B:B,'5'!K$19,Data!C:C,'5'!$A$19,Data!D:D,'5'!A23,Data!F:F,'5'!$A$18) -> 0.2874571663
A24: =VLOOKUP("Quebec",Translation!$A$1:$C$354, Translation!A1+1, 0) -> Québec | B24: =SUMIFS(Data!E:E,Data!B:B,'5'!B$19,Data!C:C,'5'!$A$19,Data!D:D,'5'!A24,Data!F:F,'5'!$A$18) -> 5.407523833 | C24: =SUMIFS(Data!E:E,Data!B:B,'5'!C$19,Data!C:C,'5'!$A$19,Data!D:D,'5'!A24,Data!F:F,'5'!$A$18) -> 18.05432868 | D24: =SUMIFS(Data!E:E,Data!B:B,'5'!D$19,Data!C:C,'5'!$A$19,Data!D:D,'5'!A24,Data!F:F,'5'!$A$18) -> 3.961105792 | E24: =SUMIFS(Data!E:E,Data!B:B,'5'!E$19,Data!C:C,'5'!$A$19,Data!D:D,'5'!A24,Data!F:F,'5'!$A$18) -> 12.50960379 | F24: =SUMIFS(Data!E:E,Data!B:B,'5'!F$19,Data!C:C,'5'!$A$19,Data!D:D,'5'!A24,Data!F:F,'5'!$A$18) -> 11.74897486 | G24: =SUMIFS(Data!E:E,Data!B:B,'5'!G$19,Data!C:C,'5'!$A$19,Data!D:D,'5'!A24,Data!F:F,'5'!$A$18) -> 4.971269927 | H24: =SUMIFS(Data!E:E,Data!B:B,'5'!H$19,Data!C:C,'5'!$A$19,Data!D:D,'5'!A24,Data!F:F,'5'!$A$18) -> 8.060553836 | I24: =SUMIFS(Data!E:E,Data!B:B,'5'!I$19,Data!C:C,'5'!$A$19,Data!D:D,'5'!A24,Data!F:F,'5'!$A$18) -> 5.851567032 | J24: =SUMIFS(Data!E:E,Data!B:B,'5'!J$19,Data!C:C,'5'!$A$19,Data!D:D,'5'!A24,Data!F:F,'5'!$A$18) -> 5.407523833 | K24: =SUMIFS(Data!E:E,Data!B:B,'5'!K$19,Data!C:C,'5'!$A$19,Data!D:D,'5'!A24,Data!F:F,'5'!$A$18) -> 11.74897486
A25: =VLOOKUP("Ontario",Translation!$A$1:$C$354, Translation!A1+1, 0) -> Ontario | B25: =SUMIFS(Data!E:E,Data!B:B,'5'!B$19,Data!C:C,'5'!$A$19,Data!D:D,'5'!A25,Data!F:F,'5'!$A$18) -> 55.63866969 | C25: =SUMIFS(Data!E:E,Data!B:B,'5'!C$19,Data!C:C,'5'!$A$19,Data!D:D,'5'!A25,Data!F:F,'5'!$A$18) -> 45.13143489 | D25: =SUMIFS(Data!E:E,Data!B:B,'5'!D$19,Data!C:C,'5'!$A$19,Data!D:D,'5'!A25,Data!F:F,'5'!$A$18) -> 55.99365564 | E25: =SUMIFS(Data!E:E,Data!B:B,'5'!E$19,Data!C:C,'5'!$A$19,Data!D:D,'5'!A25,Data!F:F,'5'!$A$18) -> 51.53744377 | F25: =SUMIFS(Data!E:E,Data!B:B,'5'!F$19,Data!C:C,'5'!$A$19,Data!D:D,'5'!A25,Data!F:F,'5'!$A$18) -> 58.16870392 | G25: =SUMIFS(Data!E:E,Data!B:B,'5'!G$19,Data!C:C,'5'!$A$19,Data!D:D,'5'!A25,Data!F:F,'5'!$A$18) -> 47.28176882 | H25: =SUMIFS(Data!E:E,Data!B:B,'5'!H$19,Data!C:C,'5'!$A$19,Data!D:D,'5'!A25,Data!F:F,'5'!$A$18) -> 52.55601425 | I25: =SUMIFS(Data!E:E,Data!B:B,'5'!I$19,Data!C:C,'5'!$A$19,Data!D:D,'5'!A25,Data!F:F,'5'!$A$18) -> 65.0624375 | J25: =SUMIFS(Data!E:E,Data!B:B,'5'!J$19,Data!C:C,'5'!$A$19,Data!D:D,'5'!A25,Data!F:F,'5'!$A$18) -> 55.63866969 | K25: =SUMIFS(Data!E:E,Data!B:B,'5'!K$19,Data!C:C,'5'!$A$19,Data!D:D,'5'!A25,Data!F:F,'5'!$A$18) -> 58.16870392
A26: =VLOOKUP("Manitoba",Translation!$A$1:$C$354, Translation!A1+1, 0) -> Manitoba | B26: =SUMIFS(Data!E:E,Data!B:B,'5'!B$19,Data!C:C,'5'!$A$19,Data!D:D,'5'!A26,Data!F:F,'5'!$A$18) -> 0.9864641737 | C26: =SUMIFS(Data!E:E,Data!B:B,'5'!C$19,Data!C:C,'5'!$A$19,Data!D:D,'5'!A26,Data!F:F,'5'!$A$18) -> 1.483841421 | D26: =SUMIFS(Data!E:E,Data!B:B,'5'!D$19,Data!C:C,'5'!$A$19,Data!D:D,'5'!A26,Data!F:F,'5'!$A$18) -> 1.746499222 | E26: =SUMIFS(Data!E:E,Data!B:B,'5'!E$19,Data!C:C,'5'!$A$19,Data!D:D,'5'!A26,Data!F:F,'5'!$A$18) -> 1.123417962 | F26: =SUMIFS(Data!E:E,Data!B:B,'5'!F$19,Data!C:C,'5'!$A$19,Data!D:D,'5'!A26,Data!F:F,'5'!$A$18) -> 0.9089551782 | G26: =SUMIFS(Data!E:E,Data!B:B,'5'!G$19,Data!C:C,'5'!$A$19,Data!D:D,'5'!A26,Data!F:F,'5'!$A$18) -> 1.063996176 | H26: =SUMIFS(Data!E:E,Data!B:B,'5'!H$19,Data!C:C,'5'!$A$19,Data!D:D,'5'!A26,Data!F:F,'5'!$A$18) -> 1.011577731 | I26: =SUMIFS(Data!E:E,Data!B:B,'5'!I$19,Data!C:C,'5'!$A$19,Data!D:D,'5'!A26,Data!F:F,'5'!$A$18) -> 1.060795357 | J26: =SUMIFS(Data!E:E,Data!B:B,'5'!J$19,Data!C:C,'5'!$A$19,Data!D:D,'5'!A26,Data!F:F,'5'!$A$18) -> 0.9864641737 | K26: =SUMIFS(Data!E:E,Data!B:B,'5'!K$19,Data!C:C,'5'!$A$19,Data!D:D,'5'!A26,Data!F:F,'5'!$A$18) -> 0.9089551782
A27: =VLOOKUP("Saskatchewan",Translation!$A$1:$C$354, Translation!A1+1, 0) -> Saskatchewan | B27: =SUMIFS(Data!E:E,Data!B:B,'5'!B$19,Data!C:C,'5'!$A$19,Data!D:D,'5'!A27,Data!F:F,'5'!$A$18) -> 1.764736463 | C27: =SUMIFS(Data!E:E,Data!B:B,'5'!C$19,Data!C:C,'5'!$A$19,Data!D:D,'5'!A27,Data!F:F,'5'!$A$18) -> 3.362086039 | D27: =SUMIFS(Data!E:E,Data!B:B,'5'!D$19,Data!C:C,'5'!$A$19,Data!D:D,'5'!A27,Data!F:F,'5'!$A$18) -> 2.99457954 | E27: =SUMIFS(Data!E:E,Data!B:B,'5'!E$19,Data!C:C,'5'!$A$19,Data!D:D,'5'!A27,Data!F:F,'5'!$A$18) -> 2.131582116 | F27: =SUMIFS(Data!E:E,Data!B:B,'5'!F$19,Data!C:C,'5'!$A$19,Data!D:D,'5'!A27,Data!F:F,'5'!$A$18) -> 3.996024903 | G27: =SUMIFS(Data!E:E,Data!B:B,'5'!G$19,Data!C:C,'5'!$A$19,Data!D:D,'5'!A27,Data!F:F,'5'!$A$18) -> 3.744848308 | H27: =SUMIFS(Data!E:E,Data!B:B,'5'!H$19,Data!C:C,'5'!$A$19,Data!D:D,'5'!A27,Data!F:F,'5'!$A$18) -> 2.076871234 | I27: =SUMIFS(Data!E:E,Data!B:B,'5'!I$19,Data!C:C,'5'!$A$19,Data!D:D,'5'!A27,Data!F:F,'5'!$A$18) -> 1.728559882 | J27: =SUMIFS(Data!E:E,Data!B:B,'5'!J$19,Data!C:C,'5'!$A$19,Data!D:D,'5'!A27,Data!F:F,'5'!$A$18) -> 1.764736463 | K27: =SUMIFS(Data!E:E,Data!B:B,'5'!K$19,Data!C:C,'5'!$A$19,Data!D:D,'5'!A27,Data!F:F,'5'!$A$18) -> 3.996024903
A28: =VLOOKUP("Alberta",Translation!$A$1:$C$354, Translation!A1+1, 0) -> Alberta | B28: =SUMIFS(Data!E:E,Data!B:B,'5'!B$19,Data!C:C,'5'!$A$19,Data!D:D,'5'!A28,Data!F:F,'5'!$A$18) -> 10.84591066 | C28: =SUMIFS(Data!E:E,Data!B:B,'5'!C$19,Data!C:C,'5'!$A$19,Data!D:D,'5'!A28,Data!F:F,'5'!$A$18) -> 12.55204753 | D28: =SUMIFS(Data!E:E,Data!B:B,'5'!D$19,Data!C:C,'5'!$A$19,Data!D:D,'5'!A28,Data!F:F,'5'!$A$18) -> 10.74487028 | E28: =SUMIFS(Data!E:E,Data!B:B,'5'!E$19,Data!C:C,'5'!$A$19,Data!D:D,'5'!A28,Data!F:F,'5'!$A$18) -> 12.14326347 | F28: =SUMIFS(Data!E:E,Data!B:B,'5'!F$19,Data!C:C,'5'!$A$19,Data!D:D,'5'!A28,Data!F:F,'5'!$A$18) -> 11.11971862 | G28: =SUMIFS(Data!E:E,Data!B:B,'5'!G$19,Data!C:C,'5'!$A$19,Data!D:D,'5'!A28,Data!F:F,'5'!$A$18) -> 13.74007966 | H28: =SUMIFS(Data!E:E,Data!B:B,'5'!H$19,Data!C:C,'5'!$A$19,Data!D:D,'5'!A28,Data!F:F,'5'!$A$18) -> 10.15419154 | I28: =SUMIFS(Data!E:E,Data!B:B,'5'!I$19,Data!C:C,'5'!$A$19,Data!D:D,'5'!A28,Data!F:F,'5'!$A$18) -> 10.23136847 | J28: =SUMIFS(Data!E:E,Data!B:B,'5'!J$19,Data!C:C,'5'!$A$19,Data!D:D,'5'!A28,Data!F:F,'5'!$A$18) -> 10.84591066 | K28: =SUMIFS(Data!E:E,Data!B:B,'5'!K$19,Data!C:C,'5'!$A$19,Data!D:D,'5'!A28,Data!F:F,'5'!$A$18) -> 11.11971862
A29: =VLOOKUP("British Columbia",Translation!$A$1:$C$354, Translation!A1+1, 0) -> Colombie-Britannique | B29: =SUMIFS(Data!E:E,Data!B:B,'5'!B$19,Data!C:C,'5'!$A$19,Data!D:D,'5'!A29,Data!F:F,'5'!$A$18) -> 24.43037643 | C29: =SUMIFS(Data!E:E,Data!B:B,'5'!C$19,Data!C:C,'5'!$A$19,Data!D:D,'5'!A29,Data!F:F,'5'!$A$18) -> 15.15015338 | D29: =SUMIFS(Data!E:E,Data!B:B,'5'!D$19,Data!C:C,'5'!$A$19,Data!D:D,'5'!A29,Data!F:F,'5'!$A$18) -> 23.84459972 | E29: =SUMIFS(Data!E:E,Data!B:B,'5'!E$19,Data!C:C,'5'!$A$19,Data!D:D,'5'!A29,Data!F:F,'5'!$A$18) -> 17.25897745 | F29: =SUMIFS(Data!E:E,Data!B:B,'5'!F$19,Data!C:C,'5'!$A$19,Data!D:D,'5'!A29,Data!F:F,'5'!$A$18) -> 12.17408406 | G29: =SUMIFS(Data!E:E,Data!B:B,'5'!G$19,Data!C:C,'5'!$A$19,Data!D:D,'5'!A29,Data!F:F,'5'!$A$18) -> 27.94018061 | H29: =SUMIFS(Data!E:E,Data!B:B,'5'!H$19,Data!C:C,'5'!$A$19,Data!D:D,'5'!A29,Data!F:F,'5'!$A$18) -> 24.89402658 | I29: =SUMIFS(Data!E:E,Data!B:B,'5'!I$19,Data!C:C,'5'!$A$19,Data!D:D,'5'!A29,Data!F:F,'5'!$A$18) -> 15.2168088 | J29: =SUMIFS(Data!E:E,Data!B:B,'5'!J$19,Data!C:C,'5'!$A$19,Data!D:D,'5'!A29,Data!F:F,'5'!$A$18) -> 24.43037643 | K29: =SUMIFS(Data!E:E,Data!B:B,'5'!K$19,Data!C:C,'5'!$A$19,Data!D:D,'5'!A29,Data!F:F,'5'!$A$18) -> 12.17408406
A30: =VLOOKUP("Territories",Translation!$A$1:$C$354, Translation!A1+1, 0) -> Territoires | B30: =SUMIFS(Data!E:E,Data!B:B,'5'!B$19,Data!C:C,'5'!$A$19,Data!D:D,'5'!A30,Data!F:F,'5'!$A$18) -> 0 | C30: =SUMIFS(Data!E:E,Data!B:B,'5'!C$19,Data!C:C,'5'!$A$19,Data!D:D,'5'!A30,Data!F:F,'5'!$A$18) -> 0.681113125 | D30: =SUMIFS(Data!E:E,Data!B:B,'5'!D$19,Data!C:C,'5'!$A$19,Data!D:D,'5'!A30,Data!F:F,'5'!$A$18) -> 0 | E30: =SUMIFS(Data!E:E,Data!B:B,'5'!E$19,Data!C:C,'5'!$A$19,Data!D:D,'5'!A30,Data!F:F,'5'!$A$18) -> 0 | F30: =SUMIFS(Data!E:E,Data!B:B,'5'!F$19,Data!C:C,'5'!$A$19,Data!D:D,'5'!A30,Data!F:F,'5'!$A$18) -> 0.02242949086 | G30: =SUMIFS(Data!E:E,Data!B:B,'5'!G$19,Data!C:C,'5'!$A$19,Data!D:D,'5'!A30,Data!F:F,'5'!$A$18) -> 0 | H30: =SUMIFS(Data!E:E,Data!B:B,'5'!H$19,Data!C:C,'5'!$A$19,Data!D:D,'5'!A30,Data!F:F,'5'!$A$18) -> 0 | I30: =SUMIFS(Data!E:E,Data!B:B,'5'!I$19,Data!C:C,'5'!$A$19,Data!D:D,'5'!A30,Data!F:F,'5'!$A$18) -> 0 | J30: =SUMIFS(Data!E:E,Data!B:B,'5'!J$19,Data!C:C,'5'!$A$19,Data!D:D,'5'!A30,Data!F:F,'5'!$A$18) -> 0 | K30: =SUMIFS(Data!E:E,Data!B:B,'5'!K$19,Data!C:C,'5'!$A$19,Data!D:D,'5'!A30,Data!F:F,'5'!$A$18) -> 0.02242949086
A31: =VLOOKUP("Portfolio distributions do not include substitutions volumes for Portfolio insurance.",Translation!$A$1:$C$354, Translation!A1+1, 0) -> La répartition des prêts hypothécaires pour l'assurance de portefeuille ne comprend pas les prêts de remplacement.
A32: =VLOOKUP("Distribution based on loan amounts, not number of loans.",Translation!$A$1:$C$354, Translation!A1+1, 0) -> La répartition est établie d'après le montant, plutôt que le nombre de prêts assurés.
A33: =VLOOKUP("The sum of all breakdown categories may not add up to 100 due to rounding.",Translation!$A$1:$C$354, Translation!A1+1, 0) -> Les chiffres ayant été arrondis, il se peut que la somme de l'ensemble des catégories n'égale pas 100 %.
A35: =VLOOKUP("Loans insured during period by province (%)",Translation!$A$1:$C$354, Translation!A1+1, 0) -> Prêts hypothécaires assurés au cours de la période selon la province (%)
A36: =VLOOKUP("MULTI-UNIT RESIDENTIAL",Translation!$A$1:$C$354, Translation!A1+1, 0) -> IMMEUBLES COLLECTIFS RÉSIDENTIELS | B36: =VLOOKUP("Q1 2020",Translation!$A$1:$C$354, Translation!$A$1+1, 0) -> T1 2020 | C36: =VLOOKUP("Q4 2019",Translation!$A$1:$C$354, Translation!$A$1+1, 0) -> T4 2019 | D36: =VLOOKUP("Q3 2019",Translation!$A$1:$C$354, Translation!$A$1+1, 0) -> T3 2019 | E36: =VLOOKUP("Q2 2019",Translation!$A$1:$C$354, Translation!$A$1+1, 0) -> T2 2019 | F36: =VLOOKUP("Q1 2019",Translation!$A$1:$C$354, Translation!$A$1+1, 0) -> T1 2019 | G36: =VLOOKUP("Q4 2018",Translation!$A$1:$C$354, Translation!$A$1+1, 0) -> T4 2018 | H36: =VLOOKUP("Q3 2018",Translation!$A$1:$C$354, Translation!$A$1+1, 0) -> T3 2018 | I36: =VLOOKUP("Q2 2018",Translation!$A$1:$C$354, Translation!$A$1+1, 0) -> T2 2018 | J36: =VLOOKUP("YTD 2020",Translation!$A$1:$C$354, Translation!$A$1+1, 0) -> Cumul 2020 | K36: =VLOOKUP("YTD 2019",Translation!$A$1:$C$354, Translation!$A$1+1, 0) -> Cumul 2019
A37: =VLOOKUP("Newfoundland and Labrador",Translation!$A$1:$C$354, Translation!A1+1, 0) -> Terre-Neuve-et-Labrador | B37: =SUMIFS(Data!E:E,Data!B:B,'5'!B$36,Data!C:C,'5'!$A$36,Data!D:D,'5'!A37,Data!F:F,'5'!$A$35) -> 0.235003001 | C37: =SUMIFS(Data!E:E,Data!B:B,'5'!C$36,Data!C:C,'5'!$A$36,Data!D:D,'5'!A37,Data!F:F,'5'!$A$35) -> 0.01413195954 | D37: =SUMIFS(Data!E:E,Data!B:B,'5'!D$36,Data!C:C,'5'!$A$36,Data!D:D,'5'!A37,Data!F:F,'5'!$A$35) -> 0 | E37: =SUMIFS(Data!E:E,Data!B:B,'5'!E$36,Data!C:C,'5'!$A$36,Data!D:D,'5'!A37,Data!F:F,'5'!$A$35) -> 0.1590544138 | F37: =SUMIFS(Data!E:E,Data!B:B,'5'!F$36,Data!C:C,'5'!$A$36,Data!D:D,'5'!A37,Data!F:F,'5'!$A$35) -> 0 | G37: =SUMIFS(Data!E:E,Data!B:B,'5'!G$36,Data!C:C,'5'!$A$36,Data!D:D,'5'!A37,Data!F:F,'5'!$A$35) -> 0.05684656972 | H37: =SUMIFS(Data!E:E,Data!B:B,'5'!H$36,Data!C:C,'5'!$A$36,Data!D:D,'5'!A37,Data!F:F,'5'!$A$35) -> 0.97552391 | I37: =SUMIFS(Data!$E:$E,Data!$B:$B,'5'!I$36,Data!$C:$C,'5'!$A$36,Data!$D:$D,'5'!$A37,Data!$F:$F,'5'!$A$35) -> 0 | J37: =SUMIFS(Data!E:E,Data!B:B,'5'!J$36,Data!C:C,'5'!$A$36,Data!D:D,'5'!A37,Data!F:F,'5'!$A$35) -> 0.235003001 | K37: =SUMIFS(Data!E:E,Data!B:B,'5'!K$36,Data!C:C,'5'!$A$36,Data!D:D,'5'!A37,Data!F:F,'5'!$A$35) -> 0
A38: =VLOOKUP("Prince Edward Island",Translation!$A$1:$C$354, Translation!A1+1, 0) -> Île-du-Prince-Édouard | B38: =SUMIFS(Data!E:E,Data!B:B,'5'!B$36,Data!C:C,'5'!$A$36,Data!D:D,'5'!A38,Data!F:F,'5'!$A$35) -> 0.03814958088 | C38: =SUMIFS(Data!E:E,Data!B:B,'5'!C$36,Data!C:C,'5'!$A$36,Data!D:D,'5'!A38,Data!F:F,'5'!$A$35) -> 0.6667758965 | D38: =SUMIFS(Data!E:E,Data!B:B,'5'!D$36,Data!C:C,'5'!$A$36,Data!D:D,'5'!A38,Data!F:F,'5'!$A$35) -> 0.05611439366 | E38: =SUMIFS(Data!E:E,Data!B:B,'5'!E$36,Data!C:C,'5'!$A$36,Data!D:D,'5'!A38,Data!F:F,'5'!$A$35) -> 0.06110901133 | F38: =SUMIFS(Data!E:E,Data!B:B,'5'!F$36,Data!C:C,'5'!$A$36,Data!D:D,'5'!A38,Data!F:F,'5'!$A$35) -> 0.2119817204 | G38: =SUMIFS(Data!E:E,Data!B:B,'5'!G$36,Data!C:C,'5'!$A$36,Data!D:D,'5'!A38,Data!F:F,'5'!$A$35) -> 0.06814446943 | H38: =SUMIFS(Data!E:E,Data!B:B,'5'!H$36,Data!C:C,'5'!$A$36,Data!D:D,'5'!A38,Data!F:F,'5'!$A$35) -> 0.3376539133 | I38: =SUMIFS(Data!E:E,Data!B:B,'5'!I$36,Data!C:C,'5'!$A$36,Data!D:D,'5'!A38,Data!F:F,'5'!$A$35) -> 0.1400095874 | J38: =SUMIFS(Data!E:E,Data!B:B,'5'!J$36,Data!C:C,'5'!$A$36,Data!D:D,'5'!A38,Data!F:F,'5'!$A$35) -> 0.03814958088 | K38: =SUMIFS(Data!E:E,Data!B:B,'5'!K$36,Data!C:C,'5'!$A$36,Data!D:D,'5'!A38,Data!F:F,'5'!$A$35) -> 0.2119817204
A39: =VLOOKUP("Nova Scotia",Translation!$A$1:$C$354, Translation!A1+1, 0) -> Nouvelle-Écosse | B39: =SUMIFS(Data!E:E,Data!B:B,'5'!B$36,Data!C:C,'5'!$A$36,Data!D:D,'5'!A39,Data!F:F,'5'!$A$35) -> 2.518330248 | C39: =SUMIFS(Data!E:E,Data!B:B,'5'!C$36,Data!C:C,'5'!$A$36,Data!D:D,'5'!A39,Data!F:F,'5'!$A$35) -> 4.463219378 | D39: =SUMIFS(Data!E:E,Data!B:B,'5'!D$36,Data!C:C,'5'!$A$36,Data!D:D,'5'!A39,Data!F:F,'5'!$A$35) -> 3.668376136 | E39: =SUMIFS(Data!E:E,Data!B:B,'5'!E$36,Data!C:C,'5'!$A$36,Data!D:D,'5'!A39,Data!F:F,'5'!$A$35) -> 5.964032513 | F39: =SUMIFS(Data!E:E,Data!B:B,'5'!F$36,Data!C:C,'5'!$A$36,Data!D:D,'5'!A39,Data!F:F,'5'!$A$35) -> 2.96900626 | G39: =SUMIFS(Data!E:E,Data!B:B,'5'!G$36,Data!C:C,'5'!$A$36,Data!D:D,'5'!A39,Data!F:F,'5'!$A$35) -> 5.739498818 | H39: =SUMIFS(Data!E:E,Data!B:B,'5'!H$36,Data!C:C,'5'!$A$36,Data!D:D,'5'!A39,Data!F:F,'5'!$A$35) -> 6.228385465 | I39: =SUMIFS(Data!E:E,Data!B:B,'5'!I$36,Data!C:C,'5'!$A$36,Data!D:D,'5'!A39,Data!F:F,'5'!$A$35) -> 11.02652515 | J39: =SUMIFS(Data!E:E,Data!B:B,'5'!J$36,Data!C:C,'5'!$A$36,Data!D:D,'5'!A39,Data!F:F,'5'!$A$35) -> 2.518330248 | K39: =SUMIFS(Data!E:E,Data!B:B,'5'!K$36,Data!C:C,'5'!$A$36,Data!D:D,'5'!A39,Data!F:F,'5'!$A$35) -> 2.96900626
A40: =VLOOKUP("New Brunswick",Translation!$A$1:$C$354, Translation!A1+1, 0) -> Nouveau-Brunswick | B40: =SUMIFS(Data!E:E,Data!B:B,'5'!B$36,Data!C:C,'5'!$A$36,Data!D:D,'5'!A40,Data!F:F,'5'!$A$35) -> 1.411370088 | C40: =SUMIFS(Data!E:E,Data!B:B,'5'!C$36,Data!C:C,'5'!$A$36,Data!D:D,'5'!A40,Data!F:F,'5'!$A$35) -> 0.5444528636 | D40: =SUMIFS(Data!E:E,Data!B:B,'5'!D$36,Data!C:C,'5'!$A$36,Data!D:D,'5'!A40,Data!F:F,'5'!$A$35) -> 0.8279388646 | E40: =SUMIFS(Data!E:E,Data!B:B,'5'!E$36,Data!C:C,'5'!$A$36,Data!D:D,'5'!A40,Data!F:F,'5'!$A$35) -> 1.519080295 | F40: =SUMIFS(Data!E:E,Data!B:B,'5'!F$36,Data!C:C,'5'!$A$36,Data!D:D,'5'!A40,Data!F:F,'5'!$A$35) -> 0.5427603083 | G40: =SUMIFS(Data!E:E,Data!B:B,'5'!G$36,Data!C:C,'5'!$A$36,Data!D:D,'5'!A40,Data!F:F,'5'!$A$35) -> 0.531704591 | H40: =SUMIFS(Data!E:E,Data!B:B,'5'!H$36,Data!C:C,'5'!$A$36,Data!D:D,'5'!A40,Data!F:F,'5'!$A$35) -> 0.6195339661 | I40: =SUMIFS(Data!E:E,Data!B:B,'5'!I$36,Data!C:C,'5'!$A$36,Data!D:D,'5'!A40,Data!F:F,'5'!$A$35) -> 0.5072690171 | J40: =SUMIFS(Data!E:E,Data!B:B,'5'!J$36,Data!C:C,'5'!$A$36,Data!D:D,'5'!A40,Data!F:F,'5'!$A$35) -> 1.411370088 | K40: =SUMIFS(Data!E:E,Data!B:B,'5'!K$36,Data!C:C,'5'!$A$36,Data!D:D,'5'!A40,Data!F:F,'5'!$A$35) -> 0.5427603083
A41: =VLOOKUP("Quebec",Translation!$A$1:$C$354, Translation!A1+1, 0) -> Québec | B41: =SUMIFS(Data!E:E,Data!B:B,'5'!B$36,Data!C:C,'5'!$A$36,Data!D:D,'5'!A41,Data!F:F,'5'!$A$35) -> 24.28724384 | C41: =SUMIFS(Data!E:E,Data!B:B,'5'!C$36,Data!C:C,'5'!$A$36,Data!D:D,'5'!A41,Data!F:F,'5'!$A$35) -> 22.3050503 | D41: =SUMIFS(Data!E:E,Data!B:B,'5'!D$36,Data!C:C,'5'!$A$36,Data!D:D,'5'!A41,Data!F:F,'5'!$A$35) -> 25.10222416 | E41: =SUMIFS(Data!E:E,Data!B:B,'5'!E$36,Data!C:C,'5'!$A$36,Data!D:D,'5'!A41,Data!F:F,'5'!$A$35) -> 29.53217829 | F41: =SUMIFS(Data!E:E,Data!B:B,'5'!F$36,Data!C:C,'5'!$A$36,Data!D:D,'5'!A41,Data!F:F,'5'!$A$35) -> 22.77904615 | G41: =SUMIFS(Data!E:E,Data!B:B,'5'!G$36,Data!C:C,'5'!$A$36,Data!D:D,'5'!A41,Data!F:F,'5'!$A$35) -> 29.844864 | H41: =SUMIFS(Data!E:E,Data!B:B,'5'!H$36,Data!C:C,'5'!$A$36,Data!D:D,'5'!A41,Data!F:F,'5'!$A$35) -> 24.34390959 | I41: =SUMIFS(Data!E:E,Data!B:B,'5'!I$36,Data!C:C,'5'!$A$36,Data!D:D,'5'!A41,Data!F:F,'5'!$A$35) -> 21.08477042 | J41: =SUMIFS(Data!E:E,Data!B:B,'5'!J$36,Data!C:C,'5'!$A$36,Data!D:D,'5'!A41,Data!F:F,'5'!$A$35) -> 24.28724384 | K41: =SUMIFS(Data!E:E,Data!B:B,'5'!K$36,Data!C:C,'5'!$A$36,Data!D:D,'5'!A41,Data!F:F,'5'!$A$35) -> 22.77904615
A42: =VLOOKUP("Ontario",Translation!$A$1:$C$354, Translation!A1+1, 0) -> Ontario | B42: =SUMIFS(Data!E:E,Data!B:B,'5'!B$36,Data!C:C,'5'!$A$36,Data!D:D,'5'!A42,Data!F:F,'5'!$A$35) -> 44.55742086 | C42: =SUMIFS(Data!E:E,Data!B:B,'5'!C$36,Data!C:C,'5'!$A$36,Data!D:D,'5'!A42,Data!F:F,'5'!$A$35) -> 46.11169942 | D42: =SUMIFS(Data!E:E,Data!B:B,'5'!D$36,Data!C:C,'5'!$A$36,Data!D:D,'5'!A42,Data!F:F,'5'!$A$35) -> 38.11765049 | E42: =SUMIFS(Data!E:E,Data!B:B,'5'!E$36,Data!C:C,'5'!$A$36,Data!D:D,'5'!A42,Data!F:F,'5'!$A$35) -> 29.06804968 | F42: =SUMIFS(Data!E:E,Data!B:B,'5'!F$36,Data!C:C,'5'!$A$36,Data!D:D,'5'!A42,Data!F:F,'5'!$A$35) -> 44.91095518 | G42: =SUMIFS(Data!E:E,Data!B:B,'5'!G$36,Data!C:C,'5'!$A$36,Data!D:D,'5'!A42,Data!F:F,'5'!$A$35) -> 35.13095754 | H42: =SUMIFS(Data!E:E,Data!B:B,'5'!H$36,Data!C:C,'5'!$A$36,Data!D:D,'5'!A42,Data!F:F,'5'!$A$35) -> 42.37138473 | I42: =SUMIFS(Data!E:E,Data!B:B,'5'!I$36,Data!C:C,'5'!$A$36,Data!D:D,'5'!A42,Data!F:F,'5'!$A$35) -> 38.40069268 | J42: =SUMIFS(Data!E:E,Data!B:B,'5'!J$36,Data!C:C,'5'!$A$36,Data!D:D,'5'!A42,Data!F:F,'5'!$A$35) -> 44.55742086 | K42: =SUMIFS(Data!E:E,Data!B:B,'5'!K$36,Data!C:C,'5'!$A$36,Data!D:D,'5'!A42,Data!F:F,'5'!$A$35) -> 44.91095518
A43: =VLOOKUP("Manitoba",Translation!$A$1:$C$354, Translation!A1+1, 0) -> Manitoba | B43: =SUMIFS(Data!E:E,Data!B:B,'5'!B$36,Data!C:C,'5'!$A$36,Data!D:D,'5'!A43,Data!F:F,'5'!$A$35) -> 4.376216956 | C43: =SUMIFS(Data!E:E,Data!B:B,'5'!C$36,Data!C:C,'5'!$A$36,Data!D:D,'5'!A43,Data!F:F,'5'!$A$35) -> 3.773575704 | D43: =SUMIFS(Data!E:E,Data!B:B,'5'!D$36,Data!C:C,'5'!$A$36,Data!D:D,'5'!A43,Data!F:F,'5'!$A$35) -> 4.850773765 | E43: =SUMIFS(Data!E:E,Data!B:B,'5'!E$36,Data!C:C,'5'!$A$36,Data!D:D,'5'!A43,Data!F:F,'5'!$A$35) -> 3.660951764 | F43: =SUMIFS(Data!E:E,Data!B:B,'5'!F$36,Data!C:C,'5'!$A$36,Data!D:D,'5'!A43,Data!F:F,'5'!$A$35) -> 2.251717851 | G43: =SUMIFS(Data!E:E,Data!B:B,'5'!G$36,Data!C:C,'5'!$A$36,Data!D:D,'5'!A43,Data!F:F,'5'!$A$35) -> 3.198043579 | H43: =SUMIFS(Data!E:E,Data!B:B,'5'!H$36,Data!C:C,'5'!$A$36,Data!D:D,'5'!A43,Data!F:F,'5'!$A$35) -> 3.835178118 | I43: =SUMIFS(Data!E:E,Data!B:B,'5'!I$36,Data!C:C,'5'!$A$36,Data!D:D,'5'!A43,Data!F:F,'5'!$A$35) -> 2.793248605 | J43: =SUMIFS(Data!E:E,Data!B:B,'5'!J$36,Data!C:C,'5'!$A$36,Data!D:D,'5'!A43,Data!F:F,'5'!$A$35) -> 4.376216956 | K43: =SUMIFS(Data!E:E,Data!B:B,'5'!K$36,Data!C:C,'5'!$A$36,Data!D:D,'5'!A43,Data!F:F,'5'!$A$35) -> 2.251717851
A44: =VLOOKUP("Saskatchewan",Translation!$A$1:$C$354, Translation!A1+1, 0) -> Saskatchewan | B44: =SUMIFS(Data!E:E,Data!B:B,'5'!B$36,Data!C:C,'5'!$A$36,Data!D:D,'5'!A44,Data!F:F,'5'!$A$35) -> 2.211259077 | C44: =SUMIFS(Data!E:E,Data!B:B,'5'!C$36,Data!C:C,'5'!$A$36,Data!D:D,'5'!A44,Data!F:F,'5'!$A$35) -> 2.539431294 | D44: =SUMIFS(Data!E:E,Data!B:B,'5'!D$36,Data!C:C,'5'!$A$36,Data!D:D,'5'!A44,Data!F:F,'5'!$A$35) -> 0.2062797134 | E44: =SUMIFS(Data!E:E,Data!B:B,'5'!E$36,Data!C:C,'5'!$A$36,Data!D:D,'5'!A44,Data!F:F,'5'!$A$35) -> 1.429080425 | F44: =SUMIFS(Data!E:E,Data!B:B,'5'!F$36,Data!C:C,'5'!$A$36,Data!D:D,'5'!A44,Data!F:F,'5'!$A$35) -> 1.167141977 | G44: =SUMIFS(Data!E:E,Data!B:B,'5'!G$36,Data!C:C,'5'!$A$36,Data!D:D,'5'!A44,Data!F:F,'5'!$A$35) -> 1.291036463 | H44: =SUMIFS(Data!E:E,Data!B:B,'5'!H$36,Data!C:C,'5'!$A$36,Data!D:D,'5'!A44,Data!F:F,'5'!$A$35) -> 0.4764847282 | I44: =SUMIFS(Data!E:E,Data!B:B,'5'!I$36,Data!C:C,'5'!$A$36,Data!D:D,'5'!A44,Data!F:F,'5'!$A$35) -> 3.148576982 | J44: =SUMIFS(Data!E:E,Data!B:B,'5'!J$36,Data!C:C,'5'!$A$36,Data!D:D,'5'!A44,Data!F:F,'5'!$A$35) -> 2.211259077 | K44: =SUMIFS(Data!E:E,Data!B:B,'5'!K$36,Data!C:C,'5'!$A$36,Data!D:D,'5'!A44,Data!F:F,'5'!$A$35) -> 1.167141977
A45: =VLOOKUP("Alberta",Translation!$A$1:$C$354, Translation!A1+1, 0) -> Alberta | B45: =SUMIFS(Data!E:E,Data!B:B,'5'!B$36,Data!C:C,'5'!$A$36,Data!D:D,'5'!A45,Data!F:F,'5'!$A$35) -> 8.805919076 | C45: =SUMIFS(Data!E:E,Data!B:B,'5'!C$36,Data!C:C,'5'!$A$36,Data!D:D,'5'!A45,Data!F:F,'5'!$A$35) -> 8.590641118 | D45: =SUMIFS(Data!E:E,Data!B:B,'5'!D$36,Data!C:C,'5'!$A$36,Data!D:D,'5'!A45,Data!F:F,'5'!$A$35) -> 4.70161285 | E45: =SUMIFS(Data!E:E,Data!B:B,'5'!E$36,Data!C:C,'5'!$A$36,Data!D:D,'5'!A45,Data!F:F,'5'!$A$35) -> 6.978074436 | F45: =SUMIFS(Data!E:E,Data!B:B,'5'!F$36,Data!C:C,'5'!$A$36,Data!D:D,'5'!A45,Data!F:F,'5'!$A$35) -> 7.935500172 | G45: =SUMIFS(Data!E:E,Data!B:B,'5'!G$36,Data!C:C,'5'!$A$36,Data!D:D,'5'!A45,Data!F:F,'5'!$A$35) -> 7.998442271 | H45: =SUMIFS(Data!E:E,Data!B:B,'5'!H$36,Data!C:C,'5'!$A$36,Data!D:D,'5'!A45,Data!F:F,'5'!$A$35) -> 5.105429747 | I45: =SUMIFS(Data!E:E,Data!B:B,'5'!I$36,Data!C:C,'5'!$A$36,Data!D:D,'5'!A45,Data!F:F,'5'!$A$35) -> 4.076334925 | J45: =SUMIFS(Data!E:E,Data!B:B,'5'!J$36,Data!C:C,'5'!$A$36,Data!D:D,'5'!A45,Data!F:F,'5'!$A$35) -> 8.805919076 | K45: =SUMIFS(Data!E:E,Data!B:B,'5'!K$36,Data!C:C,'5'!$A$36,Data!D:D,'5'!A45,Data!F:F,'5'!$A$35) -> 7.935500172
A46: =VLOOKUP("British Columbia",Translation!$A$1:$C$354, Translation!A1+1, 0) -> Colombie-Britannique | B46: =SUMIFS(Data!E:E,Data!B:B,'5'!B$36,Data!C:C,'5'!$A$36,Data!D:D,'5'!A46,Data!F:F,'5'!$A$35) -> 11.55908727 | C46: =SUMIFS(Data!E:E,Data!B:B,'5'!C$36,Data!C:C,'5'!$A$36,Data!D:D,'5'!A46,Data!F:F,'5'!$A$35) -> 10.80403489 | D46: =SUMIFS(Data!E:E,Data!B:B,'5'!D$36,Data!C:C,'5'!$A$36,Data!D:D,'5'!A46,Data!F:F,'5'!$A$35) -> 21.85270337 | E46: =SUMIFS(Data!E:E,Data!B:B,'5'!E$36,Data!C:C,'5'!$A$36,Data!D:D,'5'!A46,Data!F:F,'5'!$A$35) -> 21.28346978 | F46: =SUMIFS(Data!E:E,Data!B:B,'5'!F$36,Data!C:C,'5'!$A$36,Data!D:D,'5'!A46,Data!F:F,'5'!$A$35) -> 16.86606496 | G46: =SUMIFS(Data!E:E,Data!B:B,'5'!G$36,Data!C:C,'5'!$A$36,Data!D:D,'5'!A46,Data!F:F,'5'!$A$35) -> 15.84217814 | H46: =SUMIFS(Data!E:E,Data!B:B,'5'!H$36,Data!C:C,'5'!$A$36,Data!D:D,'5'!A46,Data!F:F,'5'!$A$35) -> 15.47855139 | I46: =SUMIFS(Data!E:E,Data!B:B,'5'!I$36,Data!C:C,'5'!$A$36,Data!D:D,'5'!A46,Data!F:F,'5'!$A$35) -> 18.82257263 | J46: =SUMIFS(Data!E:E,Data!B:B,'5'!J$36,Data!C:C,'5'!$A$36,Data!D:D,'5'!A46,Data!F:F,'5'!$A$35) -> 11.55908727 | K46: =SUMIFS(Data!E:E,Data!B:B,'5'!K$36,Data!C:C,'5'!$A$36,Data!D:D,'5'!A46,Data!F:F,'5'!$A$35) -> 16.86606496
A47: =VLOOKUP("Territories",Translation!$A$1:$C$354, Translation!A1+1, 0) -> Territoires | B47: =SUMIFS(Data!E:E,Data!B:B,'5'!B$36,Data!C:C,'5'!$A$36,Data!D:D,'5'!A47,Data!F:F,'5'!$A$35) -> 0 | C47: =SUMIFS(Data!E:E,Data!B:B,'5'!C$36,Data!C:C,'5'!$A$36,Data!D:D,'5'!A47,Data!F:F,'5'!$A$35) -> 0.1869871761 | D47: =SUMIFS(Data!E:E,Data!B:B,'5'!D$36,Data!C:C,'5'!$A$36,Data!D:D,'5'!A47,Data!F:F,'5'!$A$35) -> 0.6163262585 | E47: =SUMIFS(Data!E:E,Data!B:B,'5'!E$36,Data!C:C,'5'!$A$36,Data!D:D,'5'!A47,Data!F:F,'5'!$A$35) -> 0.3449194018 | F47: =SUMIFS(Data!E:E,Data!B:B,'5'!F$36,Data!C:C,'5'!$A$36,Data!D:D,'5'!A47,Data!F:F,'5'!$A$35) -> 0.3658254261 | G47: =SUMIFS(Data!E:E,Data!B:B,'5'!G$36,Data!C:C,'5'!$A$36,Data!D:D,'5'!A47,Data!F:F,'5'!$A$35) -> 0.2982835635 | H47: =SUMIFS(Data!E:E,Data!B:B,'5'!H$36,Data!C:C,'5'!$A$36,Data!D:D,'5'!A47,Data!F:F,'5'!$A$35) -> 0.227964436 | I47: =SUMIFS(Data!E:E,Data!B:B,'5'!I$36,Data!C:C,'5'!$A$36,Data!D:D,'5'!A47,Data!F:F,'5'!$A$35) -> 0 | J47: =SUMIFS(Data!E:E,Data!B:B,'5'!J$36,Data!C:C,'5'!$A$36,Data!D:D,'5'!A47,Data!F:F,'5'!$A$35) -> 0 | K47: =SUMIFS(Data!E:E,Data!B:B,'5'!K$36,Data!C:C,'5'!$A$36,Data!D:D,'5'!A47,Data!F:F,'5'!$A$35) -> 0.3658254261
A48: =VLOOKUP("Distribution based on loan amounts, not number of loans.",Translation!$A$1:$C$354, Translation!A1+1, 0) -> La répartition est établie d'après le montant, plutôt que le nombre de prêts assurés.
A49: =VLOOKUP("The sum of all breakdown categories may not add up to 100 due to rounding.",Translation!$A$1:$C$354, Translation!A1+1, 0) -> Les chiffres ayant été arrondis, il se peut que la somme de l'ensemble des catégories n'égale pas 100 %.

Sheet 6
A1: =VLOOKUP("NATIONAL INSURED VOLUMES",Translation!$A$1:$C$354, Translation!A1+1, 0) -> VOLUME DE PRÊTS ASSURÉS À L’ÉCHELLE NATIONALE | G1: =VLOOKUP("Back to Table of Contents",Translation!$A$1:$C$354, Translation!A1+1, 0) -> Retour à la table des matières
A2: =VLOOKUP("Insurance-in-force by province (%)",Translation!$A$1:$C$354, Translation!A1+1, 0) -> Contrats d’assurance en vigueur selon la province (%)
A3: =VLOOKUP("TRANSACTIONAL HOMEOWNER",Translation!$A$1:$C$354, Translation!A1+1, 0) -> PROPRIÉTAIRES-OCCUPANTS, À L’UNITÉ | B3: =VLOOKUP("As at",Translation!$A$1:$C$354,Translation!A1+1,0) -> Aux
B4: Q1 2020 | C4: Q4 2019 | D4: Q3 2019 | E4: Q2 2019 | F4: =VLOOKUP("Q1 2019",Translation!$A$1:$C$354, Translation!$A1+1, 0) -> T1 2019 | G4: =VLOOKUP("Q4 2018",Translation!$A$1:$C$354, Translation!A1+1, 0) -> T4 2018 | H4: =VLOOKUP("Q3 2018",Translation!$A$1:$C$354, Translation!A1+1, 0) -> T3 2018 | I4: =VLOOKUP("Q2 2018",Translation!$A$1:$C$354, Translation!A1+1, 0) -> T2 2018 | J4: =VLOOKUP("Q4 2017",Translation!$A$1:$C$354, Translation!A1+1, 0) -> T4 2017
A5: =VLOOKUP("Newfoundland and Labrador",Translation!$A$1:$C$354, Translation!A1+1, 0) -> Terre-Neuve-et-Labrador | B5: 1.590848421 | C5: 1.606741955 | D5: 1.585028473 | E5: 1.589919623 | F5: 1.594000501 | G5: 1.598836564 | H5: 1.597429529 | I5: 1.59143763 | J5: 1.587085172
A6: =VLOOKUP("Prince Edward Island",Translation!$A$1:$C$354, Translation!A1+1, 0) -> Île-du-Prince-Édouard | B6: 0.3203487485 | C6: 0.320390772 | D6: 0.3240478126 | E6: 0.3227110968 | F6: 0.3235530795 | G6: 0.3249619037 | H6: 0.3238185614 | I6: 0.3219363105 | J6: 0.3222255268
A7: =VLOOKUP("Nova Scotia",Translation!$A$1:$C$354, Translation!A1+1, 0) -> Nouvelle-Écosse | B7: 2.528407656 | C7: 2.528517589 | D7: 2.529301652 | E7: 2.505801526 | F7: 2.519648051 | G7: 2.520024912 | H7: 2.516028572 | I7: 2.497234549 | J7: 2.477167715
A8: =VLOOKUP("New Brunswick",Translation!$A$1:$C$354, Translation!A1+1, 0) -> Nouveau-Brunswick | B8: 2.221615293 | C8: 2.225448443 | D8: 2.228453117 | E8: 2.22725635 | F8: 2.223759634 | G8: 2.219238542 | H8: 2.205246158 | I8: 2.197295151 | J8: 2.186681927
A9: =VLOOKUP("Quebec",Translation!$A$1:$C$354, Translation!A1+1, 0) -> Québec | B9: 23.66010091 | C9: 23.55218198 | D9: 23.45286185 | E9: 23.4182077 | F9: 22.86329323 | G9: 22.73977346 | H9: 22.63152609 | I9: 22.52864538 | J9: 22.03137951
A10: =VLOOKUP("Ontario",Translation!$A$1:$C$354, Translation!A1+1, 0) -> Ontario | B10: 28.11811827 | C10: 28.34305711 | D10: 28.58760374 | E10: 28.8068384 | F10: 29.1315262 | G10: 29.2663036 | H10: 29.4567235 | I10: 29.72129982 | J10: 30.37998398
A11: =VLOOKUP("Manitoba",Translation!$A$1:$C$354, Translation!A1+1, 0) -> Manitoba | B11: 3.877332253 | C11: 3.857459139 | D11: 3.851302505 | E11: 3.819064096 | F11: 3.789784026 | G11: 3.796735116 | H11: 3.791300178 | I11: 3.74206736 | J11: 3.690331918
A12: =VLOOKUP("Saskatchewan",Translation!$A$1:$C$354, Translation!A1+1, 0) -> Saskatchewan | B12: 3.811986723 | C12: 3.810248681 | D12: 3.797048212 | E12: 3.780076481 | F12: 3.755330235 | G12: 3.747117856 | H12: 3.729689297 | I12: 3.686810094 | J12: 3.650893869
A13: =VLOOKUP("Alberta",Translation!$A$1:$C$354, Translation!A1+1, 0) -> Alberta | B13: 22.92829449 | C13: 22.74278512 | D13: 22.67327687 | E13: 22.40705072 | F13: 22.54072584 | G13: 22.42271684 | H13: 22.25625149 | I13: 22.06879534 | J13: 21.73968781
A14: =VLOOKUP("British Columbia",Translation!$A$1:$C$354, Translation!A1+1, 0) -> Colombie-Britannique | B14: 10.35968989 | C14: 10.43031549 | D14: 10.3875886 | E14: 10.54051785 | F14: 10.67611351 | G14: 10.78384075 | H14: 10.91168537 | I14: 11.06844351 | J14: 11.36551484
A15: =VLOOKUP("Territories",Translation!$A$1:$C$354, Translation!A1+1, 0) -> Territoires | B15: 0.5832573425 | C15: 0.5828537169 | D15: 0.5834871763 | E15: 0.5825561586 | F15: 0.5822656819 | G15: 0.5804504676 | H15: 0.5803012421 | I15: 0.5760348575 | J15: 0.5690477248
A16: =VLOOKUP("Distribution based on outstanding loan amounts, not number of loans.",Translation!$A$1:$C$354, Translation!A1+1, 0) -> La répartition est établie d'après le solde, plutôt que le nombre de prêts assurés.
A17: =VLOOKUP("The sum of all breakdown categories may not add up to 100 due to rounding.",Translation!$A$1:$C$354, Translation!A1+1, 0) -> Les chiffres ayant été arrondis, il se peut que la somme de l'ensemble des catégories n'égale pas 100 %.
A19: =VLOOKUP("Insurance-in-force by province (%)",Translation!$A$1:$C$354, Translation!A1+1, 0) -> Contrats d’assurance en vigueur selon la province (%)
A20: =VLOOKUP("PORTFOLIO",Translation!$A$1:$C$354, Translation!A1+1, 0) -> ASSURANCE DE PORTEFEUILLE | C20: =VLOOKUP("As at",Translation!$A$1:$C$354,Translation!A1+1,0) -> Aux
B21: Q1 2020 | C21: =C4 -> Q4 2019 | D21: =D4 -> Q3 2019 | E21: Q2 2019 | F21: =VLOOKUP("Q1 2019",Translation!$A$1:$C$354, Translation!$A1+1, 0) -> T1 2019 | G21: =VLOOKUP("Q4 2018",Translation!$A$1:$C$354, Translation!A1+1, 0) -> T4 2018 | H21: =VLOOKUP("Q3 2018",Translation!$A$1:$C$354, Translation!A1+1, 0) -> T3 2018 | I21: =VLOOKUP("Q2 2018",Translation!$A$1:$C$354, Translation!A1+1, 0) -> T2 2018 | J21: =VLOOKUP("Q4 2017",Translation!$A$1:$C$354, Translation!A1+1, 0) -> T4 2017
A22: =VLOOKUP("Newfoundland and Labrador",Translation!$A$1:$C$354, Translation!A1+1, 0) -> Terre-Neuve-et-Labrador | B22: 1.027912854 | C22: 1.030719852 | D22: 1.023627486 | E22: 1.023513872 | F22: 1.023844102 | G22: 1.021264728 | H22: 1.02407831 | I22: 1.020471802 | J22: 1.019558239
A23: =VLOOKUP("Prince Edward Island",Translation!$A$1:$C$354, Translation!A1+1, 0) -> Île-du-Prince-Édouard | B23: 0.18041362 | C23: 0.1844631647 | D23: 0.1843367722 | E23: 0.1846367026 | F23: 0.1844678007 | G23: 0.1856436406 | H23: 0.1901010356 | I23: 0.1918860149 | J23: 0.1917639799
A24: =VLOOKUP("Nova Scotia",Translation!$A$1:$C$354, Translation!A1+1, 0) -> Nouvelle-Écosse | B24: 1.701595487 | C24: 1.713632681 | D24: 1.705963842 | E24: 1.713620693 | F24: 1.716085428 | G24: 1.718102771 | H24: 1.73144053 | I24: 1.733398803 | J24: 1.697636765
A25: =VLOOKUP("New Brunswick",Translation!$A$1:$C$354, Translation!A1+1, 0) -> Nouveau-Brunswick | B25: 0.8419389874 | C25: 0.8471356677 | D25: 0.843445332 | E25: 0.8486025052 | F25: 0.8443312372 | G25: 0.844561372 | H25: 0.8560913372 | I25: 0.8575193475 | J25: 0.8530375023
A26: =VLOOKUP("Quebec",Translation!$A$1:$C$354, Translation!A1+1, 0) -> Québec | B26: 12.60678487 | C26: 12.68908022 | D26: 12.56043992 | E26: 12.53167118 | F26: 12.68121952 | G26: 12.71367263 | H26: 12.84843446 | I26: 12.98728153 | J26: 13.12618468
A27: =VLOOKUP("Ontario",Translation!$A$1:$C$354, Translation!A1+1, 0) -> Ontario | B27: 46.4189464 | C27: 46.32263084 | D27: 46.57532269 | E27: 46.83722938 | F27: 46.77566956 | G27: 46.7960225 | H27: 46.72063031 | I27: 46.96317279 | J27: 47.05208324
A28: =VLOOKUP("Manitoba",Translation!$A$1:$C$354, Translation!A1+1, 0) -> Manitoba | B28: 1.693812571 | C28: 1.706671116 | D28: 1.709403143 | E28: 1.724703642 | F28: 1.740752614 | G28: 1.748618161 | H28: 1.770761788 | I28: 1.772059625 | J28: 1.757782866
A29: =VLOOKUP("Saskatchewan",Translation!$A$1:$C$354, Translation!A1+1, 0) -> Saskatchewan | B29: 2.066087914 | C29: 2.068348529 | D29: 2.057608883 | E29: 2.04834289 | F29: 2.054808884 | G29: 2.047880781 | H29: 2.044764748 | I29: 2.026380786 | J29: 2.005709657
A30: =VLOOKUP("Alberta",Translation!$A$1:$C$354, Translation!A1+1, 0) -> Alberta | B30: 15.24495031 | C30: 15.21726918 | D30: 15.11015673 | E30: 15.0015956 | F30: 14.95116273 | G30: 14.88947446 | H30: 14.7916632 | I30: 14.6189066 | J30: 14.41867656
A31: =VLOOKUP("British Columbia",Translation!$A$1:$C$354, Translation!A1+1, 0) -> Colombie-Britannique | B31: 18.04660883 | C31: 18.04643234 | D31: 18.07020362 | E31: 17.92436972 | F31: 17.86214818 | G31: 17.86900503 | H31: 17.85744324 | I31: 17.66099253 | J31: 17.70848669
A32: =VLOOKUP("Territories",Translation!$A$1:$C$354, Translation!A1+1, 0) -> Territoires | B32: 0.1709481537 | C32: 0.1736164104 | D32: 0.1594915796 | E32: 0.1617138077 | F32: 0.1655099581 | G32: 0.1657539231 | H32: 0.1645910477 | I32: 0.1679301619 | J32: 0.1690798183
